{"text_format":"1","workbook":"xlsx","n_sheets":6,"sheets":["Formulaire avec macros","Formulaire sans macros","Conditions générales du program","FAQ","Instructions d’emballage","DT list"],"not_rendered":{"charts":0,"images":3,"macros":1,"external_links":0,"defined_names":19,"comments":3,"pivot_tables":0},"unopened":[],"bounds":{"document_bytes":16777216,"sheet_cells":100000,"rows_first":2000,"rows_last":500,"rows_between":2000,"halvings":0,"cell_chars":16384,"cell_head_chars":4096},"cells_cut":0,"cells_raw":0,"read":"whole","date_system":"1900"}

{"sheet":"Formulaire avec macros","index":0,"n_rows":152,"n_cols":32,"rows_kept":152,"cut":false,"hidden":false,"merged":[[6,2,6,10],[9,2,9,10],[152,1,154,24],[27,2,27,4],[33,24,33,25],[76,1,76,10],[77,1,77,10],[78,1,80,10],[41,1,41,10],[74,1,74,10],[82,19,82,20],[31,1,31,10],[59,1,59,4],[2,1,2,10],[3,2,3,10],[26,2,26,4],[10,2,10,10],[11,2,11,10],[14,2,14,10],[15,2,15,10],[16,2,16,10],[17,2,17,10],[18,2,18,10],[21,2,21,10],[22,2,22,10],[23,2,23,10],[25,1,25,10],[7,2,7,10],[8,2,8,10]]}
[null,null,"Formulaire de collecte de recyclage DEEE - (Formulaire avec macros)"]
[null,null,"WEEE Recycling  Collection Form"]
[null,"Les macros sont utilisées dans ce formulaire. Veuillez activer les macros. Veuillez cliquer sur le bouton TEST pour tester si le fichier Excel soutient les fonctionnalités de la macro.  Si la macro fonctionne, le système générera une confirmation dans le champ ci-dessous. Sinon, le champ vide restera sans aucun texte. Cela signifie que ce fichier Excel ne peut pas exécuter les macros, veuillez donc remplir le formulaire dans la feuille \"Formulaire de demande sans macros\" / \"Request form without macros\"."]
[null,"Résultat du test"]
["*","Champ obligatoire"]
[null,"Données du demandeur"]
["*","Raison Sociale"]
["*","Adresse"]
["*"]
["*","Nom, Prénom"]
["*","Adresse Email"]
["*","Numéro de téléphone"]
[]
[null,"Point de collecte"]
["*","Raison Sociale"]
["*","Adresse"]
["*","Code postale"]
["*","Ville"]
["*","Pays","France"]
[]
[null,"Coordonnées au point de collecte"]
["*","Nom, Prénom"]
["*","Adresse Email"]
["*","Numéro de téléphone"]
[]
[null,"Date de la collecte des DEEE"]
["*","Date préférée de collecte des DEEE "]
["*","Partie préférée de la journée"," --- Sélectionnez ---"]
[]
[]
[]
[null,"En envoyant le formulaire de collecte pour le recyclage des DEEE à l'adresse électronique suivante: recycling@lenovo.com , vous acceptez les conditions générales du programme de recyclage de Lenovo."]
[]
[]
[]
[]
[]
[]
[]
[]
[null,"Conditions requises pour l'emballage et le transport"]
[null,"Lenovo ramassera les équipements informatiques obsolètes de Lenovo, quel que soit leur poids. Pour contribuer à un processus respectueux de l'environnement, Lenovo demande à tous les participants au programme de recyclage d'essayer de demander des collectes de DEEE dont le poids total minimum est de 500 kg afin de rendre les programmes aussi efficaces que possible.\nTous les DEEE à traiter dans le cadre de ce programme de reprise doivent être emballés conformément aux instructions suivantes:\n(Pour votre confort, vous pouvez utiliser la liste déroulante pour vous assurer que vous avez pris en compte toutes les exigences Oui / Non.)"]
[null,"Préparez vos DEEE!"]
["*","Les batteries amovibles doivent être retirées, collectées et traitées séparément.",null,null,null,null,null," --- Sélectionnez ---"]
["*","Les supports amovibles (par exemple les CD, les cartes PC) doivent être retirés.",null,null,null,null,null," --- Sélectionnez ---"]
[null,"Emballez vos DEEE!"]
["*","Les DEEE sont emballés sur des palettes filmées de 80 x 120 cm, sur roulettes ou dans des caisses en fil de fer.",null,null,null,null,null," --- Sélectionnez ---"]
["*","Veuillez retourner uniquement le matériel nu (sans emballage).",null,null,null,null,null," --- Sélectionnez ---"]
["*","Combien avez-vous d'unités de manutention prêtes\nà l'enlèvement ?",null,null,null,null,null," --- Sélectionner une quantité ---"]
["*","Avez-vous besoin de faire conditionner des équipements par nos opérateurs ?",null,null,null,null,null," --- Sélectionnez ---"]
["*",{"$f":"IF(H50=\"Oui\", \"Précisez le poids approximatif à conditionner (équipements hors-normes inclus) :\",\"\")","v":""},null,null,null,null,null,null,"(kg)"]
["*","Avez-vous des équipements hors norme ?",null,null,null,null,null," --- Sélectionnez ---"]
["*"," --- Sélectionnez l'équipement ---",null,null,"Poids (kg) / Profondeur (cm) / Hauteur (cm) / Largeur (cm)\n"]
[null,"Conditions de la collecte:"]
["*","La collecte aura lieu uniquement à quai ou au rez-de-chaussée.",null,null,null,null,null," --- Sélectionnez ---"]
["*",{"$f":"IF(OR(H55='DT list'!BA1,H55='DT list'!BA2),\"\",\"Y a-t-il un ascenseur ?\")","v":""},null,null,null,null,null," --- Sélectionnez ---"]
["*","Terrain accessible sans obstacle à moins de 50 m du véhicule à charger",null,null,null,null,null," --- Sélectionnez ---"]
["*",{"$f":"IF(H57=\"Non\", \"Précisez la distance (en m) :\",\"\")","v":""},null,null,null,null,null,null,"(m)"]
[null,"Exigences en matière de recyclage :         "]
["*","En respectant la hiérarchie des traitements de recyclage, l'équipement confié peut être réutilisé. Choisissez \"Non\" si vous souhaitez que votre équipement soit expressément détruit.",null,null,null,null,null,"Oui"]
[]
[]
[]
[]
[]
[]
[]
[]
[]
[]
[]
[]
[]
[]
[null,{"$f":"IF(OR(H44=\" --- Sélectionnez ---\",H45=\" --- Sélectionnez ---\",H47=\" --- Sélectionnez ---\",H48=\" --- Sélectionnez ---\",H49=\" --- Sélectionner une quantité ---\",H50=\" --- Sélectionnez ---\",H52=\" --- Sélectionnez ---\",H55=\" --- Sélectionnez ---\",H57=\" --- Sélectionnez ---\"),\"Sélectionnez votre choix dans la section Conditions requises pour l'emballage et le transport ci-dessus. Sélectionnez votre choix dans chacun des champs.\",IF(OR(H44=\"Non\",H45=\"Non\",H47=\"Non\",H48=\"Non\",H50=\"Oui\",H52=\"Oui\",AND(NOT(H55='DT list'!BA2),NOT(H55='DT list'!BA1)),H57=\"Non\"),\"Vos exigences en matière d'emballage et de transport ne sont PAS conformes aux conditions générales de Lenovo. Veuillez saisir des informations détaillées dans le champ \"\" Commentaires \"\" concernant les exigences de collecte spécifiques.\",IF(AND(H44=\"Oui\",H45=\"Oui\",H47=\"Oui\",H48=\"Oui\",H50=\"Non\",H52=\"Non\",H55='DT list'!BA2,H57=\"Oui\"),\"Vos conditions requises pour l'emballage et le transport sont conformes aux conditions générales de Lenovo. Votre équipement DEEE doit être prêt à être collecté, comme indiqué dans ces consignes.\",\"\")))","v":"Sélectionnez votre choix dans la section Conditions requises pour l'emballage et le transport ci-dessus. Sélectionnez votre choix dans chacun des champs."}]
[]
[null,"Commentaires"]
[null,"Votre équipement DEEE doit être prêt pour la collecte, comme indiqué dans ces consignes. \nEn cas d'exigences spécifiques de collecte (par ex. grue, plaques de fer, emballage, accès limité ..), \nveuillez saisir des informations détaillées dans le champ \" Commentaires \" ci-dessous. \nVotre demande sera examinée et évaluée individuellement et Lenovo se réserve le droit de refuser ou d'accepter cette demande. \nVeuillez noter que la collecte peut être soumis à des frais. Si tel est le cas, Lenovo vous en informera avant la confirmation de la participation au programme."]
[]
[]
[]
[]
["*","Champ obligatoire"]
[null,"Données de la collecte"]
[null,null,null,null,null,null,null,null,null,null,null,null,null,null,null,null,null,null,null,null,null,null,null,{"$f":"IF(OR(ISNA(E91),ISNA(H91)),\"\",IF(AND(ISNUMBER(K90),ISNUMBER(U90),OR(E91=TRUE,H91=TRUE),K90>=0),\"Estimated weight is:\",IF(AND(OR(E91=FALSE,H91=FALSE),K90>=0),\"Correct equipment/type\",\"Please input estimated total weight:\")))","v":""}]
[]
[null,"ETAPE 1",null,null,"ETAPE 2",null,null,"ETAPE 3",null,null,"ETAPE 4",null,null,null,null,null,null,null,null,null,"ETAPE 5"]
[null,"* Sélectionnez une famille d'équipement:",null,null,"* Sélectionnez l'équipement:   i",null,null,"* Formulaire de demande avec macro   i",null,null,"*  Quantité / Unités ",null,null,null,null,null,null,null,null,null,"*Poids estimé (kg)/unité  i",null,null,null,"Poids total de toutes les unités (kg)",null,null,null,null,"Double-cliquez \npour effacer \nla ligne     i      ",null,"Double-cliquez \npour réinitialiser \nle poids   i"]
[null,null,null,null,{"$f":"IF(ISNA(E91),\"\",IF(E91=FALSE,\"! Sélectionnez le bon équipement.\",\"\"))","v":""},null,null,{"$f":"IF(ISNA(H91),\"\",IF(H91=FALSE,\"! Sélectionnez le bon équipement..\",\"\"))","v":""},null,null,null,null,null,null,null,null,null,null,null,null,{"$f":"IF(ISNA(H91),\"\",IF(AND(E91=TRUE,H91=TRUE,ISNUMBER(K90),OR(ISBLANK(U90),U90=\"\")),\"Entrez le poids estimé de l'appareil.\",IF(AND(E91=TRUE,H91=TRUE,ISBLANK(K90),ISNUMBER(U90)),\"Entrez le nombre d'unités à l'ÉTAPE 4.\",IF(ISNA(U90),\"\",IF(U90=\"\",\"\",IF(ISTEXT(U90),\"! Entrer un numéro.\",IF(H91=FALSE,\"\",\"\")))))))","v":""}]
[1,"  --- Sélectionnez une famille d'équipement: ---",null,null,null,null,null,null,null,null,null,null,null,null,null,null,null,null,null,"",{"$f":"IF(OR(ISBLANK(B90),ISBLANK(E90),ISBLANK(H90),ISBLANK(K90)),\"\",IF((AND(E91=TRUE,H91=TRUE,K90>0,VLOOKUP(CONCATENATE(E90,\"-\",H90),'DT list'!R:S,2,FALSE)>0)),VLOOKUP(CONCATENATE(E90,\"-\",H90),'DT list'!R:S,2,FALSE),IF(AND(E91=TRUE,H91=TRUE),\"\",\"\")))","v":""},null,null,{"$f":"IF(OR(ISNA(E91),ISNA(H91)),\"\",IF(AND(ISNUMBER(K90),ISNUMBER(U90),OR(E91=TRUE,H91=TRUE),K90>=0),\"Estimated weight is:\",IF(AND(OR(E91=FALSE,H91=FALSE),K90>=0),\"Correct equipment/type\",IF(AND(K90=\"\",U90=\"\"),\"\",\"Please input estimated total weight:\"))))","v":""},{"$f":"IF(OR(ISBLANK(B90),ISBLANK(E90),ISBLANK(H90),ISBLANK(K90)),\"\",IF(AND(E91=TRUE,H91=TRUE,K90>0,U90>0,U90<>\"\"),U90*K90,IF(AND(E91=TRUE,H91=TRUE,K90>0,U90=\"\"),\"\",\"\")))","v":""},null,null,null,null,"Effacer la ligne",null,"Réinitialiser le poids"]
[null,null,null,null,{"$f":"B90=VLOOKUP(E90,'DT list'!J:P,7,FALSE)","v":{"$error":"#N/A"}},null,null,{"$f":"AND(E90=VLOOKUP(H90,'DT list'!K:Q,7,FALSE),B90=VLOOKUP(E90,'DT list'!J:P,7,FALSE))","v":{"$error":"#N/A"}}]
[null,null,null,null,{"$f":"IF(ISNA(E94),\"\",IF(E94=FALSE,\"! Sélectionnez le bon équipement.\",\"\"))","v":""},null,null,{"$f":"IF(ISNA(H94),\"\",IF(H94=FALSE,\"! Sélectionnez le bon équipement..\",\"\"))","v":""},null,null,null,null,null,null,null,null,null,null,null,null,{"$f":"IF(ISNA(H94),\"\",IF(AND(E94=TRUE,H94=TRUE,ISNUMBER(K93),OR(ISBLANK(U93),U93=\"\")),\"Entrez le poids estimé de l'appareil.\",IF(AND(E94=TRUE,H94=TRUE,ISBLANK(K93),ISNUMBER(U93)),\"Entrez le nombre d'unités à l'ÉTAPE 4.\",IF(ISNA(U93),\"\",IF(U93=\"\",\"\",IF(ISTEXT(U93),\"! Entrer un numéro.\",IF(H94=FALSE,\"\",\"\")))))))","v":""}]
[2,"  --- Sélectionnez une famille d'équipement: ---",null,null,null,null,null,null,null,null,null,null,null,null,null,null,null,null,null,"",{"$f":"IF(OR(ISBLANK(B93),ISBLANK(E93),ISBLANK(H93),ISBLANK(K93)),\"\",IF(ISNA(VLOOKUP(CONCATENATE(E93,\"-\",H93),'DT list'!R:S,2,FALSE)),\"\",IF((AND(E94=TRUE,H94=TRUE,K93>0,VLOOKUP(CONCATENATE(E93,\"-\",H93),'DT list'!R:S,2,FALSE)>0)),VLOOKUP(CONCATENATE(E93,\"-\",H93),'DT list'!R:S,2,FALSE),IF(AND(E94=TRUE,H94=TRUE),\"\",\"\"))))","v":""},null,null,{"$f":"IF(OR(ISNA(E94),ISNA(H94)),\"\",IF(AND(ISNUMBER(K93),ISNUMBER(U93),OR(E94=TRUE,H94=TRUE),K93>=0),\"Estimated weight is:\",IF(AND(OR(E94=FALSE,H94=FALSE),K93>=0),\"Correct equipment/type\",IF(AND(K93=\"\",U93=\"\"),\"\",\"Please input estimated total weight:\"))))","v":""},{"$f":"IF(OR(ISBLANK(B93),ISBLANK(E93),ISBLANK(H93),ISBLANK(K93)),\"\",IF(AND(E94=TRUE,H94=TRUE,K93>0,U93>0,U93<>\"\"),U93*K93,IF(AND(E94=TRUE,H94=TRUE,K93>0,U93=\"\"),\"\",\"\")))","v":""},null,null,null,null,"Effacer la ligne",null,"Réinitialiser le poids"]
[null,null,null,null,{"$f":"B93=VLOOKUP(E93,'DT list'!J:P,7,FALSE)","v":{"$error":"#N/A"}},null,null,{"$f":"AND(E93=VLOOKUP(H93,'DT list'!K:Q,7,FALSE),B93=VLOOKUP(E93,'DT list'!J:P,7,FALSE))","v":{"$error":"#N/A"}}]
[null,null,null,null,{"$f":"IF(ISNA(E97),\"\",IF(E97=FALSE,\"! Sélectionnez le bon équipement.\",\"\"))","v":""},null,null,{"$f":"IF(ISNA(H97),\"\",IF(H97=FALSE,\"! Sélectionnez le bon équipement..\",\"\"))","v":""},null,null,null,null,null,null,null,null,null,null,null,null,{"$f":"IF(ISNA(H97),\"\",IF(AND(E97=TRUE,H97=TRUE,ISNUMBER(K96),OR(ISBLANK(U96),U96=\"\")),\"Entrez le poids estimé de l'appareil.\",IF(AND(E97=TRUE,H97=TRUE,ISBLANK(K96),ISNUMBER(U96)),\"Entrez le nombre d'unités à l'ÉTAPE 4.\",IF(ISNA(U96),\"\",IF(U96=\"\",\"\",IF(ISTEXT(U96),\"! Entrer un numéro.\",IF(H97=FALSE,\"\",\"\")))))))","v":""}]
[3,"  --- Sélectionnez une famille d'équipement: ---",null,null,null,null,null,null,null,null,null,null,null,null,null,null,null,null,null,"",{"$f":"IF(OR(ISBLANK(B96),ISBLANK(E96),ISBLANK(H96),ISBLANK(K96)),\"\",IF((AND(E97=TRUE,H97=TRUE,K96>0,VLOOKUP(CONCATENATE(E96,\"-\",H96),'DT list'!R:S,2,FALSE)>0)),VLOOKUP(CONCATENATE(E96,\"-\",H96),'DT list'!R:S,2,FALSE),IF(AND(E97=TRUE,H97=TRUE),\"\",\"\")))","v":""},null,null,{"$f":"IF(OR(ISNA(E97),ISNA(H97)),\"\",IF(AND(ISNUMBER(K96),ISNUMBER(U96),OR(E97=TRUE,H97=TRUE),K96>=0),\"Estimated weight is:\",IF(AND(OR(E97=FALSE,H97=FALSE),K96>=0),\"Correct equipment/type\",IF(AND(K96=\"\",U96=\"\"),\"\",\"Please input estimated total weight:\"))))","v":""},{"$f":"IF(OR(ISBLANK(B96),ISBLANK(E96),ISBLANK(H96),ISBLANK(K96)),\"\",IF(AND(E97=TRUE,H97=TRUE,K96>0,U96>0,U96<>\"\"),U96*K96,IF(AND(E97=TRUE,H97=TRUE,K96>0,U96=\"\"),\"\",\"\")))","v":""},null,null,null,null,"Effacer la ligne",null,"Réinitialiser le poids"]
[null,null,null,null,{"$f":"B96=VLOOKUP(E96,'DT list'!J:P,7,FALSE)","v":{"$error":"#N/A"}},null,null,{"$f":"AND(E96=VLOOKUP(H96,'DT list'!K:Q,7,FALSE),B96=VLOOKUP(E96,'DT list'!J:P,7,FALSE))","v":{"$error":"#N/A"}}]
[null,null,null,null,{"$f":"IF(ISNA(E100),\"\",IF(E100=FALSE,\"! Sélectionnez le bon équipement.\",\"\"))","v":""},null,null,{"$f":"IF(ISNA(H100),\"\",IF(H100=FALSE,\"! Sélectionnez le bon équipement..\",\"\"))","v":""},null,null,null,null,null,null,null,null,null,null,null,null,{"$f":"IF(ISNA(H100),\"\",IF(AND(E100=TRUE,H100=TRUE,ISNUMBER(K99),OR(ISBLANK(U99),U99=\"\")),\"Entrez le poids estimé de l'appareil.\",IF(AND(E100=TRUE,H100=TRUE,ISBLANK(K99),ISNUMBER(U99)),\"Entrez le nombre d'unités à l'ÉTAPE 4.\",IF(ISNA(U99),\"\",IF(U99=\"\",\"\",IF(ISTEXT(U99),\"! Entrer un numéro.\",IF(H100=FALSE,\"\",\"\")))))))","v":""},null,null,{"$f":"IF(OR(ISNA(E91),ISNA(H91)),\"\",IF(AND(ISNUMBER(K90),ISNUMBER(U90),OR(E91=TRUE,H91=TRUE),K90>=0),\"Estimated weight is:\",IF(AND(OR(E91=FALSE,H91=FALSE),K90>=0),\"Correct equipment/type\",\"Please input estimated total weight:\")))","v":""}]
[4,"  --- Sélectionnez une famille d'équipement: ---",null,null,null,null,null,null,null,null,null,null,null,null,null,null,null,null,null,"",{"$f":"IF(OR(ISBLANK(B99),ISBLANK(E99),ISBLANK(H99),ISBLANK(K99)),\"\",IF(ISNA(VLOOKUP(CONCATENATE(E99,\"-\",H99),'DT list'!R:S,2,FALSE)),\"\",IF((AND(E100=TRUE,H100=TRUE,K99>0,VLOOKUP(CONCATENATE(E99,\"-\",H99),'DT list'!R:S,2,FALSE)>0)),VLOOKUP(CONCATENATE(E99,\"-\",H99),'DT list'!R:S,2,FALSE),IF(AND(E100=TRUE,H100=TRUE),\"\",\"\"))))","v":""},null,null,{"$f":"IF(OR(ISNA(E100),ISNA(H100)),\"\",IF(AND(ISNUMBER(K99),ISNUMBER(U99),OR(E100=TRUE,H100=TRUE),K99>=0),\"Estimated weight is:\",IF(AND(OR(E100=FALSE,H100=FALSE),K99>=0),\"Correct equipment/type\",IF(AND(K99=\"\",U99=\"\"),\"\",\"Please input estimated total weight:\"))))","v":""},{"$f":"IF(OR(ISBLANK(B99),ISBLANK(E99),ISBLANK(H99),ISBLANK(K99)),\"\",IF(AND(E100=TRUE,H100=TRUE,K99>0,U99>0,U99<>\"\"),U99*K99,IF(AND(E100=TRUE,H100=TRUE,K99>0,U99=\"\"),\"\",\"\")))","v":""},null,null,null,null,"Effacer la ligne",null,"Réinitialiser le poids"]
[null,null,null,null,{"$f":"B99=VLOOKUP(E99,'DT list'!J:P,7,FALSE)","v":{"$error":"#N/A"}},null,null,{"$f":"AND(E99=VLOOKUP(H99,'DT list'!K:Q,7,FALSE),B99=VLOOKUP(E99,'DT list'!J:P,7,FALSE))","v":{"$error":"#N/A"}}]
[null,null,null,null,{"$f":"IF(ISNA(E103),\"\",IF(E103=FALSE,\"! Sélectionnez le bon équipement.\",\"\"))","v":""},null,null,{"$f":"IF(ISNA(H103),\"\",IF(H103=FALSE,\"! Sélectionnez le bon équipement..\",\"\"))","v":""},null,null,null,null,null,null,null,null,null,null,null,null,{"$f":"IF(ISNA(H103),\"\",IF(AND(E103=TRUE,H103=TRUE,ISNUMBER(K102),OR(ISBLANK(U102),U102=\"\")),\"Entrez le poids estimé de l'appareil.\",IF(AND(E103=TRUE,H103=TRUE,ISBLANK(K102),ISNUMBER(U102)),\"Entrez le nombre d'unités à l'ÉTAPE 4.\",IF(ISNA(U102),\"\",IF(U102=\"\",\"\",IF(ISTEXT(U102),\"! Entrer un numéro.\",IF(H103=FALSE,\"\",\"\")))))))","v":""}]
[5,"  --- Sélectionnez une famille d'équipement: ---",null,null,null,null,null,null,null,null,null,null,null,null,null,null,null,null,null,"",{"$f":"IF(OR(ISBLANK(B102),ISBLANK(E102),ISBLANK(H102),ISBLANK(K102)),\"\",IF(ISNA(VLOOKUP(CONCATENATE(E102,\"-\",H102),'DT list'!R:S,2,FALSE)),\"\",IF((AND(E103=TRUE,H103=TRUE,K102>0,VLOOKUP(CONCATENATE(E102,\"-\",H102),'DT list'!R:S,2,FALSE)>0)),VLOOKUP(CONCATENATE(E102,\"-\",H102),'DT list'!R:S,2,FALSE),IF(AND(E103=TRUE,H103=TRUE),\"\",\"\"))))","v":""},null,null,{"$f":"IF(OR(ISNA(E103),ISNA(H103)),\"\",IF(AND(ISNUMBER(K102),ISNUMBER(U102),OR(E103=TRUE,H103=TRUE),K102>=0),\"Estimated weight is:\",IF(AND(OR(E103=FALSE,H103=FALSE),K102>=0),\"Correct equipment/type\",IF(AND(K102=\"\",U102=\"\"),\"\",\"Please input estimated total weight:\"))))","v":""},{"$f":"IF(OR(ISBLANK(B102),ISBLANK(E102),ISBLANK(H102),ISBLANK(K102)),\"\",IF(AND(E103=TRUE,H103=TRUE,K102>0,U102>0,U102<>\"\"),U102*K102,IF(AND(E103=TRUE,H103=TRUE,K102>0,U102=\"\"),\"\",\"\")))","v":""},null,null,null,null,"Effacer la ligne",null,"Réinitialiser le poids"]
[null,null,null,null,{"$f":"B102=VLOOKUP(E102,'DT list'!J:P,7,FALSE)","v":{"$error":"#N/A"}},null,null,{"$f":"AND(E102=VLOOKUP(H102,'DT list'!K:Q,7,FALSE),B102=VLOOKUP(E102,'DT list'!J:P,7,FALSE))","v":{"$error":"#N/A"}}]
[null,null,null,null,{"$f":"IF(ISNA(E106),\"\",IF(E106=FALSE,\"! Sélectionnez le bon équipement.\",\"\"))","v":""},null,null,{"$f":"IF(ISNA(H106),\"\",IF(H106=FALSE,\"! Sélectionnez le bon équipement..\",\"\"))","v":""},null,null,null,null,null,null,null,null,null,null,null,null,{"$f":"IF(ISNA(H106),\"\",IF(AND(E106=TRUE,H106=TRUE,ISNUMBER(K105),OR(ISBLANK(U105),U105=\"\")),\"Entrez le poids estimé de l'appareil.\",IF(AND(E106=TRUE,H106=TRUE,ISBLANK(K105),ISNUMBER(U105)),\"Entrez le nombre d'unités à l'ÉTAPE 4.\",IF(ISNA(U105),\"\",IF(U105=\"\",\"\",IF(ISTEXT(U105),\"! Entrer un numéro.\",IF(H106=FALSE,\"\",\"\")))))))","v":""}]
[6,"  --- Sélectionnez une famille d'équipement: ---",null,null,null,null,null,null,null,null,null,null,null,null,null,null,null,null,null,"",{"$f":"IF(OR(ISBLANK(B105),ISBLANK(E105),ISBLANK(H105),ISBLANK(K105)),\"\",IF(ISNA(VLOOKUP(CONCATENATE(E105,\"-\",H105),'DT list'!R:S,2,FALSE)),\"\",IF((AND(E106=TRUE,H106=TRUE,K105>0,VLOOKUP(CONCATENATE(E105,\"-\",H105),'DT list'!R:S,2,FALSE)>0)),VLOOKUP(CONCATENATE(E105,\"-\",H105),'DT list'!R:S,2,FALSE),IF(AND(E106=TRUE,H106=TRUE),\"\",\"\"))))","v":""},null,null,{"$f":"IF(OR(ISNA(E106),ISNA(H106)),\"\",IF(AND(ISNUMBER(K105),ISNUMBER(U105),OR(E106=TRUE,H106=TRUE),K105>=0),\"Estimated weight is:\",IF(AND(OR(E106=FALSE,H106=FALSE),K105>=0),\"Correct equipment/type\",IF(AND(K105=\"\",U105=\"\"),\"\",\"Please input estimated total weight:\"))))","v":""},{"$f":"IF(OR(ISBLANK(B105),ISBLANK(E105),ISBLANK(H105),ISBLANK(K105)),\"\",IF(AND(E106=TRUE,H106=TRUE,K105>0,U105>0,U105<>\"\"),U105*K105,IF(AND(E106=TRUE,H106=TRUE,K105>0,U105=\"\"),\"\",\"\")))","v":""},null,null,null,null,"Effacer la ligne",null,"Réinitialiser le poids"]
[null,null,null,null,{"$f":"B105=VLOOKUP(E105,'DT list'!J:P,7,FALSE)","v":{"$error":"#N/A"}},null,null,{"$f":"AND(E105=VLOOKUP(H105,'DT list'!K:Q,7,FALSE),B105=VLOOKUP(E105,'DT list'!J:P,7,FALSE))","v":{"$error":"#N/A"}}]
[null,null,null,null,{"$f":"IF(ISNA(E109),\"\",IF(E109=FALSE,\"! Sélectionnez le bon équipement.\",\"\"))","v":""},null,null,{"$f":"IF(ISNA(H109),\"\",IF(H109=FALSE,\"! Sélectionnez le bon équipement..\",\"\"))","v":""},null,null,null,null,null,null,null,null,null,null,null,null,{"$f":"IF(ISNA(H109),\"\",IF(AND(E109=TRUE,H109=TRUE,ISNUMBER(K108),OR(ISBLANK(U108),U108=\"\")),\"Entrez le poids estimé de l'appareil.\",IF(AND(E109=TRUE,H109=TRUE,ISBLANK(K108),ISNUMBER(U108)),\"Entrez le nombre d'unités à l'ÉTAPE 4.\",IF(ISNA(U108),\"\",IF(U108=\"\",\"\",IF(ISTEXT(U108),\"! Entrer un numéro.\",IF(H109=FALSE,\"\",\"\")))))))","v":""}]
[7,"  --- Sélectionnez une famille d'équipement: ---",null,null,null,null,null,null,null,null,null,null,null,null,null,null,null,null,null,"",{"$f":"IF(OR(ISBLANK(B108),ISBLANK(E108),ISBLANK(H108),ISBLANK(K108)),\"\",IF(ISNA(VLOOKUP(CONCATENATE(E108,\"-\",H108),'DT list'!R:S,2,FALSE)),\"\",IF((AND(E109=TRUE,H109=TRUE,K108>0,VLOOKUP(CONCATENATE(E108,\"-\",H108),'DT list'!R:S,2,FALSE)>0)),VLOOKUP(CONCATENATE(E108,\"-\",H108),'DT list'!R:S,2,FALSE),IF(AND(E109=TRUE,H109=TRUE),\"\",\"\"))))","v":""},null,null,{"$f":"IF(OR(ISNA(E109),ISNA(H109)),\"\",IF(AND(ISNUMBER(K108),ISNUMBER(U108),OR(E109=TRUE,H109=TRUE),K108>=0),\"Estimated weight is:\",IF(AND(OR(E109=FALSE,H109=FALSE),K108>=0),\"Correct equipment/type\",IF(AND(K108=\"\",U108=\"\"),\"\",\"Please input estimated total weight:\"))))","v":""},{"$f":"IF(OR(ISBLANK(B108),ISBLANK(E108),ISBLANK(H108),ISBLANK(K108)),\"\",IF(AND(E109=TRUE,H109=TRUE,K108>0,U108>0,U108<>\"\"),U108*K108,IF(AND(E109=TRUE,H109=TRUE,K108>0,U108=\"\"),\"\",\"\")))","v":""},null,null,null,null,"Effacer la ligne",null,"Réinitialiser le poids"]
[null,null,null,null,{"$f":"B108=VLOOKUP(E108,'DT list'!J:P,7,FALSE)","v":{"$error":"#N/A"}},null,null,{"$f":"AND(E108=VLOOKUP(H108,'DT list'!K:Q,7,FALSE),B108=VLOOKUP(E108,'DT list'!J:P,7,FALSE))","v":{"$error":"#N/A"}}]
[null,null,null,null,{"$f":"IF(ISNA(E112),\"\",IF(E112=FALSE,\"! Sélectionnez le bon équipement.\",\"\"))","v":""},null,null,{"$f":"IF(ISNA(H112),\"\",IF(H112=FALSE,\"! Sélectionnez le bon équipement..\",\"\"))","v":""},null,null,null,null,null,null,null,null,null,null,null,null,{"$f":"IF(ISNA(H112),\"\",IF(AND(E112=TRUE,H112=TRUE,ISNUMBER(K111),OR(ISBLANK(U111),U111=\"\")),\"Entrez le poids estimé de l'appareil.\",IF(AND(E112=TRUE,H112=TRUE,ISBLANK(K111),ISNUMBER(U111)),\"Entrez le nombre d'unités à l'ÉTAPE 4.\",IF(ISNA(U111),\"\",IF(U111=\"\",\"\",IF(ISTEXT(U111),\"! Entrer un numéro.\",IF(H112=FALSE,\"\",\"\")))))))","v":""}]
[8,"  --- Sélectionnez une famille d'équipement: ---",null,null,null,null,null,null,null,null,null,null,null,null,null,null,null,null,null,"",{"$f":"IF(OR(ISBLANK(B111),ISBLANK(E111),ISBLANK(H111),ISBLANK(K111)),\"\",IF(ISNA(VLOOKUP(CONCATENATE(E111,\"-\",H111),'DT list'!R:S,2,FALSE)),\"\",IF((AND(E112=TRUE,H112=TRUE,K111>0,VLOOKUP(CONCATENATE(E111,\"-\",H111),'DT list'!R:S,2,FALSE)>0)),VLOOKUP(CONCATENATE(E111,\"-\",H111),'DT list'!R:S,2,FALSE),IF(AND(E112=TRUE,H112=TRUE),\"\",\"\"))))","v":""},null,null,{"$f":"IF(OR(ISNA(E112),ISNA(H112)),\"\",IF(AND(ISNUMBER(K111),ISNUMBER(U111),OR(E112=TRUE,H112=TRUE),K111>=0),\"Estimated weight is:\",IF(AND(OR(E112=FALSE,H112=FALSE),K111>=0),\"Correct equipment/type\",IF(AND(K111=\"\",U111=\"\"),\"\",\"Please input estimated total weight:\"))))","v":""},{"$f":"IF(OR(ISBLANK(B111),ISBLANK(E111),ISBLANK(H111),ISBLANK(K111)),\"\",IF(AND(E112=TRUE,H112=TRUE,K111>0,U111>0,U111<>\"\"),U111*K111,IF(AND(E112=TRUE,H112=TRUE,K111>0,U111=\"\"),\"\",\"\")))","v":""},null,null,null,null,"Effacer la ligne",null,"Réinitialiser le poids"]
[null,null,null,null,{"$f":"B111=VLOOKUP(E111,'DT list'!J:P,7,FALSE)","v":{"$error":"#N/A"}},null,null,{"$f":"AND(E111=VLOOKUP(H111,'DT list'!K:Q,7,FALSE),B111=VLOOKUP(E111,'DT list'!J:P,7,FALSE))","v":{"$error":"#N/A"}}]
[null,null,null,null,{"$f":"IF(ISNA(E115),\"\",IF(E115=FALSE,\"! Sélectionnez le bon équipement.\",\"\"))","v":""},null,null,{"$f":"IF(ISNA(H115),\"\",IF(H115=FALSE,\"! Sélectionnez le bon équipement..\",\"\"))","v":""},null,null,null,null,null,null,null,null,null,null,null,null,{"$f":"IF(ISNA(H115),\"\",IF(AND(E115=TRUE,H115=TRUE,ISNUMBER(K114),OR(ISBLANK(U114),U114=\"\")),\"Entrez le poids estimé de l'appareil.\",IF(AND(E115=TRUE,H115=TRUE,ISBLANK(K114),ISNUMBER(U114)),\"Entrez le nombre d'unités à l'ÉTAPE 4.\",IF(ISNA(U114),\"\",IF(U114=\"\",\"\",IF(ISTEXT(U114),\"! Entrer un numéro.\",IF(H115=FALSE,\"\",\"\")))))))","v":""}]
[9,"  --- Sélectionnez une famille d'équipement: ---",null,null,null,null,null,null,null,null,null,null,null,null,null,null,null,null,null,"",{"$f":"IF(OR(ISBLANK(B114),ISBLANK(E114),ISBLANK(H114),ISBLANK(K114)),\"\",IF(ISNA(VLOOKUP(CONCATENATE(E114,\"-\",H114),'DT list'!R:S,2,FALSE)),\"\",IF((AND(E115=TRUE,H115=TRUE,K114>0,VLOOKUP(CONCATENATE(E114,\"-\",H114),'DT list'!R:S,2,FALSE)>0)),VLOOKUP(CONCATENATE(E114,\"-\",H114),'DT list'!R:S,2,FALSE),IF(AND(E115=TRUE,H115=TRUE),\"\",\"\"))))","v":""},null,null,{"$f":"IF(OR(ISNA(E115),ISNA(H115)),\"\",IF(AND(ISNUMBER(K114),ISNUMBER(U114),OR(E115=TRUE,H115=TRUE),K114>=0),\"Estimated weight is:\",IF(AND(OR(E115=FALSE,H115=FALSE),K114>=0),\"Correct equipment/type\",IF(AND(K114=\"\",U114=\"\"),\"\",\"Please input estimated total weight:\"))))","v":""},{"$f":"IF(OR(ISBLANK(B114),ISBLANK(E114),ISBLANK(H114),ISBLANK(K114)),\"\",IF(AND(E115=TRUE,H115=TRUE,K114>0,U114>0,U114<>\"\"),U114*K114,IF(AND(E115=TRUE,H115=TRUE,K114>0,U114=\"\"),\"\",\"\")))","v":""},null,null,null,null,"Effacer la ligne",null,"Réinitialiser le poids"]
[null,null,null,null,{"$f":"B114=VLOOKUP(E114,'DT list'!J:P,7,FALSE)","v":{"$error":"#N/A"}},null,null,{"$f":"AND(E114=VLOOKUP(H114,'DT list'!K:Q,7,FALSE),B114=VLOOKUP(E114,'DT list'!J:P,7,FALSE))","v":{"$error":"#N/A"}}]
[null,null,null,null,{"$f":"IF(ISNA(E118),\"\",IF(E118=FALSE,\"! Sélectionnez le bon équipement.\",\"\"))","v":""},null,null,{"$f":"IF(ISNA(H118),\"\",IF(H118=FALSE,\"! Sélectionnez le bon équipement..\",\"\"))","v":""},null,null,null,null,null,null,null,null,null,null,null,null,{"$f":"IF(ISNA(H118),\"\",IF(AND(E118=TRUE,H118=TRUE,ISNUMBER(K117),OR(ISBLANK(U117),U117=\"\")),\"Entrez le poids estimé de l'appareil.\",IF(AND(E118=TRUE,H118=TRUE,ISBLANK(K117),ISNUMBER(U117)),\"Entrez le nombre d'unités à l'ÉTAPE 4.\",IF(ISNA(U117),\"\",IF(U117=\"\",\"\",IF(ISTEXT(U117),\"! Entrer un numéro.\",IF(H118=FALSE,\"\",\"\")))))))","v":""}]
[10,"  --- Sélectionnez une famille d'équipement: ---",null,null,null,null,null,null,null,null,null,null,null,null,null,null,null,null,null,"",{"$f":"IF(OR(ISBLANK(B117),ISBLANK(E117),ISBLANK(H117),ISBLANK(K117)),\"\",IF((AND(E118=TRUE,H118=TRUE,K117>0,VLOOKUP(CONCATENATE(E117,\"-\",H117),'DT list'!R:S,2,FALSE)>0)),VLOOKUP(CONCATENATE(E117,\"-\",H117),'DT list'!R:S,2,FALSE),IF(AND(E118=TRUE,H118=TRUE),\"\",\"\")))","v":""},null,null,{"$f":"IF(OR(ISNA(E118),ISNA(H118)),\"\",IF(AND(ISNUMBER(K117),ISNUMBER(U117),OR(E118=TRUE,H118=TRUE),K117>=0),\"Estimated weight is:\",IF(AND(OR(E118=FALSE,H118=FALSE),K117>=0),\"Correct equipment/type\",IF(AND(K117=\"\",U117=\"\"),\"\",\"Please input estimated total weight:\"))))","v":""},{"$f":"IF(OR(ISBLANK(B117),ISBLANK(E117),ISBLANK(H117),ISBLANK(K117)),\"\",IF(AND(E118=TRUE,H118=TRUE,K117>0,U117>0,U117<>\"\"),U117*K117,IF(AND(E118=TRUE,H118=TRUE,K117>0,U117=\"\"),\"\",\"\")))","v":""},null,null,null,null,"Effacer la ligne",null,"Réinitialiser le poids"]
[null,null,null,null,{"$f":"B117=VLOOKUP(E117,'DT list'!J:P,7,FALSE)","v":{"$error":"#N/A"}},null,null,{"$f":"AND(E117=VLOOKUP(H117,'DT list'!K:Q,7,FALSE),B117=VLOOKUP(E117,'DT list'!J:P,7,FALSE))","v":{"$error":"#N/A"}}]
[null,null,null,null,{"$f":"IF(ISNA(E121),\"\",IF(E121=FALSE,\"! Sélectionnez le bon équipement.\",\"\"))","v":""},null,null,{"$f":"IF(ISNA(H121),\"\",IF(H121=FALSE,\"! Sélectionnez le bon équipement..\",\"\"))","v":""},null,null,null,null,null,null,null,null,null,null,null,null,{"$f":"IF(ISNA(H121),\"\",IF(AND(E121=TRUE,H121=TRUE,ISNUMBER(K120),OR(ISBLANK(U120),U120=\"\")),\"Entrez le poids estimé de l'appareil.\",IF(AND(E121=TRUE,H121=TRUE,ISBLANK(K120),ISNUMBER(U120)),\"Entrez le nombre d'unités à l'ÉTAPE 4.\",IF(ISNA(U120),\"\",IF(U120=\"\",\"\",IF(ISTEXT(U120),\"! Entrer un numéro.\",IF(H121=FALSE,\"\",\"\")))))))","v":""}]
[11,"  --- Sélectionnez une famille d'équipement: ---",null,null,null,null,null,null,null,null,null,null,null,null,null,null,null,null,null,"",{"$f":"IF(OR(ISBLANK(B120),ISBLANK(E120),ISBLANK(H120),ISBLANK(K120)),\"\",IF((AND(E121=TRUE,H121=TRUE,K120>0,VLOOKUP(CONCATENATE(E120,\"-\",H120),'DT list'!R:S,2,FALSE)>0)),VLOOKUP(CONCATENATE(E120,\"-\",H120),'DT list'!R:S,2,FALSE),IF(AND(E121=TRUE,H121=TRUE),\"\",\"\")))","v":""},null,null,{"$f":"IF(OR(ISNA(E121),ISNA(H121)),\"\",IF(AND(ISNUMBER(K120),ISNUMBER(U120),OR(E121=TRUE,H121=TRUE),K120>=0),\"Estimated weight is:\",IF(AND(OR(E121=FALSE,H121=FALSE),K120>=0),\"Correct equipment/type\",IF(AND(K120=\"\",U120=\"\"),\"\",\"Please input estimated total weight:\"))))","v":""},{"$f":"IF(OR(ISBLANK(B120),ISBLANK(E120),ISBLANK(H120),ISBLANK(K120)),\"\",IF(AND(E121=TRUE,H121=TRUE,K120>0,U120>0,U120<>\"\"),U120*K120,IF(AND(E121=TRUE,H121=TRUE,K120>0,U120=\"\"),\"\",\"\")))","v":""},null,null,null,null,"Effacer la ligne",null,"Réinitialiser le poids"]
[null,null,null,null,{"$f":"B120=VLOOKUP(E120,'DT list'!J:P,7,FALSE)","v":{"$error":"#N/A"}},null,null,{"$f":"AND(E120=VLOOKUP(H120,'DT list'!K:Q,7,FALSE),B120=VLOOKUP(E120,'DT list'!J:P,7,FALSE))","v":{"$error":"#N/A"}}]
[null,null,null,null,{"$f":"IF(ISNA(E124),\"\",IF(E124=FALSE,\"! Sélectionnez le bon équipement.\",\"\"))","v":""},null,null,{"$f":"IF(ISNA(H124),\"\",IF(H124=FALSE,\"! Sélectionnez le bon équipement..\",\"\"))","v":""},null,null,null,null,null,null,null,null,null,null,null,null,{"$f":"IF(ISNA(H124),\"\",IF(AND(E124=TRUE,H124=TRUE,ISNUMBER(K123),OR(ISBLANK(U123),U123=\"\")),\"Entrez le poids estimé de l'appareil.\",IF(AND(E124=TRUE,H124=TRUE,ISBLANK(K123),ISNUMBER(U123)),\"Entrez le nombre d'unités à l'ÉTAPE 4.\",IF(ISNA(U123),\"\",IF(U123=\"\",\"\",IF(ISTEXT(U123),\"! Entrer un numéro.\",IF(H124=FALSE,\"\",\"\")))))))","v":""}]
[12,"  --- Sélectionnez une famille d'équipement: ---",null,null,null,null,null,null,null,null,null,null,null,null,null,null,null,null,null,"",{"$f":"IF(OR(ISBLANK(B123),ISBLANK(E123),ISBLANK(H123),ISBLANK(K123)),\"\",IF((AND(E124=TRUE,H124=TRUE,K123>0,VLOOKUP(CONCATENATE(E123,\"-\",H123),'DT list'!R:S,2,FALSE)>0)),VLOOKUP(CONCATENATE(E123,\"-\",H123),'DT list'!R:S,2,FALSE),IF(AND(E124=TRUE,H124=TRUE),\"\",\"\")))","v":""},null,null,{"$f":"IF(OR(ISNA(E124),ISNA(H124)),\"\",IF(AND(ISNUMBER(K123),ISNUMBER(U123),OR(E124=TRUE,H124=TRUE),K123>=0),\"Estimated weight is:\",IF(AND(OR(E124=FALSE,H124=FALSE),K123>=0),\"Correct equipment/type\",IF(AND(K123=\"\",U123=\"\"),\"\",\"Please input estimated total weight:\"))))","v":""},{"$f":"IF(OR(ISBLANK(B123),ISBLANK(E123),ISBLANK(H123),ISBLANK(K123)),\"\",IF(AND(E124=TRUE,H124=TRUE,K123>0,U123>0,U123<>\"\"),U123*K123,IF(AND(E124=TRUE,H124=TRUE,K123>0,U123=\"\"),\"\",\"\")))","v":""},null,null,null,null,"Effacer la ligne",null,"Réinitialiser le poids"]
[null,null,null,null,{"$f":"B123=VLOOKUP(E123,'DT list'!J:P,7,FALSE)","v":{"$error":"#N/A"}},null,null,{"$f":"AND(E123=VLOOKUP(H123,'DT list'!K:Q,7,FALSE),B123=VLOOKUP(E123,'DT list'!J:P,7,FALSE))","v":{"$error":"#N/A"}}]
[null,null,null,null,{"$f":"IF(ISNA(E127),\"\",IF(E127=FALSE,\"! Sélectionnez le bon équipement.\",\"\"))","v":""},null,null,{"$f":"IF(ISNA(H127),\"\",IF(H127=FALSE,\"! Sélectionnez le bon équipement..\",\"\"))","v":""},null,null,null,null,null,null,null,null,null,null,null,null,{"$f":"IF(ISNA(H127),\"\",IF(AND(E127=TRUE,H127=TRUE,ISNUMBER(K126),OR(ISBLANK(U126),U126=\"\")),\"Entrez le poids estimé de l'appareil.\",IF(AND(E127=TRUE,H127=TRUE,ISBLANK(K126),ISNUMBER(U126)),\"Entrez le nombre d'unités à l'ÉTAPE 4.\",IF(ISNA(U126),\"\",IF(U126=\"\",\"\",IF(ISTEXT(U126),\"! Entrer un numéro.\",IF(H127=FALSE,\"\",\"\")))))))","v":""}]
[13,"  --- Sélectionnez une famille d'équipement: ---",null,null,null,null,null,null,null,null,null,null,null,null,null,null,null,null,null,"",{"$f":"IF(OR(ISBLANK(B126),ISBLANK(E126),ISBLANK(H126),ISBLANK(K126)),\"\",IF(ISNA(VLOOKUP(CONCATENATE(E126,\"-\",H126),'DT list'!R:S,2,FALSE)),\"\",IF((AND(E127=TRUE,H127=TRUE,K126>0,VLOOKUP(CONCATENATE(E126,\"-\",H126),'DT list'!R:S,2,FALSE)>0)),VLOOKUP(CONCATENATE(E126,\"-\",H126),'DT list'!R:S,2,FALSE),IF(AND(E127=TRUE,H127=TRUE),\"\",\"\"))))","v":""},null,null,{"$f":"IF(OR(ISNA(E127),ISNA(H127)),\"\",IF(AND(ISNUMBER(K126),ISNUMBER(U126),OR(E127=TRUE,H127=TRUE),K126>=0),\"Estimated weight is:\",IF(AND(OR(E127=FALSE,H127=FALSE),K126>=0),\"Correct equipment/type\",IF(AND(K126=\"\",U126=\"\"),\"\",\"Please input estimated total weight:\"))))","v":""},{"$f":"IF(OR(ISBLANK(B126),ISBLANK(E126),ISBLANK(H126),ISBLANK(K126)),\"\",IF(AND(E127=TRUE,H127=TRUE,K126>0,U126>0,U126<>\"\"),U126*K126,IF(AND(E127=TRUE,H127=TRUE,K126>0,U126=\"\"),\"\",\"\")))","v":""},null,null,null,null,"Effacer la ligne",null,"Réinitialiser le poids"]
[null,null,null,null,{"$f":"B126=VLOOKUP(E126,'DT list'!J:P,7,FALSE)","v":{"$error":"#N/A"}},null,null,{"$f":"AND(E126=VLOOKUP(H126,'DT list'!K:Q,7,FALSE),B126=VLOOKUP(E126,'DT list'!J:P,7,FALSE))","v":{"$error":"#N/A"}}]
[null,null,null,null,{"$f":"IF(ISNA(E130),\"\",IF(E130=FALSE,\"! Sélectionnez le bon équipement.\",\"\"))","v":""},null,null,{"$f":"IF(ISNA(H130),\"\",IF(H130=FALSE,\"! Sélectionnez le bon équipement..\",\"\"))","v":""},null,null,null,null,null,null,null,null,null,null,null,null,{"$f":"IF(ISNA(H130),\"\",IF(AND(E130=TRUE,H130=TRUE,ISNUMBER(K129),OR(ISBLANK(U129),U129=\"\")),\"Entrez le poids estimé de l'appareil.\",IF(AND(E130=TRUE,H130=TRUE,ISBLANK(K129),ISNUMBER(U129)),\"Entrez le nombre d'unités à l'ÉTAPE 4.\",IF(ISNA(U129),\"\",IF(U129=\"\",\"\",IF(ISTEXT(U129),\"! Entrer un numéro.\",IF(H130=FALSE,\"\",\"\")))))))","v":""}]
[14,"  --- Sélectionnez une famille d'équipement: ---",null,null,null,null,null,null,null,null,null,null,null,null,null,null,null,null,null,"",{"$f":"IF(OR(ISBLANK(B129),ISBLANK(E129),ISBLANK(H129),ISBLANK(K129)),\"\",IF((AND(E130=TRUE,H130=TRUE,K129>0,VLOOKUP(CONCATENATE(E129,\"-\",H129),'DT list'!R:S,2,FALSE)>0)),VLOOKUP(CONCATENATE(E129,\"-\",H129),'DT list'!R:S,2,FALSE),IF(AND(E130=TRUE,H130=TRUE),\"\",\"\")))","v":""},null,null,{"$f":"IF(OR(ISNA(E130),ISNA(H130)),\"\",IF(AND(ISNUMBER(K129),ISNUMBER(U129),OR(E130=TRUE,H130=TRUE),K129>=0),\"Estimated weight is:\",IF(AND(OR(E130=FALSE,H130=FALSE),K129>=0),\"Correct equipment/type\",IF(AND(K129=\"\",U129=\"\"),\"\",\"Please input estimated total weight:\"))))","v":""},{"$f":"IF(OR(ISBLANK(B129),ISBLANK(E129),ISBLANK(H129),ISBLANK(K129)),\"\",IF(AND(E130=TRUE,H130=TRUE,K129>0,U129>0,U129<>\"\"),U129*K129,IF(AND(E130=TRUE,H130=TRUE,K129>0,U129=\"\"),\"\",\"\")))","v":""},null,null,null,null,"Effacer la ligne",null,"Réinitialiser le poids"]
[null,null,null,null,{"$f":"B129=VLOOKUP(E129,'DT list'!J:P,7,FALSE)","v":{"$error":"#N/A"}},null,null,{"$f":"AND(E129=VLOOKUP(H129,'DT list'!K:Q,7,FALSE),B129=VLOOKUP(E129,'DT list'!J:P,7,FALSE))","v":{"$error":"#N/A"}}]
[null,null,null,null,{"$f":"IF(ISNA(E133),\"\",IF(E133=FALSE,\"! Sélectionnez le bon équipement.\",\"\"))","v":""},null,null,{"$f":"IF(ISNA(H133),\"\",IF(H133=FALSE,\"! Sélectionnez le bon équipement..\",\"\"))","v":""},null,null,null,null,null,null,null,null,null,null,null,null,{"$f":"IF(ISNA(H133),\"\",IF(AND(E133=TRUE,H133=TRUE,ISNUMBER(K132),OR(ISBLANK(U132),U132=\"\")),\"Entrez le poids estimé de l'appareil.\",IF(AND(E133=TRUE,H133=TRUE,ISBLANK(K132),ISNUMBER(U132)),\"Entrez le nombre d'unités à l'ÉTAPE 4.\",IF(ISNA(U132),\"\",IF(U132=\"\",\"\",IF(ISTEXT(U132),\"! Entrer un numéro.\",IF(H133=FALSE,\"\",\"\")))))))","v":""}]
[15,"  --- Sélectionnez une famille d'équipement: ---",null,null,null,null,null,null,null,null,null,null,null,null,null,null,null,null,null,"",{"$f":"IF(OR(ISBLANK(B132),ISBLANK(E132),ISBLANK(H132),ISBLANK(K132)),\"\",IF(ISNA(VLOOKUP(CONCATENATE(E132,\"-\",H132),'DT list'!R:S,2,FALSE)),\"\",IF((AND(E133=TRUE,H133=TRUE,K132>0,VLOOKUP(CONCATENATE(E132,\"-\",H132),'DT list'!R:S,2,FALSE)>0)),VLOOKUP(CONCATENATE(E132,\"-\",H132),'DT list'!R:S,2,FALSE),IF(AND(E133=TRUE,H133=TRUE),\"\",\"\"))))","v":""},null,null,{"$f":"IF(OR(ISNA(E133),ISNA(H133)),\"\",IF(AND(ISNUMBER(K132),ISNUMBER(U132),OR(E133=TRUE,H133=TRUE),K132>=0),\"Estimated weight is:\",IF(AND(OR(E133=FALSE,H133=FALSE),K132>=0),\"Correct equipment/type\",IF(AND(K132=\"\",U132=\"\"),\"\",\"Please input estimated total weight:\"))))","v":""},{"$f":"IF(OR(ISBLANK(B132),ISBLANK(E132),ISBLANK(H132),ISBLANK(K132)),\"\",IF(AND(E133=TRUE,H133=TRUE,K132>0,U132>0,U132<>\"\"),U132*K132,IF(AND(E133=TRUE,H133=TRUE,K132>0,U132=\"\"),\"\",\"\")))","v":""},null,null,null,null,"Effacer la ligne",null,"Réinitialiser le poids"]
[null,null,null,null,{"$f":"B132=VLOOKUP(E132,'DT list'!J:P,7,FALSE)","v":{"$error":"#N/A"}},null,null,{"$f":"AND(E132=VLOOKUP(H132,'DT list'!K:Q,7,FALSE),B132=VLOOKUP(E132,'DT list'!J:P,7,FALSE))","v":{"$error":"#N/A"}}]
[null,null,null,null,{"$f":"IF(ISNA(E136),\"\",IF(E136=FALSE,\"! Sélectionnez le bon équipement.\",\"\"))","v":""},null,null,{"$f":"IF(ISNA(H136),\"\",IF(H136=FALSE,\"! Sélectionnez le bon équipement..\",\"\"))","v":""},null,null,null,null,null,null,null,null,null,null,null,null,{"$f":"IF(ISNA(H136),\"\",IF(AND(E136=TRUE,H136=TRUE,ISNUMBER(K135),OR(ISBLANK(U135),U135=\"\")),\"Entrez le poids estimé de l'appareil.\",IF(AND(E136=TRUE,H136=TRUE,ISBLANK(K135),ISNUMBER(U135)),\"Entrez le nombre d'unités à l'ÉTAPE 4.\",IF(ISNA(U135),\"\",IF(U135=\"\",\"\",IF(ISTEXT(U135),\"! Entrer un numéro.\",IF(H136=FALSE,\"\",\"\")))))))","v":""}]
[16,"  --- Sélectionnez une famille d'équipement: ---",null,null,null,null,null,null,null,null,null,null,null,null,null,null,null,null,null,"",{"$f":"IF(OR(ISBLANK(B135),ISBLANK(E135),ISBLANK(H135),ISBLANK(K135)),\"\",IF((AND(E136=TRUE,H136=TRUE,K135>0,VLOOKUP(CONCATENATE(E135,\"-\",H135),'DT list'!R:S,2,FALSE)>0)),VLOOKUP(CONCATENATE(E135,\"-\",H135),'DT list'!R:S,2,FALSE),IF(AND(E136=TRUE,H136=TRUE),\"\",\"\")))","v":""},null,null,{"$f":"IF(OR(ISNA(E136),ISNA(H136)),\"\",IF(AND(ISNUMBER(K135),ISNUMBER(U135),OR(E136=TRUE,H136=TRUE),K135>=0),\"Estimated weight is:\",IF(AND(OR(E136=FALSE,H136=FALSE),K135>=0),\"Correct equipment/type\",IF(AND(K135=\"\",U135=\"\"),\"\",\"Please input estimated total weight:\"))))","v":""},{"$f":"IF(OR(ISBLANK(B135),ISBLANK(E135),ISBLANK(H135),ISBLANK(K135)),\"\",IF(AND(E136=TRUE,H136=TRUE,K135>0,U135>0,U135<>\"\"),U135*K135,IF(AND(E136=TRUE,H136=TRUE,K135>0,U135=\"\"),\"\",\"\")))","v":""},null,null,null,null,"Effacer la ligne",null,"Réinitialiser le poids"]
[null,null,null,null,{"$f":"B135=VLOOKUP(E135,'DT list'!J:P,7,FALSE)","v":{"$error":"#N/A"}},null,null,{"$f":"AND(E135=VLOOKUP(H135,'DT list'!K:Q,7,FALSE),B135=VLOOKUP(E135,'DT list'!J:P,7,FALSE))","v":{"$error":"#N/A"}}]
[null,null,null,null,{"$f":"IF(ISNA(E139),\"\",IF(E139=FALSE,\"! Sélectionnez le bon équipement.\",\"\"))","v":""},null,null,{"$f":"IF(ISNA(H139),\"\",IF(H139=FALSE,\"! Sélectionnez le bon équipement..\",\"\"))","v":""},null,null,null,null,null,null,null,null,null,null,null,null,{"$f":"IF(ISNA(H139),\"\",IF(AND(E139=TRUE,H139=TRUE,ISNUMBER(K138),OR(ISBLANK(U138),U138=\"\")),\"Entrez le poids estimé de l'appareil.\",IF(AND(E139=TRUE,H139=TRUE,ISBLANK(K138),ISNUMBER(U138)),\"Entrez le nombre d'unités à l'ÉTAPE 4.\",IF(ISNA(U138),\"\",IF(U138=\"\",\"\",IF(ISTEXT(U138),\"! Entrer un numéro.\",IF(H139=FALSE,\"\",\"\")))))))","v":""}]
[17,"  --- Sélectionnez une famille d'équipement: ---",null,null,null,null,null,null,null,null,null,null,null,null,null,null,null,null,null,"",{"$f":"IF(OR(ISBLANK(B138),ISBLANK(E138),ISBLANK(H138),ISBLANK(K138)),\"\",IF(ISNA(VLOOKUP(CONCATENATE(E138,\"-\",H138),'DT list'!R:S,2,FALSE)),\"\",IF((AND(E139=TRUE,H139=TRUE,K138>0,VLOOKUP(CONCATENATE(E138,\"-\",H138),'DT list'!R:S,2,FALSE)>0)),VLOOKUP(CONCATENATE(E138,\"-\",H138),'DT list'!R:S,2,FALSE),IF(AND(E139=TRUE,H139=TRUE),\"\",\"\"))))","v":""},null,null,{"$f":"IF(OR(ISNA(E139),ISNA(H139)),\"\",IF(AND(ISNUMBER(K138),ISNUMBER(U138),OR(E139=TRUE,H139=TRUE),K138>=0),\"Estimated weight is:\",IF(AND(OR(E139=FALSE,H139=FALSE),K138>=0),\"Correct equipment/type\",IF(AND(K138=\"\",U138=\"\"),\"\",\"Please input estimated total weight:\"))))","v":""},{"$f":"IF(OR(ISBLANK(B138),ISBLANK(E138),ISBLANK(H138),ISBLANK(K138)),\"\",IF(AND(E139=TRUE,H139=TRUE,K138>0,U138>0,U138<>\"\"),U138*K138,IF(AND(E139=TRUE,H139=TRUE,K138>0,U138=\"\"),\"\",\"\")))","v":""},null,null,null,null,"Effacer la ligne",null,"Réinitialiser le poids"]
[null,null,null,null,{"$f":"B138=VLOOKUP(E138,'DT list'!J:P,7,FALSE)","v":{"$error":"#N/A"}},null,null,{"$f":"AND(E138=VLOOKUP(H138,'DT list'!K:Q,7,FALSE),B138=VLOOKUP(E138,'DT list'!J:P,7,FALSE))","v":{"$error":"#N/A"}}]
[null,null,null,null,{"$f":"IF(ISNA(E142),\"\",IF(E142=FALSE,\"! Sélectionnez le bon équipement.\",\"\"))","v":""},null,null,{"$f":"IF(ISNA(H142),\"\",IF(H142=FALSE,\"! Sélectionnez le bon équipement..\",\"\"))","v":""},null,null,null,null,null,null,null,null,null,null,null,null,{"$f":"IF(ISNA(H142),\"\",IF(AND(E142=TRUE,H142=TRUE,ISNUMBER(K141),OR(ISBLANK(U141),U141=\"\")),\"Entrez le poids estimé de l'appareil.\",IF(AND(E142=TRUE,H142=TRUE,ISBLANK(K141),ISNUMBER(U141)),\"Entrez le nombre d'unités à l'ÉTAPE 4.\",IF(ISNA(U141),\"\",IF(U141=\"\",\"\",IF(ISTEXT(U141),\"! Entrer un numéro.\",IF(H142=FALSE,\"\",\"\")))))))","v":""}]
[18,"  --- Sélectionnez une famille d'équipement: ---",null,null,null,null,null,null,null,null,null,null,null,null,null,null,null,null,null,"",{"$f":"IF(OR(ISBLANK(B141),ISBLANK(E141),ISBLANK(H141),ISBLANK(K141)),\"\",IF(ISNA(VLOOKUP(CONCATENATE(E141,\"-\",H141),'DT list'!R:S,2,FALSE)),\"\",IF((AND(E142=TRUE,H142=TRUE,K141>0,VLOOKUP(CONCATENATE(E141,\"-\",H141),'DT list'!R:S,2,FALSE)>0)),VLOOKUP(CONCATENATE(E141,\"-\",H141),'DT list'!R:S,2,FALSE),IF(AND(E142=TRUE,H142=TRUE),\"\",\"\"))))","v":""},null,null,{"$f":"IF(OR(ISNA(E142),ISNA(H142)),\"\",IF(AND(ISNUMBER(K141),ISNUMBER(U141),OR(E142=TRUE,H142=TRUE),K141>=0),\"Estimated weight is:\",IF(AND(OR(E142=FALSE,H142=FALSE),K141>=0),\"Correct equipment/type\",IF(AND(K141=\"\",U141=\"\"),\"\",\"Please input estimated total weight:\"))))","v":""},{"$f":"IF(OR(ISBLANK(B141),ISBLANK(E141),ISBLANK(H141),ISBLANK(K141)),\"\",IF(AND(E142=TRUE,H142=TRUE,K141>0,U141>0,U141<>\"\"),U141*K141,IF(AND(E142=TRUE,H142=TRUE,K141>0,U141=\"\"),\"\",\"\")))","v":""},null,null,null,null,"Effacer la ligne",null,"Réinitialiser le poids"]
[null,null,null,null,{"$f":"B141=VLOOKUP(E141,'DT list'!J:P,7,FALSE)","v":{"$error":"#N/A"}},null,null,{"$f":"AND(E141=VLOOKUP(H141,'DT list'!K:Q,7,FALSE),B141=VLOOKUP(E141,'DT list'!J:P,7,FALSE))","v":{"$error":"#N/A"}}]
[null,null,null,null,{"$f":"IF(ISNA(E145),\"\",IF(E145=FALSE,\"! Sélectionnez le bon équipement.\",\"\"))","v":""},null,null,{"$f":"IF(ISNA(H145),\"\",IF(H145=FALSE,\"! Sélectionnez le bon équipement..\",\"\"))","v":""},null,null,null,null,null,null,null,null,null,null,null,null,{"$f":"IF(ISNA(H145),\"\",IF(AND(E145=TRUE,H145=TRUE,ISNUMBER(K144),OR(ISBLANK(U144),U144=\"\")),\"Entrez le poids estimé de l'appareil.\",IF(AND(E145=TRUE,H145=TRUE,ISBLANK(K144),ISNUMBER(U144)),\"Entrez le nombre d'unités à l'ÉTAPE 4.\",IF(ISNA(U144),\"\",IF(U144=\"\",\"\",IF(ISTEXT(U144),\"! Entrer un numéro.\",IF(H145=FALSE,\"\",\"\")))))))","v":""}]
[19,"  --- Sélectionnez une famille d'équipement: ---",null,null,null,null,null,null,null,null,null,null,null,null,null,null,null,null,null,"",{"$f":"IF(OR(ISBLANK(B144),ISBLANK(E144),ISBLANK(H144),ISBLANK(K144)),\"\",IF(ISNA(VLOOKUP(CONCATENATE(E144,\"-\",H144),'DT list'!R:S,2,FALSE)),\"\",IF((AND(E145=TRUE,H145=TRUE,K144>0,VLOOKUP(CONCATENATE(E144,\"-\",H144),'DT list'!R:S,2,FALSE)>0)),VLOOKUP(CONCATENATE(E144,\"-\",H144),'DT list'!R:S,2,FALSE),IF(AND(E145=TRUE,H145=TRUE),\"\",\"\"))))","v":""},null,null,{"$f":"IF(OR(ISNA(E145),ISNA(H145)),\"\",IF(AND(ISNUMBER(K144),ISNUMBER(U144),OR(E145=TRUE,H145=TRUE),K144>=0),\"Estimated weight is:\",IF(AND(OR(E145=FALSE,H145=FALSE),K144>=0),\"Correct equipment/type\",IF(AND(K144=\"\",U144=\"\"),\"\",\"Please input estimated total weight:\"))))","v":""},{"$f":"IF(OR(ISBLANK(B144),ISBLANK(E144),ISBLANK(H144),ISBLANK(K144)),\"\",IF(AND(E145=TRUE,H145=TRUE,K144>0,U144>0,U144<>\"\"),U144*K144,IF(AND(E145=TRUE,H145=TRUE,K144>0,U144=\"\"),\"\",\"\")))","v":""},null,null,null,null,"Effacer la ligne",null,"Réinitialiser le poids"]
[null,null,null,null,{"$f":"B144=VLOOKUP(E144,'DT list'!J:P,7,FALSE)","v":{"$error":"#N/A"}},null,null,{"$f":"AND(E144=VLOOKUP(H144,'DT list'!K:Q,7,FALSE),B144=VLOOKUP(E144,'DT list'!J:P,7,FALSE))","v":{"$error":"#N/A"}}]
[null,null,null,null,{"$f":"IF(ISNA(E148),\"\",IF(E148=FALSE,\"! Sélectionnez le bon équipement.\",\"\"))","v":""},null,null,{"$f":"IF(ISNA(H148),\"\",IF(H148=FALSE,\"! Sélectionnez le bon équipement..\",\"\"))","v":""},null,null,null,null,null,null,null,null,null,null,null,null,{"$f":"IF(ISNA(H148),\"\",IF(AND(E148=TRUE,H148=TRUE,ISNUMBER(K147),OR(ISBLANK(U147),U147=\"\")),\"Entrez le poids estimé de l'appareil.\",IF(AND(E148=TRUE,H148=TRUE,ISBLANK(K147),ISNUMBER(U147)),\"Entrez le nombre d'unités à l'ÉTAPE 4.\",IF(ISNA(U147),\"\",IF(U147=\"\",\"\",IF(ISTEXT(U147),\"! Entrer un numéro.\",IF(H148=FALSE,\"\",\"\")))))))","v":""}]
[20,"  --- Sélectionnez une famille d'équipement: ---",null,null,null,null,null,null,null,null,null,null,null,null,null,null,null,null,null,"",{"$f":"IF(OR(ISBLANK(B147),ISBLANK(E147),ISBLANK(H147),ISBLANK(K147)),\"\",IF(ISNA(VLOOKUP(CONCATENATE(E147,\"-\",H147),'DT list'!R:S,2,FALSE)),\"\",IF((AND(E148=TRUE,H148=TRUE,K147>0,VLOOKUP(CONCATENATE(E147,\"-\",H147),'DT list'!R:S,2,FALSE)>0)),VLOOKUP(CONCATENATE(E147,\"-\",H147),'DT list'!R:S,2,FALSE),IF(AND(E148=TRUE,H148=TRUE),\"\",\"\"))))","v":""},null,null,{"$f":"IF(OR(ISNA(E148),ISNA(H148)),\"\",IF(AND(ISNUMBER(K147),ISNUMBER(U147),OR(E148=TRUE,H148=TRUE),K147>=0),\"Estimated weight is:\",IF(AND(OR(E148=FALSE,H148=FALSE),K147>=0),\"Correct equipment/type\",IF(AND(K147=\"\",U147=\"\"),\"\",\"Please input estimated total weight:\"))))","v":""},{"$f":"IF(OR(ISBLANK(B147),ISBLANK(E147),ISBLANK(H147),ISBLANK(K147)),\"\",IF(AND(E148=TRUE,H148=TRUE,K147>0,U147>0,U147<>\"\"),U147*K147,IF(AND(E148=TRUE,H148=TRUE,K147>0,U147=\"\"),\"\",\"\")))","v":""},null,null,null,null,"Effacer la ligne",null,"Réinitialiser le poids"]
[null,null,null,null,{"$f":"B147=VLOOKUP(E147,'DT list'!J:P,7,FALSE)","v":{"$error":"#N/A"}},null,null,{"$f":"AND(E147=VLOOKUP(H147,'DT list'!K:Q,7,FALSE),B147=VLOOKUP(E147,'DT list'!J:P,7,FALSE))","v":{"$error":"#N/A"}}]
[]
[null,null,null,null,null,null,null,null,null,null,null,null,null,null,null,null,null,null,null,null,"Poids total de toutes les unités (kg)",null,null,"Total estimated weight",{"$f":"SUM(Y90:Y147)","v":0}]
[]
[null,"Note"]

{"sheet":"Formulaire sans macros","index":1,"n_rows":141,"n_cols":38,"rows_kept":141,"cut":false,"hidden":false,"merged":[[71,19,71,20],[141,1,143,24],[64,1,64,10],[66,1,66,10],[67,1,67,10],[68,1,70,10],[33,24,33,25],[41,1,41,10],[21,2,21,10],[22,2,22,10],[23,2,23,10],[25,1,25,10],[26,2,26,4],[27,2,27,4],[30,1,30,10],[59,1,59,4],[18,2,18,10],[2,2,2,10],[6,2,6,10],[7,2,7,10],[8,2,8,10],[9,2,9,10],[10,2,10,10],[11,2,11,10],[14,2,14,10],[15,2,15,10],[16,2,16,10],[17,2,17,10]]}
[null,null,"Formulaire de demande de collecte des déchets DEEE - (Formulaire sans macros)"]
[null,null,"WEEE Recycling  Collection Request Form"]
[]
[]
["*","Champ obligatoire"]
[null,"Données du demandeur",null,null,null,null,null,null,null,null,null,null,null,null,null,null,null,null,null,null,null,null,null,null,null,null,null,null,null,null,null,null,null,null,null,null,null," ---Select---"]
["*","Raison Sociale",null,null,null,null,null,null,null,null,null,null,null,null,null,null,null,null,null,null,null,null,null,null,null,null,null,null,null,null,null,null,null,null,null,null,null,"No"]
["*","Adresse",null,null,null,null,null,null,null,null,null,null,null,null,null,null,null,null,null,null,null,null,null,null,null,null,null,null,null,null,null,null,null,null,null,null,null,"Yes"]
["*"]
["*","Nom, Prénom"]
["*","Adresse Email"]
["*","Numéro de téléphone"]
[]
[null,"Point de collecte"]
["*","Raison Sociale"]
["*","Adresse"]
["*","Code postale"]
["*","Ville"]
["*","Pays","France"]
[]
[null,"Coordonnées au point de collecte"]
["*","Nom, Prénom"]
["*","Adresse Email"]
["*","Numéro de téléphone"]
[]
[null,"Date de la collecte des DEEE",null,null,null,null,null,null,null,null,null,null,null,null,null,null,null,null,null,"Input day (set macro/command button- open/close calendar)"]
["*","Date préférée de collecte des DEEE "," ---- Sélectionner une date ------",null,null,null,null,{"$f":"IF(OR(C27=\" ---- Sélectionner une date ------\",C27=\"\"),\"\",IF(ISNA(VLOOKUP(C27,'DT list'!AT:AV,3,FALSE)),\"! La date est incorrecte.  La première date possible de collecte des DEEE est dans 11 jours.\",VLOOKUP(C27,'DT list'!AT:AV,3,FALSE)))","v":""}]
["*","Partie préférée de la journée"," --- Sélectionnez ---"]
[]
[]
[null,"En envoyant le formulaire de collecte pour le recyclage des DEEE à l'adresse électronique suivante : recycling@lenovo.com , vous acceptez les conditions générales du programme de recyclage de Lenovo."]
[]
[]
[]
[]
[]
[]
[]
[]
[]
[null,"Conditions requises pour l'emballage et le transport"]
[null,"Lenovo ramassera les équipements informatiques obsolètes de Lenovo, quel que soit leur poids. Pour contribuer à un processus respectueux de l'environnement, Lenovo demande à tous les participants au programme de recyclage d'essayer de demander des collectes de DEEE dont le poids total minimum est de 500 kg afin de rendre les programmes aussi efficaces que possible.\nTous les DEEE à traiter dans le cadre de ce programme de reprise doivent être emballés conformément aux instructions suivantes:\n(Pour votre confort, vous pouvez utiliser la liste déroulante pour vous assurer que vous avez pris en compte toutes les exigences Oui / Non.)"]
[null,"Préparez vos DEEE!"]
["*","Les batteries amovibles doivent être retirées, collectées et traitées séparément.",null,null,null,null,null," --- Sélectionnez ---"]
["*","Les supports amovibles (par exemple les CD, les cartes PC) doivent être retirés.",null,null,null,null,null," --- Sélectionnez ---"]
[null,"Emballez vos DEEE!"]
["*","Les DEEE sont emballés sur des palettes filmées de 80 x 120 cm, sur roulettes ou dans des caisses en fil de fer.",null,null,null,null,null," --- Sélectionnez ---"]
["*","Veuillez retourner uniquement le matériel nu (sans emballage).",null,null,null,null,null," --- Sélectionnez ---"]
["*","Combien avez-vous d'unités de manutention prêtes\nà l'enlèvement ?",null,null,null,null,null," --- Sélectionner une quantité ---"]
["*","Avez-vous besoin de faire conditionner des équipements par nos opérateurs ?",null,null,null,null,null," --- Sélectionnez ---"]
["*",{"$f":"IF(H50=\"Oui\", \"Précisez le poids approximatif à conditionner (équipements hors-normes inclus) :\",\"\")","v":""},null,null,null,null,null,null,"(kg)"]
["*","Avez-vous des équipements hors norme ?",null,null,null,null,null," --- Sélectionnez ---"]
["*"," --- Sélectionnez l'équipement ---",null,null,"Poids (kg) / Profondeur (cm) / Hauteur (cm) / Largeur (cm)\n"]
[null,"Conditions de la collecte:"]
["*","La collecte aura lieu uniquement à quai ou au rez-de-chaussée.",null,null,null,null,null," --- Sélectionnez ---"]
["*",{"$f":"IF(OR(H55='DT list'!BA1,H55='DT list'!BA2),\"\",\"Y a-t-il un ascenseur ?\")","v":""},null,null,null,null,null," --- Sélectionnez ---"]
["*","Terrain accessible sans obstacle à moins de 50 m du véhicule à charger",null,null,null,null,null," --- Sélectionnez ---"]
["*",{"$f":"IF(H57=\"Non\", \"Précisez la distance (en m) :\",\"\")","v":""},null,null,null,null,null,null,"(m)"]
[null,"Exigences en matière de recyclage :         "]
["*","En respectant la hiérarchie des traitements de recyclage, l'équipement confié peut être réutilisé. Choisissez \"Non\" si vous souhaitez que votre équipement soit expressément détruit.",null,null,null,null,null,"Oui"]
[]
[]
[]
[]
[null,{"$f":"IF(OR(H44=\" --- Sélectionnez ---\",H45=\" --- Sélectionnez ---\",H47=\" --- Sélectionnez ---\",H48=\" --- Sélectionnez ---\",H49=\" --- Sélectionner une quantité ---\",H50=\" --- Sélectionnez ---\",H52=\" --- Sélectionnez ---\",H55=\" --- Sélectionnez ---\",H57=\" --- Sélectionnez ---\"),\"Sélectionnez votre choix dans la section Conditions requises pour l'emballage et le transport ci-dessus. Sélectionnez votre choix dans chacun des champs.\",IF(OR(H44=\"Non\",H45=\"Non\",H47=\"Non\",H48=\"Non\",H50=\"Oui\",H52=\"Oui\",AND(NOT(H55='DT list'!BA2),NOT(H55='DT list'!BA1)),H57=\"Non\"),\"Vos exigences en matière d'emballage et de transport ne sont PAS conformes aux conditions générales de Lenovo. Veuillez saisir des informations détaillées dans le champ \"\" Commentaires \"\" concernant les exigences de collecte spécifiques.\",IF(AND(H44=\"Oui\",H45=\"Oui\",H47=\"Oui\",H48=\"Oui\",H50=\"Non\",H52=\"Non\",H55='DT list'!BA2,H57=\"Oui\"),\"Vos conditions requises pour l'emballage et le transport sont conformes aux conditions générales de Lenovo. Votre équipement DEEE doit être prêt à être collecté, comme indiqué dans ces consignes.\",\"\")))","v":"Sélectionnez votre choix dans la section Conditions requises pour l'emballage et le transport ci-dessus. Sélectionnez votre choix dans chacun des champs."}]
[]
[null,"Commentaires"]
[null,"Votre équipement DEEE doit être prêt pour la collecte, comme indiqué dans ces consignes. \nEn cas d'exigences spécifiques de collecte (par ex. grue, plaques de fer, emballage, accès limité ..), \nveuillez saisir des informations détaillées dans le champ \" Commentaires \" ci-dessous. \nVotre demande sera examinée et évaluée individuellement et Lenovo se réserve le droit de refuser ou d'accepter cette demande. \nVeuillez noter que la collecte peut être soumis à des frais. Si tel est le cas, Lenovo vous en informera avant la confirmation de la participation au programme."]
[]
[]
[]
["*","Champ obligatoire"]
[null,"Données de la collecte"]
[null,null,null,null,null,null,null,null,null,null,null,null,null,null,null,null,null,null,null,null,null,null,null,"Estimated weight is:"]
[]
[null,"ETAPE 1",null,null,"ETAPE 2",null,null,"ETAPE 3",null,null,"ETAPE 4",null,null,null,null,null,null,null,null,null,"ETAPE 5"]
[null,"* Sélectionnez une famille d'équipement:",null,null,"* Sélectionnez l'équipement:",null,null,"* Sélectionnez le type:",null,null,"* Quantité / Unités",null,null,null,null,null,null,null,null,null,"* Poids estimé (kg)/ unité",null,null,null,"Poids total de toutes les unités (kg)",null,"Remarques",null,"Poids estimé de l'appareil par Lenovo (kg) par unité. Certaines catégories ont un poids estimé, mais dans l'ÉTAPE 5, veuillez saisir le poids estimé de votre appareil, s'il diffère de celui préréglé / par défaut."]
[null,null,null,null,{"$f":"IF(ISNA(E80),\"\",IF(E80=FALSE,\"! Sélectionnez le bon équipement.\",\"\"))","v":""},null,null,{"$f":"IF(ISNA(H80),\"\",IF(H80=FALSE,\"! Sélectionnez le bon équipement..\",\"\"))","v":""},null,null,null,null,null,null,null,null,null,null,null,null,{"$f":"IF(ISNA(H80),\"\",IF(AND(E80=TRUE,H80=TRUE,ISNUMBER(K79),OR(ISBLANK(U79),U79=\"\")),\"Entrez le poids estimé de l'appareil.\",IF(AND(E80=TRUE,H80=TRUE,ISBLANK(K79),ISNUMBER(U79)),\"Entrez le nombre d'unités à l'ÉTAPE 4.\",IF(ISNA(U79),\"\",IF(U79=\"\",\"\",IF(ISTEXT(U79),\"! Entrer un numéro.\",IF(H80=FALSE,\"\",\"\")))))))","v":""}]
[1,"  --- Sélectionnez une famille d'équipement: ---",null,null,null,null,null,null,null,null,null,null,null,null,null,null,null,null,null,null,null,null,null,null,{"$f":"IF(OR(ISBLANK(B79),ISBLANK(E79),ISBLANK(H79),ISBLANK(K79)),\"\",IF(AND(E80=TRUE,H80=TRUE,K79>0,U79>0,U79<>\"\"),U79*K79,IF(AND(E80=TRUE,H80=TRUE,K79>0,OR(U79=\"\",U79=0)),\"\",\"\")))","v":""},null,{"$f":"IF(OR(ISBLANK(B79),ISBLANK(E79),ISBLANK(H79)),\"\",IF(OR(E80=FALSE,H80=FALSE),\"Sélectionnez la bonne catégorie à l'ÉTAPE 2 ou 3 et mettez à jour le poids à l'ÉTAPE 5.\",IF(AND(E80=TRUE,H80=TRUE,OR(K79=\"\",ISBLANK(K79),K79=0),U79>0,U79<>\"\"),\"Entrez le nombre d'unités à l'ÉTAPE 4.\",IF(AND(E80=TRUE,H80=TRUE,K79>0,U79>0,U79<>\"\"),\"\",IF(AND(E80=TRUE,H80=TRUE,K79>0,OR(U79=\"\",U79=0)),\"Entrez le poids estimé à l'ÉTAPE 5.\",\"\")))))","v":""},null,{"$f":"IF(OR(ISBLANK(B79),ISBLANK(E79),ISBLANK(H79)),\"\",IF(AND(NOT(ISBLANK(E79)),NOT(ISBLANK(H79)),OR(E80=FALSE,H80=FALSE)),\"\",IF((AND(E80=TRUE,H80=TRUE,ISBLANK(U79),VLOOKUP(CONCATENATE(E79,\"-\",H79),'DT list'!R:S,2,FALSE)>0)),\"Poids estimé de Lenovo par unité: \"&VLOOKUP(CONCATENATE(E79,\"-\",H79),'DT list'!R:S,2,FALSE)&\"kg. Entrez dans l'étape 5 le poids estimé de votre appareil s'il diffère du poids estimé de Lenovo.\",IF((AND(E80=TRUE,H80=TRUE,ISBLANK(U79),VLOOKUP(CONCATENATE(E79,\"-\",H79),'DT list'!R:S,2,FALSE)=0)),\"Il n'y a pas de poids estimé de Lenovo par unité. Entrez dans l'ÉTAPE 5 le poids estimé de votre appareil.\",IF(AND(E80=TRUE,H80=TRUE,U79>0,VLOOKUP(CONCATENATE(E79,\"-\",H79),'DT list'!R:S,2,FALSE)=0),\"À l'ÉTAPE 5, votre poids estimé de l'appareil est  \"&U79&\" kg.\",IF(AND(E80=TRUE,H80=TRUE,U79>0,VLOOKUP(CONCATENATE(E79,\"-\",H79),'DT list'!R:S,2,FALSE)<>U79,VLOOKUP(CONCATENATE(E79,\"-\",H79),'DT list'!R:S,2,FALSE)>0),\"À l'ÉTAPE 5,  votre poids estimé de l'appareil est  \"&U79&\" kg. Le poids estimé de Lenovo était  \"&VLOOKUP(CONCATENATE(E79,\"-\",H79),'DT list'!R:S,2,FALSE)&\" kg.\",\"\"))))))","v":""}]
[null,null,null,null,{"$f":"B79=VLOOKUP(E79,'DT list'!J:P,7,FALSE)","v":{"$error":"#N/A"}},null,null,{"$f":"AND(E79=VLOOKUP(H79,'DT list'!K:Q,7,FALSE),B79=VLOOKUP(E79,'DT list'!J:P,7,FALSE))","v":{"$error":"#N/A"}}]
[null,null,null,null,{"$f":"IF(ISNA(E83),\"\",IF(E83=FALSE,\"! Sélectionnez le bon équipement.\",\"\"))","v":""},null,null,{"$f":"IF(ISNA(H83),\"\",IF(H83=FALSE,\"! Sélectionnez le bon équipement..\",\"\"))","v":""},null,null,null,null,null,null,null,null,null,null,null,null,{"$f":"IF(AND(ISNA(E83),ISNA(H83)),\"\",IF(ISNA(U82),\"\",IF(U82=\"\",\"\",IF(ISTEXT(U82),\"! Entrer un numéro.\",IF(AND(E83=TRUE,H83=TRUE,OR(K82=\"\",ISBLANK(K82),K82=0),U82>0,U82<>\"\"),\"Entrez quantité des unités à l'ÉTAPE 4.\",IF(ISNA(H83),\"\",IF(H83=FALSE,\"\",\"\")))))))","v":""}]
[2,"  --- Sélectionnez une famille d'équipement: ---",null,null,null,null,null,null,null,null,null,null,null,null,null,null,null,null,null,null,null,null,null,null,{"$f":"IF(OR(ISBLANK(B82),ISBLANK(E82),ISBLANK(H82),ISBLANK(K82)),\"\",IF(AND(E83=TRUE,H83=TRUE,K82>0,U82>0,U82<>\"\"),U82*K82,IF(AND(E83=TRUE,H83=TRUE,K82>0,OR(U82=\"\",U82=0)),\"\",\"\")))","v":""},null,{"$f":"IF(OR(ISBLANK(B82),ISBLANK(E82),ISBLANK(H82)),\"\",IF(OR(E83=FALSE,H83=FALSE),\"Sélectionnez la bonne catégorie à l'ÉTAPE 2 ou 3 et mettez à jour le poids à l'ÉTAPE 5.\",IF(AND(E83=TRUE,H83=TRUE,OR(K82=\"\",ISBLANK(K82),K82=0),U82>0,U82<>\"\"),\"Entrez quantité des unités à l'ÉTAPE 4.\",IF(AND(E83=TRUE,H83=TRUE,K82>0,U82>0,U82<>\"\"),\"\",IF(AND(E83=TRUE,H83=TRUE,K82>0,OR(U82=\"\",U82=0)),\"Entrez le poids estimé à l'ÉTAPE 5.\",\"\")))))","v":""},null,{"$f":"IF(OR(ISBLANK(B82),ISBLANK(E82),ISBLANK(H82)),\"\",IF(AND(NOT(ISBLANK(E82)),NOT(ISBLANK(H82)),OR(E83=FALSE,H83=FALSE)),\"\",IF((AND(E83=TRUE,H83=TRUE,ISBLANK(U82),VLOOKUP(CONCATENATE(E82,\"-\",H82),'DT list'!R:S,2,FALSE)>0)),\"Poids estimé de Lenovo par unité: \"&VLOOKUP(CONCATENATE(E82,\"-\",H82),'DT list'!R:S,2,FALSE)&\"kg. Entrez dans l'étape 5 le poids estimé de votre appareil s'il diffère du poids estimé de Lenovo.\",IF((AND(E83=TRUE,H83=TRUE,ISBLANK(U82),VLOOKUP(CONCATENATE(E82,\"-\",H82),'DT list'!R:S,2,FALSE)=0)),\"Il n'y a pas de poids estimé de Lenovo par unité. Entrez dans l'ÉTAPE 5 le poids estimé de votre appareil.\",IF(AND(E83=TRUE,H83=TRUE,U82>0,VLOOKUP(CONCATENATE(E82,\"-\",H82),'DT list'!R:S,2,FALSE)=0),\"À l'ÉTAPE 5, votre poids estimé de l'appareil est  \"&U82&\" kg.\",IF(AND(E83=TRUE,H83=TRUE,U82>0,VLOOKUP(CONCATENATE(E82,\"-\",H82),'DT list'!R:S,2,FALSE)<>U82,VLOOKUP(CONCATENATE(E82,\"-\",H82),'DT list'!R:S,2,FALSE)>0),\"À l'ÉTAPE 5,  votre poids estimé de l'appareil est  \"&U82&\" kg. Le poids estimé de Lenovo était  \"&VLOOKUP(CONCATENATE(E82,\"-\",H82),'DT list'!R:S,2,FALSE)&\" kg.\",\"\"))))))","v":""}]
[null,null,null,null,{"$f":"B82=VLOOKUP(E82,'DT list'!J:P,7,FALSE)","v":{"$error":"#N/A"}},null,null,{"$f":"AND(E82=VLOOKUP(H82,'DT list'!K:Q,7,FALSE),B82=VLOOKUP(E82,'DT list'!J:P,7,FALSE))","v":{"$error":"#N/A"}}]
[null,null,null,null,{"$f":"IF(ISNA(E86),\"\",IF(E86=FALSE,\"! Sélectionnez le bon équipement.\",\"\"))","v":""},null,null,{"$f":"IF(ISNA(H86),\"\",IF(H86=FALSE,\"! Sélectionnez le bon équipement..\",\"\"))","v":""},null,null,null,null,null,null,null,null,null,null,null,null,{"$f":"IF(AND(ISNA(E86),ISNA(H86)),\"\",IF(ISNA(U85),\"\",IF(U85=\"\",\"\",IF(ISTEXT(U85),\"! Entrer un numéro.\",IF(AND(E86=TRUE,H86=TRUE,OR(K85=\"\",ISBLANK(K85),K85=0),U85>0,U85<>\"\"),\"Entrez quantité des unités à l'ÉTAPE 4.\",IF(ISNA(H86),\"\",IF(H86=FALSE,\"\",\"\")))))))","v":""}]
[3,"  --- Sélectionnez une famille d'équipement: ---",null,null,null,null,null,null,null,null,null,null,null,null,null,null,null,null,null,null,null,null,null,null,{"$f":"IF(OR(ISBLANK(B85),ISBLANK(E85),ISBLANK(H85),ISBLANK(K85)),\"\",IF(AND(E86=TRUE,H86=TRUE,K85>0,U85>0,U85<>\"\"),U85*K85,IF(AND(E86=TRUE,H86=TRUE,K85>0,OR(U85=\"\",U85=0)),\"\",\"\")))","v":""},null,{"$f":"IF(OR(ISBLANK(B85),ISBLANK(E85),ISBLANK(H85)),\"\",IF(OR(E86=FALSE,H86=FALSE),\"Sélectionnez la bonne catégorie à l'ÉTAPE 2 ou 3 et mettez à jour le poids à l'ÉTAPE 5.\",IF(AND(E86=TRUE,H86=TRUE,OR(K85=\"\",ISBLANK(K85),K85=0),U85>0,U85<>\"\"),\"Entrez quantité des unités à l'ÉTAPE 4.\",IF(AND(E86=TRUE,H86=TRUE,K85>0,U85>0,U85<>\"\"),\"\",IF(AND(E86=TRUE,H86=TRUE,K85>0,OR(U85=\"\",U85=0)),\"Entrez le poids estimé à l'ÉTAPE 5.\",\"\")))))","v":""},null,{"$f":"IF(OR(ISBLANK(B85),ISBLANK(E85),ISBLANK(H85)),\"\",IF(AND(NOT(ISBLANK(E85)),NOT(ISBLANK(H85)),OR(E86=FALSE,H86=FALSE)),\"\",IF((AND(E86=TRUE,H86=TRUE,ISBLANK(U85),VLOOKUP(CONCATENATE(E85,\"-\",H85),'DT list'!R:S,2,FALSE)>0)),\"Poids estimé de Lenovo par unité: \"&VLOOKUP(CONCATENATE(E85,\"-\",H85),'DT list'!R:S,2,FALSE)&\"kg. Entrez dans l'étape 5 le poids estimé de votre appareil s'il diffère du poids estimé de Lenovo.\",IF((AND(E86=TRUE,H86=TRUE,ISBLANK(U85),VLOOKUP(CONCATENATE(E85,\"-\",H85),'DT list'!R:S,2,FALSE)=0)),\"Il n'y a pas de poids estimé de Lenovo par unité. Entrez dans l'ÉTAPE 5 le poids estimé de votre appareil.\",IF(AND(E86=TRUE,H86=TRUE,U85>0,VLOOKUP(CONCATENATE(E85,\"-\",H85),'DT list'!R:S,2,FALSE)=0),\"À l'ÉTAPE 5, votre poids estimé de l'appareil est  \"&U85&\" kg.\",IF(AND(E86=TRUE,H86=TRUE,U85>0,VLOOKUP(CONCATENATE(E85,\"-\",H85),'DT list'!R:S,2,FALSE)<>U85,VLOOKUP(CONCATENATE(E85,\"-\",H85),'DT list'!R:S,2,FALSE)>0),\"À l'ÉTAPE 5,  votre poids estimé de l'appareil est  \"&U85&\" kg. Le poids estimé de Lenovo était  \"&VLOOKUP(CONCATENATE(E85,\"-\",H85),'DT list'!R:S,2,FALSE)&\" kg.\",\"\"))))))","v":""}]
[null,null,null,null,{"$f":"B85=VLOOKUP(E85,'DT list'!J:P,7,FALSE)","v":{"$error":"#N/A"}},null,null,{"$f":"AND(E85=VLOOKUP(H85,'DT list'!K:Q,7,FALSE),B85=VLOOKUP(E85,'DT list'!J:P,7,FALSE))","v":{"$error":"#N/A"}}]
[null,null,null,null,{"$f":"IF(ISNA(E89),\"\",IF(E89=FALSE,\"! Sélectionnez le bon équipement.\",\"\"))","v":""},null,null,{"$f":"IF(ISNA(H89),\"\",IF(H89=FALSE,\"! Sélectionnez le bon équipement..\",\"\"))","v":""},null,null,null,null,null,null,null,null,null,null,null,null,{"$f":"IF(AND(ISNA(E89),ISNA(H89)),\"\",IF(ISNA(U88),\"\",IF(U88=\"\",\"\",IF(ISTEXT(U88),\"! Entrer un numéro.\",IF(AND(E89=TRUE,H89=TRUE,OR(K88=\"\",ISBLANK(K88),K88=0),U88>0,U88<>\"\"),\"Entrez quantité des unités à l'ÉTAPE 4.\",IF(ISNA(H89),\"\",IF(H89=FALSE,\"\",\"\")))))))","v":""}]
[4,"  --- Sélectionnez une famille d'équipement: ---",null,null,null,null,null,null,null,null,null,null,null,null,null,null,null,null,null,null,null,null,null,null,{"$f":"IF(OR(ISBLANK(B88),ISBLANK(E88),ISBLANK(H88),ISBLANK(K88)),\"\",IF(AND(E89=TRUE,H89=TRUE,K88>0,U88>0,U88<>\"\"),U88*K88,IF(AND(E89=TRUE,H89=TRUE,K88>0,OR(U88=\"\",U88=0)),\"\",\"\")))","v":""},null,{"$f":"IF(OR(ISBLANK(B88),ISBLANK(E88),ISBLANK(H88)),\"\",IF(OR(E89=FALSE,H89=FALSE),\"Sélectionnez la bonne catégorie à l'ÉTAPE 2 ou 3 et mettez à jour le poids à l'ÉTAPE 5.\",IF(AND(E89=TRUE,H89=TRUE,OR(K88=\"\",ISBLANK(K88),K88=0),U88>0,U88<>\"\"),\"Entrez quantité des unités à l'ÉTAPE 4.\",IF(AND(E89=TRUE,H89=TRUE,K88>0,U88>0,U88<>\"\"),\"\",IF(AND(E89=TRUE,H89=TRUE,K88>0,OR(U88=\"\",U88=0)),\"Entrez le poids estimé à l'ÉTAPE 5.\",\"\")))))","v":""},null,{"$f":"IF(OR(ISBLANK(B88),ISBLANK(E88),ISBLANK(H88)),\"\",IF(AND(NOT(ISBLANK(E88)),NOT(ISBLANK(H88)),OR(E89=FALSE,H89=FALSE)),\"\",IF((AND(E89=TRUE,H89=TRUE,ISBLANK(U88),VLOOKUP(CONCATENATE(E88,\"-\",H88),'DT list'!R:S,2,FALSE)>0)),\"Poids estimé de Lenovo par unité: \"&VLOOKUP(CONCATENATE(E88,\"-\",H88),'DT list'!R:S,2,FALSE)&\"kg. Entrez dans l'étape 5 le poids estimé de votre appareil s'il diffère du poids estimé de Lenovo.\",IF((AND(E89=TRUE,H89=TRUE,ISBLANK(U88),VLOOKUP(CONCATENATE(E88,\"-\",H88),'DT list'!R:S,2,FALSE)=0)),\"Il n'y a pas de poids estimé de Lenovo par unité. Entrez dans l'ÉTAPE 5 le poids estimé de votre appareil.\",IF(AND(E89=TRUE,H89=TRUE,U88>0,VLOOKUP(CONCATENATE(E88,\"-\",H88),'DT list'!R:S,2,FALSE)=0),\"À l'ÉTAPE 5, votre poids estimé de l'appareil est  \"&U88&\" kg.\",IF(AND(E89=TRUE,H89=TRUE,U88>0,VLOOKUP(CONCATENATE(E88,\"-\",H88),'DT list'!R:S,2,FALSE)<>U88,VLOOKUP(CONCATENATE(E88,\"-\",H88),'DT list'!R:S,2,FALSE)>0),\"À l'ÉTAPE 5,  votre poids estimé de l'appareil est  \"&U88&\" kg. Le poids estimé de Lenovo était  \"&VLOOKUP(CONCATENATE(E88,\"-\",H88),'DT list'!R:S,2,FALSE)&\" kg.\",\"\"))))))","v":""}]
[null,null,null,null,{"$f":"B88=VLOOKUP(E88,'DT list'!J:P,7,FALSE)","v":{"$error":"#N/A"}},null,null,{"$f":"AND(E88=VLOOKUP(H88,'DT list'!K:Q,7,FALSE),B88=VLOOKUP(E88,'DT list'!J:P,7,FALSE))","v":{"$error":"#N/A"}}]
[null,null,null,null,{"$f":"IF(ISNA(E92),\"\",IF(E92=FALSE,\"! Sélectionnez le bon équipement.\",\"\"))","v":""},null,null,{"$f":"IF(ISNA(H92),\"\",IF(H92=FALSE,\"! Sélectionnez le bon équipement..\",\"\"))","v":""},null,null,null,null,null,null,null,null,null,null,null,null,{"$f":"IF(AND(ISNA(E92),ISNA(H92)),\"\",IF(ISNA(U91),\"\",IF(U91=\"\",\"\",IF(ISTEXT(U91),\"! Entrer un numéro.\",IF(AND(E92=TRUE,H92=TRUE,OR(K91=\"\",ISBLANK(K91),K91=0),U91>0,U91<>\"\"),\"Entrez quantité des unités à l'ÉTAPE 4.\",IF(ISNA(H92),\"\",IF(H92=FALSE,\"\",\"\")))))))","v":""}]
[5,"  --- Sélectionnez une famille d'équipement: ---",null,null,null,null,null,null,null,null,null,null,null,null,null,null,null,null,null,null,null,null,null,null,{"$f":"IF(OR(ISBLANK(B91),ISBLANK(E91),ISBLANK(H91),ISBLANK(K91)),\"\",IF(AND(E92=TRUE,H92=TRUE,K91>0,U91>0,U91<>\"\"),U91*K91,IF(AND(E92=TRUE,H92=TRUE,K91>0,OR(U91=\"\",U91=0)),\"\",\"\")))","v":""},null,{"$f":"IF(OR(ISBLANK(B91),ISBLANK(E91),ISBLANK(H91)),\"\",IF(OR(E92=FALSE,H92=FALSE),\"Sélectionnez la bonne catégorie à l'ÉTAPE 2 ou 3 et mettez à jour le poids à l'ÉTAPE 5.\",IF(AND(E92=TRUE,H92=TRUE,OR(K91=\"\",ISBLANK(K91),K91=0),U91>0,U91<>\"\"),\"Entrez quantité des unités à l'ÉTAPE 4.\",IF(AND(E92=TRUE,H92=TRUE,K91>0,U91>0,U91<>\"\"),\"\",IF(AND(E92=TRUE,H92=TRUE,K91>0,OR(U91=\"\",U91=0)),\"Entrez le poids estimé à l'ÉTAPE 5.\",\"\")))))","v":""},null,{"$f":"IF(OR(ISBLANK(B91),ISBLANK(E91),ISBLANK(H91)),\"\",IF(AND(NOT(ISBLANK(E91)),NOT(ISBLANK(H91)),OR(E92=FALSE,H92=FALSE)),\"\",IF((AND(E92=TRUE,H92=TRUE,ISBLANK(U91),VLOOKUP(CONCATENATE(E91,\"-\",H91),'DT list'!R:S,2,FALSE)>0)),\"Poids estimé de Lenovo par unité: \"&VLOOKUP(CONCATENATE(E91,\"-\",H91),'DT list'!R:S,2,FALSE)&\"kg. Entrez dans l'étape 5 le poids estimé de votre appareil s'il diffère du poids estimé de Lenovo.\",IF((AND(E92=TRUE,H92=TRUE,ISBLANK(U91),VLOOKUP(CONCATENATE(E91,\"-\",H91),'DT list'!R:S,2,FALSE)=0)),\"Il n'y a pas de poids estimé de Lenovo par unité. Entrez dans l'ÉTAPE 5 le poids estimé de votre appareil.\",IF(AND(E92=TRUE,H92=TRUE,U91>0,VLOOKUP(CONCATENATE(E91,\"-\",H91),'DT list'!R:S,2,FALSE)=0),\"À l'ÉTAPE 5, votre poids estimé de l'appareil est  \"&U91&\" kg.\",IF(AND(E92=TRUE,H92=TRUE,U91>0,VLOOKUP(CONCATENATE(E91,\"-\",H91),'DT list'!R:S,2,FALSE)<>U91,VLOOKUP(CONCATENATE(E91,\"-\",H91),'DT list'!R:S,2,FALSE)>0),\"À l'ÉTAPE 5,  votre poids estimé de l'appareil est  \"&U91&\" kg. Le poids estimé de Lenovo était  \"&VLOOKUP(CONCATENATE(E91,\"-\",H91),'DT list'!R:S,2,FALSE)&\" kg.\",\"\"))))))","v":""}]
[null,null,null,null,{"$f":"B91=VLOOKUP(E91,'DT list'!J:P,7,FALSE)","v":{"$error":"#N/A"}},null,null,{"$f":"AND(E91=VLOOKUP(H91,'DT list'!K:Q,7,FALSE),B91=VLOOKUP(E91,'DT list'!J:P,7,FALSE))","v":{"$error":"#N/A"}}]
[null,null,null,null,{"$f":"IF(ISNA(E95),\"\",IF(E95=FALSE,\"! Sélectionnez le bon équipement.\",\"\"))","v":""},null,null,{"$f":"IF(ISNA(H95),\"\",IF(H95=FALSE,\"! Sélectionnez le bon équipement..\",\"\"))","v":""},null,null,null,null,null,null,null,null,null,null,null,null,{"$f":"IF(AND(ISNA(E95),ISNA(H95)),\"\",IF(ISNA(U94),\"\",IF(U94=\"\",\"\",IF(ISTEXT(U94),\"! Entrer un numéro.\",IF(AND(E95=TRUE,H95=TRUE,OR(K94=\"\",ISBLANK(K94),K94=0),U94>0,U94<>\"\"),\"Entrez quantité des unités à l'ÉTAPE 4.\",IF(ISNA(H95),\"\",IF(H95=FALSE,\"\",\"\")))))))","v":""}]
[6,"  --- Sélectionnez une famille d'équipement: ---",null,null,null,null,null,null,null,null,null,null,null,null,null,null,null,null,null,null,null,null,null,null,{"$f":"IF(OR(ISBLANK(B94),ISBLANK(E94),ISBLANK(H94),ISBLANK(K94)),\"\",IF(AND(E95=TRUE,H95=TRUE,K94>0,U94>0,U94<>\"\"),U94*K94,IF(AND(E95=TRUE,H95=TRUE,K94>0,OR(U94=\"\",U94=0)),\"\",\"\")))","v":""},null,{"$f":"IF(OR(ISBLANK(B94),ISBLANK(E94),ISBLANK(H94)),\"\",IF(OR(E95=FALSE,H95=FALSE),\"Sélectionnez la bonne catégorie à l'ÉTAPE 2 ou 3 et mettez à jour le poids à l'ÉTAPE 5.\",IF(AND(E95=TRUE,H95=TRUE,OR(K94=\"\",ISBLANK(K94),K94=0),U94>0,U94<>\"\"),\"Entrez quantité des unités à l'ÉTAPE 4.\",IF(AND(E95=TRUE,H95=TRUE,K94>0,U94>0,U94<>\"\"),\"\",IF(AND(E95=TRUE,H95=TRUE,K94>0,OR(U94=\"\",U94=0)),\"Entrez le poids estimé à l'ÉTAPE 5.\",\"\")))))","v":""},null,{"$f":"IF(OR(ISBLANK(B94),ISBLANK(E94),ISBLANK(H94)),\"\",IF(AND(NOT(ISBLANK(E94)),NOT(ISBLANK(H94)),OR(E95=FALSE,H95=FALSE)),\"\",IF((AND(E95=TRUE,H95=TRUE,ISBLANK(U94),VLOOKUP(CONCATENATE(E94,\"-\",H94),'DT list'!R:S,2,FALSE)>0)),\"Poids estimé de Lenovo par unité: \"&VLOOKUP(CONCATENATE(E94,\"-\",H94),'DT list'!R:S,2,FALSE)&\"kg. Entrez dans l'étape 5 le poids estimé de votre appareil s'il diffère du poids estimé de Lenovo.\",IF((AND(E95=TRUE,H95=TRUE,ISBLANK(U94),VLOOKUP(CONCATENATE(E94,\"-\",H94),'DT list'!R:S,2,FALSE)=0)),\"Il n'y a pas de poids estimé de Lenovo par unité. Entrez dans l'ÉTAPE 5 le poids estimé de votre appareil.\",IF(AND(E95=TRUE,H95=TRUE,U94>0,VLOOKUP(CONCATENATE(E94,\"-\",H94),'DT list'!R:S,2,FALSE)=0),\"À l'ÉTAPE 5, votre poids estimé de l'appareil est  \"&U94&\" kg.\",IF(AND(E95=TRUE,H95=TRUE,U94>0,VLOOKUP(CONCATENATE(E94,\"-\",H94),'DT list'!R:S,2,FALSE)<>U94,VLOOKUP(CONCATENATE(E94,\"-\",H94),'DT list'!R:S,2,FALSE)>0),\"À l'ÉTAPE 5,  votre poids estimé de l'appareil est  \"&U94&\" kg. Le poids estimé de Lenovo était  \"&VLOOKUP(CONCATENATE(E94,\"-\",H94),'DT list'!R:S,2,FALSE)&\" kg.\",\"\"))))))","v":""}]
[null,null,null,null,{"$f":"B94=VLOOKUP(E94,'DT list'!J:P,7,FALSE)","v":{"$error":"#N/A"}},null,null,{"$f":"AND(E94=VLOOKUP(H94,'DT list'!K:Q,7,FALSE),B94=VLOOKUP(E94,'DT list'!J:P,7,FALSE))","v":{"$error":"#N/A"}}]
[null,null,null,null,{"$f":"IF(ISNA(E98),\"\",IF(E98=FALSE,\"! Sélectionnez le bon équipement.\",\"\"))","v":""},null,null,{"$f":"IF(ISNA(H98),\"\",IF(H98=FALSE,\"! Sélectionnez le bon équipement..\",\"\"))","v":""},null,null,null,null,null,null,null,null,null,null,null,null,{"$f":"IF(AND(ISNA(E98),ISNA(H98)),\"\",IF(ISNA(U97),\"\",IF(U97=\"\",\"\",IF(ISTEXT(U97),\"! Entrer un numéro.\",IF(AND(E98=TRUE,H98=TRUE,OR(K97=\"\",ISBLANK(K97),K97=0),U97>0,U97<>\"\"),\"Entrez quantité des unités à l'ÉTAPE 4.\",IF(ISNA(H98),\"\",IF(H98=FALSE,\"\",\"\")))))))","v":""}]
[7,"  --- Sélectionnez une famille d'équipement: ---",null,null,null,null,null,null,null,null,null,null,null,null,null,null,null,null,null,null,null,null,null,null,{"$f":"IF(OR(ISBLANK(B97),ISBLANK(E97),ISBLANK(H97),ISBLANK(K97)),\"\",IF(AND(E98=TRUE,H98=TRUE,K97>0,U97>0,U97<>\"\"),U97*K97,IF(AND(E98=TRUE,H98=TRUE,K97>0,OR(U97=\"\",U97=0)),\"\",\"\")))","v":""},null,{"$f":"IF(OR(ISBLANK(B97),ISBLANK(E97),ISBLANK(H97)),\"\",IF(OR(E98=FALSE,H98=FALSE),\"Sélectionnez la bonne catégorie à l'ÉTAPE 2 ou 3 et mettez à jour le poids à l'ÉTAPE 5.\",IF(AND(E98=TRUE,H98=TRUE,OR(K97=\"\",ISBLANK(K97),K97=0),U97>0,U97<>\"\"),\"Entrez quantité des unités à l'ÉTAPE 4.\",IF(AND(E98=TRUE,H98=TRUE,K97>0,U97>0,U97<>\"\"),\"\",IF(AND(E98=TRUE,H98=TRUE,K97>0,OR(U97=\"\",U97=0)),\"Entrez le poids estimé à l'ÉTAPE 5.\",\"\")))))","v":""},null,{"$f":"IF(OR(ISBLANK(B97),ISBLANK(E97),ISBLANK(H97)),\"\",IF(AND(NOT(ISBLANK(E97)),NOT(ISBLANK(H97)),OR(E98=FALSE,H98=FALSE)),\"\",IF((AND(E98=TRUE,H98=TRUE,ISBLANK(U97),VLOOKUP(CONCATENATE(E97,\"-\",H97),'DT list'!R:S,2,FALSE)>0)),\"Poids estimé de Lenovo par unité: \"&VLOOKUP(CONCATENATE(E97,\"-\",H97),'DT list'!R:S,2,FALSE)&\"kg. Entrez dans l'étape 5 le poids estimé de votre appareil s'il diffère du poids estimé de Lenovo.\",IF((AND(E98=TRUE,H98=TRUE,ISBLANK(U97),VLOOKUP(CONCATENATE(E97,\"-\",H97),'DT list'!R:S,2,FALSE)=0)),\"Il n'y a pas de poids estimé de Lenovo par unité. Entrez dans l'ÉTAPE 5 le poids estimé de votre appareil.\",IF(AND(E98=TRUE,H98=TRUE,U97>0,VLOOKUP(CONCATENATE(E97,\"-\",H97),'DT list'!R:S,2,FALSE)=0),\"À l'ÉTAPE 5, votre poids estimé de l'appareil est  \"&U97&\" kg.\",IF(AND(E98=TRUE,H98=TRUE,U97>0,VLOOKUP(CONCATENATE(E97,\"-\",H97),'DT list'!R:S,2,FALSE)<>U97,VLOOKUP(CONCATENATE(E97,\"-\",H97),'DT list'!R:S,2,FALSE)>0),\"À l'ÉTAPE 5,  votre poids estimé de l'appareil est  \"&U97&\" kg. Le poids estimé de Lenovo était  \"&VLOOKUP(CONCATENATE(E97,\"-\",H97),'DT list'!R:S,2,FALSE)&\" kg.\",\"\"))))))","v":""}]
[null,null,null,null,{"$f":"B97=VLOOKUP(E97,'DT list'!J:P,7,FALSE)","v":{"$error":"#N/A"}},null,null,{"$f":"AND(E97=VLOOKUP(H97,'DT list'!K:Q,7,FALSE),B97=VLOOKUP(E97,'DT list'!J:P,7,FALSE))","v":{"$error":"#N/A"}}]
[null,null,null,null,{"$f":"IF(ISNA(E101),\"\",IF(E101=FALSE,\"! Sélectionnez le bon équipement.\",\"\"))","v":""},null,null,{"$f":"IF(ISNA(H101),\"\",IF(H101=FALSE,\"! Sélectionnez le bon équipement..\",\"\"))","v":""},null,null,null,null,null,null,null,null,null,null,null,null,{"$f":"IF(AND(ISNA(E101),ISNA(H101)),\"\",IF(ISNA(U100),\"\",IF(U100=\"\",\"\",IF(ISTEXT(U100),\"! Entrer un numéro.\",IF(AND(E101=TRUE,H101=TRUE,OR(K100=\"\",ISBLANK(K100),K100=0),U100>0,U100<>\"\"),\"Entrez quantité des unités à l'ÉTAPE 4.\",IF(ISNA(H101),\"\",IF(H101=FALSE,\"\",\"\")))))))","v":""}]
[8,"  --- Sélectionnez une famille d'équipement: ---",null,null,null,null,null,null,null,null,null,null,null,null,null,null,null,null,null,null,null,null,null,null,{"$f":"IF(OR(ISBLANK(B100),ISBLANK(E100),ISBLANK(H100),ISBLANK(K100)),\"\",IF(AND(E101=TRUE,H101=TRUE,K100>0,U100>0,U100<>\"\"),U100*K100,IF(AND(E101=TRUE,H101=TRUE,K100>0,OR(U100=\"\",U100=0)),\"\",\"\")))","v":""},null,{"$f":"IF(OR(ISBLANK(B100),ISBLANK(E100),ISBLANK(H100)),\"\",IF(OR(E101=FALSE,H101=FALSE),\"Sélectionnez la bonne catégorie à l'ÉTAPE 2 ou 3 et mettez à jour le poids à l'ÉTAPE 5.\",IF(AND(E101=TRUE,H101=TRUE,OR(K100=\"\",ISBLANK(K100),K100=0),U100>0,U100<>\"\"),\"Entrez quantité des unités à l'ÉTAPE 4.\",IF(AND(E101=TRUE,H101=TRUE,K100>0,U100>0,U100<>\"\"),\"\",IF(AND(E101=TRUE,H101=TRUE,K100>0,OR(U100=\"\",U100=0)),\"Entrez le poids estimé à l'ÉTAPE 5.\",\"\")))))","v":""},null,{"$f":"IF(OR(ISBLANK(B100),ISBLANK(E100),ISBLANK(H100)),\"\",IF(AND(NOT(ISBLANK(E100)),NOT(ISBLANK(H100)),OR(E101=FALSE,H101=FALSE)),\"\",IF((AND(E101=TRUE,H101=TRUE,ISBLANK(U100),VLOOKUP(CONCATENATE(E100,\"-\",H100),'DT list'!R:S,2,FALSE)>0)),\"Poids estimé de Lenovo par unité: \"&VLOOKUP(CONCATENATE(E100,\"-\",H100),'DT list'!R:S,2,FALSE)&\"kg. Entrez dans l'étape 5 le poids estimé de votre appareil s'il diffère du poids estimé de Lenovo.\",IF((AND(E101=TRUE,H101=TRUE,ISBLANK(U100),VLOOKUP(CONCATENATE(E100,\"-\",H100),'DT list'!R:S,2,FALSE)=0)),\"Il n'y a pas de poids estimé de Lenovo par unité. Entrez dans l'ÉTAPE 5 le poids estimé de votre appareil.\",IF(AND(E101=TRUE,H101=TRUE,U100>0,VLOOKUP(CONCATENATE(E100,\"-\",H100),'DT list'!R:S,2,FALSE)=0),\"À l'ÉTAPE 5, votre poids estimé de l'appareil est  \"&U100&\" kg.\",IF(AND(E101=TRUE,H101=TRUE,U100>0,VLOOKUP(CONCATENATE(E100,\"-\",H100),'DT list'!R:S,2,FALSE)<>U100,VLOOKUP(CONCATENATE(E100,\"-\",H100),'DT list'!R:S,2,FALSE)>0),\"À l'ÉTAPE 5,  votre poids estimé de l'appareil est  \"&U100&\" kg. Le poids estimé de Lenovo était  \"&VLOOKUP(CONCATENATE(E100,\"-\",H100),'DT list'!R:S,2,FALSE)&\" kg.\",\"\"))))))","v":""}]
[null,null,null,null,{"$f":"B100=VLOOKUP(E100,'DT list'!J:P,7,FALSE)","v":{"$error":"#N/A"}},null,null,{"$f":"AND(E100=VLOOKUP(H100,'DT list'!K:Q,7,FALSE),B100=VLOOKUP(E100,'DT list'!J:P,7,FALSE))","v":{"$error":"#N/A"}}]
[null,null,null,null,{"$f":"IF(ISNA(E104),\"\",IF(E104=FALSE,\"! Sélectionnez le bon équipement.\",\"\"))","v":""},null,null,{"$f":"IF(ISNA(H104),\"\",IF(H104=FALSE,\"! Sélectionnez le bon équipement..\",\"\"))","v":""},null,null,null,null,null,null,null,null,null,null,null,null,{"$f":"IF(AND(ISNA(E104),ISNA(H104)),\"\",IF(ISNA(U103),\"\",IF(U103=\"\",\"\",IF(ISTEXT(U103),\"! Entrer un numéro.\",IF(AND(E104=TRUE,H104=TRUE,OR(K103=\"\",ISBLANK(K103),K103=0),U103>0,U103<>\"\"),\"Entrez quantité des unités à l'ÉTAPE 4.\",IF(ISNA(H104),\"\",IF(H104=FALSE,\"\",\"\")))))))","v":""}]
[9,"  --- Sélectionnez une famille d'équipement: ---",null,null,null,null,null,null,null,null,null,null,null,null,null,null,null,null,null,null,null,null,null,null,{"$f":"IF(OR(ISBLANK(B103),ISBLANK(E103),ISBLANK(H103),ISBLANK(K103)),\"\",IF(AND(E104=TRUE,H104=TRUE,K103>0,U103>0,U103<>\"\"),U103*K103,IF(AND(E104=TRUE,H104=TRUE,K103>0,OR(U103=\"\",U103=0)),\"\",\"\")))","v":""},null,{"$f":"IF(OR(ISBLANK(B103),ISBLANK(E103),ISBLANK(H103)),\"\",IF(OR(E104=FALSE,H104=FALSE),\"Sélectionnez la bonne catégorie à l'ÉTAPE 2 ou 3 et mettez à jour le poids à l'ÉTAPE 5.\",IF(AND(E104=TRUE,H104=TRUE,OR(K103=\"\",ISBLANK(K103),K103=0),U103>0,U103<>\"\"),\"Entrez quantité des unités à l'ÉTAPE 4.\",IF(AND(E104=TRUE,H104=TRUE,K103>0,U103>0,U103<>\"\"),\"\",IF(AND(E104=TRUE,H104=TRUE,K103>0,OR(U103=\"\",U103=0)),\"Entrez le poids estimé à l'ÉTAPE 5.\",\"\")))))","v":""},null,{"$f":"IF(OR(ISBLANK(B103),ISBLANK(E103),ISBLANK(H103)),\"\",IF(AND(NOT(ISBLANK(E103)),NOT(ISBLANK(H103)),OR(E104=FALSE,H104=FALSE)),\"\",IF((AND(E104=TRUE,H104=TRUE,ISBLANK(U103),VLOOKUP(CONCATENATE(E103,\"-\",H103),'DT list'!R:S,2,FALSE)>0)),\"Poids estimé de Lenovo par unité: \"&VLOOKUP(CONCATENATE(E103,\"-\",H103),'DT list'!R:S,2,FALSE)&\"kg. Entrez dans l'étape 5 le poids estimé de votre appareil s'il diffère du poids estimé de Lenovo.\",IF((AND(E104=TRUE,H104=TRUE,ISBLANK(U103),VLOOKUP(CONCATENATE(E103,\"-\",H103),'DT list'!R:S,2,FALSE)=0)),\"Il n'y a pas de poids estimé de Lenovo par unité. Entrez dans l'ÉTAPE 5 le poids estimé de votre appareil.\",IF(AND(E104=TRUE,H104=TRUE,U103>0,VLOOKUP(CONCATENATE(E103,\"-\",H103),'DT list'!R:S,2,FALSE)=0),\"À l'ÉTAPE 5, votre poids estimé de l'appareil est  \"&U103&\" kg.\",IF(AND(E104=TRUE,H104=TRUE,U103>0,VLOOKUP(CONCATENATE(E103,\"-\",H103),'DT list'!R:S,2,FALSE)<>U103,VLOOKUP(CONCATENATE(E103,\"-\",H103),'DT list'!R:S,2,FALSE)>0),\"À l'ÉTAPE 5,  votre poids estimé de l'appareil est  \"&U103&\" kg. Le poids estimé de Lenovo était  \"&VLOOKUP(CONCATENATE(E103,\"-\",H103),'DT list'!R:S,2,FALSE)&\" kg.\",\"\"))))))","v":""}]
[null,null,null,null,{"$f":"B103=VLOOKUP(E103,'DT list'!J:P,7,FALSE)","v":{"$error":"#N/A"}},null,null,{"$f":"AND(E103=VLOOKUP(H103,'DT list'!K:Q,7,FALSE),B103=VLOOKUP(E103,'DT list'!J:P,7,FALSE))","v":{"$error":"#N/A"}}]
[null,null,null,null,{"$f":"IF(ISNA(E107),\"\",IF(E107=FALSE,\"! Sélectionnez le bon équipement.\",\"\"))","v":""},null,null,{"$f":"IF(ISNA(H107),\"\",IF(H107=FALSE,\"! Sélectionnez le bon équipement..\",\"\"))","v":""},null,null,null,null,null,null,null,null,null,null,null,null,{"$f":"IF(AND(ISNA(E107),ISNA(H107)),\"\",IF(ISNA(U106),\"\",IF(U106=\"\",\"\",IF(ISTEXT(U106),\"! Entrer un numéro.\",IF(AND(E107=TRUE,H107=TRUE,OR(K106=\"\",ISBLANK(K106),K106=0),U106>0,U106<>\"\"),\"Entrez quantité des unités à l'ÉTAPE 4.\",IF(ISNA(H107),\"\",IF(H107=FALSE,\"\",\"\")))))))","v":""}]
[10,"  --- Sélectionnez une famille d'équipement: ---",null,null,null,null,null,null,null,null,null,null,null,null,null,null,null,null,null,null,null,null,null,null,{"$f":"IF(OR(ISBLANK(B106),ISBLANK(E106),ISBLANK(H106),ISBLANK(K106)),\"\",IF(AND(E107=TRUE,H107=TRUE,K106>0,U106>0,U106<>\"\"),U106*K106,IF(AND(E107=TRUE,H107=TRUE,K106>0,OR(U106=\"\",U106=0)),\"\",\"\")))","v":""},null,{"$f":"IF(OR(ISBLANK(B106),ISBLANK(E106),ISBLANK(H106)),\"\",IF(OR(E107=FALSE,H107=FALSE),\"Sélectionnez la bonne catégorie à l'ÉTAPE 2 ou 3 et mettez à jour le poids à l'ÉTAPE 5.\",IF(AND(E107=TRUE,H107=TRUE,OR(K106=\"\",ISBLANK(K106),K106=0),U106>0,U106<>\"\"),\"Entrez quantité des unités à l'ÉTAPE 4.\",IF(AND(E107=TRUE,H107=TRUE,K106>0,U106>0,U106<>\"\"),\"\",IF(AND(E107=TRUE,H107=TRUE,K106>0,OR(U106=\"\",U106=0)),\"Entrez le poids estimé à l'ÉTAPE 5.\",\"\")))))","v":""},null,{"$f":"IF(OR(ISBLANK(B106),ISBLANK(E106),ISBLANK(H106)),\"\",IF(AND(NOT(ISBLANK(E106)),NOT(ISBLANK(H106)),OR(E107=FALSE,H107=FALSE)),\"\",IF((AND(E107=TRUE,H107=TRUE,ISBLANK(U106),VLOOKUP(CONCATENATE(E106,\"-\",H106),'DT list'!R:S,2,FALSE)>0)),\"Poids estimé de Lenovo par unité: \"&VLOOKUP(CONCATENATE(E106,\"-\",H106),'DT list'!R:S,2,FALSE)&\"kg. Entrez dans l'étape 5 le poids estimé de votre appareil s'il diffère du poids estimé de Lenovo.\",IF((AND(E107=TRUE,H107=TRUE,ISBLANK(U106),VLOOKUP(CONCATENATE(E106,\"-\",H106),'DT list'!R:S,2,FALSE)=0)),\"Il n'y a pas de poids estimé de Lenovo par unité. Entrez dans l'ÉTAPE 5 le poids estimé de votre appareil.\",IF(AND(E107=TRUE,H107=TRUE,U106>0,VLOOKUP(CONCATENATE(E106,\"-\",H106),'DT list'!R:S,2,FALSE)=0),\"À l'ÉTAPE 5, votre poids estimé de l'appareil est  \"&U106&\" kg.\",IF(AND(E107=TRUE,H107=TRUE,U106>0,VLOOKUP(CONCATENATE(E106,\"-\",H106),'DT list'!R:S,2,FALSE)<>U106,VLOOKUP(CONCATENATE(E106,\"-\",H106),'DT list'!R:S,2,FALSE)>0),\"À l'ÉTAPE 5,  votre poids estimé de l'appareil est  \"&U106&\" kg. Le poids estimé de Lenovo était  \"&VLOOKUP(CONCATENATE(E106,\"-\",H106),'DT list'!R:S,2,FALSE)&\" kg.\",\"\"))))))","v":""}]
[null,null,null,null,{"$f":"B106=VLOOKUP(E106,'DT list'!J:P,7,FALSE)","v":{"$error":"#N/A"}},null,null,{"$f":"AND(E106=VLOOKUP(H106,'DT list'!K:Q,7,FALSE),B106=VLOOKUP(E106,'DT list'!J:P,7,FALSE))","v":{"$error":"#N/A"}}]
[null,null,null,null,{"$f":"IF(ISNA(E110),\"\",IF(E110=FALSE,\"! Sélectionnez le bon équipement.\",\"\"))","v":""},null,null,{"$f":"IF(ISNA(H110),\"\",IF(H110=FALSE,\"! Sélectionnez le bon équipement..\",\"\"))","v":""},null,null,null,null,null,null,null,null,null,null,null,null,{"$f":"IF(AND(ISNA(E110),ISNA(H110)),\"\",IF(ISNA(U109),\"\",IF(U109=\"\",\"\",IF(ISTEXT(U109),\"! Entrer un numéro.\",IF(AND(E110=TRUE,H110=TRUE,OR(K109=\"\",ISBLANK(K109),K109=0),U109>0,U109<>\"\"),\"Entrez quantité des unités à l'ÉTAPE 4.\",IF(ISNA(H110),\"\",IF(H110=FALSE,\"\",\"\")))))))","v":""}]
[11,"  --- Sélectionnez une famille d'équipement: ---",null,null,null,null,null,null,null,null,null,null,null,null,null,null,null,null,null,null,null,null,null,null,{"$f":"IF(OR(ISBLANK(B109),ISBLANK(E109),ISBLANK(H109),ISBLANK(K109)),\"\",IF(AND(E110=TRUE,H110=TRUE,K109>0,U109>0,U109<>\"\"),U109*K109,IF(AND(E110=TRUE,H110=TRUE,K109>0,OR(U109=\"\",U109=0)),\"\",\"\")))","v":""},null,{"$f":"IF(OR(ISBLANK(B109),ISBLANK(E109),ISBLANK(H109)),\"\",IF(OR(E110=FALSE,H110=FALSE),\"Sélectionnez la bonne catégorie à l'ÉTAPE 2 ou 3 et mettez à jour le poids à l'ÉTAPE 5.\",IF(AND(E110=TRUE,H110=TRUE,OR(K109=\"\",ISBLANK(K109),K109=0),U109>0,U109<>\"\"),\"Entrez quantité des unités à l'ÉTAPE 4.\",IF(AND(E110=TRUE,H110=TRUE,K109>0,U109>0,U109<>\"\"),\"\",IF(AND(E110=TRUE,H110=TRUE,K109>0,OR(U109=\"\",U109=0)),\"Entrez le poids estimé à l'ÉTAPE 5.\",\"\")))))","v":""},null,{"$f":"IF(OR(ISBLANK(B109),ISBLANK(E109),ISBLANK(H109)),\"\",IF(AND(NOT(ISBLANK(E109)),NOT(ISBLANK(H109)),OR(E110=FALSE,H110=FALSE)),\"\",IF((AND(E110=TRUE,H110=TRUE,ISBLANK(U109),VLOOKUP(CONCATENATE(E109,\"-\",H109),'DT list'!R:S,2,FALSE)>0)),\"Poids estimé de Lenovo par unité: \"&VLOOKUP(CONCATENATE(E109,\"-\",H109),'DT list'!R:S,2,FALSE)&\"kg. Entrez dans l'étape 5 le poids estimé de votre appareil s'il diffère du poids estimé de Lenovo.\",IF((AND(E110=TRUE,H110=TRUE,ISBLANK(U109),VLOOKUP(CONCATENATE(E109,\"-\",H109),'DT list'!R:S,2,FALSE)=0)),\"Il n'y a pas de poids estimé de Lenovo par unité. Entrez dans l'ÉTAPE 5 le poids estimé de votre appareil.\",IF(AND(E110=TRUE,H110=TRUE,U109>0,VLOOKUP(CONCATENATE(E109,\"-\",H109),'DT list'!R:S,2,FALSE)=0),\"À l'ÉTAPE 5, votre poids estimé de l'appareil est  \"&U109&\" kg.\",IF(AND(E110=TRUE,H110=TRUE,U109>0,VLOOKUP(CONCATENATE(E109,\"-\",H109),'DT list'!R:S,2,FALSE)<>U109,VLOOKUP(CONCATENATE(E109,\"-\",H109),'DT list'!R:S,2,FALSE)>0),\"À l'ÉTAPE 5,  votre poids estimé de l'appareil est  \"&U109&\" kg. Le poids estimé de Lenovo était  \"&VLOOKUP(CONCATENATE(E109,\"-\",H109),'DT list'!R:S,2,FALSE)&\" kg.\",\"\"))))))","v":""}]
[null,null,null,null,{"$f":"B109=VLOOKUP(E109,'DT list'!J:P,7,FALSE)","v":{"$error":"#N/A"}},null,null,{"$f":"AND(E109=VLOOKUP(H109,'DT list'!K:Q,7,FALSE),B109=VLOOKUP(E109,'DT list'!J:P,7,FALSE))","v":{"$error":"#N/A"}}]
[null,null,null,null,{"$f":"IF(ISNA(E113),\"\",IF(E113=FALSE,\"! Sélectionnez le bon équipement.\",\"\"))","v":""},null,null,{"$f":"IF(ISNA(H113),\"\",IF(H113=FALSE,\"! Sélectionnez le bon équipement..\",\"\"))","v":""},null,null,null,null,null,null,null,null,null,null,null,null,{"$f":"IF(AND(ISNA(E113),ISNA(H113)),\"\",IF(ISNA(U112),\"\",IF(U112=\"\",\"\",IF(ISTEXT(U112),\"! Entrer un numéro.\",IF(AND(E113=TRUE,H113=TRUE,OR(K112=\"\",ISBLANK(K112),K112=0),U112>0,U112<>\"\"),\"Entrez quantité des unités à l'ÉTAPE 4.\",IF(ISNA(H113),\"\",IF(H113=FALSE,\"\",\"\")))))))","v":""}]
[12,"  --- Sélectionnez une famille d'équipement: ---",null,null,null,null,null,null,null,null,null,null,null,null,null,null,null,null,null,null,null,null,null,null,{"$f":"IF(OR(ISBLANK(B112),ISBLANK(E112),ISBLANK(H112),ISBLANK(K112)),\"\",IF(AND(E113=TRUE,H113=TRUE,K112>0,U112>0,U112<>\"\"),U112*K112,IF(AND(E113=TRUE,H113=TRUE,K112>0,OR(U112=\"\",U112=0)),\"\",\"\")))","v":""},null,{"$f":"IF(OR(ISBLANK(B112),ISBLANK(E112),ISBLANK(H112)),\"\",IF(OR(E113=FALSE,H113=FALSE),\"Sélectionnez la bonne catégorie à l'ÉTAPE 2 ou 3 et mettez à jour le poids à l'ÉTAPE 5.\",IF(AND(E113=TRUE,H113=TRUE,OR(K112=\"\",ISBLANK(K112),K112=0),U112>0,U112<>\"\"),\"Entrez quantité des unités à l'ÉTAPE 4.\",IF(AND(E113=TRUE,H113=TRUE,K112>0,U112>0,U112<>\"\"),\"\",IF(AND(E113=TRUE,H113=TRUE,K112>0,OR(U112=\"\",U112=0)),\"Entrez le poids estimé à l'ÉTAPE 5.\",\"\")))))","v":""},null,{"$f":"IF(OR(ISBLANK(B112),ISBLANK(E112),ISBLANK(H112)),\"\",IF(AND(NOT(ISBLANK(E112)),NOT(ISBLANK(H112)),OR(E113=FALSE,H113=FALSE)),\"\",IF((AND(E113=TRUE,H113=TRUE,ISBLANK(U112),VLOOKUP(CONCATENATE(E112,\"-\",H112),'DT list'!R:S,2,FALSE)>0)),\"Poids estimé de Lenovo par unité: \"&VLOOKUP(CONCATENATE(E112,\"-\",H112),'DT list'!R:S,2,FALSE)&\"kg. Entrez dans l'étape 5 le poids estimé de votre appareil s'il diffère du poids estimé de Lenovo.\",IF((AND(E113=TRUE,H113=TRUE,ISBLANK(U112),VLOOKUP(CONCATENATE(E112,\"-\",H112),'DT list'!R:S,2,FALSE)=0)),\"Il n'y a pas de poids estimé de Lenovo par unité. Entrez dans l'ÉTAPE 5 le poids estimé de votre appareil.\",IF(AND(E113=TRUE,H113=TRUE,U112>0,VLOOKUP(CONCATENATE(E112,\"-\",H112),'DT list'!R:S,2,FALSE)=0),\"À l'ÉTAPE 5, votre poids estimé de l'appareil est  \"&U112&\" kg.\",IF(AND(E113=TRUE,H113=TRUE,U112>0,VLOOKUP(CONCATENATE(E112,\"-\",H112),'DT list'!R:S,2,FALSE)<>U112,VLOOKUP(CONCATENATE(E112,\"-\",H112),'DT list'!R:S,2,FALSE)>0),\"À l'ÉTAPE 5,  votre poids estimé de l'appareil est  \"&U112&\" kg. Le poids estimé de Lenovo était  \"&VLOOKUP(CONCATENATE(E112,\"-\",H112),'DT list'!R:S,2,FALSE)&\" kg.\",\"\"))))))","v":""}]
[null,null,null,null,{"$f":"B112=VLOOKUP(E112,'DT list'!J:P,7,FALSE)","v":{"$error":"#N/A"}},null,null,{"$f":"AND(E112=VLOOKUP(H112,'DT list'!K:Q,7,FALSE),B112=VLOOKUP(E112,'DT list'!J:P,7,FALSE))","v":{"$error":"#N/A"}}]
[null,null,null,null,{"$f":"IF(ISNA(E116),\"\",IF(E116=FALSE,\"! Sélectionnez le bon équipement.\",\"\"))","v":""},null,null,{"$f":"IF(ISNA(H116),\"\",IF(H116=FALSE,\"! Sélectionnez le bon équipement..\",\"\"))","v":""},null,null,null,null,null,null,null,null,null,null,null,null,{"$f":"IF(AND(ISNA(E116),ISNA(H116)),\"\",IF(ISNA(U115),\"\",IF(U115=\"\",\"\",IF(ISTEXT(U115),\"! Entrer un numéro.\",IF(AND(E116=TRUE,H116=TRUE,OR(K115=\"\",ISBLANK(K115),K115=0),U115>0,U115<>\"\"),\"Entrez quantité des unités à l'ÉTAPE 4.\",IF(ISNA(H116),\"\",IF(H116=FALSE,\"\",\"\")))))))","v":""}]
[13,"  --- Sélectionnez une famille d'équipement: ---",null,null,null,null,null,null,null,null,null,null,null,null,null,null,null,null,null,null,null,null,null,null,{"$f":"IF(OR(ISBLANK(B115),ISBLANK(E115),ISBLANK(H115),ISBLANK(K115)),\"\",IF(AND(E116=TRUE,H116=TRUE,K115>0,U115>0,U115<>\"\"),U115*K115,IF(AND(E116=TRUE,H116=TRUE,K115>0,OR(U115=\"\",U115=0)),\"\",\"\")))","v":""},null,{"$f":"IF(OR(ISBLANK(B115),ISBLANK(E115),ISBLANK(H115)),\"\",IF(OR(E116=FALSE,H116=FALSE),\"Sélectionnez la bonne catégorie à l'ÉTAPE 2 ou 3 et mettez à jour le poids à l'ÉTAPE 5.\",IF(AND(E116=TRUE,H116=TRUE,OR(K115=\"\",ISBLANK(K115),K115=0),U115>0,U115<>\"\"),\"Entrez quantité des unités à l'ÉTAPE 4.\",IF(AND(E116=TRUE,H116=TRUE,K115>0,U115>0,U115<>\"\"),\"\",IF(AND(E116=TRUE,H116=TRUE,K115>0,OR(U115=\"\",U115=0)),\"Entrez le poids estimé à l'ÉTAPE 5.\",\"\")))))","v":""},null,{"$f":"IF(OR(ISBLANK(B115),ISBLANK(E115),ISBLANK(H115)),\"\",IF(AND(NOT(ISBLANK(E115)),NOT(ISBLANK(H115)),OR(E116=FALSE,H116=FALSE)),\"\",IF((AND(E116=TRUE,H116=TRUE,ISBLANK(U115),VLOOKUP(CONCATENATE(E115,\"-\",H115),'DT list'!R:S,2,FALSE)>0)),\"Poids estimé de Lenovo par unité: \"&VLOOKUP(CONCATENATE(E115,\"-\",H115),'DT list'!R:S,2,FALSE)&\"kg. Entrez dans l'étape 5 le poids estimé de votre appareil s'il diffère du poids estimé de Lenovo.\",IF((AND(E116=TRUE,H116=TRUE,ISBLANK(U115),VLOOKUP(CONCATENATE(E115,\"-\",H115),'DT list'!R:S,2,FALSE)=0)),\"Il n'y a pas de poids estimé de Lenovo par unité. Entrez dans l'ÉTAPE 5 le poids estimé de votre appareil.\",IF(AND(E116=TRUE,H116=TRUE,U115>0,VLOOKUP(CONCATENATE(E115,\"-\",H115),'DT list'!R:S,2,FALSE)=0),\"À l'ÉTAPE 5, votre poids estimé de l'appareil est  \"&U115&\" kg.\",IF(AND(E116=TRUE,H116=TRUE,U115>0,VLOOKUP(CONCATENATE(E115,\"-\",H115),'DT list'!R:S,2,FALSE)<>U115,VLOOKUP(CONCATENATE(E115,\"-\",H115),'DT list'!R:S,2,FALSE)>0),\"À l'ÉTAPE 5,  votre poids estimé de l'appareil est  \"&U115&\" kg. Le poids estimé de Lenovo était  \"&VLOOKUP(CONCATENATE(E115,\"-\",H115),'DT list'!R:S,2,FALSE)&\" kg.\",\"\"))))))","v":""}]
[null,null,null,null,{"$f":"B115=VLOOKUP(E115,'DT list'!J:P,7,FALSE)","v":{"$error":"#N/A"}},null,null,{"$f":"AND(E115=VLOOKUP(H115,'DT list'!K:Q,7,FALSE),B115=VLOOKUP(E115,'DT list'!J:P,7,FALSE))","v":{"$error":"#N/A"}}]
[null,null,null,null,{"$f":"IF(ISNA(E119),\"\",IF(E119=FALSE,\"! Sélectionnez le bon équipement.\",\"\"))","v":""},null,null,{"$f":"IF(ISNA(H119),\"\",IF(H119=FALSE,\"! Sélectionnez le bon équipement..\",\"\"))","v":""},null,null,null,null,null,null,null,null,null,null,null,null,{"$f":"IF(AND(ISNA(E119),ISNA(H119)),\"\",IF(ISNA(U118),\"\",IF(U118=\"\",\"\",IF(ISTEXT(U118),\"! Entrer un numéro.\",IF(AND(E119=TRUE,H119=TRUE,OR(K118=\"\",ISBLANK(K118),K118=0),U118>0,U118<>\"\"),\"Entrez quantité des unités à l'ÉTAPE 4.\",IF(ISNA(H119),\"\",IF(H119=FALSE,\"\",\"\")))))))","v":""}]
[14,"  --- Sélectionnez une famille d'équipement: ---",null,null,null,null,null,null,null,null,null,null,null,null,null,null,null,null,null,null,null,null,null,null,{"$f":"IF(OR(ISBLANK(B118),ISBLANK(E118),ISBLANK(H118),ISBLANK(K118)),\"\",IF(AND(E119=TRUE,H119=TRUE,K118>0,U118>0,U118<>\"\"),U118*K118,IF(AND(E119=TRUE,H119=TRUE,K118>0,OR(U118=\"\",U118=0)),\"\",\"\")))","v":""},null,{"$f":"IF(OR(ISBLANK(B118),ISBLANK(E118),ISBLANK(H118)),\"\",IF(OR(E119=FALSE,H119=FALSE),\"Sélectionnez la bonne catégorie à l'ÉTAPE 2 ou 3 et mettez à jour le poids à l'ÉTAPE 5.\",IF(AND(E119=TRUE,H119=TRUE,OR(K118=\"\",ISBLANK(K118),K118=0),U118>0,U118<>\"\"),\"Entrez quantité des unités à l'ÉTAPE 4.\",IF(AND(E119=TRUE,H119=TRUE,K118>0,U118>0,U118<>\"\"),\"\",IF(AND(E119=TRUE,H119=TRUE,K118>0,OR(U118=\"\",U118=0)),\"Entrez le poids estimé à l'ÉTAPE 5.\",\"\")))))","v":""},null,{"$f":"IF(OR(ISBLANK(B118),ISBLANK(E118),ISBLANK(H118)),\"\",IF(AND(NOT(ISBLANK(E118)),NOT(ISBLANK(H118)),OR(E119=FALSE,H119=FALSE)),\"\",IF((AND(E119=TRUE,H119=TRUE,ISBLANK(U118),VLOOKUP(CONCATENATE(E118,\"-\",H118),'DT list'!R:S,2,FALSE)>0)),\"Poids estimé de Lenovo par unité: \"&VLOOKUP(CONCATENATE(E118,\"-\",H118),'DT list'!R:S,2,FALSE)&\"kg. Entrez dans l'étape 5 le poids estimé de votre appareil s'il diffère du poids estimé de Lenovo.\",IF((AND(E119=TRUE,H119=TRUE,ISBLANK(U118),VLOOKUP(CONCATENATE(E118,\"-\",H118),'DT list'!R:S,2,FALSE)=0)),\"Il n'y a pas de poids estimé de Lenovo par unité. Entrez dans l'ÉTAPE 5 le poids estimé de votre appareil.\",IF(AND(E119=TRUE,H119=TRUE,U118>0,VLOOKUP(CONCATENATE(E118,\"-\",H118),'DT list'!R:S,2,FALSE)=0),\"À l'ÉTAPE 5, votre poids estimé de l'appareil est  \"&U118&\" kg.\",IF(AND(E119=TRUE,H119=TRUE,U118>0,VLOOKUP(CONCATENATE(E118,\"-\",H118),'DT list'!R:S,2,FALSE)<>U118,VLOOKUP(CONCATENATE(E118,\"-\",H118),'DT list'!R:S,2,FALSE)>0),\"À l'ÉTAPE 5,  votre poids estimé de l'appareil est  \"&U118&\" kg. Le poids estimé de Lenovo était  \"&VLOOKUP(CONCATENATE(E118,\"-\",H118),'DT list'!R:S,2,FALSE)&\" kg.\",\"\"))))))","v":""}]
[null,null,null,null,{"$f":"B118=VLOOKUP(E118,'DT list'!J:P,7,FALSE)","v":{"$error":"#N/A"}},null,null,{"$f":"AND(E118=VLOOKUP(H118,'DT list'!K:Q,7,FALSE),B118=VLOOKUP(E118,'DT list'!J:P,7,FALSE))","v":{"$error":"#N/A"}}]
[null,null,null,null,{"$f":"IF(ISNA(E122),\"\",IF(E122=FALSE,\"! Sélectionnez le bon équipement.\",\"\"))","v":""},null,null,{"$f":"IF(ISNA(H122),\"\",IF(H122=FALSE,\"! Sélectionnez le bon équipement..\",\"\"))","v":""},null,null,null,null,null,null,null,null,null,null,null,null,{"$f":"IF(AND(ISNA(E122),ISNA(H122)),\"\",IF(ISNA(U121),\"\",IF(U121=\"\",\"\",IF(ISTEXT(U121),\"! Entrer un numéro.\",IF(AND(E122=TRUE,H122=TRUE,OR(K121=\"\",ISBLANK(K121),K121=0),U121>0,U121<>\"\"),\"Entrez quantité des unités à l'ÉTAPE 4.\",IF(ISNA(H122),\"\",IF(H122=FALSE,\"\",\"\")))))))","v":""}]
[15,"  --- Sélectionnez une famille d'équipement: ---",null,null,null,null,null,null,null,null,null,null,null,null,null,null,null,null,null,null,null,null,null,null,{"$f":"IF(OR(ISBLANK(B121),ISBLANK(E121),ISBLANK(H121),ISBLANK(K121)),\"\",IF(AND(E122=TRUE,H122=TRUE,K121>0,U121>0,U121<>\"\"),U121*K121,IF(AND(E122=TRUE,H122=TRUE,K121>0,OR(U121=\"\",U121=0)),\"\",\"\")))","v":""},null,{"$f":"IF(OR(ISBLANK(B121),ISBLANK(E121),ISBLANK(H121)),\"\",IF(OR(E122=FALSE,H122=FALSE),\"Sélectionnez la bonne catégorie à l'ÉTAPE 2 ou 3 et mettez à jour le poids à l'ÉTAPE 5.\",IF(AND(E122=TRUE,H122=TRUE,OR(K121=\"\",ISBLANK(K121),K121=0),U121>0,U121<>\"\"),\"Entrez quantité des unités à l'ÉTAPE 4.\",IF(AND(E122=TRUE,H122=TRUE,K121>0,U121>0,U121<>\"\"),\"\",IF(AND(E122=TRUE,H122=TRUE,K121>0,OR(U121=\"\",U121=0)),\"Entrez le poids estimé à l'ÉTAPE 5.\",\"\")))))","v":""},null,{"$f":"IF(OR(ISBLANK(B121),ISBLANK(E121),ISBLANK(H121)),\"\",IF(AND(NOT(ISBLANK(E121)),NOT(ISBLANK(H121)),OR(E122=FALSE,H122=FALSE)),\"\",IF((AND(E122=TRUE,H122=TRUE,ISBLANK(U121),VLOOKUP(CONCATENATE(E121,\"-\",H121),'DT list'!R:S,2,FALSE)>0)),\"Poids estimé de Lenovo par unité: \"&VLOOKUP(CONCATENATE(E121,\"-\",H121),'DT list'!R:S,2,FALSE)&\"kg. Entrez dans l'étape 5 le poids estimé de votre appareil s'il diffère du poids estimé de Lenovo.\",IF((AND(E122=TRUE,H122=TRUE,ISBLANK(U121),VLOOKUP(CONCATENATE(E121,\"-\",H121),'DT list'!R:S,2,FALSE)=0)),\"Il n'y a pas de poids estimé de Lenovo par unité. Entrez dans l'ÉTAPE 5 le poids estimé de votre appareil.\",IF(AND(E122=TRUE,H122=TRUE,U121>0,VLOOKUP(CONCATENATE(E121,\"-\",H121),'DT list'!R:S,2,FALSE)=0),\"À l'ÉTAPE 5, votre poids estimé de l'appareil est  \"&U121&\" kg.\",IF(AND(E122=TRUE,H122=TRUE,U121>0,VLOOKUP(CONCATENATE(E121,\"-\",H121),'DT list'!R:S,2,FALSE)<>U121,VLOOKUP(CONCATENATE(E121,\"-\",H121),'DT list'!R:S,2,FALSE)>0),\"À l'ÉTAPE 5,  votre poids estimé de l'appareil est  \"&U121&\" kg. Le poids estimé de Lenovo était  \"&VLOOKUP(CONCATENATE(E121,\"-\",H121),'DT list'!R:S,2,FALSE)&\" kg.\",\"\"))))))","v":""}]
[null,null,null,null,{"$f":"B121=VLOOKUP(E121,'DT list'!J:P,7,FALSE)","v":{"$error":"#N/A"}},null,null,{"$f":"AND(E121=VLOOKUP(H121,'DT list'!K:Q,7,FALSE),B121=VLOOKUP(E121,'DT list'!J:P,7,FALSE))","v":{"$error":"#N/A"}}]
[null,null,null,null,{"$f":"IF(ISNA(E125),\"\",IF(E125=FALSE,\"! Sélectionnez le bon équipement.\",\"\"))","v":""},null,null,{"$f":"IF(ISNA(H125),\"\",IF(H125=FALSE,\"! Sélectionnez le bon équipement..\",\"\"))","v":""},null,null,null,null,null,null,null,null,null,null,null,null,{"$f":"IF(AND(ISNA(E125),ISNA(H125)),\"\",IF(ISNA(U124),\"\",IF(U124=\"\",\"\",IF(ISTEXT(U124),\"! Entrer un numéro.\",IF(AND(E125=TRUE,H125=TRUE,OR(K124=\"\",ISBLANK(K124),K124=0),U124>0,U124<>\"\"),\"Entrez quantité des unités à l'ÉTAPE 4.\",IF(ISNA(H125),\"\",IF(H125=FALSE,\"\",\"\")))))))","v":""}]
[16,"  --- Sélectionnez une famille d'équipement: ---",null,null,null,null,null,null,null,null,null,null,null,null,null,null,null,null,null,null,null,null,null,null,{"$f":"IF(OR(ISBLANK(B124),ISBLANK(E124),ISBLANK(H124),ISBLANK(K124)),\"\",IF(AND(E125=TRUE,H125=TRUE,K124>0,U124>0,U124<>\"\"),U124*K124,IF(AND(E125=TRUE,H125=TRUE,K124>0,OR(U124=\"\",U124=0)),\"\",\"\")))","v":""},null,{"$f":"IF(OR(ISBLANK(B124),ISBLANK(E124),ISBLANK(H124)),\"\",IF(OR(E125=FALSE,H125=FALSE),\"Sélectionnez la bonne catégorie à l'ÉTAPE 2 ou 3 et mettez à jour le poids à l'ÉTAPE 5.\",IF(AND(E125=TRUE,H125=TRUE,OR(K124=\"\",ISBLANK(K124),K124=0),U124>0,U124<>\"\"),\"Entrez quantité des unités à l'ÉTAPE 4.\",IF(AND(E125=TRUE,H125=TRUE,K124>0,U124>0,U124<>\"\"),\"\",IF(AND(E125=TRUE,H125=TRUE,K124>0,OR(U124=\"\",U124=0)),\"Entrez le poids estimé à l'ÉTAPE 5.\",\"\")))))","v":""},null,{"$f":"IF(OR(ISBLANK(B124),ISBLANK(E124),ISBLANK(H124)),\"\",IF(AND(NOT(ISBLANK(E124)),NOT(ISBLANK(H124)),OR(E125=FALSE,H125=FALSE)),\"\",IF((AND(E125=TRUE,H125=TRUE,ISBLANK(U124),VLOOKUP(CONCATENATE(E124,\"-\",H124),'DT list'!R:S,2,FALSE)>0)),\"Poids estimé de Lenovo par unité: \"&VLOOKUP(CONCATENATE(E124,\"-\",H124),'DT list'!R:S,2,FALSE)&\"kg. Entrez dans l'étape 5 le poids estimé de votre appareil s'il diffère du poids estimé de Lenovo.\",IF((AND(E125=TRUE,H125=TRUE,ISBLANK(U124),VLOOKUP(CONCATENATE(E124,\"-\",H124),'DT list'!R:S,2,FALSE)=0)),\"Il n'y a pas de poids estimé de Lenovo par unité. Entrez dans l'ÉTAPE 5 le poids estimé de votre appareil.\",IF(AND(E125=TRUE,H125=TRUE,U124>0,VLOOKUP(CONCATENATE(E124,\"-\",H124),'DT list'!R:S,2,FALSE)=0),\"À l'ÉTAPE 5, votre poids estimé de l'appareil est  \"&U124&\" kg.\",IF(AND(E125=TRUE,H125=TRUE,U124>0,VLOOKUP(CONCATENATE(E124,\"-\",H124),'DT list'!R:S,2,FALSE)<>U124,VLOOKUP(CONCATENATE(E124,\"-\",H124),'DT list'!R:S,2,FALSE)>0),\"À l'ÉTAPE 5,  votre poids estimé de l'appareil est  \"&U124&\" kg. Le poids estimé de Lenovo était  \"&VLOOKUP(CONCATENATE(E124,\"-\",H124),'DT list'!R:S,2,FALSE)&\" kg.\",\"\"))))))","v":""}]
[null,null,null,null,{"$f":"B124=VLOOKUP(E124,'DT list'!J:P,7,FALSE)","v":{"$error":"#N/A"}},null,null,{"$f":"AND(E124=VLOOKUP(H124,'DT list'!K:Q,7,FALSE),B124=VLOOKUP(E124,'DT list'!J:P,7,FALSE))","v":{"$error":"#N/A"}}]
[null,null,null,null,{"$f":"IF(ISNA(E128),\"\",IF(E128=FALSE,\"! Sélectionnez le bon équipement.\",\"\"))","v":""},null,null,{"$f":"IF(ISNA(H128),\"\",IF(H128=FALSE,\"! Sélectionnez le bon équipement..\",\"\"))","v":""},null,null,null,null,null,null,null,null,null,null,null,null,{"$f":"IF(AND(ISNA(E128),ISNA(H128)),\"\",IF(ISNA(U127),\"\",IF(U127=\"\",\"\",IF(ISTEXT(U127),\"! Entrer un numéro.\",IF(AND(E128=TRUE,H128=TRUE,OR(K127=\"\",ISBLANK(K127),K127=0),U127>0,U127<>\"\"),\"Entrez quantité des unités à l'ÉTAPE 4.\",IF(ISNA(H128),\"\",IF(H128=FALSE,\"\",\"\")))))))","v":""}]
[17,"  --- Sélectionnez une famille d'équipement: ---",null,null,null,null,null,null,null,null,null,null,null,null,null,null,null,null,null,null,null,null,null,null,{"$f":"IF(OR(ISBLANK(B127),ISBLANK(E127),ISBLANK(H127),ISBLANK(K127)),\"\",IF(AND(E128=TRUE,H128=TRUE,K127>0,U127>0,U127<>\"\"),U127*K127,IF(AND(E128=TRUE,H128=TRUE,K127>0,OR(U127=\"\",U127=0)),\"\",\"\")))","v":""},null,{"$f":"IF(OR(ISBLANK(B127),ISBLANK(E127),ISBLANK(H127)),\"\",IF(OR(E128=FALSE,H128=FALSE),\"Sélectionnez la bonne catégorie à l'ÉTAPE 2 ou 3 et mettez à jour le poids à l'ÉTAPE 5.\",IF(AND(E128=TRUE,H128=TRUE,OR(K127=\"\",ISBLANK(K127),K127=0),U127>0,U127<>\"\"),\"Entrez quantité des unités à l'ÉTAPE 4.\",IF(AND(E128=TRUE,H128=TRUE,K127>0,U127>0,U127<>\"\"),\"\",IF(AND(E128=TRUE,H128=TRUE,K127>0,OR(U127=\"\",U127=0)),\"Entrez le poids estimé à l'ÉTAPE 5.\",\"\")))))","v":""},null,{"$f":"IF(OR(ISBLANK(B127),ISBLANK(E127),ISBLANK(H127)),\"\",IF(AND(NOT(ISBLANK(E127)),NOT(ISBLANK(H127)),OR(E128=FALSE,H128=FALSE)),\"\",IF((AND(E128=TRUE,H128=TRUE,ISBLANK(U127),VLOOKUP(CONCATENATE(E127,\"-\",H127),'DT list'!R:S,2,FALSE)>0)),\"Poids estimé de Lenovo par unité: \"&VLOOKUP(CONCATENATE(E127,\"-\",H127),'DT list'!R:S,2,FALSE)&\"kg. Entrez dans l'étape 5 le poids estimé de votre appareil s'il diffère du poids estimé de Lenovo.\",IF((AND(E128=TRUE,H128=TRUE,ISBLANK(U127),VLOOKUP(CONCATENATE(E127,\"-\",H127),'DT list'!R:S,2,FALSE)=0)),\"Il n'y a pas de poids estimé de Lenovo par unité. Entrez dans l'ÉTAPE 5 le poids estimé de votre appareil.\",IF(AND(E128=TRUE,H128=TRUE,U127>0,VLOOKUP(CONCATENATE(E127,\"-\",H127),'DT list'!R:S,2,FALSE)=0),\"À l'ÉTAPE 5, votre poids estimé de l'appareil est  \"&U127&\" kg.\",IF(AND(E128=TRUE,H128=TRUE,U127>0,VLOOKUP(CONCATENATE(E127,\"-\",H127),'DT list'!R:S,2,FALSE)<>U127,VLOOKUP(CONCATENATE(E127,\"-\",H127),'DT list'!R:S,2,FALSE)>0),\"À l'ÉTAPE 5,  votre poids estimé de l'appareil est  \"&U127&\" kg. Le poids estimé de Lenovo était  \"&VLOOKUP(CONCATENATE(E127,\"-\",H127),'DT list'!R:S,2,FALSE)&\" kg.\",\"\"))))))","v":""}]
[null,null,null,null,{"$f":"B127=VLOOKUP(E127,'DT list'!J:P,7,FALSE)","v":{"$error":"#N/A"}},null,null,{"$f":"AND(E127=VLOOKUP(H127,'DT list'!K:Q,7,FALSE),B127=VLOOKUP(E127,'DT list'!J:P,7,FALSE))","v":{"$error":"#N/A"}}]
[null,null,null,null,{"$f":"IF(ISNA(E131),\"\",IF(E131=FALSE,\"! Sélectionnez le bon équipement.\",\"\"))","v":""},null,null,{"$f":"IF(ISNA(H131),\"\",IF(H131=FALSE,\"! Sélectionnez le bon équipement..\",\"\"))","v":""},null,null,null,null,null,null,null,null,null,null,null,null,{"$f":"IF(AND(ISNA(E131),ISNA(H131)),\"\",IF(ISNA(U130),\"\",IF(U130=\"\",\"\",IF(ISTEXT(U130),\"! Entrer un numéro.\",IF(AND(E131=TRUE,H131=TRUE,OR(K130=\"\",ISBLANK(K130),K130=0),U130>0,U130<>\"\"),\"Entrez quantité des unités à l'ÉTAPE 4.\",IF(ISNA(H131),\"\",IF(H131=FALSE,\"\",\"\")))))))","v":""}]
[18,"  --- Sélectionnez une famille d'équipement: ---",null,null,null,null,null,null,null,null,null,null,null,null,null,null,null,null,null,null,null,null,null,null,{"$f":"IF(OR(ISBLANK(B130),ISBLANK(E130),ISBLANK(H130),ISBLANK(K130)),\"\",IF(AND(E131=TRUE,H131=TRUE,K130>0,U130>0,U130<>\"\"),U130*K130,IF(AND(E131=TRUE,H131=TRUE,K130>0,OR(U130=\"\",U130=0)),\"\",\"\")))","v":""},null,{"$f":"IF(OR(ISBLANK(B130),ISBLANK(E130),ISBLANK(H130)),\"\",IF(OR(E131=FALSE,H131=FALSE),\"Sélectionnez la bonne catégorie à l'ÉTAPE 2 ou 3 et mettez à jour le poids à l'ÉTAPE 5.\",IF(AND(E131=TRUE,H131=TRUE,OR(K130=\"\",ISBLANK(K130),K130=0),U130>0,U130<>\"\"),\"Entrez quantité des unités à l'ÉTAPE 4.\",IF(AND(E131=TRUE,H131=TRUE,K130>0,U130>0,U130<>\"\"),\"\",IF(AND(E131=TRUE,H131=TRUE,K130>0,OR(U130=\"\",U130=0)),\"Entrez le poids estimé à l'ÉTAPE 5.\",\"\")))))","v":""},null,{"$f":"IF(OR(ISBLANK(B130),ISBLANK(E130),ISBLANK(H130)),\"\",IF(AND(NOT(ISBLANK(E130)),NOT(ISBLANK(H130)),OR(E131=FALSE,H131=FALSE)),\"\",IF((AND(E131=TRUE,H131=TRUE,ISBLANK(U130),VLOOKUP(CONCATENATE(E130,\"-\",H130),'DT list'!R:S,2,FALSE)>0)),\"Poids estimé de Lenovo par unité: \"&VLOOKUP(CONCATENATE(E130,\"-\",H130),'DT list'!R:S,2,FALSE)&\"kg. Entrez dans l'étape 5 le poids estimé de votre appareil s'il diffère du poids estimé de Lenovo.\",IF((AND(E131=TRUE,H131=TRUE,ISBLANK(U130),VLOOKUP(CONCATENATE(E130,\"-\",H130),'DT list'!R:S,2,FALSE)=0)),\"Il n'y a pas de poids estimé de Lenovo par unité. Entrez dans l'ÉTAPE 5 le poids estimé de votre appareil.\",IF(AND(E131=TRUE,H131=TRUE,U130>0,VLOOKUP(CONCATENATE(E130,\"-\",H130),'DT list'!R:S,2,FALSE)=0),\"À l'ÉTAPE 5, votre poids estimé de l'appareil est  \"&U130&\" kg.\",IF(AND(E131=TRUE,H131=TRUE,U130>0,VLOOKUP(CONCATENATE(E130,\"-\",H130),'DT list'!R:S,2,FALSE)<>U130,VLOOKUP(CONCATENATE(E130,\"-\",H130),'DT list'!R:S,2,FALSE)>0),\"À l'ÉTAPE 5,  votre poids estimé de l'appareil est  \"&U130&\" kg. Le poids estimé de Lenovo était  \"&VLOOKUP(CONCATENATE(E130,\"-\",H130),'DT list'!R:S,2,FALSE)&\" kg.\",\"\"))))))","v":""}]
[null,null,null,null,{"$f":"B130=VLOOKUP(E130,'DT list'!J:P,7,FALSE)","v":{"$error":"#N/A"}},null,null,{"$f":"AND(E130=VLOOKUP(H130,'DT list'!K:Q,7,FALSE),B130=VLOOKUP(E130,'DT list'!J:P,7,FALSE))","v":{"$error":"#N/A"}}]
[null,null,null,null,{"$f":"IF(ISNA(E134),\"\",IF(E134=FALSE,\"! Sélectionnez le bon équipement.\",\"\"))","v":""},null,null,{"$f":"IF(ISNA(H134),\"\",IF(H134=FALSE,\"! Sélectionnez le bon équipement..\",\"\"))","v":""},null,null,null,null,null,null,null,null,null,null,null,null,{"$f":"IF(AND(ISNA(E134),ISNA(H134)),\"\",IF(ISNA(U133),\"\",IF(U133=\"\",\"\",IF(ISTEXT(U133),\"! Entrer un numéro.\",IF(AND(E134=TRUE,H134=TRUE,OR(K133=\"\",ISBLANK(K133),K133=0),U133>0,U133<>\"\"),\"Entrez quantité des unités à l'ÉTAPE 4.\",IF(ISNA(H134),\"\",IF(H134=FALSE,\"\",\"\")))))))","v":""}]
[19,"  --- Sélectionnez une famille d'équipement: ---",null,null,null,null,null,null,null,null,null,null,null,null,null,null,null,null,null,null,null,null,null,null,{"$f":"IF(OR(ISBLANK(B133),ISBLANK(E133),ISBLANK(H133),ISBLANK(K133)),\"\",IF(AND(E134=TRUE,H134=TRUE,K133>0,U133>0,U133<>\"\"),U133*K133,IF(AND(E134=TRUE,H134=TRUE,K133>0,OR(U133=\"\",U133=0)),\"\",\"\")))","v":""},null,{"$f":"IF(OR(ISBLANK(B133),ISBLANK(E133),ISBLANK(H133)),\"\",IF(OR(E134=FALSE,H134=FALSE),\"Sélectionnez la bonne catégorie à l'ÉTAPE 2 ou 3 et mettez à jour le poids à l'ÉTAPE 5.\",IF(AND(E134=TRUE,H134=TRUE,OR(K133=\"\",ISBLANK(K133),K133=0),U133>0,U133<>\"\"),\"Entrez quantité des unités à l'ÉTAPE 4.\",IF(AND(E134=TRUE,H134=TRUE,K133>0,U133>0,U133<>\"\"),\"\",IF(AND(E134=TRUE,H134=TRUE,K133>0,OR(U133=\"\",U133=0)),\"Entrez le poids estimé à l'ÉTAPE 5.\",\"\")))))","v":""},null,{"$f":"IF(OR(ISBLANK(B133),ISBLANK(E133),ISBLANK(H133)),\"\",IF(AND(NOT(ISBLANK(E133)),NOT(ISBLANK(H133)),OR(E134=FALSE,H134=FALSE)),\"\",IF((AND(E134=TRUE,H134=TRUE,ISBLANK(U133),VLOOKUP(CONCATENATE(E133,\"-\",H133),'DT list'!R:S,2,FALSE)>0)),\"Poids estimé de Lenovo par unité: \"&VLOOKUP(CONCATENATE(E133,\"-\",H133),'DT list'!R:S,2,FALSE)&\"kg. Entrez dans l'étape 5 le poids estimé de votre appareil s'il diffère du poids estimé de Lenovo.\",IF((AND(E134=TRUE,H134=TRUE,ISBLANK(U133),VLOOKUP(CONCATENATE(E133,\"-\",H133),'DT list'!R:S,2,FALSE)=0)),\"Il n'y a pas de poids estimé de Lenovo par unité. Entrez dans l'ÉTAPE 5 le poids estimé de votre appareil.\",IF(AND(E134=TRUE,H134=TRUE,U133>0,VLOOKUP(CONCATENATE(E133,\"-\",H133),'DT list'!R:S,2,FALSE)=0),\"À l'ÉTAPE 5, votre poids estimé de l'appareil est  \"&U133&\" kg.\",IF(AND(E134=TRUE,H134=TRUE,U133>0,VLOOKUP(CONCATENATE(E133,\"-\",H133),'DT list'!R:S,2,FALSE)<>U133,VLOOKUP(CONCATENATE(E133,\"-\",H133),'DT list'!R:S,2,FALSE)>0),\"À l'ÉTAPE 5,  votre poids estimé de l'appareil est  \"&U133&\" kg. Le poids estimé de Lenovo était  \"&VLOOKUP(CONCATENATE(E133,\"-\",H133),'DT list'!R:S,2,FALSE)&\" kg.\",\"\"))))))","v":""}]
[null,null,null,null,{"$f":"B133=VLOOKUP(E133,'DT list'!J:P,7,FALSE)","v":{"$error":"#N/A"}},null,null,{"$f":"AND(E133=VLOOKUP(H133,'DT list'!K:Q,7,FALSE),B133=VLOOKUP(E133,'DT list'!J:P,7,FALSE))","v":{"$error":"#N/A"}}]
[null,null,null,null,{"$f":"IF(ISNA(E137),\"\",IF(E137=FALSE,\"! Sélectionnez le bon équipement.\",\"\"))","v":""},null,null,{"$f":"IF(ISNA(H137),\"\",IF(H137=FALSE,\"! Sélectionnez le bon équipement..\",\"\"))","v":""},null,null,null,null,null,null,null,null,null,null,null,null,{"$f":"IF(AND(ISNA(E137),ISNA(H137)),\"\",IF(ISNA(U136),\"\",IF(U136=\"\",\"\",IF(ISTEXT(U136),\"! Entrer un numéro.\",IF(AND(E137=TRUE,H137=TRUE,OR(K136=\"\",ISBLANK(K136),K136=0),U136>0,U136<>\"\"),\"Entrez quantité des unités à l'ÉTAPE 4.\",IF(ISNA(H137),\"\",IF(H137=FALSE,\"\",\"\")))))))","v":""}]
[20,"  --- Sélectionnez une famille d'équipement: ---",null,null,null,null,null,null,null,null,null,null,null,null,null,null,null,null,null,null,null,null,null,null,{"$f":"IF(OR(ISBLANK(B136),ISBLANK(E136),ISBLANK(H136),ISBLANK(K136)),\"\",IF(AND(E137=TRUE,H137=TRUE,K136>0,U136>0,U136<>\"\"),U136*K136,IF(AND(E137=TRUE,H137=TRUE,K136>0,OR(U136=\"\",U136=0)),\"\",\"\")))","v":""},null,{"$f":"IF(OR(ISBLANK(B136),ISBLANK(E136),ISBLANK(H136)),\"\",IF(OR(E137=FALSE,H137=FALSE),\"Sélectionnez la bonne catégorie à l'ÉTAPE 2 ou 3 et mettez à jour le poids à l'ÉTAPE 5.\",IF(AND(E137=TRUE,H137=TRUE,OR(K136=\"\",ISBLANK(K136),K136=0),U136>0,U136<>\"\"),\"Entrez quantité des unités à l'ÉTAPE 4.\",IF(AND(E137=TRUE,H137=TRUE,K136>0,U136>0,U136<>\"\"),\"\",IF(AND(E137=TRUE,H137=TRUE,K136>0,OR(U136=\"\",U136=0)),\"Entrez le poids estimé à l'ÉTAPE 5.\",\"\")))))","v":""},null,{"$f":"IF(OR(ISBLANK(B136),ISBLANK(E136),ISBLANK(H136)),\"\",IF(AND(NOT(ISBLANK(E136)),NOT(ISBLANK(H136)),OR(E137=FALSE,H137=FALSE)),\"\",IF((AND(E137=TRUE,H137=TRUE,ISBLANK(U136),VLOOKUP(CONCATENATE(E136,\"-\",H136),'DT list'!R:S,2,FALSE)>0)),\"Poids estimé de Lenovo par unité: \"&VLOOKUP(CONCATENATE(E136,\"-\",H136),'DT list'!R:S,2,FALSE)&\"kg. Entrez dans l'étape 5 le poids estimé de votre appareil s'il diffère du poids estimé de Lenovo.\",IF((AND(E137=TRUE,H137=TRUE,ISBLANK(U136),VLOOKUP(CONCATENATE(E136,\"-\",H136),'DT list'!R:S,2,FALSE)=0)),\"Il n'y a pas de poids estimé de Lenovo par unité. Entrez dans l'ÉTAPE 5 le poids estimé de votre appareil.\",IF(AND(E137=TRUE,H137=TRUE,U136>0,VLOOKUP(CONCATENATE(E136,\"-\",H136),'DT list'!R:S,2,FALSE)=0),\"À l'ÉTAPE 5, votre poids estimé de l'appareil est  \"&U136&\" kg.\",IF(AND(E137=TRUE,H137=TRUE,U136>0,VLOOKUP(CONCATENATE(E136,\"-\",H136),'DT list'!R:S,2,FALSE)<>U136,VLOOKUP(CONCATENATE(E136,\"-\",H136),'DT list'!R:S,2,FALSE)>0),\"À l'ÉTAPE 5,  votre poids estimé de l'appareil est  \"&U136&\" kg. Le poids estimé de Lenovo était  \"&VLOOKUP(CONCATENATE(E136,\"-\",H136),'DT list'!R:S,2,FALSE)&\" kg.\",\"\"))))))","v":""}]
[null,null,null,null,{"$f":"B136=VLOOKUP(E136,'DT list'!J:P,7,FALSE)","v":{"$error":"#N/A"}},null,null,{"$f":"AND(E136=VLOOKUP(H136,'DT list'!K:Q,7,FALSE),B136=VLOOKUP(E136,'DT list'!J:P,7,FALSE))","v":{"$error":"#N/A"}}]
[]
[null,null,null,null,null,null,null,null,null,null,null,null,null,null,null,null,null,null,null,null,"Poids total de toutes les unités (kg)",null,null,null,{"$f":"SUM(Y79:Y136)","v":0}]
[]
[null,"Note"]

{"sheet":"Conditions générales du program","index":2,"n_rows":43,"n_cols":2,"rows_kept":43,"cut":false,"hidden":false,"merged":[]}
[]
[]
[]
[null,"Conditions générales du programme de recyclage"]
[null,"(Reprise individuelle DEEE professionnels en France)"]
[]
[null,"Lorsque le client soumet une demande de reprise dans le cadre du programme de recyclage Lenovo (ci-après dénommé «programme»), le client accepte les conditions générales suivantes:"]
[]
["1.","DEEE soumis au programme"]
["1.1."," Le programme est destiné aux produits de matériel informatique que le Client jette, a l'intention ou doit jeter. Sauf accord contraire, tout le matériel informatique doit être des produits de marque Lenovo. Sauf accord contraire, le programme s'applique uniquement au matériel informatique mis sur le marché après le 13 août 2005 (dits DEEE non historiques)."]
["1.2.","Les produits ne doivent pas être contaminés par une substance qui ne faisait pas partie du produit dans son état d'origine / neuf ou qui pourrait autrement être associée à des environnements normaux dans lesquels le produit est utilisé."]
["1.3.","Toutes les piles et accumulateurs amovibles doivent être retirés du produit. Tous les supports amovibles (par exemple: les cartes PC ou les CD) doivent être retirés du produit. Les déchets contaminés ou autres déchets ne sont pas soumis à ce programme et ne seront pas acceptés."]
[]
[2,"Participants"]
["2.1.","Le programme est ouvert pour:"]
[null,"-       Les clients commerciaux de Lenovo,"]
[null,"-       Les partenaires de service de Lenovo et"]
[null,"-       Les partenaires commerciaux certifiés de Lenovo,"]
[null,"tous désignés comme \"client (s)\" dans ces conditions générales."]
[]
["2.2.","En soumettant une demande d’enlèvement, le client accepte de céder tous les droits de la propriété, la récupération, le recyclage et l'élimination écologique des produits libres et dégagés de tout engagement actuels ou futurs, et garantie que la propriété du produit est clair au moment de l’enlèvement."]
[]
[3,"Instructions d'emballage"]
["3.1.","Avant tout enlèvement, le client s'assure que tous les produits sont emballés conformément aux conseils d'emballage suivantes, y compris la mise en boîte, l'étiquetage et la palettisation. "]
["3.2.","Le client est responsable de la production des documents d'expédition applicables, lorsque cela est nécessaire. Seuls les produits qui sont emballés conformément au cela peuvent être acceptés."]
[]
["4.","Effacement des données"]
["4.1.","Le client est seul responsable de l'effacement, de la suppression ou du retrait de toute donnée sensible contenue dans ou sur les produits."]
[]
[5,"Stockage des données"]
["5.1.","Le client est seul responsable du stockage de toutes les données et de tous les logiciels en toute sécurité et de leur sauvegarde en fonction des besoins. Après l'enlèvement, aucun matériel ne sera retourné. Lenovo n'est pas responsable des produits jetés par erreur."]
[]
["6.","Compensation de toutes pertes en raison d'une utilisation abusive de ce programme"]
["6.1.","En cas de violation coupable de ces conditions générales et d'informations incorrectes ou trompeuses (telles qu'un poids erroné) fournies par le client, ce dernier est tenu d'indemniser Lenovo de tous les coûts supplémentaires (y compris les frais administratifs éventuels) et de toutes les réclamations pouvant résulter d'une telle utilisation abusive délibérée du programme."]
[null,"Le client sera notamment responsable de tous les frais encourus pour des produits incorrects, un emballage incorrect ou des données erronées ou incomplètes."]
[]
["7.","Responsabilité en cas de perte de produits"]
["7.1.","Lenovo n'est pas responsable des produits jetés par erreur, ces produits ne peuvent pas être retournés au client."]
[]
["8.","Modalités de la reprise"]
["8.1.","La date d'enlèvement \"préférée\" constitue la date d'enlèvement la plus proche possible. Lenovo ne garantit pas que l'enlèvement sera effectué à la date \"préférée\" conformément à la demande d'enlèvement. "]
["8.2.","Le partenaire de recyclage de Lenovo contactera directement le client pour organiser l'enlèvement. "]
["8.3.","Le client est seul responsable d'être joignable le jour de la reprise."]

{"sheet":"FAQ","index":3,"n_rows":59,"n_cols":2,"rows_kept":59,"cut":false,"hidden":false,"merged":[]}
[]
[]
[]
[null,"Foire aux questions (FAQ)"]
[null,"(Reprise individuelle “DEEE pro” en France)"]
[]
["1.","Quelles demandes de recyclage seront acceptées?"]
["1.1.","Les demandes de collecte et de recyclage seront acceptées si vous êtes  \n-Client commercial Lenovo,\n- Partenaire de service Lenovo, ou\n- Lenovo Business Partner (certifié)."]
[]
[null,"Le programme de recyclage Lenovo n'accepte que le matériel informatique - les autres déchets et / ou matériaux ne seront pas acceptés."]
[]
["2.","Où puis-je trouver des conseils sur la manière de remplir le formulaire?"]
["2.1","Veuillez suivre les instructions étape par étape disponibles dans le formulaire de demande. Tous les champs qui nécessitent une entrée du client ont une boîte d'information avec un texte d'instruction qui disparaît."]
[]
["3.","La collecte est-elle gratuite ? "]
["3.1.","La collecte sera gratuite si :"]
[null,"-       le matériel est un produit de marque Lenovo et "]
[null,"-       le matériel est un DEEE non historique, ce qui signifie qu'il a été mis sur le marché après le 13 août 2005, ou"]
[null,"-       le matériel a été remplacé par un nouveau produit Lenovo du même type ou de la même fonction."]
[]
[null,"Remarque : pour déterminer si le matériel est un DEEE historique ou non, il faut tenir compte du symbole de la poubelle barrée : "]
[null,"                                                                                                                  "]
[null,"(seul le matériel mis sur le marché après le 13 août 2005 porte ce symbole (voir figure)). "]
[]
["4.","Comment puis-je savoir si ma demande a été acceptée ?"]
["4.1.","Vous recevrez un courrier électronique de confirmation de la part de Lenovo."]
[]
["5.","J'ai des problèmes avec le format - comment puis-je obtenir de l'aide ?"]
["5.1.","Veuillez nous contacter : adresse électronique : recycling@lenovo.com "]
[]
["6.","Comment puis-je annuler une demande d'enlèvement ?"]
["6.1.","Une fois soumise, votre demande d'enlèvement sera traitée, confirmée et une date d'enlèvement sera fixée. Vous pouvez annuler votre demande d'enlèvement jusqu'à trois jours ouvrables (du lundi au vendredi) avant la date d'enlèvement prévue en envoyant une annulation à l'adresse électronique suivante : recycling@lenovo.com"]
["6.2.","L'annulation doit contenir au moins les informations suivantes :"]
[null,"-            Numéro de confirmation de la commande"]
[null,"-            Date prévue de la collection"]
[null,"-            Nom de la société"]
[null,"-            Personne à contacter "]
[null,"-            Numéro de téléphone"]
[]
[null,"Exemple :"]
[null,"Jour de l’enlèvement prévu : Vendredi 25 mai"]
[null,"Annulation au plus tard le mardi 22 mai (au moins 3 jours ouvrables avant le jour de l’enlèvement prévu)"]
[]
[null,"IMPORTANT : Une annulation n'est possible que pour la demande de l’enlèvement total - une annulation partielle seulement pour les DEEE individuels n'est pas possible."]
[]
["7.","Puis-je également retourner d'autres marques, des DEEE historiques ou du matériel qui n'a pas été remplacé par un nouveau produit de Lenovo du même type ou de la même fonction ?"]
["7.1.","Si vous souhaitez renvoyer du matériel qui : "]
[null,"-            a été mis sur le marché avant le 13 août 2005 (DEEE historique), et"]
[null,"-            n'a pas été remplacé par un nouveau produit de Lenovo du même type ou de la même fonction, ou"]
[null,"-            n'est pas un produit de la marque Lenovo*,"]
[]
[null,"Veuillez utiliser la catégorie \"DEEE historiques - antérieurs au 13 août 2005\" dans le formulaire de recyclage pour de telles demandes. Chaque demande sera examinée et évaluée individuellement et Lenovo se réserve le droit de refuser ou d'accepter cette demande."]
[]
[null,"* Veuillez noter que les demandes concernant des produits qui ne sont pas des produits de marque Lenovo ne peuvent être soumises que si vous les remplacez par un produit de marque Lenovo ou si vous les renvoyez au moins avec un produit de marque Lenovo.  Dans les deux cas, votre demande sera examinée et évaluée individuellement et Lenovo se réserve le droit de refuser ou d'accepter cette demande. Veuillez être conscient des conséquences suite à des informations incorrectes ou trompeuses dans nos conditions générales de ce programme."]
[]
["8.","Quelles sont mes obligations concernant l'emballage et le stockage des données ?"]
["8.1.","Vous devez vous assurer que le matériel que vous souhaitez recycler est emballé de manière sûre afin d'éviter tout dommage pendant le transport. Veuillez suivre nos conseils d'emballage pour vous assurer que le matériel est emballé de manière sûre."]
["8.2.","Assurez-vous que toutes les piles amovibles sont retirées pour être collectées et recyclées séparément conformément aux exigences nationales correspondantes et que tous les supports amovibles, tels que les CD ou les cartes PC, ont également été retirés."]
["8.3.","En outre, vous devez vous assurer que toutes les données et tous les logiciels sont sécurisés et sauvegardés selon les besoins - Lenovo ne retournera aucun matériel après l’enlèvement."]

{"sheet":"Instructions d’emballage","index":4,"n_rows":23,"n_cols":2,"rows_kept":23,"cut":false,"hidden":false,"merged":[]}
[]
[]
[]
[null,"Instructions d’emballage"]
[null,"(Reprise individuelle DEEE professionnels (“DEEE pro”) en France)"]
[]
[null,"Quelles sont les exigences / recommandations de Lenovo pour la collecte gratuite de DEEE pro?"]
[]
["1.","Pour contribuer à un processus respectueux de l'environnement, Lenovo demande à tous les participants au programme de recyclage de ne demander que des collectes pour les DEEE qui comprennent un poids DEEE total minimum de 500 kg afin de rendre les reprises aussi efficaces que possible."]
[]
["2.","Tous les DEEE pro qui doivent être traités dans le cadre de ce programme de recyclage doivent être emballés conformément aux instructions suivantes:"]
["2.1.","Les batteries amovibles doivent être retirées, collectées et traitées séparément."]
["2.2.","Les supports amovibles (par exemple les CD, les cartes PC) doivent être retirés."]
["2.3.","Les DEEE pro sont emballés sur des palettes filmées de 80 x 120 cm, sur roulettes ou dans des caisses grillagées."]
["2.4.","Veuillez retourner uniquement le matériel nu (sans emballage)."]
["2.5.","La collecte aura lieu uniquement à quai ou au rez-de-chaussée."]
["2.6.","Terrain accessible sans obstacle à moins de 50 m du véhicule à charger."]
[]
[null,"Votre équipement DEEE doit être prêt pour la collecte comme indiqué ci-dessus."]
[]
[null,"En cas d'exigences spécifiques de collecte (par ex. grue, plaques de fer, emballage, accès limité ...), veuillez saisir des informations détaillées dans le champ \"Commentaires\" de la demande de collecte de recyclage DEEE."]
[]
[null,"Votre demande sera examinée et évaluée individuellement et Lenovo se réserve le droit de refuser ou d'accepter cette demande. Veuillez noter que la collecte peut être soumis à des frais. Si tel est le cas, Lenovo vous en informera avant la confirmation de la participation au programme."]

{"sheet":"DT list","index":5,"n_rows":294,"n_cols":56,"rows_kept":294,"cut":false,"hidden":true,"merged":[]}
["  --- Sélectionnez une famille d'équipement: ---","Sélectionnez l'équipement:","Sélectionner le genre:","Select an equipment family:","Select equipment:","Select equipment type:","Estimated nt Weight","Enter  you estimated weight","Family","Category French","Subcategory French","Subcategory FRENCH","weight","Option value","web code","Family French","Category French","Concatenate","weight final (choose the smaller weight)","Weight LENOVO averages","weight Ecologic","subcategory ENGLISH","segment",null,null,null,"Category","subcategory ENGLISH","Weight LENOVO averages","Family French","Category French","Subcategory French","1cc  family","1cc - category","1 cc - subcategory","Exact family","Exact category","exact subcat","Concatenate","weight final (choose the smaller weight)","Nr",null," --- Sélectionnez ---"," --- Sélectionnez ---"," --- Sélectionnez l'équipement ---"," ---- Sélectionner une date ------","Weeknum",null,null,null," --- Sélectionner une quantité ---"," --- Sélectionnez ---"," --- Sélectionnez ---",null,null," ---- Sélectionnez l'équipement ----"]
["Informatique, bureautique et telecoms","Informatique, bureautique et telecoms","Ordinateurs, UC","Informatique, bureautique et telecoms","Ordinateurs, UC","UC de bureau",10,null,"IT, office and telecoms equipment","Ordinateurs, UC","UC de bureau","UC de bureau","10","21096","<option value=\"21096\" data-poids=\"10\" data-item=\"93011e81eeef0ff91434ddca21172f85\" >UC de bureau</option>","Informatique, bureautique et telecoms","Ordinateurs, UC","Ordinateurs, UC-UC de bureau",10,13.95,"10","Office Desktops/Workstations",null,null,null,null,"Computers, PC","Office Desktops/Workstations",null,"Informatique, bureautique et telecoms","Ordinateurs, UC","UC de bureau","IT, office and telecoms equipment","Computers, PC","Office Desktops/Workstations",true,true,true,"IT, office and telecoms equipment-Computers, PC-Office Desktops/Workstations",10,1,null,"Matin","Oui","Ecrans cathodiques CRT - Autres CRT",{"$f":"TODAY()+11","v":"2020-12-18"},{"$f":"WEEKDAY(AT2,2)","v":5},{"$f":"IF(AU2=1,\"Lundi\",IF(AU2=2,\"Mardi\",IF(AU2=3,\"Mercredi\",IF(AU2=4,\"Jeudi\",IF(AU2=5,\"Vendredi\",IF(AU2=6,\"Samedi - pas de collecte possible\",IF(AU2=7,\"Dimanche  - pas de collecte possible\",\"\")))))))","v":"Vendredi"},null,null,"Aucune","Oui","Quai / RDC",null,null,"Affichage et présentation - Tableau LCD"]
["Infra Impression, réseaux et monétique","Informatique, bureautique et telecoms","Cartouches et toners","Informatique, bureautique et telecoms","Ordinateurs, UC","Autres UC",null,null,"IT, office and telecoms equipment","Ordinateurs, UC","Autres UC","Autres UC","0","21097","<option value=\"21097\" data-poids=\"0\" data-item=\"93011e81eeef0ff91434ddca21172f85\" >Autres UC</option>","Informatique, bureautique et telecoms","Ordinateurs, UC","Ordinateurs, UC-Autres UC",0,null,"0","Other Desktops",null,null,null,null,"Computers, PC","Other Desktops",null,"Informatique, bureautique et telecoms","Ordinateurs, UC","Autres UC","IT, office and telecoms equipment","Computers, PC","Other Desktops",true,true,true,"IT, office and telecoms equipment-Computers, PC-Other Desktops",0,1,null,"Après-midi","Non","Ecrans cathodiques CRT - Gros Ecran TV",{"$f":"AT2+1","v":"2020-12-19"},{"$f":"WEEKDAY(AT3,2)","v":6},{"$f":"IF(AU3=1,\"Lundi\",IF(AU3=2,\"Mardi\",IF(AU3=3,\"Mercredi\",IF(AU3=4,\"Jeudi\",IF(AU3=5,\"Vendredi\",IF(AU3=6,\"Samedi - pas de collecte possible\",IF(AU3=7,\"Dimanche  - pas de collecte possible\",\"\")))))))","v":"Samedi - pas de collecte possible"},null,null,1,"Non","Etape 1",null,null,"Appareils électriques en mélange - Appareils électriques en mélange"]
["Equipements de Culture Loisirs et Sports","Informatique, bureautique et telecoms","Périphériques audio/video","Informatique, bureautique et telecoms","Ordinateurs, UC","Client léger sans écran",3.78,null,"IT, office and telecoms equipment","Ordinateurs, UC","Client léger sans écran","Client léger sans écran","6","21098","<option value=\"21098\" data-poids=\"6\" data-item=\"93011e81eeef0ff91434ddca21172f85\" >Client léger sans écran</option>","Informatique, bureautique et telecoms","Ordinateurs, UC","Ordinateurs, UC-Client léger sans écran",3.78,3.78,"6","Thin client without screen",null,null,null,null,"Computers, PC","Thin client without screen",null,"Informatique, bureautique et telecoms","Ordinateurs, UC","Client léger sans écran","IT, office and telecoms equipment","Computers, PC","Thin client without screen",true,true,true,"IT, office and telecoms equipment-Computers, PC-Thin client without screen",3.78,1,null,null,null,"Ecrans plats TFT - Ecran TV et plasma",{"$f":"AT3+1","v":"2020-12-20"},7,"Dimanche  - pas de collecte possible",null,null,2,null,"Etape 2",null,null,"Audio - Amplificateurs"]
["Piles & Accumulateurs","Informatique, bureautique et telecoms","Téléphonie filaire","Informatique, bureautique et telecoms","Cartouches et toners","Cartouches",0.32,null,"IT, office and telecoms equipment","Cartouches et toners","Cartouches","Cartouches","0","21331","<option value=\"21331\" data-poids=\"0\" data-item=\"f40c9eae8b0f84fe9b4b8163ee51c9b3\" >Cartouches</option>","Informatique, bureautique et telecoms","Cartouches et toners","Cartouches et toners-Cartouches",0.32,0.31722865412445733,"0","Cartridges ",null,null,null,null,"Cartridges and toners","Cartridges ",null,"Informatique, bureautique et telecoms","Cartouches et toners","Cartouches","IT, office and telecoms equipment","Cartridges and toners","Cartridges ",true,true,true,"IT, office and telecoms equipment-Cartridges and toners-Cartridges ",0.32,1,null,null,null,"Equipements réseaux - PABX","2020-12-21",1,"Lundi",null,null,3,null,"Etape 3",null,null,"Audio - Baladeurs audio et MP3"]
["Métiers de bouche et alimentaire","Informatique, bureautique et telecoms","Téléphones portables","Informatique, bureautique et telecoms","Cartouches et toners","Toners",null,null,"IT, office and telecoms equipment","Cartouches et toners","Toners","Toners","0","38085","<option value=\"38085\" data-poids=\"0\" data-item=\"f40c9eae8b0f84fe9b4b8163ee51c9b3\" >Toners</option>","Informatique, bureautique et telecoms","Cartouches et toners","Cartouches et toners-Toners",0,null,"0","Toners",null,null,null,null,"Cartridges and toners","Toners",null,"Informatique, bureautique et telecoms","Cartouches et toners","Toners","IT, office and telecoms equipment","Cartridges and toners","Toners",true,true,true,"IT, office and telecoms equipment-Cartridges and toners-Toners",0,1,null,null,null,"Equipements réseaux - Robots de stockage/archivage","2020-12-22",2,"Mardi",null,null,4,null,"Etape 4",null,null,"Audio - Convertisseurs audio-video"]
["Entretiens et soins","Informatique, bureautique et telecoms","Pieces détachées informatique","Informatique, bureautique et telecoms","Périphériques audio/video","Carte Electronique",null,null,"IT, office and telecoms equipment","Périphériques audio/video","Carte Electronique","Carte Electronique","0","21108","<option value=\"21108\" data-poids=\"0\" data-item=\"118b4cda4d0eca39e76d315732cafd7f\" >Carte Electronique</option>","Informatique, bureautique et telecoms","Périphériques audio/video","Périphériques audio/video-Carte Electronique",0,null,"0","Expansion Card",null,null,null,null,"Audio / video devices","Expansion Card",null,"Informatique, bureautique et telecoms","Périphériques audio/video","Carte Electronique","IT, office and telecoms equipment","Audio / video devices","Expansion Card",true,true,true,"IT, office and telecoms equipment-Audio / video devices-Expansion Card",0,1,null,null,null,"Gros équipement inox (hors froid) - Lave-vaisselles","2020-12-23",3,"Mercredi",null,null,5,null,"Etape 5",null,null,"Audio - Enceintes"]
["Autres familles","Informatique, bureautique et telecoms","Périphériques stockage","Informatique, bureautique et telecoms","Périphériques audio/video","Enceintes ordinateur",2,null,"IT, office and telecoms equipment","Périphériques audio/video","Enceintes ordinateur","Enceintes ordinateur","2","21111","<option value=\"21111\" data-poids=\"2\" data-item=\"118b4cda4d0eca39e76d315732cafd7f\" >Enceintes ordinateur</option>","Informatique, bureautique et telecoms","Périphériques audio/video","Périphériques audio/video-Enceintes ordinateur",2,null,"2","Computer speaker",null,null,null,null,"Audio / video devices","Computer speaker",null,"Informatique, bureautique et telecoms","Périphériques audio/video","Enceintes ordinateur","IT, office and telecoms equipment","Audio / video devices","Computer speaker",true,true,true,"IT, office and telecoms equipment-Audio / video devices-Computer speaker",2,1,null,null,null,"Gros équipement inox (hors froid) - Machines à café expresso","2020-12-24",4,"Jeudi",null,null,6,null,"Etape 6",null,null,"Autres équipements électriques - Autres petits équipements"]
["DEEE historique – mis sur le marché avant le 13 août 2005","Informatique, bureautique et telecoms","Périphériques informatiques","Informatique, bureautique et telecoms","Périphériques audio/video","Autres périphériques AV",null,null,"IT, office and telecoms equipment","Périphériques audio/video","Autres périphériques AV","Autres périphériques AV","0","21152","<option value=\"21152\" data-poids=\"0\" data-item=\"118b4cda4d0eca39e76d315732cafd7f\" >Autres périphériques AV</option>","Informatique, bureautique et telecoms","Périphériques audio/video","Périphériques audio/video-Autres périphériques AV",0,null,"0","Other AV device",null,null,null,null,"Audio / video devices","Other AV device",null,"Informatique, bureautique et telecoms","Périphériques audio/video","Autres périphériques AV","IT, office and telecoms equipment","Audio / video devices","Other AV device",true,true,true,"IT, office and telecoms equipment-Audio / video devices-Other AV device",0,1,null,null,null,"Gros terminal d'impression - Impression industrielle","2020-12-25",5,"Vendredi",null,null,7,null,"Etape 7",null,null,"Autres équipements électriques - Moulins à café"]
[null,"Informatique, bureautique et telecoms","Gros terminal d'impression","Informatique, bureautique et telecoms","Périphériques audio/video","Graveurs et lecteurs",0.4,null,"IT, office and telecoms equipment","Périphériques audio/video","Graveurs et lecteurs","Graveurs et lecteurs","1","21157","<option value=\"21157\" data-poids=\"1\" data-item=\"118b4cda4d0eca39e76d315732cafd7f\" >Graveurs et lecteurs</option>","Informatique, bureautique et telecoms","Périphériques audio/video","Périphériques audio/video-Graveurs et lecteurs",0.4,0.39500000000000002,"1","Burner and Reader",null,null,null,null,"Audio / video devices","Burner and Reader",null,"Informatique, bureautique et telecoms","Périphériques audio/video","Graveurs et lecteurs","IT, office and telecoms equipment","Audio / video devices","Burner and Reader",true,true,true,"IT, office and telecoms equipment-Audio / video devices-Burner and Reader",0.4,1,null,null,null,"Gros terminal d'impression - Traceurs","2020-12-26",6,"Samedi - pas de collecte possible",null,null,8,null,"Etape 8",null,null,"Autres équipements électriques - Percolateurs"]
[null,"Informatique, bureautique et telecoms","Imprimantes & bureautique","Informatique, bureautique et telecoms","Périphériques audio/video","Casques et micros",0.1,null,"IT, office and telecoms equipment","Périphériques audio/video","Casques et micros","Casques et micros","0.1","21282","<option value=\"21282\" data-poids=\"0.1\" data-item=\"118b4cda4d0eca39e76d315732cafd7f\" >Casques et micros</option>","Informatique, bureautique et telecoms","Périphériques audio/video","Périphériques audio/video-Casques et micros",0.1,0.27,"0.1","Headsets and microphones",null,null,null,null,"Audio / video devices","Headsets and microphones",null,"Informatique, bureautique et telecoms","Périphériques audio/video","Casques et micros","IT, office and telecoms equipment","Audio / video devices","Headsets and microphones",true,true,true,"IT, office and telecoms equipment-Audio / video devices-Headsets and microphones",0.1,1,null,null,null,"Matériel informatique historique","2020-12-27",7,"Dimanche  - pas de collecte possible",null,null,9,null,"Etape 9",null,null,"Baies - Armoires vides d'équipements"]
[null,"Informatique, bureautique et telecoms","Ecrans cathodiques CRT","Informatique, bureautique et telecoms","Périphériques audio/video","Dictaphones",0.05,null,"IT, office and telecoms equipment","Périphériques audio/video","Dictaphones","Dictaphones","0.05","21289","<option value=\"21289\" data-poids=\"0.05\" data-item=\"118b4cda4d0eca39e76d315732cafd7f\" >Dictaphones</option>","Informatique, bureautique et telecoms","Périphériques audio/video","Périphériques audio/video-Dictaphones",0.05,null,"0.05","Dictaphones",null,null,null,null,"Audio / video devices","Dictaphones",null,"Informatique, bureautique et telecoms","Périphériques audio/video","Dictaphones","IT, office and telecoms equipment","Audio / video devices","Dictaphones",true,true,true,"IT, office and telecoms equipment-Audio / video devices-Dictaphones",0.05,1,null,null,null,"Serveurs - Autres serveurs","2020-12-28",1,"Lundi",null,null,10,null,"Etape 10",null,null,"Baies - Autres imp & bur"]
[null,"Informatique, bureautique et telecoms","Ecrans plats TFT","Informatique, bureautique et telecoms","Périphériques audio/video","Télécommandes",0.05,null,"IT, office and telecoms equipment","Périphériques audio/video","Télécommandes","Télécommandes","0.05","21296","<option value=\"21296\" data-poids=\"0.05\" data-item=\"118b4cda4d0eca39e76d315732cafd7f\" >Télécommandes</option>","Informatique, bureautique et telecoms","Périphériques audio/video","Périphériques audio/video-Télécommandes",0.05,null,"0.05","Remotes",null,null,null,null,"Audio / video devices","Remotes",null,"Informatique, bureautique et telecoms","Périphériques audio/video","Télécommandes","IT, office and telecoms equipment","Audio / video devices","Remotes",true,true,true,"IT, office and telecoms equipment-Audio / video devices-Remotes",0.05,1,null,null,null,"Serveurs - Mainframe","2020-12-29",2,"Mardi",null,null,11,null,"Autre",null,null,"Baies - Baies Brassage"]
[null,"Informatique, bureautique et telecoms","Combiné Ecran UC","Informatique, bureautique et telecoms","Périphériques audio/video","Bluetooth",null,null,"IT, office and telecoms equipment","Périphériques audio/video","Bluetooth","Bluetooth","0","21308","<option value=\"21308\" data-poids=\"0\" data-item=\"118b4cda4d0eca39e76d315732cafd7f\" >Bluetooth</option>","Informatique, bureautique et telecoms","Périphériques audio/video","Périphériques audio/video-Bluetooth",0,null,"0","Bluetooth",null,null,null,null,"Audio / video devices","Bluetooth",null,"Informatique, bureautique et telecoms","Périphériques audio/video","Bluetooth","IT, office and telecoms equipment","Audio / video devices","Bluetooth",true,true,true,"IT, office and telecoms equipment-Audio / video devices-Bluetooth",0,1,null,null,null,"Baies - Armoires vides d'équipements","2020-12-30",3,"Mercredi",null,null,12,null,null,null,null,"Baies - Machine à écrire"]
[null,"Informatique, bureautique et telecoms","Ordinateurs portables","Informatique, bureautique et telecoms","Périphériques audio/video","Talkie walkies",0.05,null,"IT, office and telecoms equipment","Périphériques audio/video","Talkie walkies","Talkie walkies","0.05","21312","<option value=\"21312\" data-poids=\"0.05\" data-item=\"118b4cda4d0eca39e76d315732cafd7f\" >Talkie walkies</option>","Informatique, bureautique et telecoms","Périphériques audio/video","Périphériques audio/video-Talkie walkies",0.05,null,"0.05","Walkie talkie",null,null,null,null,"Audio / video devices","Walkie talkie",null,"Informatique, bureautique et telecoms","Périphériques audio/video","Talkie walkies","IT, office and telecoms equipment","Audio / video devices","Walkie talkie",true,true,true,"IT, office and telecoms equipment-Audio / video devices-Walkie talkie",0.05,1,null,null,null,"Autres - précisez dans le champ \"Commentaires\" ci-dessous","2020-12-31",4,"Jeudi",null,null,13,null,null,null,null,"Baies - Plastifieuse"]
[null,"Infra Impression, réseaux et monétique","Informatique industrielle","Informatique, bureautique et telecoms","Téléphonie filaire","Pieuvres",1,null,"IT, office and telecoms equipment","Téléphonie filaire","Pieuvres","Pieuvres","1","21246","<option value=\"21246\" data-poids=\"1\" data-item=\"8c98374c9389056f05bdaf645acd291a\" >Pieuvres</option>","Informatique, bureautique et telecoms","Téléphonie filaire","Téléphonie filaire-Pieuvres",1,null,"1","Audio conferencing Octopus",null,null,null,null,"Wired telephony","Audio conferencing Octopus",null,"Informatique, bureautique et telecoms","Téléphonie filaire","Pieuvres","IT, office and telecoms equipment","Wired telephony","Audio conferencing Octopus",true,true,true,"IT, office and telecoms equipment-Wired telephony-Audio conferencing Octopus",1,1,null,null,null,null,"2021-01-01",5,"Vendredi",null,null,14,null,null,null,null,"Cables et connectiques - Cables alimentation"]
[null,"Infra Impression, réseaux et monétique","Baies","Informatique, bureautique et telecoms","Téléphonie filaire","Téléphones IP",1,null,"IT, office and telecoms equipment","Téléphonie filaire","Téléphones IP","Téléphones IP","1","21248","<option value=\"21248\" data-poids=\"1\" data-item=\"8c98374c9389056f05bdaf645acd291a\" >Téléphones IP</option>","Informatique, bureautique et telecoms","Téléphonie filaire","Téléphonie filaire-Téléphones IP",1,null,"1","IP phones",null,null,null,null,"Wired telephony","IP phones",null,"Informatique, bureautique et telecoms","Téléphonie filaire","Téléphones IP","IT, office and telecoms equipment","Wired telephony","IP phones",true,true,true,"IT, office and telecoms equipment-Wired telephony-IP phones",1,1,null,null,null,null,"2021-01-02",6,"Samedi - pas de collecte possible",null,null,15,null,null,null,null,"Cables et connectiques - Cables divers"]
[null,"Infra Impression, réseaux et monétique","Cables et connectiques","Informatique, bureautique et telecoms","Téléphonie filaire","Autres tel filaires",null,null,"IT, office and telecoms equipment","Téléphonie filaire","Autres tel filaires","Autres tel filaires","0","21249","<option value=\"21249\" data-poids=\"0\" data-item=\"8c98374c9389056f05bdaf645acd291a\" >Autres tel filaires</option>","Informatique, bureautique et telecoms","Téléphonie filaire","Téléphonie filaire-Autres tel filaires",0,null,"0","Other such wireline",null,null,null,null,"Wired telephony","Other such wireline",null,"Informatique, bureautique et telecoms","Téléphonie filaire","Autres tel filaires","IT, office and telecoms equipment","Wired telephony","Other such wireline",true,true,true,"IT, office and telecoms equipment-Wired telephony-Other such wireline",0,1,null,null,null,null,"2021-01-03",7,"Dimanche  - pas de collecte possible",null,null,16,null,null,null,null,"Cables et connectiques - Cables video"]
[null,"Infra Impression, réseaux et monétique","Equipements réseaux","Informatique, bureautique et telecoms","Téléphonie filaire","Téléphones fixes",1,null,"IT, office and telecoms equipment","Téléphonie filaire","Téléphones fixes","Téléphones fixes","1","21315","<option value=\"21315\" data-poids=\"1\" data-item=\"8c98374c9389056f05bdaf645acd291a\" >Téléphones fixes</option>","Informatique, bureautique et telecoms","Téléphonie filaire","Téléphonie filaire-Téléphones fixes",1,null,"1","Landline phones",null,null,null,null,"Wired telephony","Landline phones",null,"Informatique, bureautique et telecoms","Téléphonie filaire","Téléphones fixes","IT, office and telecoms equipment","Wired telephony","Landline phones",true,true,true,"IT, office and telecoms equipment-Wired telephony-Landline phones",1,1,null,null,null,null,"2021-01-04",1,"Lundi",null,null,17,null,null,null,null,"Cartouches et toners - Cartouches"]
[null,"Infra Impression, réseaux et monétique","Serveurs","Informatique, bureautique et telecoms","Téléphones portables","Autres téléphones portables",null,null,"IT, office and telecoms equipment","Téléphones portables","Autres téléphones portables","Autres téléphones portables","0","21313","<option value=\"21313\" data-poids=\"0\" data-item=\"d505c503db65740daf006ef5a4e31be8\" >Autres téléphones portables</option>","Informatique, bureautique et telecoms","Téléphones portables","Téléphones portables-Autres téléphones portables",0,null,"0","Other cell phones",null,null,null,null,"Mobile phones","Other cell phones",null,"Informatique, bureautique et telecoms","Téléphones portables","Autres téléphones portables","IT, office and telecoms equipment","Mobile phones","Other cell phones",true,true,true,"IT, office and telecoms equipment-Mobile phones-Other cell phones",0,1,null,null,null,null,"2021-01-05",2,"Mardi",null,null,18,null,null,null,null,"Cartouches et toners - Toners"]
[null,"Equipements de Culture Loisirs et Sports","Affichage et présentation","Informatique, bureautique et telecoms","Téléphones portables","Smartphones",0.17,null,"IT, office and telecoms equipment","Téléphones portables","Smartphones","Smartphones","0.2","21314","<option value=\"21314\" data-poids=\"0.2\" data-item=\"d505c503db65740daf006ef5a4e31be8\" >Smartphones</option>","Informatique, bureautique et telecoms","Téléphones portables","Téléphones portables-Smartphones",0.17,0.17,"0.2","Smartphones",null,null,null,null,"Mobile phones","Smartphones",null,"Informatique, bureautique et telecoms","Téléphones portables","Smartphones","IT, office and telecoms equipment","Mobile phones","Smartphones",true,true,true,"IT, office and telecoms equipment-Mobile phones-Smartphones",0.17,1,null,null,null,null,"2021-01-06",3,"Mercredi",null,null,19,null,null,null,null,"Combiné Ecran UC - Autres Combinés Ecran UC"]
[null,"Equipements de Culture Loisirs et Sports","Video","Informatique, bureautique et telecoms","Téléphones portables","Téléphones portables",0.17,null,"IT, office and telecoms equipment","Téléphones portables","Téléphones portables","Téléphones portables","0.2","21316","<option value=\"21316\" data-poids=\"0.2\" data-item=\"d505c503db65740daf006ef5a4e31be8\" >Téléphones portables</option>","Informatique, bureautique et telecoms","Téléphones portables","Téléphones portables-Téléphones portables",0.17,0.17,"0.2","Mobile phones",null,null,null,null,"Mobile phones","Mobile phones",null,"Informatique, bureautique et telecoms","Téléphones portables","Téléphones portables","IT, office and telecoms equipment","Mobile phones","Mobile phones",true,true,true,"IT, office and telecoms equipment-Mobile phones-Mobile phones",0.17,1,null,null,null,null,"2021-01-07",4,"Jeudi",null,null,20,null,null,null,null,"Combiné Ecran UC - Client léger avec écran"]
[null,"Equipements de Culture Loisirs et Sports","Photo","Informatique, bureautique et telecoms","Pieces détachées informatique","Lecteur CD ROM",0.4,null,"IT, office and telecoms equipment","Pieces détachées informatique","Lecteur CD ROM","Lecteur CD ROM","0","21106","<option value=\"21106\" data-poids=\"0\" data-item=\"e30d0c134fc8c40adf4adbec5152ce24\" >Lecteur CD ROM</option>","Informatique, bureautique et telecoms","Pieces détachées informatique","Pieces détachées informatique-Lecteur CD ROM",0.4,0.39500000000000002,"0","CD ROM drive",null,null,null,null,"Computer spare parts","CD ROM drive",null,"Informatique, bureautique et telecoms","Pieces détachées informatique","Lecteur CD ROM","IT, office and telecoms equipment","Computer spare parts","CD ROM drive",true,true,true,"IT, office and telecoms equipment-Computer spare parts-CD ROM drive",0.4,1,null,null,null,null,"2021-01-08",5,"Vendredi",null,null,21,null,null,null,null,"Combiné Ecran UC - PC tout en un"]
[null,"Equipements de Culture Loisirs et Sports","Audio","Informatique, bureautique et telecoms","Pieces détachées informatique","Lecteurs Disquette",0.4,null,"IT, office and telecoms equipment","Pieces détachées informatique","Lecteurs Disquette","Lecteurs Disquette","0","21107","<option value=\"21107\" data-poids=\"0\" data-item=\"e30d0c134fc8c40adf4adbec5152ce24\" >Lecteurs Disquette</option>","Informatique, bureautique et telecoms","Pieces détachées informatique","Pieces détachées informatique-Lecteurs Disquette",0.4,0.39500000000000002,"0","Floppy Drives",null,null,null,null,"Computer spare parts","Floppy Drives",null,"Informatique, bureautique et telecoms","Pieces détachées informatique","Lecteurs Disquette","IT, office and telecoms equipment","Computer spare parts","Floppy Drives",true,true,true,"IT, office and telecoms equipment-Computer spare parts-Floppy Drives",0.4,1,null,null,null,null,"2021-01-09",6,"Samedi - pas de collecte possible",null,null,22,null,null,null,null,"Ecrans cathodiques CRT - Autres CRT"]
[null,"Piles & Accumulateurs","Piles & Accumulateurs industriels","Informatique, bureautique et telecoms","Pieces détachées informatique","Cartes électroniques",0.21,null,"IT, office and telecoms equipment","Pieces détachées informatique","Cartes électroniques","Cartes électroniques","0","21118","<option value=\"21118\" data-poids=\"0\" data-item=\"e30d0c134fc8c40adf4adbec5152ce24\" >Cartes électroniques</option>","Informatique, bureautique et telecoms","Pieces détachées informatique","Pieces détachées informatique-Cartes électroniques",0.21,0.20915611814345994,"0","Expansion Cards",null,null,null,null,"Computer spare parts","Expansion Cards",null,"Informatique, bureautique et telecoms","Pieces détachées informatique","Cartes électroniques","IT, office and telecoms equipment","Computer spare parts","Expansion Cards",true,true,true,"IT, office and telecoms equipment-Computer spare parts-Expansion Cards",0.21,1,null,null,null,null,"2021-01-10",7,"Dimanche  - pas de collecte possible",null,null,23,null,null,null,null,"Ecrans cathodiques CRT - CRT 15\" / 17\""]
[null,"Piles & Accumulateurs","Piles et accumulateurs (non industriels)","Informatique, bureautique et telecoms","Pieces détachées informatique","Autres pièces détachées",null,null,"IT, office and telecoms equipment","Pieces détachées informatique","Autres pièces détachées","Autres pièces détachées","0","21119","<option value=\"21119\" data-poids=\"0\" data-item=\"e30d0c134fc8c40adf4adbec5152ce24\" >Autres pièces détachées</option>","Informatique, bureautique et telecoms","Pieces détachées informatique","Pieces détachées informatique-Autres pièces détachées",0,null,"0","Other spare parts",null,null,null,null,"Computer spare parts","Other spare parts",null,"Informatique, bureautique et telecoms","Pieces détachées informatique","Autres pièces détachées","IT, office and telecoms equipment","Computer spare parts","Other spare parts",true,true,true,"IT, office and telecoms equipment-Computer spare parts-Other spare parts",0,1,null,null,null,null,"2021-01-11",1,"Lundi",null,null,24,null,null,null,null,"Ecrans cathodiques CRT - CRT 19\" / 21 \""]
[null,"Métiers de bouche et alimentaire","Autres équipements électriques","Informatique, bureautique et telecoms","Périphériques stockage","Lecteurs de bandes et médias",2.92,null,"IT, office and telecoms equipment","Périphériques stockage","Lecteurs de bandes et médias","Lecteurs de bandes et médias","8","21172","<option value=\"21172\" data-poids=\"8\" data-item=\"f9a449d16200d950f1f3f4b2626a7e53\" >Lecteurs de bandes et médias</option>","Informatique, bureautique et telecoms","Périphériques stockage","Périphériques stockage-Lecteurs de bandes et médias",2.92,2.9184077961019494,"8","Tape drivers",null,null,null,null,"Storage devices","Tape drivers",null,"Informatique, bureautique et telecoms","Périphériques stockage","Lecteurs de bandes et médias","IT, office and telecoms equipment","Storage devices","Tape drivers",true,true,true,"IT, office and telecoms equipment-Storage devices-Tape drivers",2.92,1,null,null,null,null,"2021-01-12",2,"Mardi",null,null,25,null,null,null,null,"Ecrans cathodiques CRT - Gros Ecran TV"]
[null,"Métiers de bouche et alimentaire","Gros équipement inox (hors froid)","Informatique, bureautique et telecoms","Périphériques stockage","Clés USB",0.04,null,"IT, office and telecoms equipment","Périphériques stockage","Clés USB","Clés USB","0.05","21177","<option value=\"21177\" data-poids=\"0.05\" data-item=\"f9a449d16200d950f1f3f4b2626a7e53\" >Clés USB</option>","Informatique, bureautique et telecoms","Périphériques stockage","Périphériques stockage-Clés USB",0.04,3.7999999999999999E-2,"0.05","USB flash drives",null,null,null,null,"Storage devices","USB flash drives",null,"Informatique, bureautique et telecoms","Périphériques stockage","Clés USB","IT, office and telecoms equipment","Storage devices","USB flash drives",true,true,true,"IT, office and telecoms equipment-Storage devices-USB flash drives",0.04,1,null,null,null,null,"2021-01-13",3,"Mercredi",null,null,26,null,null,null,null,"Ecrans plats TFT - Autres TFT"]
[null,"Métiers de bouche et alimentaire","Froid hors inox","Informatique, bureautique et telecoms","Périphériques stockage","Disques Durs",0.4,null,"IT, office and telecoms equipment","Périphériques stockage","Disques Durs","Disques Durs","1","21179","<option value=\"21179\" data-poids=\"1\" data-item=\"f9a449d16200d950f1f3f4b2626a7e53\" >Disques Durs</option>","Informatique, bureautique et telecoms","Périphériques stockage","Périphériques stockage-Disques Durs",0.4,0.39500000000000002,"1","HDDs",null,null,null,null,"Storage devices","HDDs",null,"Informatique, bureautique et telecoms","Périphériques stockage","Disques Durs","IT, office and telecoms equipment","Storage devices","HDDs",true,true,true,"IT, office and telecoms equipment-Storage devices-HDDs",0.4,1,null,null,null,null,"2021-01-14",4,"Jeudi",null,null,27,null,null,null,null,"Ecrans plats TFT - Cadres photo numérique"]
[null,"Métiers de bouche et alimentaire","Froid Inox","Informatique, bureautique et telecoms","Périphériques stockage","Graveurs",0.4,null,"IT, office and telecoms equipment","Périphériques stockage","Graveurs","Graveurs","2","21181","<option value=\"21181\" data-poids=\"2\" data-item=\"f9a449d16200d950f1f3f4b2626a7e53\" >Graveurs</option>","Informatique, bureautique et telecoms","Périphériques stockage","Périphériques stockage-Graveurs",0.4,0.39511941176470594,"2","CD/DVD Drivers",null,null,null,null,"Storage devices","CD/DVD Drivers",null,"Informatique, bureautique et telecoms","Périphériques stockage","Graveurs","IT, office and telecoms equipment","Storage devices","CD/DVD Drivers",true,true,true,"IT, office and telecoms equipment-Storage devices-CD/DVD Drivers",0.4,1,null,null,null,null,"2021-01-15",5,"Vendredi",null,null,28,null,null,null,null,"Ecrans plats TFT - Ecran TV et plasma"]
[null,"Entretiens et soins","Entretien","Informatique, bureautique et telecoms","Périphériques stockage","Cartes Mémoire",0.03,null,"IT, office and telecoms equipment","Périphériques stockage","Cartes Mémoire","Cartes Mémoire","0.1","21182","<option value=\"21182\" data-poids=\"0.1\" data-item=\"f9a449d16200d950f1f3f4b2626a7e53\" >Cartes Mémoire</option>","Informatique, bureautique et telecoms","Périphériques stockage","Périphériques stockage-Cartes Mémoire",0.03,0.03,"0.1","Memory Cards",null,null,null,null,"Storage devices","Memory Cards",null,"Informatique, bureautique et telecoms","Périphériques stockage","Cartes Mémoire","IT, office and telecoms equipment","Storage devices","Memory Cards",true,true,true,"IT, office and telecoms equipment-Storage devices-Memory Cards",0.03,1,null,null,null,null,"2021-01-16",6,"Samedi - pas de collecte possible",null,null,29,null,null,null,null,"Ecrans plats TFT - Livres électroniques"]
[null,"Autres familles","Appareils électriques en mélange","Informatique, bureautique et telecoms","Périphériques stockage","Autres sauvegarde / stockage",null,null,"IT, office and telecoms equipment","Périphériques stockage","Autres sauvegarde / stockage","Autres sauvegarde / stockage","0","21183","<option value=\"21183\" data-poids=\"0\" data-item=\"f9a449d16200d950f1f3f4b2626a7e53\" >Autres sauvegarde / stockage</option>","Informatique, bureautique et telecoms","Périphériques stockage","Périphériques stockage-Autres sauvegarde / stockage",0,null,"0","Other backup / storage",null,"DCG- same",null,null,"Storage devices","Other backup / storage",null,"Informatique, bureautique et telecoms","Périphériques stockage","Autres sauvegarde / stockage","IT, office and telecoms equipment","Storage devices","Other backup / storage",true,true,true,"IT, office and telecoms equipment-Storage devices-Other backup / storage",0,1,null,null,null,null,"2021-01-17",7,"Dimanche  - pas de collecte possible",null,null,30,null,null,null,null,"Ecrans plats TFT - TFT <15\""]
[null,"DEEE historique – mis sur le marché avant le 13 août 2005","Matériel informatique historique","Informatique, bureautique et telecoms","Périphériques informatiques","Autres périphériques et divers",null,null,"IT, office and telecoms equipment","Périphériques informatiques","Autres périphériques et divers","Autres périphériques et divers","0","21099","<option value=\"21099\" data-poids=\"0\" data-item=\"b840b459d0e5ed32a58a48136b788447\" >Autres périphériques et divers</option>","Informatique, bureautique et telecoms","Périphériques informatiques","Périphériques informatiques-Autres périphériques et divers",0,null,"0","Other devices and miscellaneous",null,null,null,null,"Computer devices","Other devices and miscellaneous",null,"Informatique, bureautique et telecoms","Périphériques informatiques","Autres périphériques et divers","IT, office and telecoms equipment","Computer devices","Other devices and miscellaneous",true,true,true,"IT, office and telecoms equipment-Computer devices-Other devices and miscellaneous",0,1,null,null,null,null,"2021-01-18",1,"Lundi",null,null,31,null,null,null,null,"Ecrans plats TFT - TFT >=15\""]
[null,null,null,"Informatique, bureautique et telecoms","Périphériques informatiques","Multiprises",1,null,"IT, office and telecoms equipment","Périphériques informatiques","Multiprises","Multiprises","1","21136","<option value=\"21136\" data-poids=\"1\" data-item=\"b840b459d0e5ed32a58a48136b788447\" >Multiprises</option>","Informatique, bureautique et telecoms","Périphériques informatiques","Périphériques informatiques-Multiprises",1,5.3,"1","Power distribution units",null,null,null,null,"Computer devices","Power distribution units",null,"Informatique, bureautique et telecoms","Périphériques informatiques","Multiprises","IT, office and telecoms equipment","Computer devices","Power distribution units",true,true,true,"IT, office and telecoms equipment-Computer devices-Power distribution units",1,1,null,null,null,null,"2021-01-19",2,"Mardi",null,null,32,null,null,null,null,"Entretien - Aspirateur"]
[null,null,null,"Informatique, bureautique et telecoms","Périphériques informatiques","Claviers souris",0.1,null,"IT, office and telecoms equipment","Périphériques informatiques","Claviers souris","Claviers souris","0.1","21146","<option value=\"21146\" data-poids=\"0.1\" data-item=\"b840b459d0e5ed32a58a48136b788447\" >Claviers souris</option>","Informatique, bureautique et telecoms","Périphériques informatiques","Périphériques informatiques-Claviers souris",0.1,0.11,"0.1","Mouse keyboards",null,null,null,null,"Computer devices","Mouse keyboards",null,"Informatique, bureautique et telecoms","Périphériques informatiques","Claviers souris","IT, office and telecoms equipment","Computer devices","Mouse keyboards",true,true,true,"IT, office and telecoms equipment-Computer devices-Mouse keyboards",0.1,1,null,null,null,null,"2021-01-20",3,"Mercredi",null,null,33,null,null,null,null,"Equipements réseaux - Antennes WIFI"]
[null,null,null,"Informatique, bureautique et telecoms","Périphériques informatiques","KVM",2,null,"IT, office and telecoms equipment","Périphériques informatiques","KVM","KVM","2","21147","<option value=\"21147\" data-poids=\"2\" data-item=\"b840b459d0e5ed32a58a48136b788447\" >KVM</option>","Informatique, bureautique et telecoms","Périphériques informatiques","Périphériques informatiques-KVM",2,null,"2","KVM",null,null,null,null,"Computer devices","KVM",null,"Informatique, bureautique et telecoms","Périphériques informatiques","KVM","IT, office and telecoms equipment","Computer devices","KVM",true,true,true,"IT, office and telecoms equipment-Computer devices-KVM",2,1,null,null,null,null,"2021-01-21",4,"Jeudi",null,null,34,null,null,null,null,"Equipements réseaux - Autres éléments réseau"]
[null,null,null,"Informatique, bureautique et telecoms","Périphériques informatiques","Douchettes",0.2,null,"IT, office and telecoms equipment","Périphériques informatiques","Douchettes","Douchettes","0.2","21148","<option value=\"21148\" data-poids=\"0.2\" data-item=\"b840b459d0e5ed32a58a48136b788447\" >Douchettes</option>","Informatique, bureautique et telecoms","Périphériques informatiques","Périphériques informatiques-Douchettes",0.2,null,"0.2","Hand scanner",null,null,null,null,"Computer devices","Hand scanner",null,"Informatique, bureautique et telecoms","Périphériques informatiques","Douchettes","IT, office and telecoms equipment","Computer devices","Hand scanner",true,true,true,"IT, office and telecoms equipment-Computer devices-Hand scanner",0.2,1,null,null,null,null,"2021-01-22",5,"Vendredi",null,null,35,null,null,null,null,"Equipements réseaux - Lecteurs Multimédia"]
[null,null,null,"Informatique, bureautique et telecoms","Périphériques informatiques","Webcams",0.1,null,"IT, office and telecoms equipment","Périphériques informatiques","Webcams","Webcams","0.1","21149","<option value=\"21149\" data-poids=\"0.1\" data-item=\"b840b459d0e5ed32a58a48136b788447\" >Webcams</option>","Informatique, bureautique et telecoms","Périphériques informatiques","Périphériques informatiques-Webcams",0.1,null,"0.1","Webcams",null,null,null,null,"Computer devices","Webcams",null,"Informatique, bureautique et telecoms","Périphériques informatiques","Webcams","IT, office and telecoms equipment","Computer devices","Webcams",true,true,true,"IT, office and telecoms equipment-Computer devices-Webcams",0.1,1,null,null,null,null,"2021-01-23",6,"Samedi - pas de collecte possible",null,null,36,null,null,null,null,"Equipements réseaux - Modems/Routeurs"]
[null,null,null,"Informatique, bureautique et telecoms","Périphériques informatiques","Hubs USB",0.1,null,"IT, office and telecoms equipment","Périphériques informatiques","Hubs USB","Hubs USB","0.1","21150","<option value=\"21150\" data-poids=\"0.1\" data-item=\"b840b459d0e5ed32a58a48136b788447\" >Hubs USB</option>","Informatique, bureautique et telecoms","Périphériques informatiques","Périphériques informatiques-Hubs USB",0.1,null,"0.1","USB hubs",null,null,null,null,"Computer devices","USB hubs",null,"Informatique, bureautique et telecoms","Périphériques informatiques","Hubs USB","IT, office and telecoms equipment","Computer devices","USB hubs",true,true,true,"IT, office and telecoms equipment-Computer devices-USB hubs",0.1,1,null,null,null,null,"2021-01-24",7,"Dimanche  - pas de collecte possible",null,null,37,null,null,null,null,"Equipements réseaux - Onduleurs"]
[null,null,null,"Informatique, bureautique et telecoms","Périphériques informatiques","GPS",1,null,"IT, office and telecoms equipment","Périphériques informatiques","GPS","GPS","1","21153","<option value=\"21153\" data-poids=\"1\" data-item=\"b840b459d0e5ed32a58a48136b788447\" >GPS</option>","Informatique, bureautique et telecoms","Périphériques informatiques","Périphériques informatiques-GPS",1,null,"1","GPS",null,null,null,null,"Computer devices","GPS",null,"Informatique, bureautique et telecoms","Périphériques informatiques","GPS","IT, office and telecoms equipment","Computer devices","GPS",true,true,true,"IT, office and telecoms equipment-Computer devices-GPS",1,1,null,null,null,null,"2021-01-25",1,"Lundi",null,null,38,null,null,null,null,"Equipements réseaux - PABX"]
[null,null,null,"Informatique, bureautique et telecoms","Périphériques informatiques","Tablettes graphiques",1,null,"IT, office and telecoms equipment","Périphériques informatiques","Tablettes graphiques","Tablettes graphiques","1","21154","<option value=\"21154\" data-poids=\"1\" data-item=\"b840b459d0e5ed32a58a48136b788447\" >Tablettes graphiques</option>","Informatique, bureautique et telecoms","Périphériques informatiques","Périphériques informatiques-Tablettes graphiques",1,null,"1","Graphics tablets",null,null,null,null,"Computer devices","Graphics tablets",null,"Informatique, bureautique et telecoms","Périphériques informatiques","Tablettes graphiques","IT, office and telecoms equipment","Computer devices","Graphics tablets",true,true,true,"IT, office and telecoms equipment-Computer devices-Graphics tablets",1,1,null,null,null,null,"2021-01-26",2,"Mardi",null,null,39,null,null,null,null,"Equipements réseaux - Robots de stockage/archivage"]
[null,null,null,"Informatique, bureautique et telecoms","Périphériques informatiques","Périphériques de jeux",0.1,null,"IT, office and telecoms equipment","Périphériques informatiques","Périphériques de jeux","Périphériques de jeux","0.1","21155","<option value=\"21155\" data-poids=\"0.1\" data-item=\"b840b459d0e5ed32a58a48136b788447\" >Périphériques de jeux</option>","Informatique, bureautique et telecoms","Périphériques informatiques","Périphériques informatiques-Périphériques de jeux",0.1,null,"0.1","Garming devices",null,null,null,null,"Computer devices","Garming devices",null,"Informatique, bureautique et telecoms","Périphériques informatiques","Périphériques de jeux","IT, office and telecoms equipment","Computer devices","Garming devices",true,true,true,"IT, office and telecoms equipment-Computer devices-Garming devices",0.1,1,null,null,null,null,"2021-01-27",3,"Mercredi",null,null,40,null,null,null,null,"Périphériques informatiques - Périphériques de jeux"]
[null,null,null,"Informatique, bureautique et telecoms","Périphériques informatiques","PDA",0.2,null,"IT, office and telecoms equipment","Périphériques informatiques","PDA","PDA","0.2","21156","<option value=\"21156\" data-poids=\"0.2\" data-item=\"b840b459d0e5ed32a58a48136b788447\" >PDA</option>","Informatique, bureautique et telecoms","Périphériques informatiques","Périphériques informatiques-PDA",0.2,null,"0.2","PDA",null,null,null,null,"Computer devices","PDA",null,"Informatique, bureautique et telecoms","Périphériques informatiques","PDA","IT, office and telecoms equipment","Computer devices","PDA",true,true,true,"IT, office and telecoms equipment-Computer devices-PDA",0.2,1,null,null,null,null,"2021-01-28",4,"Jeudi",null,null,41,null,null,null,null,"Périphériques informatiques - PDA"]
[null,null,null,"Informatique, bureautique et telecoms","Périphériques informatiques","Scanners",5,null,"IT, office and telecoms equipment","Périphériques informatiques","Scanners","Scanners","5","21176","<option value=\"21176\" data-poids=\"5\" data-item=\"b840b459d0e5ed32a58a48136b788447\" >Scanners</option>","Informatique, bureautique et telecoms","Périphériques informatiques","Périphériques informatiques-Scanners",5,null,"5","Scanners",null,null,null,null,"Computer devices","Scanners",null,"Informatique, bureautique et telecoms","Périphériques informatiques","Scanners","IT, office and telecoms equipment","Computer devices","Scanners",true,true,true,"IT, office and telecoms equipment-Computer devices-Scanners",5,1,null,null,null,null,"2021-01-29",5,"Vendredi",null,null,42,null,null,null,null,"Périphériques informatiques - Scanners"]
[null,null,null,"Informatique, bureautique et telecoms","Périphériques informatiques","enceintes ordinateurs",0.39,null,"IT, office and telecoms equipment","Périphériques informatiques","enceintes ordinateurs","enceintes ordinateurs","2","21283","<option value=\"21283\" data-poids=\"2\" data-item=\"b840b459d0e5ed32a58a48136b788447\" >enceintes ordinateurs</option>","Informatique, bureautique et telecoms","Périphériques informatiques","Périphériques informatiques-enceintes ordinateurs",0.39,0.39,"2","Computers speakers",null,null,null,null,"Computer devices","Computers speakers",null,"Informatique, bureautique et telecoms","Périphériques informatiques","enceintes ordinateurs","IT, office and telecoms equipment","Computer devices","Computers speakers",true,true,true,"IT, office and telecoms equipment-Computer devices-Computers speakers",0.39,1,null,null,null,null,"2021-01-30",6,"Samedi - pas de collecte possible",null,null,43,null,null,null,null,"Périphériques informatiques - enceintes ordinateurs"]
[null,null,null,"Informatique, bureautique et telecoms","Gros terminal d'impression","Minilabs",30,null,"IT, office and telecoms equipment","Gros terminal d'impression","Minilabs","Minilabs","30","21228","<option value=\"21228\" data-poids=\"30\" data-item=\"48c230d5b16d354afa3de51a2e47cca7\" >Minilabs</option>","Informatique, bureautique et telecoms","Gros terminal d'impression","Gros terminal d'impression-Minilabs",30,null,"30","Minilabs",null,null,null,null,"Large printing terminal","Minilabs",null,"Informatique, bureautique et telecoms","Gros terminal d'impression","Minilabs","IT, office and telecoms equipment","Large printing terminal","Minilabs",true,true,true,"IT, office and telecoms equipment-Large printing terminal-Minilabs",30,1,null,null,null,null,"2021-01-31",7,"Dimanche  - pas de collecte possible",null,null,44,null,null,null,null,"Gros terminal d'impression - Minilabs"]
[null,null,null,"Informatique, bureautique et telecoms","Gros terminal d'impression","Traceurs",100,null,"IT, office and telecoms equipment","Gros terminal d'impression","Traceurs","Traceurs","100","21229","<option value=\"21229\" data-poids=\"100\" data-item=\"48c230d5b16d354afa3de51a2e47cca7\" >Traceurs</option>","Informatique, bureautique et telecoms","Gros terminal d'impression","Gros terminal d'impression-Traceurs",100,null,"100","Large Data printer",null,null,null,null,"Large printing terminal","Large Data printer",null,"Informatique, bureautique et telecoms","Gros terminal d'impression","Traceurs","IT, office and telecoms equipment","Large printing terminal","Large Data printer",true,true,true,"IT, office and telecoms equipment-Large printing terminal-Large Data printer",100,1,null,null,null,null,"2021-02-01",1,"Lundi",null,null,45,null,null,null,null,"Equipements réseaux - Routeurs"]
[null,null,null,"Informatique, bureautique et telecoms","Gros terminal d'impression","Photocopieurs",40,null,"IT, office and telecoms equipment","Gros terminal d'impression","Photocopieurs","Photocopieurs","40","21231","<option value=\"21231\" data-poids=\"40\" data-item=\"48c230d5b16d354afa3de51a2e47cca7\" >Photocopieurs</option>","Informatique, bureautique et telecoms","Gros terminal d'impression","Gros terminal d'impression-Photocopieurs",40,null,"40","Photocopiers",null,null,null,null,"Large printing terminal","Photocopiers",null,"Informatique, bureautique et telecoms","Gros terminal d'impression","Photocopieurs","IT, office and telecoms equipment","Large printing terminal","Photocopiers",true,true,true,"IT, office and telecoms equipment-Large printing terminal-Photocopiers",40,1,null,null,null,null,"2021-02-02",2,"Mardi",null,null,46,null,null,null,null,"Equipements réseaux - Switchs / Hubs"]
[null,null,null,"Informatique, bureautique et telecoms","Gros terminal d'impression","Autres Copieur / MFP au moins A3",null,null,"IT, office and telecoms equipment","Gros terminal d'impression","Autres Copieur / MFP au moins A3","Autres Copieur / MFP au moins A3","0","21232","<option value=\"21232\" data-poids=\"0\" data-item=\"48c230d5b16d354afa3de51a2e47cca7\" >Autres Copieur / MFP au moins A3</option>","Informatique, bureautique et telecoms","Gros terminal d'impression","Gros terminal d'impression-Autres Copieur / MFP au moins A3",0,null,"0","Other Copier / MFP at least A3",null,null,null,null,"Large printing terminal","Other Copier / MFP at least A3",null,"Informatique, bureautique et telecoms","Gros terminal d'impression","Autres Copieur / MFP au moins A3","IT, office and telecoms equipment","Large printing terminal","Other Copier / MFP at least A3",true,true,true,"IT, office and telecoms equipment-Large printing terminal-Other Copier / MFP at least A3",0,1,null,null,null,null,"2021-02-03",3,"Mercredi",null,null,47,null,null,null,null,"Froid hors inox - Réfrigérateurs"]
[null,null,null,"Informatique, bureautique et telecoms","Gros terminal d'impression","Impression industrielle",70,null,"IT, office and telecoms equipment","Gros terminal d'impression","Impression industrielle","Impression industrielle","70","21234","<option value=\"21234\" data-poids=\"70\" data-item=\"48c230d5b16d354afa3de51a2e47cca7\" >Impression industrielle</option>","Informatique, bureautique et telecoms","Gros terminal d'impression","Gros terminal d'impression-Impression industrielle",70,null,"70","Industrial printing",null,null,null,null,"Large printing terminal","Industrial printing",null,"Informatique, bureautique et telecoms","Gros terminal d'impression","Impression industrielle","IT, office and telecoms equipment","Large printing terminal","Industrial printing",true,true,true,"IT, office and telecoms equipment-Large printing terminal-Industrial printing",70,1,null,null,null,null,"2021-02-04",4,"Jeudi",null,null,48,null,null,null,null,"Froid Inox - Autres équipements réfrigérés (sans NH3)"]
[null,null,null,"Informatique, bureautique et telecoms","Imprimantes & bureautique","Destructeurs-de-documents",10,null,"IT, office and telecoms equipment","Imprimantes & bureautique","Destructeurs-de-documents","Destructeurs-de-documents","10","21216","<option value=\"21216\" data-poids=\"10\" data-item=\"6b55072464b6aeede60544a7e12f42bd\" >Destructeurs-de-documents</option>","Informatique, bureautique et telecoms","Imprimantes & bureautique","Imprimantes & bureautique-Destructeurs-de-documents",10,null,"10","Document-shredders",null,null,null,null,"Printers & office technology","Document-shredders",null,"Informatique, bureautique et telecoms","Imprimantes & bureautique","Destructeurs-de-documents","IT, office and telecoms equipment","Printers & office technology","Document-shredders",true,true,true,"IT, office and telecoms equipment-Printers & office technology-Document-shredders",10,1,null,null,null,null,"2021-02-05",5,"Vendredi",null,null,49,null,null,null,null,"Froid Inox - Distributeurs de boissons"]
[null,null,null,"Informatique, bureautique et telecoms","Imprimantes & bureautique","Fax",null,null,"IT, office and telecoms equipment","Imprimantes & bureautique","Fax","Fax","0","21220","<option value=\"21220\" data-poids=\"0\" data-item=\"6b55072464b6aeede60544a7e12f42bd\" >Fax</option>","Informatique, bureautique et telecoms","Imprimantes & bureautique","Imprimantes & bureautique-Fax",0,null,"0","Fax",null,null,null,null,"Printers & office technology","Fax",null,"Informatique, bureautique et telecoms","Imprimantes & bureautique","Fax","IT, office and telecoms equipment","Printers & office technology","Fax",true,true,true,"IT, office and telecoms equipment-Printers & office technology-Fax",0,1,null,null,null,null,"2021-02-06",6,"Samedi - pas de collecte possible",null,null,50,null,null,null,null,"Gros équipement inox (hors froid) - Fours"]
[null,null,null,"Informatique, bureautique et telecoms","Imprimantes & bureautique","Imp Laser et MFP A4",7,null,"IT, office and telecoms equipment","Imprimantes & bureautique","Imp Laser et MFP A4","Imp Laser et MFP A4","7","21224","<option value=\"21224\" data-poids=\"7\" data-item=\"6b55072464b6aeede60544a7e12f42bd\" >Imp Laser et MFP A4</option>","Informatique, bureautique et telecoms","Imprimantes & bureautique","Imprimantes & bureautique-Imp Laser et MFP A4",7,null,"7","A4 Laser and MFP",null,null,null,null,"Printers & office technology","A4 Laser and MFP",null,"Informatique, bureautique et telecoms","Imprimantes & bureautique","Imp Laser et MFP A4","IT, office and telecoms equipment","Printers & office technology","A4 Laser and MFP",true,true,true,"IT, office and telecoms equipment-Printers & office technology-A4 Laser and MFP",7,1,null,null,null,null,"2021-02-07",7,"Dimanche  - pas de collecte possible",null,null,51,null,null,null,null,"Gros équipement inox (hors froid) - Lave-vaisselles"]
[null,null,null,"Informatique, bureautique et telecoms","Imprimantes & bureautique","Autres Imprimantes & bureautique",null,null,"IT, office and telecoms equipment","Imprimantes & bureautique","Autres Imprimantes & bureautique","Autres Imprimantes & bureautique","0","21226","<option value=\"21226\" data-poids=\"0\" data-item=\"6b55072464b6aeede60544a7e12f42bd\" >Autres Imprimantes & bureautique</option>","Informatique, bureautique et telecoms","Imprimantes & bureautique","Imprimantes & bureautique-Autres Imprimantes & bureautique",0,null,"0"," Other Printers & Office",null,null,null,null,"Printers & office technology"," Other Printers & Office",null,"Informatique, bureautique et telecoms","Imprimantes & bureautique","Autres Imprimantes & bureautique","IT, office and telecoms equipment","Printers & office technology"," Other Printers & Office",true,true,true,"IT, office and telecoms equipment-Printers & office technology- Other Printers & Office",0,1,null,null,null,null,"2021-02-08",1,"Lundi",null,null,52,null,null,null,null,"Gros équipement inox (hors froid) - Machines à café expresso"]
[null,null,null,"Informatique, bureautique et telecoms","Imprimantes & bureautique","Imp Encre, Photo ou matricielle",7,null,"IT, office and telecoms equipment","Imprimantes & bureautique","Imp Encre, Photo ou matricielle","Imp Encre, Photo ou matricielle","7","21227","<option value=\"21227\" data-poids=\"7\" data-item=\"6b55072464b6aeede60544a7e12f42bd\" >Imp Encre, Photo ou matricielle</option>","Informatique, bureautique et telecoms","Imprimantes & bureautique","Imprimantes & bureautique-Imp Encre, Photo ou matricielle",7,null,"7","Ink, Photo or dot matrix printing",null,null,null,null,"Printers & office technology","Ink, Photo or dot matrix printing",null,"Informatique, bureautique et telecoms","Imprimantes & bureautique","Imp Encre, Photo ou matricielle","IT, office and telecoms equipment","Printers & office technology","Ink, Photo or dot matrix printing",true,true,true,"IT, office and telecoms equipment-Printers & office technology-Ink, Photo or dot matrix printing",7,1,null,null,null,null,"2021-02-09",2,"Mardi",null,null,53,null,null,null,null,"Gros terminal d'impression - Autres Copieur / MFP au moins A3"]
[null,null,null,"Informatique, bureautique et telecoms","Ecrans cathodiques CRT","CRT 15\" / 17\"",22,null,"IT, office and telecoms equipment","Ecrans cathodiques CRT","CRT 15\" / 17\"","CRT 15\" / 17\"","22","21120","<option value=\"21120\" data-poids=\"22\" data-item=\"503ab74b00adb705acc1d32d92cd4ab4\" >CRT 15\" / 17\"</option>","Informatique, bureautique et telecoms","Ecrans cathodiques CRT","Ecrans cathodiques CRT-CRT 15\" / 17\"",22,null,"22","CRT 15\" / 17\"",null,null,null,null,"CRT cathode screens","CRT 15\" / 17\"",null,"Informatique, bureautique et telecoms","Ecrans cathodiques CRT","CRT 15\" / 17\"","IT, office and telecoms equipment","CRT cathode screens","CRT 15\" / 17\"",true,true,true,"IT, office and telecoms equipment-CRT cathode screens-CRT 15\" / 17\"",22,1,null,null,null,null,"2021-02-10",3,"Mercredi",null,null,54,null,null,null,null,"Gros terminal d'impression - Impression industrielle"]
[null,null,null,"Informatique, bureautique et telecoms","Ecrans cathodiques CRT","CRT 19\" / 21 \"",40,null,"IT, office and telecoms equipment","Ecrans cathodiques CRT","CRT 19\" / 21 \"","CRT 19\" / 21 \"","40","21122","<option value=\"21122\" data-poids=\"40\" data-item=\"503ab74b00adb705acc1d32d92cd4ab4\" >CRT 19\" / 21 \"</option>","Informatique, bureautique et telecoms","Ecrans cathodiques CRT","Ecrans cathodiques CRT-CRT 19\" / 21 \"",40,null,"40","CRT 19\" / 21 \"",null,null,null,null,"CRT cathode screens","CRT 19\" / 21 \"",null,"Informatique, bureautique et telecoms","Ecrans cathodiques CRT","CRT 19\" / 21 \"","IT, office and telecoms equipment","CRT cathode screens","CRT 19\" / 21 \"",true,true,true,"IT, office and telecoms equipment-CRT cathode screens-CRT 19\" / 21 \"",40,1,null,null,null,null,"2021-02-11",4,"Jeudi",null,null,55,null,null,null,null,"Gros terminal d'impression - Photocopieurs"]
[null,null,null,"Informatique, bureautique et telecoms","Ecrans cathodiques CRT","Gros Ecran TV",null,null,"IT, office and telecoms equipment","Ecrans cathodiques CRT","Gros Ecran TV","Gros Ecran TV","0","21124","<option value=\"21124\" data-poids=\"0\" data-item=\"503ab74b00adb705acc1d32d92cd4ab4\" >Gros Ecran TV</option>","Informatique, bureautique et telecoms","Ecrans cathodiques CRT","Ecrans cathodiques CRT-Gros Ecran TV",0,null,"0","Big screen TV",null,null,null,null,"CRT cathode screens","Big screen TV",null,"Informatique, bureautique et telecoms","Ecrans cathodiques CRT","Gros Ecran TV","IT, office and telecoms equipment","CRT cathode screens","Big screen TV",true,true,true,"IT, office and telecoms equipment-CRT cathode screens-Big screen TV",0,1,null,null,null,null,"2021-02-12",5,"Vendredi",null,null,56,null,null,null,null,"Gros terminal d'impression - Traceurs"]
[null,null,null,"Informatique, bureautique et telecoms","Ecrans cathodiques CRT","Autres CRT",null,null,"IT, office and telecoms equipment","Ecrans cathodiques CRT","Autres CRT","Autres CRT","0","21262","<option value=\"21262\" data-poids=\"0\" data-item=\"503ab74b00adb705acc1d32d92cd4ab4\" >Autres CRT</option>","Informatique, bureautique et telecoms","Ecrans cathodiques CRT","Ecrans cathodiques CRT-Autres CRT",0,null,"0","Other CRT",null,null,null,null,"CRT cathode screens","Other CRT",null,"Informatique, bureautique et telecoms","Ecrans cathodiques CRT","Autres CRT","IT, office and telecoms equipment","CRT cathode screens","Other CRT",true,true,true,"IT, office and telecoms equipment-CRT cathode screens-Other CRT",0,1,null,null,null,null,"2021-02-13",6,"Samedi - pas de collecte possible",null,null,57,null,null,null,null,"Imprimantes & bureautique - Autres Imprimantes & bureautique"]
[null,null,null,"Informatique, bureautique et telecoms","Ecrans plats TFT","Autres TFT",null,null,"IT, office and telecoms equipment","Ecrans plats TFT","Autres TFT","Autres TFT","0","21264","<option value=\"21264\" data-poids=\"0\" data-item=\"60de742479496a10903c3423d5d518f6\" >Autres TFT</option>","Informatique, bureautique et telecoms","Ecrans plats TFT","Ecrans plats TFT-Autres TFT",0,null,"0","Other TFT",null,null,null,null,"TFT flat screens","Other TFT",null,"Informatique, bureautique et telecoms","Ecrans plats TFT","Autres TFT","IT, office and telecoms equipment","TFT flat screens","Other TFT",true,true,true,"IT, office and telecoms equipment-TFT flat screens-Other TFT",0,1,null,null,null,null,"2021-02-14",7,"Dimanche  - pas de collecte possible",null,null,58,null,null,null,null,"Imprimantes & bureautique - Destructeurs-de-documents"]
[null,null,null,"Informatique, bureautique et telecoms","Ecrans plats TFT","TFT <15\"",5.41,null,"IT, office and telecoms equipment","Ecrans plats TFT","TFT <15\"","TFT <15\"","7","21265","<option value=\"21265\" data-poids=\"7\" data-item=\"60de742479496a10903c3423d5d518f6\" >TFT <15\"</option>","Informatique, bureautique et telecoms","Ecrans plats TFT","Ecrans plats TFT-TFT <15\"",5.41,5.41,"7","TFT <15\"",null,null,null,null,"TFT flat screens","TFT <15\"",null,"Informatique, bureautique et telecoms","Ecrans plats TFT","TFT <15\"","IT, office and telecoms equipment","TFT flat screens","TFT <15\"",true,true,true,"IT, office and telecoms equipment-TFT flat screens-TFT <15\"",5.41,1,null,null,null,null,"2021-02-15",1,"Lundi",null,null,59,null,null,null,null,"Imprimantes & bureautique - Fax"]
[null,null,null,"Informatique, bureautique et telecoms","Ecrans plats TFT","TFT >=15\"",8,null,"IT, office and telecoms equipment","Ecrans plats TFT","TFT >=15\"","TFT >=15\"","8","21266","<option value=\"21266\" data-poids=\"8\" data-item=\"60de742479496a10903c3423d5d518f6\" >TFT >=15\"</option>","Informatique, bureautique et telecoms","Ecrans plats TFT","Ecrans plats TFT-TFT >=15\"",8,null,"8","TFT >=15\"",null,null,null,null,"TFT flat screens","TFT >=15\"",null,"Informatique, bureautique et telecoms","Ecrans plats TFT","TFT >=15\"","IT, office and telecoms equipment","TFT flat screens","TFT >=15\"",true,true,true,"IT, office and telecoms equipment-TFT flat screens-TFT >=15\"",8,1,null,null,null,null,"2021-02-16",2,"Mardi",null,null,60,null,null,null,null,"Imprimantes & bureautique - Imp Encre, Photo ou matricielle"]
[null,null,null,"Informatique, bureautique et telecoms","Ecrans plats TFT","Ecran TV et plasma",42,null,"IT, office and telecoms equipment","Ecrans plats TFT","Ecran TV et plasma","Ecran TV et plasma","42","21267","<option value=\"21267\" data-poids=\"42\" data-item=\"60de742479496a10903c3423d5d518f6\" >Ecran TV et plasma</option>","Informatique, bureautique et telecoms","Ecrans plats TFT","Ecrans plats TFT-Ecran TV et plasma",42,null,"42","TV and plasma screen",null,null,null,null,"TFT flat screens","TV and plasma screen",null,"Informatique, bureautique et telecoms","Ecrans plats TFT","Ecran TV et plasma","IT, office and telecoms equipment","TFT flat screens","TV and plasma screen",true,true,true,"IT, office and telecoms equipment-TFT flat screens-TV and plasma screen",42,1,null,null,null,null,"2021-02-17",3,"Mercredi",null,null,61,null,null,null,null,"Imprimantes & bureautique - Imp Laser et MFP A4"]
[null,null,null,"Informatique, bureautique et telecoms","Ecrans plats TFT","Cadres photo numérique",1,null,"IT, office and telecoms equipment","Ecrans plats TFT","Cadres photo numérique","Cadres photo numérique","1","21279","<option value=\"21279\" data-poids=\"1\" data-item=\"60de742479496a10903c3423d5d518f6\" >Cadres photo numérique</option>","Informatique, bureautique et telecoms","Ecrans plats TFT","Ecrans plats TFT-Cadres photo numérique",1,null,"1","Digital photo frames",null,null,null,null,"TFT flat screens","Digital photo frames",null,"Informatique, bureautique et telecoms","Ecrans plats TFT","Cadres photo numérique","IT, office and telecoms equipment","TFT flat screens","Digital photo frames",true,true,true,"IT, office and telecoms equipment-TFT flat screens-Digital photo frames",1,1,null,null,null,null,"2021-02-18",4,"Jeudi",null,null,62,null,null,null,null,"Informatique industrielle - Commandes numériques"]
[null,null,null,"Informatique, bureautique et telecoms","Ecrans plats TFT","Livres électroniques",0.2,null,"IT, office and telecoms equipment","Ecrans plats TFT","Livres électroniques","Livres électroniques","0.2","21301","<option value=\"21301\" data-poids=\"0.2\" data-item=\"60de742479496a10903c3423d5d518f6\" >Livres électroniques</option>","Informatique, bureautique et telecoms","Ecrans plats TFT","Ecrans plats TFT-Livres électroniques",0.2,null,"0.2","Electronic book",null,null,null,null,"TFT flat screens","Electronic book",null,"Informatique, bureautique et telecoms","Ecrans plats TFT","Livres électroniques","IT, office and telecoms equipment","TFT flat screens","Electronic book",true,true,true,"IT, office and telecoms equipment-TFT flat screens-Electronic book",0.2,1,null,null,null,null,"2021-02-19",5,"Vendredi",null,null,63,null,null,null,null,"Informatique industrielle - Ordinateurs industriels"]
[null,null,null,"Informatique, bureautique et telecoms","Combiné Ecran UC","PC tout en un",7.16,null,"IT, office and telecoms equipment","Combiné Ecran UC","PC tout en un","PC tout en un","16","21143","<option value=\"21143\" data-poids=\"16\" data-item=\"f7c1656c4d4dbf6e4e023fd46d81b281\" >PC tout en un</option>","Informatique, bureautique et telecoms","Combiné Ecran UC","Combiné Ecran UC-PC tout en un",7.16,7.16,"16","All in one PC",null,null,null,null,"Combined Display PC","All in one PC",null,"Informatique, bureautique et telecoms","Combiné Ecran UC","PC tout en un","IT, office and telecoms equipment","Combined Display PC","All in one PC",true,true,true,"IT, office and telecoms equipment-Combined Display PC-All in one PC",7.16,1,null,null,null,null,"2021-02-20",6,"Samedi - pas de collecte possible",null,null,64,null,null,null,null,"Matériel informatique historique - Matériel informatique historique"]
[null,null,null,"Informatique, bureautique et telecoms","Combiné Ecran UC","Client léger avec écran",13,null,"IT, office and telecoms equipment","Combiné Ecran UC","Client léger avec écran","Client léger avec écran","13","21144","<option value=\"21144\" data-poids=\"13\" data-item=\"f7c1656c4d4dbf6e4e023fd46d81b281\" >Client léger avec écran</option>","Informatique, bureautique et telecoms","Combiné Ecran UC","Combiné Ecran UC-Client léger avec écran",13,null,"13","Thin client with screen",null,null,null,null,"Combined Display PC","Thin client with screen",null,"Informatique, bureautique et telecoms","Combiné Ecran UC","Client léger avec écran","IT, office and telecoms equipment","Combined Display PC","Thin client with screen",true,true,true,"IT, office and telecoms equipment-Combined Display PC-Thin client with screen",13,1,null,null,null,null,"2021-02-21",{"$f":"WEEKDAY(AT67,2)","v":7},{"$f":"IF(AU67=1,\"Lundi\",IF(AU67=2,\"Mardi\",IF(AU67=3,\"Mercredi\",IF(AU67=4,\"Jeudi\",IF(AU67=5,\"Vendredi\",IF(AU67=6,\"Samedi - pas de collecte possible\",IF(AU67=7,\"Dimanche  - pas de collecte possible\",\"\")))))))","v":"Dimanche  - pas de collecte possible"},null,null,65,null,null,null,null,"Ordinateurs portables - Autres portables"]
[null,null,null,"Informatique, bureautique et telecoms","Combiné Ecran UC","Autres Combinés Ecran UC",null,null,"IT, office and telecoms equipment","Combiné Ecran UC","Autres Combinés Ecran UC","Autres Combinés Ecran UC","0","37663","<option value=\"37663\" data-poids=\"0\" data-item=\"f7c1656c4d4dbf6e4e023fd46d81b281\" >Autres Combinés Ecran UC</option>","Informatique, bureautique et telecoms","Combiné Ecran UC","Combiné Ecran UC-Autres Combinés Ecran UC",0,null,"0","Other Monitors and PC sets",null,null,null,null,"Combined Display PC","Other Monitors and PC sets",null,"Informatique, bureautique et telecoms","Combiné Ecran UC","Autres Combinés Ecran UC","IT, office and telecoms equipment","Combined Display PC","Other Monitors and PC sets",true,true,true,"IT, office and telecoms equipment-Combined Display PC-Other Monitors and PC sets",0,1,null,null,null,null,{"$f":"AT67+1","v":"2021-02-22"},1,"Lundi",null,null,66,null,null,null,null,"Ordinateurs portables - Portables"]
[null,null,null,"Informatique, bureautique et telecoms","Ordinateurs portables","Portables",1.73,null,"IT, office and telecoms equipment","Ordinateurs portables","Portables","Portables","3","21138","<option value=\"21138\" data-poids=\"3\" data-item=\"f5f9364a957ed323b1749371ce7f71a7\" >Portables</option>","Informatique, bureautique et telecoms","Ordinateurs portables","Ordinateurs portables-Portables",1.73,1.73,"3","Laptops",null,null,null,null,"Laptops","Laptops",null,"Informatique, bureautique et telecoms","Ordinateurs portables","Portables","IT, office and telecoms equipment","Laptops","Laptops",true,true,true,"IT, office and telecoms equipment-Laptops-Laptops",1.73,1,null,null,null,null,"2021-02-23",2,"Mardi",null,null,67,null,null,null,null,"Ordinateurs portables - Tablettes numériques"]
[null,null,null,"Informatique, bureautique et telecoms","Ordinateurs portables","Tablettes numériques",2,null,"IT, office and telecoms equipment","Ordinateurs portables","Tablettes numériques","Tablettes numériques","2","21140","<option value=\"21140\" data-poids=\"2\" data-item=\"f5f9364a957ed323b1749371ce7f71a7\" >Tablettes numériques</option>","Informatique, bureautique et telecoms","Ordinateurs portables","Ordinateurs portables-Tablettes numériques",2,null,"2","Numerical tablets",null,null,null,null,"Laptops","Numerical tablets",null,"Informatique, bureautique et telecoms","Ordinateurs portables","Tablettes numériques","IT, office and telecoms equipment","Laptops","Numerical tablets",true,true,true,"IT, office and telecoms equipment-Laptops-Numerical tablets",2,1,null,null,null,null,"2021-02-24",3,"Mercredi",null,null,68,null,null,null,null,"Ordinateurs, UC - Autres UC"]
[null,null,null,"Informatique, bureautique et telecoms","Ordinateurs portables","Autres portables",null,null,"IT, office and telecoms equipment","Ordinateurs portables","Autres portables","Autres portables","0","21141","<option value=\"21141\" data-poids=\"0\" data-item=\"f5f9364a957ed323b1749371ce7f71a7\" >Autres portables</option>","Informatique, bureautique et telecoms","Ordinateurs portables","Ordinateurs portables-Autres portables",0,null,"0","Other laptops",null,null,null,null,"Laptops","Other laptops",null,"Informatique, bureautique et telecoms","Ordinateurs portables","Autres portables","IT, office and telecoms equipment","Laptops","Other laptops",true,true,true,"IT, office and telecoms equipment-Laptops-Other laptops",0,1,null,null,null,null,"2021-02-25",4,"Jeudi",null,null,69,null,null,null,null,"Ordinateurs, UC - Client léger sans écran"]
[null,null,null,"Informatique, bureautique et telecoms","Téléphonie filaire","Audioconférence",0.2,null,"IT, office and telecoms equipment","Téléphonie filaire","Audioconférence","Audioconférence","0.2","21247","<option value=\"21247\" data-poids=\"0.2\" data-item=\"8c98374c9389056f05bdaf645acd291a\" >Audioconférence</option>","Informatique, bureautique et telecoms","Téléphonie filaire","Téléphonie filaire-Audioconférence",0.2,null,"0.2","Conference call equipment",null,null,null,null,"Wired telephony","Conference call equipment",null,"Informatique, bureautique et telecoms","Téléphonie filaire","Audioconférence","IT, office and telecoms equipment","Wired telephony","Conference call equipment",true,true,true,"IT, office and telecoms equipment-Wired telephony-Conference call equipment",0.2,1,null,null,null,null,"2021-02-26",5,"Vendredi",null,null,70,null,null,null,null,"Ordinateurs, UC - UC de bureau"]
[null,null,null,"Infra Impression, réseaux et monétique","Informatique industrielle","Ordinateurs industriels",150,null,"Data Center and Networking","Informatique industrielle","Ordinateurs industriels","Ordinateurs industriels","150","21251","<option value=\"21251\" data-poids=\"150\" data-item=\"c4dd56ac2cdf83ce442089f51dfdce6a\" >Ordinateurs industriels</option>","Infra Impression, réseaux et monétique","Informatique industrielle","Informatique industrielle-Ordinateurs industriels",150,null,"150","Industrial computers",null,null,null,null,"Industrial data","Industrial computers",null,"Infra Impression, réseaux et monétique","Informatique industrielle","Ordinateurs industriels","Data Center and Networking","Industrial data","Industrial computers",true,true,true,"Data Center and Networking-Industrial data-Industrial computers",150,2,null,null,null,null,"2021-02-27",6,"Samedi - pas de collecte possible",null,null,71,null,null,null,null,"Périphériques audio/video - Autres périphériques AV"]
[null,null,null,"Infra Impression, réseaux et monétique","Informatique industrielle","Commandes numériques",null,null,"Data Center and Networking","Informatique industrielle","Commandes numériques","Commandes numériques","0","38087","<option value=\"38087\" data-poids=\"0\" data-item=\"c4dd56ac2cdf83ce442089f51dfdce6a\" >Commandes numériques</option>","Infra Impression, réseaux et monétique","Informatique industrielle","Informatique industrielle-Commandes numériques",0,null,"0","Numerical controls",null,null,null,null,"Industrial data","Numerical controls",null,"Infra Impression, réseaux et monétique","Informatique industrielle","Commandes numériques","Data Center and Networking","Industrial data","Numerical controls",true,true,true,"Data Center and Networking-Industrial data-Numerical controls",0,2,null,null,null,null,"2021-02-28",7,"Dimanche  - pas de collecte possible",null,null,72,null,null,null,null,"Périphériques audio/video - Bluetooth"]
[null,null,null,"Infra Impression, réseaux et monétique","Baies","Baies Brassage",3,null,"Data Center and Networking","Baies","Baies Brassage","Baies Brassage","3","21160","<option value=\"21160\" data-poids=\"3\" data-item=\"9176714d99d691500de3c965f2a0c676\" >Baies Brassage</option>","Infra Impression, réseaux et monétique","Baies","Baies-Baies Brassage",3,null,"3","Patch panels",null,null,null,null,"Panels/cabinets","Patch panels",null,"Infra Impression, réseaux et monétique","Baies","Baies Brassage","Data Center and Networking","Panels/cabinets","Patch panels",true,true,true,"Data Center and Networking-Panels/cabinets-Patch panels",3,2,null,null,null,null,"2021-03-01",1,"Lundi",null,null,73,null,null,null,null,"Périphériques audio/video - Carte Electronique"]
[null,null,null,"Infra Impression, réseaux et monétique","Baies","Autres imp & bur",null,null,"Data Center and Networking","Baies","Autres imp & bur","Autres imp & bur","0","21184","<option value=\"21184\" data-poids=\"0\" data-item=\"9176714d99d691500de3c965f2a0c676\" >Autres imp & bur</option>","Infra Impression, réseaux et monétique","Baies","Baies-Autres imp & bur",0,null,"0","Other imp & bur",null,null,null,null,"Panels/cabinets","Other imp & bur",null,"Infra Impression, réseaux et monétique","Baies","Autres imp & bur","Data Center and Networking","Panels/cabinets","Other imp & bur",true,true,true,"Data Center and Networking-Panels/cabinets-Other imp & bur",0,2,null,null,null,null,"2021-03-02",2,"Mardi",null,null,74,null,null,null,null,"Périphériques audio/video - Casques et micros"]
[null,null,null,"Infra Impression, réseaux et monétique","Baies","Machine à écrire",3,null,"Data Center and Networking","Baies","Machine à écrire","Machine à écrire","3","21238","<option value=\"21238\" data-poids=\"3\" data-item=\"9176714d99d691500de3c965f2a0c676\" >Machine à écrire</option>","Infra Impression, réseaux et monétique","Baies","Baies-Machine à écrire",3,null,"3","Typewriter",null,null,null,null,"Panels/cabinets","Typewriter",null,"Infra Impression, réseaux et monétique","Baies","Machine à écrire","Data Center and Networking","Panels/cabinets","Typewriter",true,true,true,"Data Center and Networking-Panels/cabinets-Typewriter",3,2,null,null,null,null,"2021-03-03",3,"Mercredi",null,null,75,null,null,null,null,"Périphériques audio/video - Dictaphones"]
[null,null,null,"Infra Impression, réseaux et monétique","Baies","Plastifieuse",5,null,"Data Center and Networking","Baies","Plastifieuse","Plastifieuse","5","21245","<option value=\"21245\" data-poids=\"5\" data-item=\"9176714d99d691500de3c965f2a0c676\" >Plastifieuse</option>","Infra Impression, réseaux et monétique","Baies","Baies-Plastifieuse",5,null,"5","Laminator",null,null,null,null,"Panels/cabinets","Laminator",null,"Infra Impression, réseaux et monétique","Baies","Plastifieuse","Data Center and Networking","Panels/cabinets","Laminator",true,true,true,"Data Center and Networking-Panels/cabinets-Laminator",5,2,null,null,null,null,"2021-03-04",4,"Jeudi",null,null,76,null,null,null,null,"Périphériques audio/video - Enceintes ordinateur"]
[null,null,null,"Infra Impression, réseaux et monétique","Baies","Armoires vides d'équipements",null,null,"Data Center and Networking","Baies","Armoires vides d'équipements","Armoires vides d'équipements","0","38096","<option value=\"38096\" data-poids=\"0\" data-item=\"9176714d99d691500de3c965f2a0c676\" >Armoires vides d'équipements</option>","Infra Impression, réseaux et monétique","Baies","Baies-Armoires vides d'équipements",0,null,"0","Empty equipment cabinets",null,null,null,null,"Panels/cabinets","Empty equipment cabinets",null,"Infra Impression, réseaux et monétique","Baies","Armoires vides d'équipements","Data Center and Networking","Panels/cabinets","Empty equipment cabinets",true,true,true,"Data Center and Networking-Panels/cabinets-Empty equipment cabinets",0,2,null,null,null,null,"2021-03-05",5,"Vendredi",null,null,77,null,null,null,null,"Périphériques audio/video - Graveurs et lecteurs"]
[null,null,null,"Infra Impression, réseaux et monétique","Cables et connectiques","Cables video",null,null,"Data Center and Networking","Cables et connectiques","Cables video","Cables video","0","21100","<option value=\"21100\" data-poids=\"0\" data-item=\"d03b23a576c18fbf06989d7d3cda37b1\" >Cables video</option>","Infra Impression, réseaux et monétique","Cables et connectiques","Cables et connectiques-Cables video",0,null,"0","Video cables",null,null,null,null,"Cables and connectors","Video cables",null,"Infra Impression, réseaux et monétique","Cables et connectiques","Cables video","Data Center and Networking","Cables and connectors","Video cables",true,true,true,"Data Center and Networking-Cables and connectors-Video cables",0,2,null,null,null,null,"2021-03-06",6,"Samedi - pas de collecte possible",null,null,78,null,null,null,null,"Périphériques audio/video - Talkie walkies"]
[null,null,null,"Infra Impression, réseaux et monétique","Cables et connectiques","Cables alimentation",0.42,null,"Data Center and Networking","Cables et connectiques","Cables alimentation","Cables alimentation","2","21101","<option value=\"21101\" data-poids=\"2\" data-item=\"d03b23a576c18fbf06989d7d3cda37b1\" >Cables alimentation</option>","Infra Impression, réseaux et monétique","Cables et connectiques","Cables et connectiques-Cables alimentation",0.42,0.41899999999999998,"2","Power cables",null,null,null,null,"Cables and connectors","Power cables",null,"Infra Impression, réseaux et monétique","Cables et connectiques","Cables alimentation","Data Center and Networking","Cables and connectors","Power cables",true,true,true,"Data Center and Networking-Cables and connectors-Power cables",0.42,2,null,null,null,null,"2021-03-07",7,"Dimanche  - pas de collecte possible",null,null,79,null,null,null,null,"Périphériques audio/video - Télécommandes"]
[null,null,null,"Infra Impression, réseaux et monétique","Cables et connectiques","Cables divers",null,null,"Data Center and Networking","Cables et connectiques","Cables divers","Cables divers","0","21102","<option value=\"21102\" data-poids=\"0\" data-item=\"d03b23a576c18fbf06989d7d3cda37b1\" >Cables divers</option>","Infra Impression, réseaux et monétique","Cables et connectiques","Cables et connectiques-Cables divers",0,null,"0","Various cables",null,null,null,null,"Cables and connectors","Various cables",null,"Infra Impression, réseaux et monétique","Cables et connectiques","Cables divers","Data Center and Networking","Cables and connectors","Various cables",true,true,true,"Data Center and Networking-Cables and connectors-Various cables",0,2,null,null,null,null,"2021-03-08",1,"Lundi",null,null,80,null,null,null,null,"Périphériques informatiques - Autres périphériques et divers"]
[null,null,null,"Infra Impression, réseaux et monétique","Equipements réseaux","Onduleurs",null,null,"Data Center and Networking","Equipements réseaux","Onduleurs","Onduleurs","0","21135","<option value=\"21135\" data-poids=\"0\" data-item=\"90547cd54abd608ba0fd6a253e805628\" >Onduleurs</option>","Infra Impression, réseaux et monétique","Equipements réseaux","Equipements réseaux-Onduleurs",0,null,"0","Inverters",null,null,null,null,"Network equipment","Inverters",null,"Infra Impression, réseaux et monétique","Equipements réseaux","Onduleurs","Data Center and Networking","Network equipment","Inverters",true,true,true,"Data Center and Networking-Network equipment-Inverters",0,2,null,null,null,null,"2021-03-09",2,"Mardi",null,null,81,null,null,null,null,"Périphériques informatiques - Claviers souris"]
[null,null,null,"Infra Impression, réseaux et monétique","Equipements réseaux","Modems/Routeurs",1,null,"Data Center and Networking","Equipements réseaux","Modems/Routeurs","Modems/Routeurs","1","21159","<option value=\"21159\" data-poids=\"1\" data-item=\"90547cd54abd608ba0fd6a253e805628\" >Modems/Routeurs</option>","Infra Impression, réseaux et monétique","Equipements réseaux","Equipements réseaux-Modems/Routeurs",1,null,"1","Modems / Routers",null,null,null,null,"Network equipment","Modems / Routers",null,"Infra Impression, réseaux et monétique","Equipements réseaux","Modems/Routeurs","Data Center and Networking","Network equipment","Modems / Routers",true,true,true,"Data Center and Networking-Network equipment-Modems / Routers",1,2,null,null,null,null,"2021-03-10",3,"Mercredi",null,null,82,null,null,null,null,"Périphériques informatiques - Douchettes"]
[null,null,null,"Infra Impression, réseaux et monétique","Equipements réseaux","Switchs / Hubs",1,null,"Data Center and Networking","Equipements réseaux","Switchs / Hubs","Switchs / Hubs","1","21161","<option value=\"21161\" data-poids=\"1\" data-item=\"90547cd54abd608ba0fd6a253e805628\" >Switchs / Hubs</option>","Infra Impression, réseaux et monétique","Equipements réseaux","Equipements réseaux-Switchs / Hubs",1,null,"1","Switch / Hubs",null,null,null,null,"Network equipment","Switch / Hubs",null,"Infra Impression, réseaux et monétique","Equipements réseaux","Switchs / Hubs","Data Center and Networking","Network equipment","Switch / Hubs",true,true,true,"Data Center and Networking-Network equipment-Switch / Hubs",1,2,null,null,null,null,"2021-03-11",4,"Jeudi",null,null,83,null,null,null,null,"Périphériques informatiques - GPS"]
[null,null,null,"Infra Impression, réseaux et monétique","Equipements réseaux","Antennes WIFI",2,null,"Data Center and Networking","Equipements réseaux","Antennes WIFI","Antennes WIFI","2","21164","<option value=\"21164\" data-poids=\"2\" data-item=\"90547cd54abd608ba0fd6a253e805628\" >Antennes WIFI</option>","Infra Impression, réseaux et monétique","Equipements réseaux","Equipements réseaux-Antennes WIFI",2,null,"2","WIFI antennas",null,null,null,null,"Network equipment","WIFI antennas",null,"Infra Impression, réseaux et monétique","Equipements réseaux","Antennes WIFI","Data Center and Networking","Network equipment","WIFI antennas",true,true,true,"Data Center and Networking-Network equipment-WIFI antennas",2,2,null,null,null,null,"2021-03-12",5,"Vendredi",null,null,84,null,null,null,null,"Périphériques informatiques - Hubs USB"]
[null,null,null,"Infra Impression, réseaux et monétique","Equipements réseaux","Autres éléments réseau",null,null,"Data Center and Networking","Equipements réseaux","Autres éléments réseau","Autres éléments réseau","0","21166","<option value=\"21166\" data-poids=\"0\" data-item=\"90547cd54abd608ba0fd6a253e805628\" >Autres éléments réseau</option>","Infra Impression, réseaux et monétique","Equipements réseaux","Equipements réseaux-Autres éléments réseau",0,null,"0","Other network elements",null,null,null,null,"Network equipment","Other network elements",null,"Infra Impression, réseaux et monétique","Equipements réseaux","Autres éléments réseau","Data Center and Networking","Network equipment","Other network elements",true,true,true,"Data Center and Networking-Network equipment-Other network elements",0,2,null,null,null,null,"2021-03-13",6,"Samedi - pas de collecte possible",null,null,85,null,null,null,null,"Périphériques informatiques - KVM"]
[null,null,null,"Infra Impression, réseaux et monétique","Equipements réseaux","Lecteurs Multimédia",1,null,"Data Center and Networking","Equipements réseaux","Lecteurs Multimédia","Lecteurs Multimédia","1","21169","<option value=\"21169\" data-poids=\"1\" data-item=\"90547cd54abd608ba0fd6a253e805628\" >Lecteurs Multimédia</option>","Infra Impression, réseaux et monétique","Equipements réseaux","Equipements réseaux-Lecteurs Multimédia",1,null,"1","Multimedia players",null,null,null,null,"Network equipment","Multimedia players",null,"Infra Impression, réseaux et monétique","Equipements réseaux","Lecteurs Multimédia","Data Center and Networking","Network equipment","Multimedia players",true,true,true,"Data Center and Networking-Network equipment-Multimedia players",1,2,null,null,null,null,"2021-03-14",7,"Dimanche  - pas de collecte possible",null,null,86,null,null,null,null,"Périphériques informatiques - Multiprises"]
[null,null,null,"Infra Impression, réseaux et monétique","Equipements réseaux","Robots de stockage/archivage",150,null,"Data Center and Networking","Equipements réseaux","Robots de stockage/archivage","Robots de stockage/archivage","150","21173","<option value=\"21173\" data-poids=\"150\" data-item=\"90547cd54abd608ba0fd6a253e805628\" >Robots de stockage/archivage</option>","Infra Impression, réseaux et monétique","Equipements réseaux","Equipements réseaux-Robots de stockage/archivage",150,null,"150","Storage  / archiving robots",null,null,null,null,"Network equipment","Storage  / archiving robots",null,"Infra Impression, réseaux et monétique","Equipements réseaux","Robots de stockage/archivage","Data Center and Networking","Network equipment","Storage  / archiving robots",true,true,true,"Data Center and Networking-Network equipment-Storage  / archiving robots",150,2,null,null,null,null,"2021-03-15",1,"Lundi",null,null,87,null,null,null,null,"Périphériques informatiques - Tablettes graphiques"]
[null,null,null,"Infra Impression, réseaux et monétique","Equipements réseaux","PABX",100,null,"Data Center and Networking","Equipements réseaux","PABX","PABX","100","26608","<option value=\"26608\" data-poids=\"100\" data-item=\"90547cd54abd608ba0fd6a253e805628\" >PABX</option>","Infra Impression, réseaux et monétique","Equipements réseaux","Equipements réseaux-PABX",100,null,"100","PABX",null,null,null,null,"Network equipment","PABX",null,"Infra Impression, réseaux et monétique","Equipements réseaux","PABX","Data Center and Networking","Network equipment","PABX",true,true,true,"Data Center and Networking-Network equipment-PABX",100,2,null,null,null,null,"2021-03-16",2,"Mardi",null,null,88,null,null,null,null,"Périphériques informatiques - Webcams"]
[null,null,null,"Infra Impression, réseaux et monétique","Equipements réseaux","Routeurs",null,null,"Data Center and Networking","Equipements réseaux","Routeurs","Routeurs","0","29121","<option value=\"29121\" data-poids=\"0\" data-item=\"90547cd54abd608ba0fd6a253e805628\" >Routeurs</option>","Infra Impression, réseaux et monétique","Equipements réseaux","Equipements réseaux-Routeurs",0,null,"0","Routers",null,null,null,null,"Network equipment","Routers",null,"Infra Impression, réseaux et monétique","Equipements réseaux","Routeurs","Data Center and Networking","Network equipment","Routers",true,true,true,"Data Center and Networking-Network equipment-Routers",0,2,null,null,null,null,"2021-03-17",3,"Mercredi",null,null,89,null,null,null,null,"Périphériques stockage - Autres sauvegarde / stockage"]
[null,null,null,"Infra Impression, réseaux et monétique","Serveurs","Serveur Tour",20,null,"Data Center and Networking","Serveurs","Serveur Tour","Serveur Tour","20","21090","<option value=\"21090\" data-poids=\"20\" data-item=\"6e8d7773e01238bf27822b26f8e25610\" >Serveur Tour</option>","Infra Impression, réseaux et monétique","Serveurs","Serveurs-Serveur Tour",20,19.134,"20","Tower servers",null,null,null,null,"Servers","Tower servers",null,"Infra Impression, réseaux et monétique","Serveurs","Serveur Tour","Data Center and Networking","Servers","Tower servers",true,true,true,"Data Center and Networking-Servers-Tower servers",20,2,null,null,null,null,"2021-03-18",4,"Jeudi",null,null,90,null,null,null,null,"Périphériques stockage - Cartes Mémoire"]
[null,null,null,"Infra Impression, réseaux et monétique","Serveurs","Serveur Rack",10,null,"Data Center and Networking","Serveurs","Serveur Rack","Serveur Rack","10","21091","<option value=\"21091\" data-poids=\"10\" data-item=\"6e8d7773e01238bf27822b26f8e25610\" >Serveur Rack</option>","Infra Impression, réseaux et monétique","Serveurs","Serveurs-Serveur Rack",10,21.6,"10","Rack servers",null,null,null,null,"Servers","Rack servers",null,"Infra Impression, réseaux et monétique","Serveurs","Serveur Rack","Data Center and Networking","Servers","Rack servers",true,true,true,"Data Center and Networking-Servers-Rack servers",10,2,null,null,null,null,"2021-03-19",5,"Vendredi",null,null,91,null,null,null,null,"Périphériques stockage - Clés USB"]
[null,null,null,"Infra Impression, réseaux et monétique","Serveurs","Serveur Lame",7.22,null,"Data Center and Networking","Serveurs","Serveur Lame","Serveur Lame","10","21092","<option value=\"21092\" data-poids=\"10\" data-item=\"6e8d7773e01238bf27822b26f8e25610\" >Serveur Lame</option>","Infra Impression, réseaux et monétique","Serveurs","Serveurs-Serveur Lame",7.22,7.2140000000000004,"10","Blade servers",null,null,null,null,"Servers","Blade servers",null,"Infra Impression, réseaux et monétique","Serveurs","Serveur Lame","Data Center and Networking","Servers","Blade servers",true,true,true,"Data Center and Networking-Servers-Blade servers",7.22,2,null,null,null,null,"2021-03-20",6,"Samedi - pas de collecte possible",null,null,92,null,null,null,null,"Périphériques stockage - Disques Durs"]
[null,null,null,"Infra Impression, réseaux et monétique","Serveurs","Autres serveurs",null,null,"Data Center and Networking","Serveurs","Autres serveurs","Autres serveurs","0","21094","<option value=\"21094\" data-poids=\"0\" data-item=\"6e8d7773e01238bf27822b26f8e25610\" >Autres serveurs</option>","Infra Impression, réseaux et monétique","Serveurs","Serveurs-Autres serveurs",0,null,"0","Other servers",null,null,null,null,"Servers","Other servers",null,"Infra Impression, réseaux et monétique","Serveurs","Autres serveurs","Data Center and Networking","Servers","Other servers",true,true,true,"Data Center and Networking-Servers-Other servers",0,2,null,null,null,null,"2021-03-21",7,"Dimanche  - pas de collecte possible",null,null,93,null,null,null,null,"Périphériques stockage - Graveurs"]
[null,null,null,"Infra Impression, réseaux et monétique","Serveurs","Mainframe",112,null,"Data Center and Networking","Serveurs","Mainframe","Mainframe","200","21095","<option value=\"21095\" data-poids=\"200\" data-item=\"6e8d7773e01238bf27822b26f8e25610\" >Mainframe</option>","Infra Impression, réseaux et monétique","Serveurs","Serveurs-Mainframe",112,112,"200","Mainframes",null,null,null,null,"Servers","Mainframes",null,"Infra Impression, réseaux et monétique","Serveurs","Mainframe","Data Center and Networking","Servers","Mainframes",true,true,true,"Data Center and Networking-Servers-Mainframes",112,2,null,null,null,null,"2021-03-22",1,"Lundi",null,null,94,null,null,null,null,"Périphériques stockage - Lecteurs de bandes et médias"]
[null,null,null,"Equipements de Culture Loisirs et Sports","Affichage et présentation","Tableau LCD",45,null,"Home Audio / Video equipment","Affichage et présentation","Tableau LCD","Tableau LCD","45","21257","<option value=\"21257\" data-poids=\"45\" data-item=\"dde5f2ab209d588ee626f45acbf14129\" >Tableau LCD</option>","Equipements de Culture Loisirs et Sports","Affichage et présentation","Affichage et présentation-Tableau LCD",45,null,"45","LCD tablet",null,null,null,null,"Display and presentation","LCD tablet",null,"Equipements de Culture Loisirs et Sports","Affichage et présentation","Tableau LCD","Home Audio / Video equipment","Display and presentation","LCD tablet",true,true,true,"Home Audio / Video equipment-Display and presentation-LCD tablet",45,3,null,null,null,null,"2021-03-23",2,"Mardi",null,null,95,null,null,null,null,"Photo - Appareils photo"]
[null,null,null,"Equipements de Culture Loisirs et Sports","Video","Autres périphériques video",null,null,"Home Audio / Video equipment","Video","Autres périphériques video","Autres périphériques video","0","21297","<option value=\"21297\" data-poids=\"0\" data-item=\"3c0b85116be51170f5fdaf91753eced9\" >Autres périphériques video</option>","Equipements de Culture Loisirs et Sports","Video","Video-Autres périphériques video",0,null,"0","Other peripherical video device",null,null,null,null,"Video","Other peripherical video device",null,"Equipements de Culture Loisirs et Sports","Video","Autres périphériques video","Home Audio / Video equipment","Video","Other peripherical video device",true,true,true,"Home Audio / Video equipment-Video-Other peripherical video device",0,3,null,null,null,null,"2021-03-24",3,"Mercredi",null,null,96,null,null,null,null,"Photo - Autres périphériques photo"]
[null,null,null,"Equipements de Culture Loisirs et Sports","Video","Videoprojecteurs",4,null,"Home Audio / Video equipment","Video","Videoprojecteurs","Videoprojecteurs","4","21298","<option value=\"21298\" data-poids=\"4\" data-item=\"3c0b85116be51170f5fdaf91753eced9\" >Videoprojecteurs</option>","Equipements de Culture Loisirs et Sports","Video","Video-Videoprojecteurs",4,null,"4","Video projectors",null,null,null,null,"Video","Video projectors",null,"Equipements de Culture Loisirs et Sports","Video","Videoprojecteurs","Home Audio / Video equipment","Video","Video projectors",true,true,true,"Home Audio / Video equipment-Video-Video projectors",4,3,null,null,null,null,"2021-03-25",4,"Jeudi",null,null,97,null,null,null,null,"Photo - Optiques"]
[null,null,null,"Equipements de Culture Loisirs et Sports","Video","Antennes",1,null,"Home Audio / Video equipment","Video","Antennes","Antennes","1","21299","<option value=\"21299\" data-poids=\"1\" data-item=\"3c0b85116be51170f5fdaf91753eced9\" >Antennes</option>","Equipements de Culture Loisirs et Sports","Video","Video-Antennes",1,null,"1","Antennas",null,"DCG",null,null,"Video","Antennas",null,"Equipements de Culture Loisirs et Sports","Video","Antennes","Home Audio / Video equipment","Video","Antennas",true,true,true,"Home Audio / Video equipment-Video-Antennas",1,3,null,null,null,null,"2021-03-26",5,"Vendredi",null,null,98,null,null,null,null,"Pieces détachées informatique - Autres pièces détachées"]
[null,null,null,"Equipements de Culture Loisirs et Sports","Video","Passerelles multimedia",1,null,"Home Audio / Video equipment","Video","Passerelles multimedia","Passerelles multimedia","1","21300","<option value=\"21300\" data-poids=\"1\" data-item=\"3c0b85116be51170f5fdaf91753eced9\" >Passerelles multimedia</option>","Equipements de Culture Loisirs et Sports","Video","Video-Passerelles multimedia",1,null,"1","Multimedia gateways",null,null,null,null,"Video","Multimedia gateways",null,"Equipements de Culture Loisirs et Sports","Video","Passerelles multimedia","Home Audio / Video equipment","Video","Multimedia gateways",true,true,true,"Home Audio / Video equipment-Video-Multimedia gateways",1,3,null,null,null,null,"2021-03-27",6,"Samedi - pas de collecte possible",null,null,99,null,null,null,null,"Pieces détachées informatique - Cartes électroniques"]
[null,null,null,"Equipements de Culture Loisirs et Sports","Video","Lecteurs et Enregistreur DVD",4,null,"Home Audio / Video equipment","Video","Lecteurs et Enregistreur DVD","Lecteurs et Enregistreur DVD","4","21302","<option value=\"21302\" data-poids=\"4\" data-item=\"3c0b85116be51170f5fdaf91753eced9\" >Lecteurs et Enregistreur DVD</option>","Equipements de Culture Loisirs et Sports","Video","Video-Lecteurs et Enregistreur DVD",4,null,"4","DVD player and recorder",null,null,null,null,"Video","DVD player and recorder",null,"Equipements de Culture Loisirs et Sports","Video","Lecteurs et Enregistreur DVD","Home Audio / Video equipment","Video","DVD player and recorder",true,true,true,"Home Audio / Video equipment-Video-DVD player and recorder",4,3,null,null,null,null,"2021-03-28",7,"Dimanche  - pas de collecte possible",null,null,100,null,null,null,null,"Pieces détachées informatique - Lecteur CD ROM"]
[null,null,null,"Equipements de Culture Loisirs et Sports","Video","Cameras",1,null,"Home Audio / Video equipment","Video","Cameras","Cameras","1","21306","<option value=\"21306\" data-poids=\"1\" data-item=\"3c0b85116be51170f5fdaf91753eced9\" >Cameras</option>","Equipements de Culture Loisirs et Sports","Video","Video-Cameras",1,null,"1","Cameras",null,null,null,null,"Video","Cameras",null,"Equipements de Culture Loisirs et Sports","Video","Cameras","Home Audio / Video equipment","Video","Cameras",true,true,true,"Home Audio / Video equipment-Video-Cameras",1,3,null,null,null,null,"2021-03-29",1,"Lundi",null,null,null,null,null,null,null,"Pieces détachées informatique - Lecteurs Disquette"]
[null,null,null,"Equipements de Culture Loisirs et Sports","Video","Accessoires TV",0.2,null,"Home Audio / Video equipment","Video","Accessoires TV","Accessoires TV","0.2","21307","<option value=\"21307\" data-poids=\"0.2\" data-item=\"3c0b85116be51170f5fdaf91753eced9\" >Accessoires TV</option>","Equipements de Culture Loisirs et Sports","Video","Video-Accessoires TV",0.2,null,"0.2","TV accessories",null,null,null,null,"Video","TV accessories",null,"Equipements de Culture Loisirs et Sports","Video","Accessoires TV","Home Audio / Video equipment","Video","TV accessories",true,true,true,"Home Audio / Video equipment-Video-TV accessories",0.2,3,null,null,null,null,"2021-03-30",2,"Mardi",null,null,null,null,null,null,null,"Piles & Accumulateurs industriels - Autres accumulateurs"]
[null,null,null,"Equipements de Culture Loisirs et Sports","Photo","Appareils photo",1,null,"Home Audio / Video equipment","Photo","Appareils photo","Appareils photo","1","21276","<option value=\"21276\" data-poids=\"1\" data-item=\"42ac69b3a55d6b7420343bb14361ae23\" >Appareils photo</option>","Equipements de Culture Loisirs et Sports","Photo","Photo-Appareils photo",1,null,"1","Photo camera",null,null,null,null,"Photo","Photo camera",null,"Equipements de Culture Loisirs et Sports","Photo","Appareils photo","Home Audio / Video equipment","Photo","Photo camera",true,true,true,"Home Audio / Video equipment-Photo-Photo camera",1,3,null,null,null,null,"2021-03-31",3,"Mercredi",null,null,null,null,null,null,null,"Piles & Accumulateurs industriels - Lithium"]
[null,null,null,"Equipements de Culture Loisirs et Sports","Photo","Autres périphériques photo",null,null,"Home Audio / Video equipment","Photo","Autres périphériques photo","Autres périphériques photo","0","21278","<option value=\"21278\" data-poids=\"0\" data-item=\"42ac69b3a55d6b7420343bb14361ae23\" >Autres périphériques photo</option>","Equipements de Culture Loisirs et Sports","Photo","Photo-Autres périphériques photo",0,null,"0","Other photo peripherical device",null,null,null,null,"Photo","Other photo peripherical device",null,"Equipements de Culture Loisirs et Sports","Photo","Autres périphériques photo","Home Audio / Video equipment","Photo","Other photo peripherical device",true,true,true,"Home Audio / Video equipment-Photo-Other photo peripherical device",0,3,null,null,null,null,"2021-04-01",4,"Jeudi",null,null,null,null,null,null,null,"Piles & Accumulateurs industriels - Plomb"]
[null,null,null,"Equipements de Culture Loisirs et Sports","Photo","Optiques",1,null,"Home Audio / Video equipment","Photo","Optiques","Optiques","1","21280","<option value=\"21280\" data-poids=\"1\" data-item=\"42ac69b3a55d6b7420343bb14361ae23\" >Optiques</option>","Equipements de Culture Loisirs et Sports","Photo","Photo-Optiques",1,null,"1","Optical",null,null,null,null,"Photo","Optical",null,"Equipements de Culture Loisirs et Sports","Photo","Optiques","Home Audio / Video equipment","Photo","Optical",true,true,true,"Home Audio / Video equipment-Photo-Optical",1,3,null,null,null,null,"2021-04-02",5,"Vendredi",null,null,null,null,null,null,null,"Piles et accumulateurs (non industriels) - Accumulateurs"]
[null,null,null,"Equipements de Culture Loisirs et Sports","Audio","Baladeurs audio et MP3",0.2,null,"Home Audio / Video equipment","Audio","Baladeurs audio et MP3","Baladeurs audio et MP3","0.2","21285","<option value=\"21285\" data-poids=\"0.2\" data-item=\"c3ce2766a4e65922e168f17150a8ac5d\" >Baladeurs audio et MP3</option>","Equipements de Culture Loisirs et Sports","Audio","Audio-Baladeurs audio et MP3",0.2,null,"0.2","MP3 and audio players",null,null,null,null,"Audio","MP3 and audio players",null,"Equipements de Culture Loisirs et Sports","Audio","Baladeurs audio et MP3","Home Audio / Video equipment","Audio","MP3 and audio players",true,true,true,"Home Audio / Video equipment-Audio-MP3 and audio players",0.2,3,null,null,null,null,"2021-04-03",6,"Samedi - pas de collecte possible",null,null,null,null,null,null,null,"Piles et accumulateurs (non industriels) - Piles"]
[null,null,null,"Equipements de Culture Loisirs et Sports","Audio","Amplificateurs",6,null,"Home Audio / Video equipment","Audio","Amplificateurs","Amplificateurs","6","21286","<option value=\"21286\" data-poids=\"6\" data-item=\"c3ce2766a4e65922e168f17150a8ac5d\" >Amplificateurs</option>","Equipements de Culture Loisirs et Sports","Audio","Audio-Amplificateurs",6,null,"6","Amplifier",null,null,null,null,"Audio","Amplifier",null,"Equipements de Culture Loisirs et Sports","Audio","Amplificateurs","Home Audio / Video equipment","Audio","Amplifier",true,true,true,"Home Audio / Video equipment-Audio-Amplifier",6,3,null,null,null,null,"2021-04-04",7,"Dimanche  - pas de collecte possible",null,null,null,null,null,null,null,"Serveurs - Autres serveurs"]
[null,null,null,"Equipements de Culture Loisirs et Sports","Audio","Convertisseurs audio-video",0.05,null,"Home Audio / Video equipment","Audio","Convertisseurs audio-video","Convertisseurs audio-video","0.05","21288","<option value=\"21288\" data-poids=\"0.05\" data-item=\"c3ce2766a4e65922e168f17150a8ac5d\" >Convertisseurs audio-video</option>","Equipements de Culture Loisirs et Sports","Audio","Audio-Convertisseurs audio-video",0.05,null,"0.05","Audio-video converters",null,null,null,null,"Audio","Audio-video converters",null,"Equipements de Culture Loisirs et Sports","Audio","Convertisseurs audio-video","Home Audio / Video equipment","Audio","Audio-video converters",true,true,true,"Home Audio / Video equipment-Audio-Audio-video converters",0.05,3,null,null,null,null,"2021-04-05",1,"Lundi",null,null,null,null,null,null,null,"Serveurs - Mainframe"]
[null,null,null,"Equipements de Culture Loisirs et Sports","Audio","Enceintes",4,null,"Home Audio / Video equipment","Audio","Enceintes","Enceintes","4","21290","<option value=\"21290\" data-poids=\"4\" data-item=\"c3ce2766a4e65922e168f17150a8ac5d\" >Enceintes</option>","Equipements de Culture Loisirs et Sports","Audio","Audio-Enceintes",4,null,"4","Speakers",null,null,null,null,"Audio","Speakers",null,"Equipements de Culture Loisirs et Sports","Audio","Enceintes","Home Audio / Video equipment","Audio","Speakers",true,true,true,"Home Audio / Video equipment-Audio-Speakers",4,3,null,null,null,null,"2021-04-06",2,"Mardi",null,null,null,null,null,null,null,"Serveurs - Serveur Lame"]
[null,null,null,"Piles & Accumulateurs","Piles & Accumulateurs industriels","Lithium",null,null,"Batteries","Piles & Accumulateurs industriels","Lithium","Lithium","0","37656","<option value=\"37656\" data-poids=\"0\" data-item=\"9c42558fa3ef0cfd0be70c12dee816c9\" >Lithium</option>","Piles & Accumulateurs","Piles & Accumulateurs industriels","Piles & Accumulateurs industriels-Lithium",0,null,"0","Lithium",null,null,null,null,"Industrial Batteries & Accumulators","Lithium",null,"Autres familles","Piles & Accumulateurs industriels","Lithium","Batteries","Industrial Batteries & Accumulators","Lithium",true,true,true,"Batteries-Industrial Batteries & Accumulators-Lithium",0,4,null,null,null,null,"2021-04-07",3,"Mercredi",null,null,null,null,null,null,null,"Serveurs - Serveur Rack"]
[null,null,null,"Piles & Accumulateurs","Piles & Accumulateurs industriels","Plomb",null,null,"Batteries","Piles & Accumulateurs industriels","Plomb","Plomb","0","37977","<option value=\"37977\" data-poids=\"0\" data-item=\"9c42558fa3ef0cfd0be70c12dee816c9\" >Plomb</option>","Piles & Accumulateurs","Piles & Accumulateurs industriels","Piles & Accumulateurs industriels-Plomb",0,null,"0","Lead",null,null,null,null,"Industrial Batteries & Accumulators","Lead",null,"Autres familles","Piles & Accumulateurs industriels","Plomb","Batteries","Industrial Batteries & Accumulators","Lead",true,true,true,"Batteries-Industrial Batteries & Accumulators-Lead",0,4,null,null,null,null,"2021-04-08",4,"Jeudi",null,null,null,null,null,null,null,"Serveurs - Serveur Tour"]
[null,null,null,"Piles & Accumulateurs","Piles & Accumulateurs industriels","Autres accumulateurs",null,null,"Batteries","Piles & Accumulateurs industriels","Autres accumulateurs","Autres accumulateurs","0","37998","<option value=\"37998\" data-poids=\"0\" data-item=\"9c42558fa3ef0cfd0be70c12dee816c9\" >Autres accumulateurs</option>","Piles & Accumulateurs","Piles & Accumulateurs industriels","Piles & Accumulateurs industriels-Autres accumulateurs",0,null,"0","Other accumulators",null,null,null,null,"Industrial Batteries & Accumulators","Other accumulators",null,"Autres familles","Piles & Accumulateurs industriels","Autres accumulateurs","Batteries","Industrial Batteries & Accumulators","Other accumulators",true,true,true,"Batteries-Industrial Batteries & Accumulators-Other accumulators",0,4,null,null,null,null,"2021-04-09",5,"Vendredi",null,null,null,null,null,null,null,"Téléphones portables - Autres téléphones portables"]
[null,null,null,"Piles & Accumulateurs","Piles et accumulateurs (non industriels)","Piles",null,null,"Batteries","Piles et accumulateurs (non industriels)","Piles","Piles","0","21333","<option value=\"21333\" data-poids=\"0\" data-item=\"a0173a0677c2aecf036bd15e43bfd8e9\" >Piles</option>","Piles & Accumulateurs","Piles et accumulateurs (non industriels)","Piles et accumulateurs (non industriels)-Piles",0,null,"0","Battery",null,null,null,null,"Batteries and accumulators (non-industrial)","Battery",null,"Autres familles","Piles et accumulateurs (non industriels)","Piles","Batteries","Batteries and accumulators (non-industrial)","Battery",true,true,true,"Batteries-Batteries and accumulators (non-industrial)-Battery",0,4,null,null,null,null,"2021-04-10",6,"Samedi - pas de collecte possible",null,null,null,null,null,null,null,"Téléphones portables - Smartphones"]
[null,null,null,"Piles & Accumulateurs","Piles et accumulateurs (non industriels)","Accumulateurs",null,null,"Batteries","Piles et accumulateurs (non industriels)","Accumulateurs","Accumulateurs","0","37955","<option value=\"37955\" data-poids=\"0\" data-item=\"a0173a0677c2aecf036bd15e43bfd8e9\" >Accumulateurs</option>","Piles & Accumulateurs","Piles et accumulateurs (non industriels)","Piles et accumulateurs (non industriels)-Accumulateurs",0,null,"0","Accumulators",null,null,null,null,"Batteries and accumulators (non-industrial)","Accumulators",null,"Autres familles","Piles et accumulateurs (non industriels)","Accumulateurs","Batteries","Batteries and accumulators (non-industrial)","Accumulators",true,true,true,"Batteries-Batteries and accumulators (non-industrial)-Accumulators",0,4,null,null,null,null,"2021-04-11",7,"Dimanche  - pas de collecte possible",null,null,null,null,null,null,null,"Téléphones portables - Téléphones portables"]
[null,null,null,"Métiers de bouche et alimentaire","Autres équipements électriques","Autres petits équipements",null,null,"Catering and kitchen appliances","Autres équipements électriques","Autres petits équipements","Autres petits équipements","0","39049","<option value=\"39049\" data-poids=\"0\" data-item=\"b11cabeb363d3c7abaf797aab953cb8c\" >Autres petits équipements</option>","Métiers de bouche et alimentaire","Autres équipements électriques","Autres équipements électriques-Autres petits équipements",0,null,"0","Other small equipment",null,null,null,null,"Other electrical equipment","Other small equipment",null,"Métiers de bouche et alimentaire","Autres équipements électriques","Autres petits équipements","Catering and kitchen appliances","Other electrical equipment","Other small equipment",true,true,true,"Catering and kitchen appliances-Other electrical equipment-Other small equipment",0,5,null,null,null,null,"2021-04-12",1,"Lundi",null,null,null,null,null,null,null,"Téléphonie filaire - Audioconférence"]
[null,null,null,"Métiers de bouche et alimentaire","Autres équipements électriques","Moulins à café",10,null,"Catering and kitchen appliances","Autres équipements électriques","Moulins à café","Moulins à café","10","39639","<option value=\"39639\" data-poids=\"10\" data-item=\"b11cabeb363d3c7abaf797aab953cb8c\" >Moulins à café</option>","Métiers de bouche et alimentaire","Autres équipements électriques","Autres équipements électriques-Moulins à café",10,null,"10","Coffee grinders",null,null,null,null,"Other electrical equipment","Coffee grinders",null,"Métiers de bouche et alimentaire","Autres équipements électriques","Moulins à café","Catering and kitchen appliances","Other electrical equipment","Coffee grinders",true,true,true,"Catering and kitchen appliances-Other electrical equipment-Coffee grinders",10,5,null,null,null,null,"2021-04-13",2,"Mardi",null,null,null,null,null,null,null,"Téléphonie filaire - Autres tel filaires"]
[null,null,null,"Métiers de bouche et alimentaire","Autres équipements électriques","Percolateurs",null,null,"Catering and kitchen appliances","Autres équipements électriques","Percolateurs","Percolateurs","0","39763","<option value=\"39763\" data-poids=\"0\" data-item=\"b11cabeb363d3c7abaf797aab953cb8c\" >Percolateurs</option>","Métiers de bouche et alimentaire","Autres équipements électriques","Autres équipements électriques-Percolateurs",0,null,"0","Coffeemakers",null,null,null,null,"Other electrical equipment","Coffeemakers",null,"Métiers de bouche et alimentaire","Autres équipements électriques","Percolateurs","Catering and kitchen appliances","Other electrical equipment","Coffeemakers",true,true,true,"Catering and kitchen appliances-Other electrical equipment-Coffeemakers",0,5,null,null,null,null,null,null,null,null,null,null,null,null,null,null,"Téléphonie filaire - Pieuvres"]
[null,null,null,"Métiers de bouche et alimentaire","Gros équipement inox (hors froid)","Lave-vaisselles",null,null,"Catering and kitchen appliances","Gros équipement inox (hors froid)","Lave-vaisselles","Lave-vaisselles","0","21374","<option value=\"21374\" data-poids=\"0\" data-item=\"fe0e25cffc8853881c789542159bc641\" >Lave-vaisselles</option>","Métiers de bouche et alimentaire","Gros équipement inox (hors froid)","Gros équipement inox (hors froid)-Lave-vaisselles",0,null,"0","Dishwashers",null,null,null,null,"Large kitchen appliances","Dishwashers",null,"Métiers de bouche et alimentaire","Gros équipement inox (hors froid)","Lave-vaisselles","Catering and kitchen appliances","Large kitchen appliances","Dishwashers",true,true,true,"Catering and kitchen appliances-Large kitchen appliances-Dishwashers",0,5,null,null,null,null,null,null,null,null,null,null,null,null,null,null,"Téléphonie filaire - Téléphones fixes"]
[null,null,null,"Métiers de bouche et alimentaire","Gros équipement inox (hors froid)","Machines à café expresso",null,null,"Catering and kitchen appliances","Gros équipement inox (hors froid)","Machines à café expresso","Machines à café expresso","0","38818","<option value=\"38818\" data-poids=\"0\" data-item=\"fe0e25cffc8853881c789542159bc641\" >Machines à café expresso</option>","Métiers de bouche et alimentaire","Gros équipement inox (hors froid)","Gros équipement inox (hors froid)-Machines à café expresso",0,null,"0","Expresso machines",null,null,null,null,"Large kitchen appliances","Expresso machines",null,"Métiers de bouche et alimentaire","Gros équipement inox (hors froid)","Machines à café expresso","Catering and kitchen appliances","Large kitchen appliances","Expresso machines",true,true,true,"Catering and kitchen appliances-Large kitchen appliances-Expresso machines",0,5,null,null,null,null,null,null,null,null,null,null,null,null,null,null,"Téléphonie filaire - Téléphones IP"]
[null,null,null,"Métiers de bouche et alimentaire","Gros équipement inox (hors froid)","Fours",40,null,"Catering and kitchen appliances","Gros équipement inox (hors froid)","Fours","Fours","40","39385","<option value=\"39385\" data-poids=\"40\" data-item=\"fe0e25cffc8853881c789542159bc641\" >Fours</option>","Métiers de bouche et alimentaire","Gros équipement inox (hors froid)","Gros équipement inox (hors froid)-Fours",40,null,"40","Ovens",null,null,null,null,"Large kitchen appliances","Ovens",null,"Métiers de bouche et alimentaire","Gros équipement inox (hors froid)","Fours","Catering and kitchen appliances","Large kitchen appliances","Ovens",true,true,true,"Catering and kitchen appliances-Large kitchen appliances-Ovens",40,5,null,null,null,null,null,null,null,null,null,null,null,null,null,null,"Video - Accessoires TV"]
[null,null,null,"Métiers de bouche et alimentaire","Froid hors inox","Réfrigérateurs",70,null,"Catering and kitchen appliances","Froid hors inox","Réfrigérateurs","Réfrigérateurs","70","41269","<option value=\"41269\" data-poids=\"70\" data-item=\"5204c133387ef624a10bf8aabc0be725\" >Réfrigérateurs</option>","Métiers de bouche et alimentaire","Froid hors inox","Froid hors inox-Réfrigérateurs",70,null,"70","Refrigerators",null,null,null,null,"Cooling equipment","Refrigerators",null,"Métiers de bouche et alimentaire","Froid hors inox","Réfrigérateurs","Catering and kitchen appliances","Cooling equipment","Refrigerators",true,true,true,"Catering and kitchen appliances-Cooling equipment-Refrigerators",70,5,null,null,null,null,null,null,null,null,null,null,null,null,null,null,"Video - Antennes"]
[null,null,null,"Métiers de bouche et alimentaire","Froid Inox","Distributeurs de boissons",50,null,"Catering and kitchen appliances","Froid Inox","Distributeurs de boissons","Distributeurs de boissons","50","21369","<option value=\"21369\" data-poids=\"50\" data-item=\"40ad2f41fa9b8ab252b3779e15892c29\" >Distributeurs de boissons</option>","Métiers de bouche et alimentaire","Froid Inox","Froid Inox-Distributeurs de boissons",50,null,"50","Beverage dispensers",null,null,null,null,"Cooling equipment","Beverage dispensers",null,"Métiers de bouche et alimentaire","Froid Inox","Distributeurs de boissons","Catering and kitchen appliances","Cooling equipment","Beverage dispensers",true,true,true,"Catering and kitchen appliances-Cooling equipment-Beverage dispensers",50,5,null,null,null,null,null,null,null,null,null,null,null,null,null,null,"Video - Autres périphériques video"]
[null,null,null,"Métiers de bouche et alimentaire","Froid Inox","Autres équipements réfrigérés (sans NH3)",null,null,"Catering and kitchen appliances","Froid Inox","Autres équipements réfrigérés (sans NH3)","Autres équipements réfrigérés (sans NH3)","0","26606","<option value=\"26606\" data-poids=\"0\" data-item=\"40ad2f41fa9b8ab252b3779e15892c29\" >Autres équipements réfrigérés (sans NH3)</option>","Métiers de bouche et alimentaire","Froid Inox","Froid Inox-Autres équipements réfrigérés (sans NH3)",0,null,"0","Other refrigerated equipment (without NH3)",null,null,null,null,"Cooling equipment","Other refrigerated equipment (without NH3)",null,"Métiers de bouche et alimentaire","Froid Inox","Autres équipements réfrigérés (sans NH3)","Catering and kitchen appliances","Cooling equipment","Other refrigerated equipment (without NH3)",true,true,true,"Catering and kitchen appliances-Cooling equipment-Other refrigerated equipment (without NH3)",0,5,null,null,null,null,null,null,null,null,null,null,null,null,null,null,"Video - Cameras"]
[null,null,null,"Entretiens et soins","Entretien","Aspirateur",3,null,"Maintenance","Entretien","Aspirateur","Aspirateur","3","28082","<option value=\"28082\" data-poids=\"3\" data-item=\"64ba01c08b92ad7f354e169bb54d76bb\" >Aspirateur</option>","Entretiens et soins","Entretien","Entretien-Aspirateur",3,null,"3","Vacuum cleaner",null,null,null,null,"Maintenance","Vacuum cleaner",null,"Entretiens et soins","Entretien","Aspirateur","Maintenance","Maintenance","Vacuum cleaner",true,true,true,"Maintenance-Maintenance-Vacuum cleaner",3,6,null,null,null,null,null,null,null,null,null,null,null,null,null,null,"Video - Lecteurs et Enregistreur DVD"]
[null,null,null,"Autres familles","Appareils électriques en mélange","Appareils électriques en mélange",null,null,"Other families","Appareils électriques en mélange","Appareils électriques en mélange","Appareils électriques en mélange","0","21378","<option value=\"21378\" data-poids=\"0\" data-item=\"7b97250790a1ee6ee79a21fdd1aa5148\" >Appareils électriques en mélange</option>","Autres familles","Appareils électriques en mélange","Appareils électriques en mélange-Appareils électriques en mélange",0,null,"0","Mixed electrical appliances",null,null,null,null,"Mixed electrical appliances","Mixed electrical appliances",null,"Autres familles","Appareils électriques en mélange","Appareils électriques en mélange","Other families","Mixed electrical appliances","Mixed electrical appliances",true,true,true,"Other families-Mixed electrical appliances-Mixed electrical appliances",0,7,null,null,null,null,null,null,null,null,null,null,null,null,null,null,"Video - Passerelles multimedia"]
[null,null,null,"DEEE historique – mis sur le marché avant le 13 août 2005","Matériel informatique historique","Matériel informatique historique",null,null,"Historical WEEE – older than 13 August 2005","Matériel informatique historique","Matériel informatique historique","Matériel informatique historique",0,null,null,"DEEE historique – mis sur le marché avant le 13 août 2005","Matériel informatique historique","Matériel informatique historique-Matériel informatique historique",0,null,0,"Historical IT equipment",null,null,null,null,"Historical IT equipment","Historical IT equipment",null,"DEEE historique – mis sur le marché avant le 13 août 2005","Matériel informatique historique","Matériel informatique historique","Historical WEEE – older than 13 August 2005","Historical IT equipment","Historical IT equipment",false,false,false,"Historical WEEE – older than 13 August 2005-Historical IT equipment-Historical IT equipment",0,8,null,null,null,null,null,null,null,null,null,null,null,null,null,null,"Video - Videoprojecteurs"]
[null,null,null,null,null,null,null,null,"IT, office and telecoms equipment","Imprimantes & bureautique","Etiqueteuses","Etiqueteuses","2","21218","<option value=\"21218\" data-poids=\"2\" data-item=\"6b55072464b6aeede60544a7e12f42bd\" >Etiqueteuses</option>","Informatique, bureautique et telecoms","Imprimantes & bureautique","Imprimantes & bureautique-Etiqueteuses",2,null,"2","Labeling machines",null,null,null,null,"Printers & office technology","Labeling machines",null,"Informatique, bureautique et telecoms","Imprimantes & bureautique","Etiqueteuses","IT, office and telecoms equipment","Printers & office technology","Labeling machines",true,true,true,"IT, office and telecoms equipment-Printers & office technology-Labeling machines",2,9,null,null,null,null,null,null,null,null,null,null,null,null,null,null," - "]
[null,null,null,null,null,null,null,null,"IT, office and telecoms equipment","Imprimantes & bureautique","Machines à Affranchir et Balances","Machines à Affranchir et Balances","10","21235","<option value=\"21235\" data-poids=\"10\" data-item=\"6b55072464b6aeede60544a7e12f42bd\" >Machines à Affranchir et Balances</option>","Informatique, bureautique et telecoms","Imprimantes & bureautique","Imprimantes & bureautique-Machines à Affranchir et Balances",10,null,"10","Franking Machines and Scales",null,null,null,null,"Printers & office technology","Franking Machines and Scales",null,"Informatique, bureautique et telecoms","Imprimantes & bureautique","Machines à Affranchir et Balances","IT, office and telecoms equipment","Printers & office technology","Franking Machines and Scales",true,true,true,"IT, office and telecoms equipment-Printers & office technology-Franking Machines and Scales",10,9,null,null,null,null,null,null,null,null,null,null,null,null,null,null," - "]
[null,null,null,null,null,null,null,null,"Infra Printing, networks and electronic payment","Caisse enregistreuse avec écran plat","Caisse enregistreuse avec écran plat","Caisse enregistreuse avec écran plat","12","21142","<option value=\"21142\" data-poids=\"12\" data-item=\"a6c5a5945c7cf6bf142812aca1b0c705\" >Caisse enregistreuse avec écran plat</option>","Infra Impression, réseaux et monétique","Caisse enregistreuse avec écran plat","Caisse enregistreuse avec écran plat-Caisse enregistreuse avec écran plat",12,null,"12","Cash register with flat screen",null,null,null,null,"Cash register with flat screen","Cash register with flat screen",null,"Infra Impression, réseaux et monétique","Caisse enregistreuse avec écran plat","Caisse enregistreuse avec écran plat","Infra Printing, networks and electronic payment","Cash register with flat screen","Cash register with flat screen",true,true,true,"Infra Printing, networks and electronic payment-Cash register with flat screen-Cash register with flat screen",12,10]
[null,null,null,null,null,null,null,null,"Infra Printing, networks and electronic payment","TPE - Terminaux de paiement","Compteuses Trieuses de Monnaie","Compteuses Trieuses de Monnaie","2","21323","<option value=\"21323\" data-poids=\"2\" data-item=\"455942d1eddffbed693f04a7f1188aa0\" >Compteuses Trieuses de Monnaie</option>","Infra Impression, réseaux et monétique","TPE - Terminaux de paiement","TPE - Terminaux de paiement-Compteuses Trieuses de Monnaie",2,null,"2","Coin Sorters",null,null,null,null,"TPE - Electronic payment terminals","Coin Sorters",null,"Infra Impression, réseaux et monétique","TPE - Terminaux de paiement","Compteuses Trieuses de Monnaie","Infra Printing, networks and electronic payment","TPE - Electronic payment terminals","Coin Sorters",true,true,true,"Infra Printing, networks and electronic payment-TPE - Electronic payment terminals-Coin Sorters",2,10]
[null,null,null,null,null,null,null,null,"Infra Printing, networks and electronic payment","TPE - Terminaux de paiement","Détecteurs Faux Billets","Détecteurs Faux Billets","1","21324","<option value=\"21324\" data-poids=\"1\" data-item=\"455942d1eddffbed693f04a7f1188aa0\" >Détecteurs Faux Billets</option>","Infra Impression, réseaux et monétique","TPE - Terminaux de paiement","TPE - Terminaux de paiement-Détecteurs Faux Billets",1,null,"1","Counterfeit Detectors",null,null,null,null,"TPE - Electronic payment terminals","Counterfeit Detectors",null,"Infra Impression, réseaux et monétique","TPE - Terminaux de paiement","Détecteurs Faux Billets","Infra Printing, networks and electronic payment","TPE - Electronic payment terminals","Counterfeit Detectors",true,true,true,"Infra Printing, networks and electronic payment-TPE - Electronic payment terminals-Counterfeit Detectors",1,10]
[null,null,null,null,null,null,null,null,"Infra Printing, networks and electronic payment","TPE - Terminaux de paiement","Imprimantes PDV","Imprimantes PDV","4","21325","<option value=\"21325\" data-poids=\"4\" data-item=\"455942d1eddffbed693f04a7f1188aa0\" >Imprimantes PDV</option>","Infra Impression, réseaux et monétique","TPE - Terminaux de paiement","TPE - Terminaux de paiement-Imprimantes PDV",4,null,"4","printers point of sales",null,null,null,null,"TPE - Electronic payment terminals","printers point of sales",null,"Infra Impression, réseaux et monétique","TPE - Terminaux de paiement","Imprimantes PDV","Infra Printing, networks and electronic payment","TPE - Electronic payment terminals","printers point of sales",true,true,true,"Infra Printing, networks and electronic payment-TPE - Electronic payment terminals-printers point of sales",4,10]
[null,null,null,null,null,null,null,null,"Infra Printing, networks and electronic payment","TPE - Terminaux de paiement","TPE","TPE","0.2","21326","<option value=\"21326\" data-poids=\"0.2\" data-item=\"455942d1eddffbed693f04a7f1188aa0\" >TPE</option>","Infra Impression, réseaux et monétique","TPE - Terminaux de paiement","TPE - Terminaux de paiement-TPE",0.2,null,"0.2","electronic payment terminal",null,null,null,null,"TPE - Electronic payment terminals","electronic payment terminal",null,"Infra Impression, réseaux et monétique","TPE - Terminaux de paiement","TPE","Infra Printing, networks and electronic payment","TPE - Electronic payment terminals","electronic payment terminal",true,true,true,"Infra Printing, networks and electronic payment-TPE - Electronic payment terminals-electronic payment terminal",0.2,10]
[null,null,null,null,null,null,null,null,"Infra Printing, networks and electronic payment","TPE - Terminaux de paiement","Caisses sans écran","Caisses sans écran","0","38194","<option value=\"38194\" data-poids=\"0\" data-item=\"455942d1eddffbed693f04a7f1188aa0\" >Caisses sans écran</option>","Infra Impression, réseaux et monétique","TPE - Terminaux de paiement","TPE - Terminaux de paiement-Caisses sans écran",0,null,"0","Terminals without screen",null,null,null,null,"TPE - Electronic payment terminals","Terminals without screen",null,"Infra Impression, réseaux et monétique","TPE - Terminaux de paiement","Caisses sans écran","Infra Printing, networks and electronic payment","TPE - Electronic payment terminals","Terminals without screen",true,true,true,"Infra Printing, networks and electronic payment-TPE - Electronic payment terminals-Terminals without screen",0,10]
[null,null,null,null,null,null,null,null,"Infra Printing, networks and electronic payment","Monétique et billetterie","Antivols","Antivols","0","21317","<option value=\"21317\" data-poids=\"0\" data-item=\"ed54b5c1dd1333645cd9888f545a9226\" >Antivols</option>","Infra Impression, réseaux et monétique","Monétique et billetterie","Monétique et billetterie-Antivols",0,null,"0","Anti-theft devices",null,null,null,null,"Electronic payment and ticketing","Anti-theft devices",null,"Infra Impression, réseaux et monétique","Monétique et billetterie","Antivols","Infra Printing, networks and electronic payment","Electronic payment and ticketing","Anti-theft devices",true,true,true,"Infra Printing, networks and electronic payment-Electronic payment and ticketing-Anti-theft devices",0,10]
[null,null,null,null,null,null,null,null,"Infra Printing, networks and electronic payment","Monétique et billetterie","Billetterie","Billetterie","4","21321","<option value=\"21321\" data-poids=\"4\" data-item=\"ed54b5c1dd1333645cd9888f545a9226\" >Billetterie</option>","Infra Impression, réseaux et monétique","Monétique et billetterie","Monétique et billetterie-Billetterie",4,null,"4","Ticketing",null,null,null,null,"Electronic payment and ticketing","Ticketing",null,"Infra Impression, réseaux et monétique","Monétique et billetterie","Billetterie","Infra Printing, networks and electronic payment","Electronic payment and ticketing","Ticketing",true,true,true,"Infra Printing, networks and electronic payment-Electronic payment and ticketing-Ticketing",4,10]
[null,null,null,null,null,null,null,null,"Infra Printing, networks and electronic payment","Monétique et billetterie","Bornes de paiement","Bornes de paiement","0","21322","<option value=\"21322\" data-poids=\"0\" data-item=\"ed54b5c1dd1333645cd9888f545a9226\" >Bornes de paiement</option>","Infra Impression, réseaux et monétique","Monétique et billetterie","Monétique et billetterie-Bornes de paiement",0,null,"0","Payment terminals",null,null,null,null,"Electronic payment and ticketing","Payment terminals",null,"Infra Impression, réseaux et monétique","Monétique et billetterie","Bornes de paiement","Infra Printing, networks and electronic payment","Electronic payment and ticketing","Payment terminals",true,true,true,"Infra Printing, networks and electronic payment-Electronic payment and ticketing-Payment terminals",0,10]
[null,null,null,null,null,null,null,null,"Infra Printing, networks and electronic payment","Monétique et billetterie","DAB","DAB","0","38180","<option value=\"38180\" data-poids=\"0\" data-item=\"ed54b5c1dd1333645cd9888f545a9226\" >DAB</option>","Infra Impression, réseaux et monétique","Monétique et billetterie","Monétique et billetterie-DAB",0,null,"0","ATM - cash machine",null,null,null,null,"Electronic payment and ticketing","ATM - cash machine",null,"Infra Impression, réseaux et monétique","Monétique et billetterie","DAB","Infra Printing, networks and electronic payment","Electronic payment and ticketing","ATM - cash machine",true,true,true,"Infra Printing, networks and electronic payment-Electronic payment and ticketing-ATM - cash machine",0,10]
[null,null,null,null,null,null,null,null,"Infra Printing, networks and electronic payment","Monétique et billetterie","Caisses automatiques","Caisses automatiques","0","38187","<option value=\"38187\" data-poids=\"0\" data-item=\"ed54b5c1dd1333645cd9888f545a9226\" >Caisses automatiques</option>","Infra Impression, réseaux et monétique","Monétique et billetterie","Monétique et billetterie-Caisses automatiques",0,null,"0","Cash register",null,null,null,null,"Electronic payment and ticketing","Cash register",null,"Infra Impression, réseaux et monétique","Monétique et billetterie","Caisses automatiques","Infra Printing, networks and electronic payment","Electronic payment and ticketing","Cash register",true,true,true,"Infra Printing, networks and electronic payment-Electronic payment and ticketing-Cash register",0,10]
[null,null,null,null,null,null,null,null,"Infra Printing, networks and electronic payment","Gros terminal d'impression","Copieurs A3","Copieurs A3","100","21188","<option value=\"21188\" data-poids=\"100\" data-item=\"2287ad68b4522666564726fcd65b86ff\" >Copieurs A3</option>","Infra Impression, réseaux et monétique","Gros terminal d'impression","Gros terminal d'impression-Copieurs A3",100,null,"100","A3 Copiers",null,null,null,null,"Large printing terminal","A3 Copiers",null,"Infra Impression, réseaux et monétique","Gros terminal d'impression","Copieurs A3","Infra Printing, networks and electronic payment","Large printing terminal","A3 Copiers",true,true,true,"Infra Printing, networks and electronic payment-Large printing terminal-A3 Copiers",100,10]
[null,null,null,null,null,null,null,null,"Infra Printing, networks and electronic payment","Gros terminal d'impression","Autres Copieur / MFP au moins A3","Autres Copieur / MFP au moins A3","0","21206","<option value=\"21206\" data-poids=\"0\" data-item=\"2287ad68b4522666564726fcd65b86ff\" >Autres Copieur / MFP au moins A3</option>","Infra Impression, réseaux et monétique","Gros terminal d'impression","Gros terminal d'impression-Autres Copieur / MFP au moins A3",0,null,"0","Other Copier / MFP at least A3",null,null,null,null,"Large printing terminal","Other Copier / MFP at least A3",null,"Infra Impression, réseaux et monétique","Gros terminal d'impression","Autres Copieur / MFP au moins A3","Infra Printing, networks and electronic payment","Large printing terminal","Other Copier / MFP at least A3",true,true,true,"Infra Printing, networks and electronic payment-Large printing terminal-Other Copier / MFP at least A3",0,10]
[null,null,null,null,null,null,null,null,"Infra Printing, networks and electronic payment","Gros terminal d'impression","Minilabs","Minilabs","0","21214","<option value=\"21214\" data-poids=\"0\" data-item=\"2287ad68b4522666564726fcd65b86ff\" >Minilabs</option>","Infra Impression, réseaux et monétique","Gros terminal d'impression","Gros terminal d'impression-Minilabs",30,null,"0","Minilabs",null,null,null,null,"Large printing terminal","Minilabs",null,"Infra Impression, réseaux et monétique","Gros terminal d'impression","Minilabs","Infra Printing, networks and electronic payment","Large printing terminal","Minilabs",true,true,true,"Infra Printing, networks and electronic payment-Large printing terminal-Minilabs",30,10]
[null,null,null,null,null,null,null,null,"Infra Printing, networks and electronic payment","Gros terminal d'impression","Impression industrielle","Impression industrielle","0","21225","<option value=\"21225\" data-poids=\"0\" data-item=\"2287ad68b4522666564726fcd65b86ff\" >Impression industrielle</option>","Infra Impression, réseaux et monétique","Gros terminal d'impression","Gros terminal d'impression-Impression industrielle",70,null,"0","Industrial printing",null,null,null,null,"Large printing terminal","Industrial printing",null,"Infra Impression, réseaux et monétique","Gros terminal d'impression","Impression industrielle","Infra Printing, networks and electronic payment","Large printing terminal","Industrial printing",true,true,true,"Infra Printing, networks and electronic payment-Large printing terminal-Industrial printing",70,10]
[null,null,null,null,null,null,null,null,"Infra Printing, networks and electronic payment","Gros terminal d'impression","Traceurs","Traceurs","80","21252","<option value=\"21252\" data-poids=\"80\" data-item=\"2287ad68b4522666564726fcd65b86ff\" >Traceurs</option>","Infra Impression, réseaux et monétique","Gros terminal d'impression","Gros terminal d'impression-Traceurs",100,null,"80","Tracers",null,null,null,null,"Large printing terminal","Tracers",null,"Infra Impression, réseaux et monétique","Gros terminal d'impression","Traceurs","Infra Printing, networks and electronic payment","Large printing terminal","Tracers",true,true,true,"Infra Printing, networks and electronic payment-Large printing terminal-Tracers",100,10]
[null,null,null,null,null,null,null,null,"Home Audio / Video equipment","Affichage et présentation","Ecrans plats","Ecrans plats","10","21254","<option value=\"21254\" data-poids=\"10\" data-item=\"dde5f2ab209d588ee626f45acbf14129\" >Ecrans plats</option>","Equipements de Culture Loisirs et Sports","Affichage et présentation","Affichage et présentation-Ecrans plats",10,null,"10","Flat screens",null,null,null,null,"Display and presentation","Flat screens",null,"Equipements de Culture Loisirs et Sports","Affichage et présentation","Ecrans plats","Home Audio / Video equipment","Display and presentation","Flat screens",true,true,true,"Home Audio / Video equipment-Display and presentation-Flat screens",10,11]
[null,null,null,null,null,null,null,null,"Home Audio / Video equipment","Affichage et présentation","Cadres photo numérique","Cadres photo numérique","19","21255","<option value=\"21255\" data-poids=\"19\" data-item=\"dde5f2ab209d588ee626f45acbf14129\" >Cadres photo numérique</option>","Equipements de Culture Loisirs et Sports","Affichage et présentation","Affichage et présentation-Cadres photo numérique",1,null,"19","Digital photo frames",null,null,null,null,"Display and presentation","Digital photo frames",null,"Equipements de Culture Loisirs et Sports","Affichage et présentation","Cadres photo numérique","Home Audio / Video equipment","Display and presentation","Digital photo frames",true,true,true,"Home Audio / Video equipment-Display and presentation-Digital photo frames",1,11]
[null,null,null,null,null,null,null,null,"Home Audio / Video equipment","Affichage et présentation","Livres électroniques","Livres électroniques","28","21256","<option value=\"21256\" data-poids=\"28\" data-item=\"dde5f2ab209d588ee626f45acbf14129\" >Livres électroniques</option>","Equipements de Culture Loisirs et Sports","Affichage et présentation","Affichage et présentation-Livres électroniques",0.2,null,"28","Electronic books",null,null,null,null,"Display and presentation","Electronic books",null,"Equipements de Culture Loisirs et Sports","Affichage et présentation","Livres électroniques","Home Audio / Video equipment","Display and presentation","Electronic books",true,true,true,"Home Audio / Video equipment-Display and presentation-Electronic books",0.2,11]
[null,null,null,null,null,null,null,null,"Home Audio / Video equipment","Audio","Minis chaines","Minis chaines","7","21291","<option value=\"21291\" data-poids=\"7\" data-item=\"c3ce2766a4e65922e168f17150a8ac5d\" >Minis chaines</option>","Equipements de Culture Loisirs et Sports","Audio","Audio-Minis chaines",7,null,"7","Mini hifi chains",null,null,null,null,"Audio","Mini hifi chains",null,"Equipements de Culture Loisirs et Sports","Audio","Minis chaines","Home Audio / Video equipment","Audio","Mini hifi chains",true,true,true,"Home Audio / Video equipment-Audio-Mini hifi chains",7,11]
[null,null,null,null,null,null,null,null,"Home Audio / Video equipment","Audio","Platines vinyles","Platines vinyles","5","21292","<option value=\"21292\" data-poids=\"5\" data-item=\"c3ce2766a4e65922e168f17150a8ac5d\" >Platines vinyles</option>","Equipements de Culture Loisirs et Sports","Audio","Audio-Platines vinyles",5,null,"5","Vinyl turntables",null,null,null,null,"Audio","Vinyl turntables",null,"Equipements de Culture Loisirs et Sports","Audio","Platines vinyles","Home Audio / Video equipment","Audio","Vinyl turntables",true,true,true,"Home Audio / Video equipment-Audio-Vinyl turntables",5,11]
[null,null,null,null,null,null,null,null,"Home Audio / Video equipment","Audio","Tables mixage","Tables mixage","2","21295","<option value=\"21295\" data-poids=\"2\" data-item=\"c3ce2766a4e65922e168f17150a8ac5d\" >Tables mixage</option>","Equipements de Culture Loisirs et Sports","Audio","Audio-Tables mixage",2,null,"2","Mixing tables",null,null,null,null,"Audio","Mixing tables",null,"Equipements de Culture Loisirs et Sports","Audio","Tables mixage","Home Audio / Video equipment","Audio","Mixing tables",true,true,true,"Home Audio / Video equipment-Audio-Mixing tables",2,11]
[null,null,null,null,null,null,null,null,"Maintenance and care","Autres équipements d'entretien et soin","Autres équipements Entretiens et soins","Autres équipements Entretiens et soins","0","44413","<option value=\"44413\" data-poids=\"0\" data-item=\"741b0f75887001ae61fa5b4cca32404a\" >Autres équipements Entretiens et soins</option>","Entretiens et soins","Autres équipements d'entretien et soin","Autres équipements d'entretien et soin-Autres équipements Entretiens et soins",0,null,"0","Other Maintenance and care equipment",null,null,null,null,"Other Maintenance and care equipment","Other Maintenance and care equipment",null,"Entretiens et soins","Autres équipements d'entretien et soin","Autres équipements Entretiens et soins","Maintenance and care","Other Maintenance and care equipment","Other Maintenance and care equipment",true,true,true,"Maintenance and care-Other Maintenance and care equipment-Other Maintenance and care equipment",0,12]
[null,null,null,null,null,null,null,null,"Maintenance and care","Hygiene et beauté","Sèche cheveux","Sèche cheveux","1","28077","<option value=\"28077\" data-poids=\"1\" data-item=\"d0ced3de8ba947cb841235dd4a6b14b1\" >Sèche cheveux</option>","Entretiens et soins","Hygiene et beauté","Hygiene et beauté-Sèche cheveux",1,null,"1","Hair dryer",null,null,null,null,"Hygiene and beauty","Hair dryer",null,"Entretiens et soins","Hygiene et beauté","Sèche cheveux","Maintenance and care","Hygiene and beauty","Hair dryer",true,true,true,"Maintenance and care-Hygiene and beauty-Hair dryer",1,12]
[null,null,null,null,null,null,null,null,"Maintenance and care","Hygiene et beauté","Séche main","Séche main","2","28078","<option value=\"28078\" data-poids=\"2\" data-item=\"d0ced3de8ba947cb841235dd4a6b14b1\" >Séche main</option>","Entretiens et soins","Hygiene et beauté","Hygiene et beauté-Séche main",2,null,"2","Hand dryer",null,null,null,null,"Hygiene and beauty","Hand dryer",null,"Entretiens et soins","Hygiene et beauté","Séche main","Maintenance and care","Hygiene and beauty","Hand dryer",true,true,true,"Maintenance and care-Hygiene and beauty-Hand dryer",2,12]
[null,null,null,null,null,null,null,null,"Maintenance and care","Hygiene et beauté","Distributeur de savon","Distributeur de savon","0.2","28080","<option value=\"28080\" data-poids=\"0.2\" data-item=\"d0ced3de8ba947cb841235dd4a6b14b1\" >Distributeur de savon</option>","Entretiens et soins","Hygiene et beauté","Hygiene et beauté-Distributeur de savon",0.2,null,"0.2","Soap dispenser",null,null,null,null,"Hygiene and beauty","Soap dispenser",null,"Entretiens et soins","Hygiene et beauté","Distributeur de savon","Maintenance and care","Hygiene and beauty","Soap dispenser",true,true,true,"Maintenance and care-Hygiene and beauty-Soap dispenser",0.2,12]
[null,null,null,null,null,null,null,null,"Maintenance and care","Hygiene et beauté","Autres hygiène de beauté","Autres hygiène de beauté","0","28081","<option value=\"28081\" data-poids=\"0\" data-item=\"d0ced3de8ba947cb841235dd4a6b14b1\" >Autres hygiène de beauté</option>","Entretiens et soins","Hygiene et beauté","Hygiene et beauté-Autres hygiène de beauté",0,null,"0","Other beauty care",null,null,null,null,"Hygiene and beauty","Other beauty care",null,"Entretiens et soins","Hygiene et beauté","Autres hygiène de beauté","Maintenance and care","Hygiene and beauty","Other beauty care",true,true,true,"Maintenance and care-Hygiene and beauty-Other beauty care",0,12]
[null,null,null,null,null,null,null,null,"Maintenance and care","Hygiene et beauté","Lisseur","Lisseur","1","38999","<option value=\"38999\" data-poids=\"1\" data-item=\"d0ced3de8ba947cb841235dd4a6b14b1\" >Lisseur</option>","Entretiens et soins","Hygiene et beauté","Hygiene et beauté-Lisseur",1,null,"1","Straightener",null,null,null,null,"Hygiene and beauty","Straightener",null,"Entretiens et soins","Hygiene et beauté","Lisseur","Maintenance and care","Hygiene and beauty","Straightener",true,true,true,"Maintenance and care-Hygiene and beauty-Straightener",1,12]
[null,null,null,null,null,null,null,null,"Maintenance and care","Lavage","Sèches linge (séchoirs)","Sèches linge (séchoirs)","90","26422","<option value=\"26422\" data-poids=\"90\" data-item=\"faaf500c0c264b44a9430b6482523b9a\" >Sèches linge (séchoirs)</option>","Entretiens et soins","Lavage","Lavage-Sèches linge (séchoirs)",90,null,"90","Tumle dryers (dryers)",null,null,null,null,"Washing","Tumle dryers (dryers)",null,"Entretiens et soins","Lavage","Sèches linge (séchoirs)","Maintenance and care","Washing","Tumle dryers (dryers)",true,true,true,"Maintenance and care-Washing-Tumle dryers (dryers)",90,12]
[null,null,null,null,null,null,null,null,"Maintenance and care","Lavage","Sécheuse repasseuse","Sécheuse repasseuse","0","26423","<option value=\"26423\" data-poids=\"0\" data-item=\"faaf500c0c264b44a9430b6482523b9a\" >Sécheuse repasseuse</option>","Entretiens et soins","Lavage","Lavage-Sécheuse repasseuse",0,null,"0","Iron dryer",null,null,null,null,"Washing","Iron dryer",null,"Entretiens et soins","Lavage","Sécheuse repasseuse","Maintenance and care","Washing","Iron dryer",true,true,true,"Maintenance and care-Washing-Iron dryer",0,12]
[null,null,null,null,null,null,null,null,"Maintenance and care","Lavage","Mannequin automatisé","Mannequin automatisé","0","26424","<option value=\"26424\" data-poids=\"0\" data-item=\"faaf500c0c264b44a9430b6482523b9a\" >Mannequin automatisé</option>","Entretiens et soins","Lavage","Lavage-Mannequin automatisé",0,null,"0","robot mannequin",null,null,null,null,"Washing","robot mannequin",null,"Entretiens et soins","Lavage","Mannequin automatisé","Maintenance and care","Washing","robot mannequin",true,true,true,"Maintenance and care-Washing-robot mannequin",0,12]
[null,null,null,null,null,null,null,null,"Maintenance and care","Lavage","Générateur de vapeur","Générateur de vapeur","0","26425","<option value=\"26425\" data-poids=\"0\" data-item=\"faaf500c0c264b44a9430b6482523b9a\" >Générateur de vapeur</option>","Entretiens et soins","Lavage","Lavage-Générateur de vapeur",0,null,"0","Steam generator",null,null,null,null,"Washing","Steam generator",null,"Entretiens et soins","Lavage","Générateur de vapeur","Maintenance and care","Washing","Steam generator",true,true,true,"Maintenance and care-Washing-Steam generator",0,12]
[null,null,null,null,null,null,null,null,"Maintenance and care","Lavage","Machine de nettoyage à sec","Machine de nettoyage à sec","0","26426","<option value=\"26426\" data-poids=\"0\" data-item=\"faaf500c0c264b44a9430b6482523b9a\" >Machine de nettoyage à sec</option>","Entretiens et soins","Lavage","Lavage-Machine de nettoyage à sec",0,null,"0","Dry Maintenance machine",null,null,null,null,"Washing","Dry Maintenance machine",null,"Entretiens et soins","Lavage","Machine de nettoyage à sec","Maintenance and care","Washing","Dry Maintenance machine",true,true,true,"Maintenance and care-Washing-Dry Maintenance machine",0,12]
[null,null,null,null,null,null,null,null,"Maintenance and care","Lavage","Lave-Linge","Lave-Linge","90","29117","<option value=\"29117\" data-poids=\"90\" data-item=\"faaf500c0c264b44a9430b6482523b9a\" >Lave-Linge</option>","Entretiens et soins","Lavage","Lavage-Lave-Linge",90,null,"90","Washing machine",null,null,null,null,"Washing","Washing machine",null,"Entretiens et soins","Lavage","Lave-Linge","Maintenance and care","Washing","Washing machine",true,true,true,"Maintenance and care-Washing-Washing machine",90,12]
[null,null,null,null,null,null,null,null,"Maintenance and care","Lavage","Table à repasser","Table à repasser","5","29119","<option value=\"29119\" data-poids=\"5\" data-item=\"faaf500c0c264b44a9430b6482523b9a\" >Table à repasser</option>","Entretiens et soins","Lavage","Lavage-Table à repasser",5,null,"5","Ironing board",null,null,null,null,"Washing","Ironing board",null,"Entretiens et soins","Lavage","Table à repasser","Maintenance and care","Washing","Ironing board",true,true,true,"Maintenance and care-Washing-Ironing board",5,12]
[null,null,null,null,null,null,null,null,"Maintenance and care","Lavage","Autres lavage","Autres lavage","0","29120","<option value=\"29120\" data-poids=\"0\" data-item=\"faaf500c0c264b44a9430b6482523b9a\" >Autres lavage</option>","Entretiens et soins","Lavage","Lavage-Autres lavage",0,null,"0","Other washing",null,null,null,null,"Washing","Other washing",null,"Entretiens et soins","Lavage","Autres lavage","Maintenance and care","Washing","Other washing",true,true,true,"Maintenance and care-Washing-Other washing",0,12]
[null,null,null,null,null,null,null,null,"Maintenance and care","Entretien","Cireuse","Cireuse","7","28083","<option value=\"28083\" data-poids=\"7\" data-item=\"64ba01c08b92ad7f354e169bb54d76bb\" >Cireuse</option>","Entretiens et soins","Entretien","Entretien-Cireuse",7,null,"7","Floor polisher",null,null,null,null,"Maintenance","Floor polisher",null,"Entretiens et soins","Entretien","Cireuse","Maintenance and care","Maintenance","Floor polisher",true,true,true,"Maintenance and care-Maintenance-Floor polisher",7,12]
[null,null,null,null,null,null,null,null,"Maintenance and care","Entretien","Shampouineuse","Shampouineuse","0","38935","<option value=\"38935\" data-poids=\"0\" data-item=\"64ba01c08b92ad7f354e169bb54d76bb\" >Shampouineuse</option>","Entretiens et soins","Entretien","Entretien-Shampouineuse",0,null,"0","carpet cleaner",null,null,null,null,"Maintenance","carpet cleaner",null,"Entretiens et soins","Entretien","Shampouineuse","Maintenance and care","Maintenance","carpet cleaner",true,true,true,"Maintenance and care-Maintenance-carpet cleaner",0,12]
[null,null,null,null,null,null,null,null,"Maintenance and care","Propreté industrielle","Autres entretien des sols","Autres entretien des sols","0","28084","<option value=\"28084\" data-poids=\"0\" data-item=\"56319f30b13f956dd34346592c154a88\" >Autres entretien des sols</option>","Entretiens et soins","Propreté industrielle","Propreté industrielle-Autres entretien des sols",0,null,"0","Other floor Maintenance",null,null,null,null,"Industrial Maintenance","Other floor Maintenance",null,"Entretiens et soins","Propreté industrielle","Autres entretien des sols","Maintenance and care","Industrial Maintenance","Other floor Maintenance",true,true,true,"Maintenance and care-Industrial Maintenance-Other floor Maintenance",0,12]
[null,null,null,null,null,null,null,null,"Maintenance and care","Propreté industrielle","Auto-laveuses","Auto-laveuses","0","37999","<option value=\"37999\" data-poids=\"0\" data-item=\"56319f30b13f956dd34346592c154a88\" >Auto-laveuses</option>","Entretiens et soins","Propreté industrielle","Propreté industrielle-Auto-laveuses",0,null,"0","Self-washing machine",null,null,null,null,"Industrial Maintenance","Self-washing machine",null,"Entretiens et soins","Propreté industrielle","Auto-laveuses","Maintenance and care","Industrial Maintenance","Self-washing machine",true,true,true,"Maintenance and care-Industrial Maintenance-Self-washing machine",0,12]
[null,null,null,null,null,null,null,null,"Maintenance and care","Propreté industrielle","Equipements de voirie","Equipements de voirie","0","38022","<option value=\"38022\" data-poids=\"0\" data-item=\"56319f30b13f956dd34346592c154a88\" >Equipements de voirie</option>","Entretiens et soins","Propreté industrielle","Propreté industrielle-Equipements de voirie",0,null,"0","street Maintenance equipment",null,null,null,null,"Industrial Maintenance","street Maintenance equipment",null,"Entretiens et soins","Propreté industrielle","Equipements de voirie","Maintenance and care","Industrial Maintenance","street Maintenance equipment",true,true,true,"Maintenance and care-Industrial Maintenance-street Maintenance equipment",0,12]
[null,null,null,null,null,null,null,null,"Maintenance and care","Propreté industrielle","Nettoyeurs vapeur","Nettoyeurs vapeur","5","38976","<option value=\"38976\" data-poids=\"5\" data-item=\"56319f30b13f956dd34346592c154a88\" >Nettoyeurs vapeur</option>","Entretiens et soins","Propreté industrielle","Propreté industrielle-Nettoyeurs vapeur",5,null,"5","Steam cleaners",null,null,null,null,"Industrial Maintenance","Steam cleaners",null,"Entretiens et soins","Propreté industrielle","Nettoyeurs vapeur","Maintenance and care","Industrial Maintenance","Steam cleaners",true,true,true,"Maintenance and care-Industrial Maintenance-Steam cleaners",5,12]
[null,null,null,null,null,null,null,null,"Other families","Encre, chiffons souilles...(DIS)","Encres","Encres","1","21365","<option value=\"21365\" data-poids=\"1\" data-item=\"7076c417d1587d0a2bd031735684b3f7\" >Encres</option>","Autres familles","Encre, chiffons souilles...(DIS)","Encre, chiffons souilles...(DIS)-Encres",1,null,"1","Inks",null,null,null,null,"Ink, soiled rags ... (DIS)","Inks",null,"Autres familles","Encre, chiffons souilles...(DIS)","Encres","Other families","Ink, soiled rags ... (DIS)","Inks",true,true,true,"Other families-Ink, soiled rags ... (DIS)-Inks",1,13]
[null,null,null,null,null,null,null,null,"Other families","Encre, chiffons souilles...(DIS)","Huiles","Huiles","0","21366","<option value=\"21366\" data-poids=\"0\" data-item=\"7076c417d1587d0a2bd031735684b3f7\" >Huiles</option>","Autres familles","Encre, chiffons souilles...(DIS)","Encre, chiffons souilles...(DIS)-Huiles",0,null,"0","Oils",null,null,null,null,"Ink, soiled rags ... (DIS)","Oils",null,"Autres familles","Encre, chiffons souilles...(DIS)","Huiles","Other families","Ink, soiled rags ... (DIS)","Oils",true,true,true,"Other families-Ink, soiled rags ... (DIS)-Oils",0,13]
[null,null,null,null,null,null,null,null,"Other families","Encre, chiffons souilles...(DIS)","Eléments souillés","Eléments souillés","1","21367","<option value=\"21367\" data-poids=\"1\" data-item=\"7076c417d1587d0a2bd031735684b3f7\" >Eléments souillés</option>","Autres familles","Encre, chiffons souilles...(DIS)","Encre, chiffons souilles...(DIS)-Eléments souillés",1,null,"1","Dirty items",null,null,null,null,"Ink, soiled rags ... (DIS)","Dirty items",null,"Autres familles","Encre, chiffons souilles...(DIS)","Eléments souillés","Other families","Ink, soiled rags ... (DIS)","Dirty items",true,true,true,"Other families-Ink, soiled rags ... (DIS)-Dirty items",1,13]
[null,null,null,null,null,null,null,null,"Other families","Encre, chiffons souilles...(DIS)","Autres DIS","Autres DIS","0","21368","<option value=\"21368\" data-poids=\"0\" data-item=\"7076c417d1587d0a2bd031735684b3f7\" >Autres DIS</option>","Autres familles","Encre, chiffons souilles...(DIS)","Encre, chiffons souilles...(DIS)-Autres DIS",0,null,"0","Other DIS",null,null,null,null,"Ink, soiled rags ... (DIS)","Other DIS",null,"Autres familles","Encre, chiffons souilles...(DIS)","Autres DIS","Other families","Ink, soiled rags ... (DIS)","Other DIS",true,true,true,"Other families-Ink, soiled rags ... (DIS)-Other DIS",0,13]
[null,null,null,null,null,null,null,null,"Other families","Emballages, cartons... (DIB)","Papier","Papier","1","21360","<option value=\"21360\" data-poids=\"1\" data-item=\"c1e9078ac679305b38b9cbd475f09c12\" >Papier</option>","Autres familles","Emballages, cartons... (DIB)","Emballages, cartons... (DIB)-Papier",1,null,"1","Paper",null,null,null,null,"Packaging, cartons ... (DIB)","Paper",null,"Autres familles","Emballages, cartons... (DIB)","Papier","Other families","Packaging, cartons ... (DIB)","Paper",true,true,true,"Other families-Packaging, cartons ... (DIB)-Paper",1,13]
[null,null,null,null,null,null,null,null,"Other families","Emballages, cartons... (DIB)","Bois","Bois","1","21361","<option value=\"21361\" data-poids=\"1\" data-item=\"c1e9078ac679305b38b9cbd475f09c12\" >Bois</option>","Autres familles","Emballages, cartons... (DIB)","Emballages, cartons... (DIB)-Bois",1,null,"1","Wood",null,null,null,null,"Packaging, cartons ... (DIB)","Wood",null,"Autres familles","Emballages, cartons... (DIB)","Bois","Other families","Packaging, cartons ... (DIB)","Wood",true,true,true,"Other families-Packaging, cartons ... (DIB)-Wood",1,13]
[null,null,null,null,null,null,null,null,"Other families","Emballages, cartons... (DIB)","Cartons","Cartons","1","21362","<option value=\"21362\" data-poids=\"1\" data-item=\"c1e9078ac679305b38b9cbd475f09c12\" >Cartons</option>","Autres familles","Emballages, cartons... (DIB)","Emballages, cartons... (DIB)-Cartons",1,null,"1","Cartons",null,null,null,null,"Packaging, cartons ... (DIB)","Cartons",null,"Autres familles","Emballages, cartons... (DIB)","Cartons","Other families","Packaging, cartons ... (DIB)","Cartons",true,true,true,"Other families-Packaging, cartons ... (DIB)-Cartons",1,13]
[null,null,null,null,null,null,null,null,"Other families","Emballages, cartons... (DIB)","Emballages","Emballages","1","21363","<option value=\"21363\" data-poids=\"1\" data-item=\"c1e9078ac679305b38b9cbd475f09c12\" >Emballages</option>","Autres familles","Emballages, cartons... (DIB)","Emballages, cartons... (DIB)-Emballages",1,null,"1","Packaging",null,null,null,null,"Packaging, cartons ... (DIB)","Packaging",null,"Autres familles","Emballages, cartons... (DIB)","Emballages","Other families","Packaging, cartons ... (DIB)","Packaging",true,true,true,"Other families-Packaging, cartons ... (DIB)-Packaging",1,13]
[null,null,null,null,null,null,null,null,"Other families","Emballages, cartons... (DIB)","Autres DIB","Autres DIB","0","21364","<option value=\"21364\" data-poids=\"0\" data-item=\"c1e9078ac679305b38b9cbd475f09c12\" >Autres DIB</option>","Autres familles","Emballages, cartons... (DIB)","Emballages, cartons... (DIB)-Autres DIB",0,null,"0","Other DIB",null,null,null,null,"Packaging, cartons ... (DIB)","Other DIB",null,"Autres familles","Emballages, cartons... (DIB)","Autres DIB","Other families","Packaging, cartons ... (DIB)","Other DIB",true,true,true,"Other families-Packaging, cartons ... (DIB)-Other DIB",0,13]
[null,null,null,null,null,null,null,null,"Other families","Cartouches et toners","Encres","Encres","0","21329","<option value=\"21329\" data-poids=\"0\" data-item=\"fb7787854b3f55a0dd6047a89e39484c\" >Encres</option>","Autres familles","Cartouches et toners","Cartouches et toners-Encres",1,null,"0","Ink ",null,null,null,null,"Cartridges and Toners","Ink ",null,"Autres familles","Cartouches et toners","Encres","Other families","Cartridges and Toners","Ink ",true,true,true,"Other families-Cartridges and Toners-Ink ",1,13]
[null,null,null,null,null,null,null,null,"Other families","Cartouches et toners","Toners","Toners","0","38941","<option value=\"38941\" data-poids=\"0\" data-item=\"fb7787854b3f55a0dd6047a89e39484c\" >Toners</option>","Autres familles","Cartouches et toners","Cartouches et toners-Toners",0,null,"0","Toners",null,null,null,null,"Cartridges and Toners","Toners",null,"Autres familles","Cartouches et toners","Toners","Other families","Cartridges and Toners","Toners",true,true,true,"Other families-Cartridges and Toners-Toners",0,13]
[null,null,null,null,null,null,null,null,"Catering and kitchen appliances","Panneaux isolants","Panneaux isolants","Panneaux isolants","0","21371","<option value=\"21371\" data-poids=\"0\" data-item=\"13529eafc6d9efbcbcc8eb8cf8cebace\" >Panneaux isolants</option>","Métiers de bouche et alimentaire","Panneaux isolants","Panneaux isolants-Panneaux isolants",0,null,"0","Insulating panels",null,null,null,null,"Insulating panels","Insulating panels",null,"Métiers de bouche et alimentaire","Panneaux isolants","Panneaux isolants","Catering and kitchen appliances","Insulating panels","Insulating panels",true,true,true,"Catering and kitchen appliances-Insulating panels-Insulating panels",0,14]
[null,null,null,null,null,null,null,null,"Catering and kitchen appliances","Mobiliers non métalliques","Autres","Autres","0","21359","<option value=\"21359\" data-poids=\"0\" data-item=\"00a5cb090ed830c18d3fd6019c80fb75\" >Autres</option>","Métiers de bouche et alimentaire","Mobiliers non métalliques","Mobiliers non métalliques-Autres",0,null,"0","Other",null,null,null,null,"Non-metallic furniture","Other",null,"Métiers de bouche et alimentaire","Mobiliers non métalliques","Autres","Catering and kitchen appliances","Non-metallic furniture","Other",true,true,true,"Catering and kitchen appliances-Non-metallic furniture-Other",0,14]
[null,null,null,null,null,null,null,null,"Catering and kitchen appliances","Mobiliers non métalliques","Plans de pose et travail","Plans de pose et travail","0","32826","<option value=\"32826\" data-poids=\"0\" data-item=\"00a5cb090ed830c18d3fd6019c80fb75\" >Plans de pose et travail</option>","Métiers de bouche et alimentaire","Mobiliers non métalliques","Mobiliers non métalliques-Plans de pose et travail",0,null,"0","Laying and working plans",null,null,null,null,"Non-metallic furniture","Laying and working plans",null,"Métiers de bouche et alimentaire","Mobiliers non métalliques","Plans de pose et travail","Catering and kitchen appliances","Non-metallic furniture","Laying and working plans",true,true,true,"Catering and kitchen appliances-Non-metallic furniture-Laying and working plans",0,14]
[null,null,null,null,null,null,null,null,"Catering and kitchen appliances","Mobiliers non métalliques","Rangements","Rangements","0","32828","<option value=\"32828\" data-poids=\"0\" data-item=\"00a5cb090ed830c18d3fd6019c80fb75\" >Rangements</option>","Métiers de bouche et alimentaire","Mobiliers non métalliques","Mobiliers non métalliques-Rangements",0,null,"0","Storage",null,null,null,null,"Non-metallic furniture","Storage",null,"Métiers de bouche et alimentaire","Mobiliers non métalliques","Rangements","Catering and kitchen appliances","Non-metallic furniture","Storage",true,true,true,"Catering and kitchen appliances-Non-metallic furniture-Storage",0,14]
[null,null,null,null,null,null,null,null,"Catering and kitchen appliances","Mobiliers métalliques non Inox","Rangements","Rangements","0","37650","<option value=\"37650\" data-poids=\"0\" data-item=\"a2e517f23d2ad677b41ddc3eddc43e04\" >Rangements</option>","Métiers de bouche et alimentaire","Mobiliers métalliques non Inox","Mobiliers métalliques non Inox-Rangements",0,null,"0","Storage ",null,null,null,null,"Non-stainless metallic furniture","Storage ",null,"Métiers de bouche et alimentaire","Mobiliers métalliques non Inox","Rangements","Catering and kitchen appliances","Non-stainless metallic furniture","Storage ",true,true,true,"Catering and kitchen appliances-Non-stainless metallic furniture-Storage ",0,14]
[null,null,null,null,null,null,null,null,"Catering and kitchen appliances","Mobiliers métalliques non Inox","Plans de pose et travail","Plans de pose et travail","0","37651","<option value=\"37651\" data-poids=\"0\" data-item=\"a2e517f23d2ad677b41ddc3eddc43e04\" >Plans de pose et travail</option>","Métiers de bouche et alimentaire","Mobiliers métalliques non Inox","Mobiliers métalliques non Inox-Plans de pose et travail",0,null,"0","Laying and working plans",null,null,null,null,"Non-stainless metallic furniture","Laying and working plans",null,"Métiers de bouche et alimentaire","Mobiliers métalliques non Inox","Plans de pose et travail","Catering and kitchen appliances","Non-stainless metallic furniture","Laying and working plans",true,true,true,"Catering and kitchen appliances-Non-stainless metallic furniture-Laying and working plans",0,14]
[null,null,null,null,null,null,null,null,"Catering and kitchen appliances","Mobiliers métalliques non Inox","Autres","Autres","0","37652","<option value=\"37652\" data-poids=\"0\" data-item=\"a2e517f23d2ad677b41ddc3eddc43e04\" >Autres</option>","Métiers de bouche et alimentaire","Mobiliers métalliques non Inox","Mobiliers métalliques non Inox-Autres",0,null,"0","Other",null,null,null,null,"Non-stainless metallic furniture","Other",null,"Métiers de bouche et alimentaire","Mobiliers métalliques non Inox","Autres","Catering and kitchen appliances","Non-stainless metallic furniture","Other",true,true,true,"Catering and kitchen appliances-Non-stainless metallic furniture-Other",0,14]
[null,null,null,null,null,null,null,null,"Catering and kitchen appliances","Mobiliers Inox","Rangements","Rangements","0","37653","<option value=\"37653\" data-poids=\"0\" data-item=\"e35c99818e66fb20a251cb9dd02db96f\" >Rangements</option>","Métiers de bouche et alimentaire","Mobiliers Inox","Mobiliers Inox-Rangements",0,null,"0","Storage ",null,null,null,null,"Stainless steel furniture","Storage ",null,"Métiers de bouche et alimentaire","Mobiliers Inox","Rangements","Catering and kitchen appliances","Stainless steel furniture","Storage ",true,true,true,"Catering and kitchen appliances-Stainless steel furniture-Storage ",0,14]
[null,null,null,null,null,null,null,null,"Catering and kitchen appliances","Mobiliers Inox","Plans de pose et travail","Plans de pose et travail","0","37654","<option value=\"37654\" data-poids=\"0\" data-item=\"e35c99818e66fb20a251cb9dd02db96f\" >Plans de pose et travail</option>","Métiers de bouche et alimentaire","Mobiliers Inox","Mobiliers Inox-Plans de pose et travail",0,null,"0","Laying and working plans",null,null,null,null,"Stainless steel furniture","Laying and working plans",null,"Métiers de bouche et alimentaire","Mobiliers Inox","Plans de pose et travail","Catering and kitchen appliances","Stainless steel furniture","Laying and working plans",true,true,true,"Catering and kitchen appliances-Stainless steel furniture-Laying and working plans",0,14]
[null,null,null,null,null,null,null,null,"Catering and kitchen appliances","Mobiliers Inox","Autres","Autres","0","37655","<option value=\"37655\" data-poids=\"0\" data-item=\"e35c99818e66fb20a251cb9dd02db96f\" >Autres</option>","Métiers de bouche et alimentaire","Mobiliers Inox","Mobiliers Inox-Autres",0,null,"0","Other",null,null,null,null,"Stainless steel furniture","Other",null,"Métiers de bouche et alimentaire","Mobiliers Inox","Autres","Catering and kitchen appliances","Stainless steel furniture","Other",true,true,true,"Catering and kitchen appliances-Stainless steel furniture-Other",0,14]
[null,null,null,null,null,null,null,null,"Catering and kitchen appliances","Autres équipements électriques","Hachoirs / Scies / Laminoirs / Trancheurs","Hachoirs / Scies / Laminoirs / Trancheurs","20","26535","<option value=\"26535\" data-poids=\"20\" data-item=\"b11cabeb363d3c7abaf797aab953cb8c\" >Hachoirs / Scies / Laminoirs / Trancheurs</option>","Métiers de bouche et alimentaire","Autres équipements électriques","Autres équipements électriques-Hachoirs / Scies / Laminoirs / Trancheurs",20,null,"20","Choppers / Saws / Rollers / Slicers",null,null,null,null,"Other electrical equipment","Choppers / Saws / Rollers / Slicers",null,"Métiers de bouche et alimentaire","Autres équipements électriques","Hachoirs / Scies / Laminoirs / Trancheurs","Catering and kitchen appliances","Other electrical equipment","Choppers / Saws / Rollers / Slicers",true,true,true,"Catering and kitchen appliances-Other electrical equipment-Choppers / Saws / Rollers / Slicers",20,14]
[null,null,null,null,null,null,null,null,"Catering and kitchen appliances","Autres équipements électriques","Mixeurs / Batteurs / Robots","Mixeurs / Batteurs / Robots","30","26563","<option value=\"26563\" data-poids=\"30\" data-item=\"b11cabeb363d3c7abaf797aab953cb8c\" >Mixeurs / Batteurs / Robots</option>","Métiers de bouche et alimentaire","Autres équipements électriques","Autres équipements électriques-Mixeurs / Batteurs / Robots",30,null,"30","Mixers / Beaters / Robots",null,null,null,null,"Other electrical equipment","Mixers / Beaters / Robots",null,"Métiers de bouche et alimentaire","Autres équipements électriques","Mixeurs / Batteurs / Robots","Catering and kitchen appliances","Other electrical equipment","Mixers / Beaters / Robots",true,true,true,"Catering and kitchen appliances-Other electrical equipment-Mixers / Beaters / Robots",30,14]
[null,null,null,null,null,null,null,null,"Catering and kitchen appliances","Autres équipements électriques","Presses agrumes / Blenders / Centrifugeuses","Presses agrumes / Blenders / Centrifugeuses","30","26570","<option value=\"26570\" data-poids=\"30\" data-item=\"b11cabeb363d3c7abaf797aab953cb8c\" >Presses agrumes / Blenders / Centrifugeuses</option>","Métiers de bouche et alimentaire","Autres équipements électriques","Autres équipements électriques-Presses agrumes / Blenders / Centrifugeuses",30,null,"30","Citrus juicer / Blenders / Centrifuges",null,null,null,null,"Other electrical equipment","Citrus juicer / Blenders / Centrifuges",null,"Métiers de bouche et alimentaire","Autres équipements électriques","Presses agrumes / Blenders / Centrifugeuses","Catering and kitchen appliances","Other electrical equipment","Citrus juicer / Blenders / Centrifuges",true,true,true,"Catering and kitchen appliances-Other electrical equipment-Citrus juicer / Blenders / Centrifuges",30,14]
[null,null,null,null,null,null,null,null,"Catering and kitchen appliances","Autres équipements électriques","Mixeurs","Mixeurs","4","39887","<option value=\"39887\" data-poids=\"4\" data-item=\"b11cabeb363d3c7abaf797aab953cb8c\" >Mixeurs</option>","Métiers de bouche et alimentaire","Autres équipements électriques","Autres équipements électriques-Mixeurs",4,null,"4","Mixers ",null,null,null,null,"Other electrical equipment","Mixers ",null,"Métiers de bouche et alimentaire","Autres équipements électriques","Mixeurs","Catering and kitchen appliances","Other electrical equipment","Mixers ",true,true,true,"Catering and kitchen appliances-Other electrical equipment-Mixers ",4,14]
[null,null,null,null,null,null,null,null,"Catering and kitchen appliances","Autres équipements électriques","Planchas","Planchas","0","40011","<option value=\"40011\" data-poids=\"0\" data-item=\"b11cabeb363d3c7abaf797aab953cb8c\" >Planchas</option>","Métiers de bouche et alimentaire","Autres équipements électriques","Autres équipements électriques-Planchas",0,null,"0","Hot stone barbecue",null,null,null,null,"Other electrical equipment","Hot stone barbecue",null,"Métiers de bouche et alimentaire","Autres équipements électriques","Planchas","Catering and kitchen appliances","Other electrical equipment","Hot stone barbecue",true,true,true,"Catering and kitchen appliances-Other electrical equipment-Hot stone barbecue",0,14]
[null,null,null,null,null,null,null,null,"Catering and kitchen appliances","Autres équipements électriques","Crêpières","Crêpières","5","40135","<option value=\"40135\" data-poids=\"5\" data-item=\"b11cabeb363d3c7abaf797aab953cb8c\" >Crêpières</option>","Métiers de bouche et alimentaire","Autres équipements électriques","Autres équipements électriques-Crêpières",5,null,"5","Crepe makers",null,null,null,null,"Other electrical equipment","Crepe makers",null,"Métiers de bouche et alimentaire","Autres équipements électriques","Crêpières","Catering and kitchen appliances","Other electrical equipment","Crepe makers",true,true,true,"Catering and kitchen appliances-Other electrical equipment-Crepe makers",5,14]
[null,null,null,null,null,null,null,null,"Catering and kitchen appliances","Autres équipements électriques","Friteuses / Snacking","Friteuses / Snacking","6","40259","<option value=\"40259\" data-poids=\"6\" data-item=\"b11cabeb363d3c7abaf797aab953cb8c\" >Friteuses / Snacking</option>","Métiers de bouche et alimentaire","Autres équipements électriques","Autres équipements électriques-Friteuses / Snacking",6,null,"6","Fryers / Snacking",null,null,null,null,"Other electrical equipment","Fryers / Snacking",null,"Métiers de bouche et alimentaire","Autres équipements électriques","Friteuses / Snacking","Catering and kitchen appliances","Other electrical equipment","Fryers / Snacking",true,true,true,"Catering and kitchen appliances-Other electrical equipment-Fryers / Snacking",6,14]
[null,null,null,null,null,null,null,null,"Catering and kitchen appliances","Gros équipement inox (hors froid)","Sauteuses","Sauteuses","50","21370","<option value=\"21370\" data-poids=\"50\" data-item=\"fe0e25cffc8853881c789542159bc641\" >Sauteuses</option>","Métiers de bouche et alimentaire","Gros équipement inox (hors froid)","Gros équipement inox (hors froid)-Sauteuses",50,null,"50","Casserole",null,null,null,null,"Large stainless equipment (excluding cooling)","Casserole",null,"Métiers de bouche et alimentaire","Gros équipement inox (hors froid)","Sauteuses","Catering and kitchen appliances","Large stainless equipment (excluding cooling)","Casserole",true,true,true,"Catering and kitchen appliances-Large stainless equipment (excluding cooling)-Casserole",50,14]
[null,null,null,null,null,null,null,null,"Catering and kitchen appliances","Gros équipement inox (hors froid)","Bains marie","Bains marie","0","21372","<option value=\"21372\" data-poids=\"0\" data-item=\"fe0e25cffc8853881c789542159bc641\" >Bains marie</option>","Métiers de bouche et alimentaire","Gros équipement inox (hors froid)","Gros équipement inox (hors froid)-Bains marie",0,null,"0","water quench",null,null,null,null,"Large stainless equipment (excluding cooling)","water quench",null,"Métiers de bouche et alimentaire","Gros équipement inox (hors froid)","Bains marie","Catering and kitchen appliances","Large stainless equipment (excluding cooling)","water quench",true,true,true,"Catering and kitchen appliances-Large stainless equipment (excluding cooling)-water quench",0,14]
[null,null,null,null,null,null,null,null,"Catering and kitchen appliances","Gros équipement inox (hors froid)","Hottes","Hottes","50","26549","<option value=\"26549\" data-poids=\"50\" data-item=\"fe0e25cffc8853881c789542159bc641\" >Hottes</option>","Métiers de bouche et alimentaire","Gros équipement inox (hors froid)","Gros équipement inox (hors froid)-Hottes",50,null,"50","Hoods",null,null,null,null,"Large stainless equipment (excluding cooling)","Hoods",null,"Métiers de bouche et alimentaire","Gros équipement inox (hors froid)","Hottes","Catering and kitchen appliances","Large stainless equipment (excluding cooling)","Hoods",true,true,true,"Catering and kitchen appliances-Large stainless equipment (excluding cooling)-Hoods",50,14]
[null,null,null,null,null,null,null,null,"Catering and kitchen appliances","Gros équipement inox (hors froid)","Percolateurs","Percolateurs","50","26556","<option value=\"26556\" data-poids=\"50\" data-item=\"fe0e25cffc8853881c789542159bc641\" >Percolateurs</option>","Métiers de bouche et alimentaire","Gros équipement inox (hors froid)","Gros équipement inox (hors froid)-Percolateurs",0,null,"50","Percolators",null,null,null,null,"Large stainless equipment (excluding cooling)","Percolators",null,"Métiers de bouche et alimentaire","Gros équipement inox (hors froid)","Percolateurs","Catering and kitchen appliances","Large stainless equipment (excluding cooling)","Percolators",true,true,true,"Catering and kitchen appliances-Large stainless equipment (excluding cooling)-Percolators",0,14]
[null,null,null,null,null,null,null,null,"Catering and kitchen appliances","Gros équipement inox (hors froid)","Etuves","Etuves","0","26577","<option value=\"26577\" data-poids=\"0\" data-item=\"fe0e25cffc8853881c789542159bc641\" >Etuves</option>","Métiers de bouche et alimentaire","Gros équipement inox (hors froid)","Gros équipement inox (hors froid)-Etuves",0,null,"0","Ovens",null,null,null,null,"Large stainless equipment (excluding cooling)","Ovens",null,"Métiers de bouche et alimentaire","Gros équipement inox (hors froid)","Etuves","Catering and kitchen appliances","Large stainless equipment (excluding cooling)","Ovens",true,true,true,"Catering and kitchen appliances-Large stainless equipment (excluding cooling)-Ovens",0,14]
[null,null,null,null,null,null,null,null,"Catering and kitchen appliances","Gros équipement inox (hors froid)","Pianos","Pianos","150","38852","<option value=\"38852\" data-poids=\"150\" data-item=\"fe0e25cffc8853881c789542159bc641\" >Pianos</option>","Métiers de bouche et alimentaire","Gros équipement inox (hors froid)","Gros équipement inox (hors froid)-Pianos",150,null,"150","Pianos ",null,null,null,null,"Large stainless equipment (excluding cooling)","Pianos ",null,"Métiers de bouche et alimentaire","Gros équipement inox (hors froid)","Pianos","Catering and kitchen appliances","Large stainless equipment (excluding cooling)","Pianos ",true,true,true,"Catering and kitchen appliances-Large stainless equipment (excluding cooling)-Pianos ",150,14]
[null,null,null,null,null,null,null,null,"Catering and kitchen appliances","Gros équipement inox (hors froid)","Fourneaux","Fourneaux","0","38942","<option value=\"38942\" data-poids=\"0\" data-item=\"fe0e25cffc8853881c789542159bc641\" >Fourneaux</option>","Métiers de bouche et alimentaire","Gros équipement inox (hors froid)","Gros équipement inox (hors froid)-Fourneaux",0,null,"0","Furnaces",null,null,null,null,"Large stainless equipment (excluding cooling)","Furnaces",null,"Métiers de bouche et alimentaire","Gros équipement inox (hors froid)","Fourneaux","Catering and kitchen appliances","Large stainless equipment (excluding cooling)","Furnaces",true,true,true,"Catering and kitchen appliances-Large stainless equipment (excluding cooling)-Furnaces",0,14]
[null,null,null,null,null,null,null,null,"Catering and kitchen appliances","Gros équipement inox (hors froid)","Lave-verres","Lave-verres","0","39351","<option value=\"39351\" data-poids=\"0\" data-item=\"fe0e25cffc8853881c789542159bc641\" >Lave-verres</option>","Métiers de bouche et alimentaire","Gros équipement inox (hors froid)","Gros équipement inox (hors froid)-Lave-verres",0,null,"0","Glass washer",null,null,null,null,"Large stainless equipment (excluding cooling)","Glass washer",null,"Métiers de bouche et alimentaire","Gros équipement inox (hors froid)","Lave-verres","Catering and kitchen appliances","Large stainless equipment (excluding cooling)","Glass washer",true,true,true,"Catering and kitchen appliances-Large stainless equipment (excluding cooling)-Glass washer",0,14]
[null,null,null,null,null,null,null,null,"Catering and kitchen appliances","Réfrigérateur Ammoniac","Equipements NH3","Equipements NH3","15","26188","<option value=\"26188\" data-poids=\"15\" data-item=\"a36f4fb9cbee03a0a4f1652810ff0a4b\" >Equipements NH3</option>","Métiers de bouche et alimentaire","Réfrigérateur Ammoniac","Réfrigérateur Ammoniac-Equipements NH3",15,null,"15","NH3 equipment",null,null,null,null,"Ammoniac refrigerator","NH3 equipment",null,"Métiers de bouche et alimentaire","Réfrigérateur Ammoniac","Equipements NH3","Catering and kitchen appliances","Ammoniac refrigerator","NH3 equipment",true,true,true,"Catering and kitchen appliances-Ammoniac refrigerator-NH3 equipment",15,14]
[null,null,null,null,null,null,null,null,"Catering and kitchen appliances","Froid hors inox","Vitrines","Vitrines","100","21328","<option value=\"21328\" data-poids=\"100\" data-item=\"5204c133387ef624a10bf8aabc0be725\" >Vitrines</option>","Métiers de bouche et alimentaire","Froid hors inox","Froid hors inox-Vitrines",100,null,"100","Showcases",null,null,null,null,"Cooling equipment (not stainless)","Showcases",null,"Métiers de bouche et alimentaire","Froid hors inox","Vitrines","Catering and kitchen appliances","Cooling equipment (not stainless)","Showcases",true,true,true,"Catering and kitchen appliances-Cooling equipment (not stainless)-Showcases",100,14]
[null,null,null,null,null,null,null,null,"Catering and kitchen appliances","Froid hors inox","Congélateurs","Congélateurs","92","38366","<option value=\"38366\" data-poids=\"92\" data-item=\"5204c133387ef624a10bf8aabc0be725\" >Congélateurs</option>","Métiers de bouche et alimentaire","Froid hors inox","Froid hors inox-Congélateurs",92,null,"92","Freezers",null,null,null,null,"Cooling equipment (not stainless)","Freezers",null,"Métiers de bouche et alimentaire","Froid hors inox","Congélateurs","Catering and kitchen appliances","Cooling equipment (not stainless)","Freezers",true,true,true,"Catering and kitchen appliances-Cooling equipment (not stainless)-Freezers",92,14]
[null,null,null,null,null,null,null,null,"Catering and kitchen appliances","Froid hors inox","Fontaines à eau","Fontaines à eau","0","38544","<option value=\"38544\" data-poids=\"0\" data-item=\"5204c133387ef624a10bf8aabc0be725\" >Fontaines à eau</option>","Métiers de bouche et alimentaire","Froid hors inox","Froid hors inox-Fontaines à eau",0,null,"0","Water fountains",null,null,null,null,"Cooling equipment (not stainless)","Water fountains",null,"Métiers de bouche et alimentaire","Froid hors inox","Fontaines à eau","Catering and kitchen appliances","Cooling equipment (not stainless)","Water fountains",true,true,true,"Catering and kitchen appliances-Cooling equipment (not stainless)-Water fountains",0,14]
[null,null,null,null,null,null,null,null,"Catering and kitchen appliances","Froid Inox","Libre serv, LinéR présent (Bacs,vitr,gondo)","Libre serv, LinéR présent (Bacs,vitr,gondo)","100","26598","<option value=\"26598\" data-poids=\"100\" data-item=\"40ad2f41fa9b8ab252b3779e15892c29\" >Libre serv, LinéR présent (Bacs,vitr,gondo)</option>","Métiers de bouche et alimentaire","Froid Inox","Froid Inox-Libre serv, LinéR présent (Bacs,vitr,gondo)",100,null,"100","Self-service, presentation LineR  (Bins, showcase, goods shelves)",null,null,null,null,"Cooling equipment (stainless)","Self-service, presentation LineR  (Bins, showcase, goods shelves)",null,"Métiers de bouche et alimentaire","Froid Inox","Libre serv, LinéR présent (Bacs,vitr,gondo)","Catering and kitchen appliances","Cooling equipment (stainless)","Self-service, presentation LineR  (Bins, showcase, goods shelves)",true,true,true,"Catering and kitchen appliances-Cooling equipment (stainless)-Self-service, presentation LineR  (Bins, showcase, goods shelves)",100,14]
[null,null,null,null,null,null,null,null,"Catering and kitchen appliances","Froid Inox","Armoires réfrigérées / à vin / bar","Armoires réfrigérées / à vin / bar","150","26599","<option value=\"26599\" data-poids=\"150\" data-item=\"40ad2f41fa9b8ab252b3779e15892c29\" >Armoires réfrigérées / à vin / bar</option>","Métiers de bouche et alimentaire","Froid Inox","Froid Inox-Armoires réfrigérées / à vin / bar",150,null,"150","wine refrigerators / bars",null,null,null,null,"Cooling equipment (stainless)","wine refrigerators / bars",null,"Métiers de bouche et alimentaire","Froid Inox","Armoires réfrigérées / à vin / bar","Catering and kitchen appliances","Cooling equipment (stainless)","wine refrigerators / bars",true,true,true,"Catering and kitchen appliances-Cooling equipment (stainless)-wine refrigerators / bars",150,14]
[null,null,null,null,null,null,null,null,"Catering and kitchen appliances","Froid Inox","Tables de préparation","Tables de préparation","200","26600","<option value=\"26600\" data-poids=\"200\" data-item=\"40ad2f41fa9b8ab252b3779e15892c29\" >Tables de préparation</option>","Métiers de bouche et alimentaire","Froid Inox","Froid Inox-Tables de préparation",200,null,"200","Preparation tables",null,null,null,null,"Cooling equipment (stainless)","Preparation tables",null,"Métiers de bouche et alimentaire","Froid Inox","Tables de préparation","Catering and kitchen appliances","Cooling equipment (stainless)","Preparation tables",true,true,true,"Catering and kitchen appliances-Cooling equipment (stainless)-Preparation tables",200,14]
[null,null,null,null,null,null,null,null,"Catering and kitchen appliances","Froid Inox","Machines à glace / à glaçons","Machines à glace / à glaçons","45","26601","<option value=\"26601\" data-poids=\"45\" data-item=\"40ad2f41fa9b8ab252b3779e15892c29\" >Machines à glace / à glaçons</option>","Métiers de bouche et alimentaire","Froid Inox","Froid Inox-Machines à glace / à glaçons",45,null,"45","Ice / icemaking machines",null,null,null,null,"Cooling equipment (stainless)","Ice / icemaking machines",null,"Métiers de bouche et alimentaire","Froid Inox","Machines à glace / à glaçons","Catering and kitchen appliances","Cooling equipment (stainless)","Ice / icemaking machines",true,true,true,"Catering and kitchen appliances-Cooling equipment (stainless)-Ice / icemaking machines",45,14]
[null,null,null,null,null,null,null,null,"Catering and kitchen appliances","Froid Inox","Cellules de refroidissement, réfrigération","Cellules de refroidissement, réfrigération","0","26602","<option value=\"26602\" data-poids=\"0\" data-item=\"40ad2f41fa9b8ab252b3779e15892c29\" >Cellules de refroidissement, réfrigération</option>","Métiers de bouche et alimentaire","Froid Inox","Froid Inox-Cellules de refroidissement, réfrigération",0,null,"0","Cooling cells, refrigeration",null,null,null,null,"Cooling equipment (stainless)","Cooling cells, refrigeration",null,"Métiers de bouche et alimentaire","Froid Inox","Cellules de refroidissement, réfrigération","Catering and kitchen appliances","Cooling equipment (stainless)","Cooling cells, refrigeration",true,true,true,"Catering and kitchen appliances-Cooling equipment (stainless)-Cooling cells, refrigeration",0,14]
[null,null,null,null,null,null,null,null,"Catering and kitchen appliances","Froid Inox","Chambres froides, Armoires froides","Chambres froides, Armoires froides","0","26603","<option value=\"26603\" data-poids=\"0\" data-item=\"40ad2f41fa9b8ab252b3779e15892c29\" >Chambres froides, Armoires froides</option>","Métiers de bouche et alimentaire","Froid Inox","Froid Inox-Chambres froides, Armoires froides",0,null,"0","Cold rooms , Cold cupboards",null,null,null,null,"Cooling equipment (stainless)","Cold rooms , Cold cupboards",null,"Métiers de bouche et alimentaire","Froid Inox","Chambres froides, Armoires froides","Catering and kitchen appliances","Cooling equipment (stainless)","Cold rooms , Cold cupboards",true,true,true,"Catering and kitchen appliances-Cooling equipment (stainless)-Cold rooms , Cold cupboards",0,14]
[null,null,null,null,null,null,null,null,"Catering and kitchen appliances","Froid Inox","Conservateurs","Conservateurs","0","26604","<option value=\"26604\" data-poids=\"0\" data-item=\"40ad2f41fa9b8ab252b3779e15892c29\" >Conservateurs</option>","Métiers de bouche et alimentaire","Froid Inox","Froid Inox-Conservateurs",0,null,"0","Fridge boxes",null,null,null,null,"Cooling equipment (stainless)","Fridge boxes",null,"Métiers de bouche et alimentaire","Froid Inox","Conservateurs","Catering and kitchen appliances","Cooling equipment (stainless)","Fridge boxes",true,true,true,"Catering and kitchen appliances-Cooling equipment (stainless)-Fridge boxes",0,14]
[null,null,null,null,null,null,null,null,"Catering and kitchen appliances","Froid Inox","Saladettes","Saladettes","50","26605","<option value=\"26605\" data-poids=\"50\" data-item=\"40ad2f41fa9b8ab252b3779e15892c29\" >Saladettes</option>","Métiers de bouche et alimentaire","Froid Inox","Froid Inox-Saladettes",50,null,"50","salad bars",null,null,null,null,"Cooling equipment (stainless)","salad bars",null,"Métiers de bouche et alimentaire","Froid Inox","Saladettes","Catering and kitchen appliances","Cooling equipment (stainless)","salad bars",true,true,true,"Catering and kitchen appliances-Cooling equipment (stainless)-salad bars",50,14]
[null,null,null,null,null,null,null,null,"Catering and kitchen appliances","Froid Inox","Broyeur à glaçons","Broyeur à glaçons","0","39192","<option value=\"39192\" data-poids=\"0\" data-item=\"40ad2f41fa9b8ab252b3779e15892c29\" >Broyeur à glaçons</option>","Métiers de bouche et alimentaire","Froid Inox","Froid Inox-Broyeur à glaçons",0,null,"0","Ice crusher",null,null,null,null,"Cooling equipment (stainless)","Ice crusher",null,"Métiers de bouche et alimentaire","Froid Inox","Broyeur à glaçons","Catering and kitchen appliances","Cooling equipment (stainless)","Ice crusher",true,true,true,"Catering and kitchen appliances-Cooling equipment (stainless)-Ice crusher",0,14]
[null,null,null,null,null,null,null,null,"Culture, Leasure and Sports Equipment","Autres équipements de loisirs","Autres Equipements Culture Loisirs et Sports","Autres Equipements Culture Loisirs et Sports","0","42324","<option value=\"42324\" data-poids=\"0\" data-item=\"bc6a38b45e561d2742b2b58e96c1d561\" >Autres Equipements Culture Loisirs et Sports</option>","Equipements de Culture Loisirs et Sports","Autres équipements de loisirs","Autres équipements de loisirs-Autres Equipements Culture Loisirs et Sports",0,null,"0","Other culture, leisure and sports equipment",null,null,null,null,"Other leisure equipment","Other culture, leisure and sports equipment",null,"Equipements de Culture Loisirs et Sports","Autres équipements de loisirs","Autres Equipements Culture Loisirs et Sports","Culture, Leasure and Sports Equipment","Other leisure equipment","Other culture, leisure and sports equipment",true,true,true,"Culture, Leasure and Sports Equipment-Other leisure equipment-Other culture, leisure and sports equipment",0,15]
[null,null,null,null,null,null,null,null,"Culture, Leasure and Sports Equipment","Autres équipements de loisirs","Trottinette","Trottinette","13","44445","<option value=\"44445\" data-poids=\"13\" data-item=\"bc6a38b45e561d2742b2b58e96c1d561\" >Trottinette</option>","Equipements de Culture Loisirs et Sports","Autres équipements de loisirs","Autres équipements de loisirs-Trottinette",13,null,"13","Scooter",null,null,null,null,"Other leisure equipment","Scooter",null,"Equipements de Culture Loisirs et Sports","Autres équipements de loisirs","Trottinette","Culture, Leasure and Sports Equipment","Other leisure equipment","Scooter",true,true,true,"Culture, Leasure and Sports Equipment-Other leisure equipment-Scooter",13,15]
[null,null,null,null,null,null,null,null,"Culture, Leasure and Sports Equipment","Autres équipements de loisirs","Hoverboard","Hoverboard","10","44556","<option value=\"44556\" data-poids=\"10\" data-item=\"bc6a38b45e561d2742b2b58e96c1d561\" >Hoverboard</option>","Equipements de Culture Loisirs et Sports","Autres équipements de loisirs","Autres équipements de loisirs-Hoverboard",10,null,"10","Hoverboard",null,null,null,null,"Other leisure equipment","Hoverboard",null,"Equipements de Culture Loisirs et Sports","Autres équipements de loisirs","Hoverboard","Culture, Leasure and Sports Equipment","Other leisure equipment","Hoverboard",true,true,true,"Culture, Leasure and Sports Equipment-Other leisure equipment-Hoverboard",10,15]
[null,null,null,null,null,null,null,null,"Culture, Leasure and Sports Equipment","Autres équipements de loisirs","Gyropode","Gyropode","40","44667","<option value=\"44667\" data-poids=\"40\" data-item=\"bc6a38b45e561d2742b2b58e96c1d561\" >Gyropode</option>","Equipements de Culture Loisirs et Sports","Autres équipements de loisirs","Autres équipements de loisirs-Gyropode",40,null,"40","Segway",null,null,null,null,"Other leisure equipment","Segway",null,"Equipements de Culture Loisirs et Sports","Autres équipements de loisirs","Gyropode","Culture, Leasure and Sports Equipment","Other leisure equipment","Segway",true,true,true,"Culture, Leasure and Sports Equipment-Other leisure equipment-Segway",40,15]
[null,null,null,null,null,null,null,null,"Culture, Leasure and Sports Equipment","Autres équipements de loisirs","MonoWheel","MonoWheel","8","44778","<option value=\"44778\" data-poids=\"8\" data-item=\"bc6a38b45e561d2742b2b58e96c1d561\" >MonoWheel</option>","Equipements de Culture Loisirs et Sports","Autres équipements de loisirs","Autres équipements de loisirs-MonoWheel",8,null,"8","MonoWheel",null,null,null,null,"Other leisure equipment","MonoWheel",null,"Equipements de Culture Loisirs et Sports","Autres équipements de loisirs","MonoWheel","Culture, Leasure and Sports Equipment","Other leisure equipment","MonoWheel",true,true,true,"Culture, Leasure and Sports Equipment-Other leisure equipment-MonoWheel",8,15]
[null,null,null,null,null,null,null,null,"Culture, Leasure and Sports Equipment","Sport","Tapis de course","Tapis de course","80","21373","<option value=\"21373\" data-poids=\"80\" data-item=\"1354830777fc6f544fabdb370facb0a9\" >Tapis de course</option>","Equipements de Culture Loisirs et Sports","Sport","Sport-Tapis de course",80,null,"80","Treadmill",null,null,null,null,"Sports","Treadmill",null,"Equipements de Culture Loisirs et Sports","Sport","Tapis de course","Culture, Leasure and Sports Equipment","Sports","Treadmill",true,true,true,"Culture, Leasure and Sports Equipment-Sports-Treadmill",80,15]
[null,null,null,null,null,null,null,null,"Culture, Leasure and Sports Equipment","Sport","Tableau affichage","Tableau affichage","30","21379","<option value=\"21379\" data-poids=\"30\" data-item=\"1354830777fc6f544fabdb370facb0a9\" >Tableau affichage</option>","Equipements de Culture Loisirs et Sports","Sport","Sport-Tableau affichage",30,null,"30","Display panel",null,null,null,null,"Sports","Display panel",null,"Equipements de Culture Loisirs et Sports","Sport","Tableau affichage","Culture, Leasure and Sports Equipment","Sports","Display panel",true,true,true,"Culture, Leasure and Sports Equipment-Sports-Display panel",30,15]
[null,null,null,null,null,null,null,null,"Culture, Leasure and Sports Equipment","Sport","Vélos","Vélos","30","21380","<option value=\"21380\" data-poids=\"30\" data-item=\"1354830777fc6f544fabdb370facb0a9\" >Vélos</option>","Equipements de Culture Loisirs et Sports","Sport","Sport-Vélos",30,null,"30","Bikes",null,null,null,null,"Sports","Bikes",null,"Equipements de Culture Loisirs et Sports","Sport","Vélos","Culture, Leasure and Sports Equipment","Sports","Bikes",true,true,true,"Culture, Leasure and Sports Equipment-Sports-Bikes",30,15]
[null,null,null,null,null,null,null,null,"Culture, Leasure and Sports Equipment","Sport","Autres musculation","Autres musculation","0","21381","<option value=\"21381\" data-poids=\"0\" data-item=\"1354830777fc6f544fabdb370facb0a9\" >Autres musculation</option>","Equipements de Culture Loisirs et Sports","Sport","Sport-Autres musculation",0,null,"0","Other bodybuilding equipment",null,null,null,null,"Sports","Other bodybuilding equipment",null,"Equipements de Culture Loisirs et Sports","Sport","Autres musculation","Culture, Leasure and Sports Equipment","Sports","Other bodybuilding equipment",true,true,true,"Culture, Leasure and Sports Equipment-Sports-Other bodybuilding equipment",0,15]
[null,null,null,null,null,null,null,null,"Culture, Leasure and Sports Equipment","Sport","Lanceurs","Lanceurs","30","21382","<option value=\"21382\" data-poids=\"30\" data-item=\"1354830777fc6f544fabdb370facb0a9\" >Lanceurs</option>","Equipements de Culture Loisirs et Sports","Sport","Sport-Lanceurs",30,null,"30","Launchers",null,null,null,null,"Sports","Launchers",null,"Equipements de Culture Loisirs et Sports","Sport","Lanceurs","Culture, Leasure and Sports Equipment","Sports","Launchers",true,true,true,"Culture, Leasure and Sports Equipment-Sports-Launchers",30,15]
[null,null,null,null,null,null,null,null,"Culture, Leasure and Sports Equipment","Sport","Rameurs","Rameurs","30","38685","<option value=\"38685\" data-poids=\"30\" data-item=\"1354830777fc6f544fabdb370facb0a9\" >Rameurs</option>","Equipements de Culture Loisirs et Sports","Sport","Sport-Rameurs",30,null,"30","rowing maching",null,null,null,null,"Sports","rowing maching",null,"Equipements de Culture Loisirs et Sports","Sport","Rameurs","Culture, Leasure and Sports Equipment","Sports","rowing maching",true,true,true,"Culture, Leasure and Sports Equipment-Sports-rowing maching",30,15]
[null,null,null,null,null,null,null,null,"Culture, Leasure and Sports Equipment","Sport","Tapis course","Tapis course","0","38702","<option value=\"38702\" data-poids=\"0\" data-item=\"1354830777fc6f544fabdb370facb0a9\" >Tapis course</option>","Equipements de Culture Loisirs et Sports","Sport","Sport-Tapis course",0,null,"0","Treadmill",null,null,null,null,"Sports","Treadmill",null,"Equipements de Culture Loisirs et Sports","Sport","Tapis course","Culture, Leasure and Sports Equipment","Sports","Treadmill",true,true,true,"Culture, Leasure and Sports Equipment-Sports-Treadmill",0,15]
[null,null,null,null,null,null,null,null,"Culture, Leasure and Sports Equipment","Sport","Console, scoring","Console, scoring","7","38719","<option value=\"38719\" data-poids=\"7\" data-item=\"1354830777fc6f544fabdb370facb0a9\" >Console, scoring</option>","Equipements de Culture Loisirs et Sports","Sport","Sport-Console, scoring",7,null,"7","Console, scoring",null,null,null,null,"Sports","Console, scoring",null,"Equipements de Culture Loisirs et Sports","Sport","Console, scoring","Culture, Leasure and Sports Equipment","Sports","Console, scoring",true,true,true,"Culture, Leasure and Sports Equipment-Sports-Console, scoring",7,15]
[null,null,null,null,null,null,null,null,"Culture, Leasure and Sports Equipment","Jeux","Machines à sous","Machines à sous","50","21273","<option value=\"21273\" data-poids=\"50\" data-item=\"ab60d0fbad952bcdb12795d14ed1df91\" >Machines à sous</option>","Equipements de Culture Loisirs et Sports","Jeux","Jeux-Machines à sous",50,null,"50","Slot machines",null,null,null,null,"Games","Slot machines",null,"Equipements de Culture Loisirs et Sports","Jeux","Machines à sous","Culture, Leasure and Sports Equipment","Games","Slot machines",true,true,true,"Culture, Leasure and Sports Equipment-Games-Slot machines",50,15]
[null,null,null,null,null,null,null,null,"Culture, Leasure and Sports Equipment","Jeux","Flipper","Flipper","0","21274","<option value=\"21274\" data-poids=\"0\" data-item=\"ab60d0fbad952bcdb12795d14ed1df91\" >Flipper</option>","Equipements de Culture Loisirs et Sports","Jeux","Jeux-Flipper",0,null,"0","Pinball",null,null,null,null,"Games","Pinball",null,"Equipements de Culture Loisirs et Sports","Jeux","Flipper","Culture, Leasure and Sports Equipment","Games","Pinball",true,true,true,"Culture, Leasure and Sports Equipment-Games-Pinball",0,15]
[null,null,null,null,null,null,null,null,"Culture, Leasure and Sports Equipment","Jeux","Jeux électroniques","Jeux électroniques","7","21275","<option value=\"21275\" data-poids=\"7\" data-item=\"ab60d0fbad952bcdb12795d14ed1df91\" >Jeux électroniques</option>","Equipements de Culture Loisirs et Sports","Jeux","Jeux-Jeux électroniques",7,null,"7","Electronic games",null,null,null,null,"Games","Electronic games",null,"Equipements de Culture Loisirs et Sports","Jeux","Jeux électroniques","Culture, Leasure and Sports Equipment","Games","Electronic games",true,true,true,"Culture, Leasure and Sports Equipment-Games-Electronic games",7,15]
[null,null,null,null,null,null,null,null,"Culture, Leasure and Sports Equipment","Audiovisuel","Micros","Micros","7","21125","<option value=\"21125\" data-poids=\"7\" data-item=\"bd353d01125efdc0401683e1d87caf65\" >Micros</option>","Equipements de Culture Loisirs et Sports","Audiovisuel","Audiovisuel-Micros",7,null,"7","Microphones",null,null,null,null,"Audio-visual","Microphones",null,"Equipements de Culture Loisirs et Sports","Audiovisuel","Micros","Culture, Leasure and Sports Equipment","Audio-visual","Microphones",true,true,true,"Culture, Leasure and Sports Equipment-Audio-visual-Microphones",7,15]
[null,null,null,null,null,null,null,null,"Culture, Leasure and Sports Equipment","Audiovisuel","Broadcast","Broadcast","8","21126","<option value=\"21126\" data-poids=\"8\" data-item=\"bd353d01125efdc0401683e1d87caf65\" >Broadcast</option>","Equipements de Culture Loisirs et Sports","Audiovisuel","Audiovisuel-Broadcast",8,null,"8","Broadcast",null,null,null,null,"Audio-visual","Broadcast",null,"Equipements de Culture Loisirs et Sports","Audiovisuel","Broadcast","Culture, Leasure and Sports Equipment","Audio-visual","Broadcast",true,true,true,"Culture, Leasure and Sports Equipment-Audio-visual-Broadcast",8,15]
[null,null,null,null,null,null,null,null,"Culture, Leasure and Sports Equipment","Audiovisuel","Réception","Réception","0","21253","<option value=\"21253\" data-poids=\"0\" data-item=\"bd353d01125efdc0401683e1d87caf65\" >Réception</option>","Equipements de Culture Loisirs et Sports","Audiovisuel","Audiovisuel-Réception",0,null,"0","Reception",null,null,null,null,"Audio-visual","Reception",null,"Equipements de Culture Loisirs et Sports","Audiovisuel","Réception","Culture, Leasure and Sports Equipment","Audio-visual","Reception",true,true,true,"Culture, Leasure and Sports Equipment-Audio-visual-Reception",0,15]
[null,null,null,null,null,null,null,null,"Culture, Leasure and Sports Equipment","Audiovisuel","Acquisition et conversion","Acquisition et conversion","55","21268","<option value=\"21268\" data-poids=\"55\" data-item=\"bd353d01125efdc0401683e1d87caf65\" >Acquisition et conversion</option>","Equipements de Culture Loisirs et Sports","Audiovisuel","Audiovisuel-Acquisition et conversion",55,null,"55","Acquisition and conversion",null,null,null,null,"Audio-visual","Acquisition and conversion",null,"Equipements de Culture Loisirs et Sports","Audiovisuel","Acquisition et conversion","Culture, Leasure and Sports Equipment","Audio-visual","Acquisition and conversion",true,true,true,"Culture, Leasure and Sports Equipment-Audio-visual-Acquisition and conversion",55,15]
[null,null,null,null,null,null,null,null,"Culture, Leasure and Sports Equipment","Audiovisuel","Montage","Montage","60","21269","<option value=\"21269\" data-poids=\"60\" data-item=\"bd353d01125efdc0401683e1d87caf65\" >Montage</option>","Equipements de Culture Loisirs et Sports","Audiovisuel","Audiovisuel-Montage",60,null,"60","Mounting",null,null,null,null,"Audio-visual","Mounting",null,"Equipements de Culture Loisirs et Sports","Audiovisuel","Montage","Culture, Leasure and Sports Equipment","Audio-visual","Mounting",true,true,true,"Culture, Leasure and Sports Equipment-Audio-visual-Mounting",60,15]
[null,null,null,null,null,null,null,null,"Tools and Industry","Petites Machines diverses","Cerclage","Cerclage","0","38933","<option value=\"38933\" data-poids=\"0\" data-item=\"3484e7fd41b6a1c3eee1497f40c76653\" >Cerclage</option>","Outils et Industrie","Petites Machines diverses","Petites Machines diverses-Cerclage",0,null,"0","Strapping",null,null,null,null,"Various small machines","Strapping",null,"Outils et Industrie","Petites Machines diverses","Cerclage","Tools and Industry","Various small machines","Strapping",true,true,true,"Tools and Industry-Various small machines-Strapping",0,16]
[null,null,null,null,null,null,null,null,"Tools and Industry","Petites Machines diverses","Emballage","Emballage","0","38934","<option value=\"38934\" data-poids=\"0\" data-item=\"3484e7fd41b6a1c3eee1497f40c76653\" >Emballage</option>","Outils et Industrie","Petites Machines diverses","Petites Machines diverses-Emballage",0,null,"0","Packaging",null,null,null,null,"Various small machines","Packaging",null,"Outils et Industrie","Petites Machines diverses","Emballage","Tools and Industry","Various small machines","Packaging",true,true,true,"Tools and Industry-Various small machines-Packaging",0,16]
[null,null,null,null,null,null,null,null,"Tools and Industry","Petites Machines diverses","Autre Petites Machines diverses","Autre Petites Machines diverses","0","39032","<option value=\"39032\" data-poids=\"0\" data-item=\"3484e7fd41b6a1c3eee1497f40c76653\" >Autre Petites Machines diverses</option>","Outils et Industrie","Petites Machines diverses","Petites Machines diverses-Autre Petites Machines diverses",0,null,"0","Other diverse small machines",null,null,null,null,"Various small machines","Other diverse small machines",null,"Outils et Industrie","Petites Machines diverses","Autre Petites Machines diverses","Tools and Industry","Various small machines","Other diverse small machines",true,true,true,"Tools and Industry-Various small machines-Other diverse small machines",0,16]
[null,null,null,null,null,null,null,null,"Tools and Industry","Grosses Machines diverses","Emballage","Emballage","0","38931","<option value=\"38931\" data-poids=\"0\" data-item=\"5d49a5f0a31ac534d227d2d028c608fc\" >Emballage</option>","Outils et Industrie","Grosses Machines diverses","Grosses Machines diverses-Emballage",0,null,"0","Packaging",null,null,null,null,"diverse large machines","Packaging",null,"Outils et Industrie","Grosses Machines diverses","Emballage","Tools and Industry","diverse large machines","Packaging",true,true,true,"Tools and Industry-diverse large machines-Packaging",0,16]
[null,null,null,null,null,null,null,null,"Tools and Industry","Grosses Machines diverses","Cerclage","Cerclage","0","38932","<option value=\"38932\" data-poids=\"0\" data-item=\"5d49a5f0a31ac534d227d2d028c608fc\" >Cerclage</option>","Outils et Industrie","Grosses Machines diverses","Grosses Machines diverses-Cerclage",0,null,"0","Strapping",null,null,null,null,"diverse large machines","Strapping",null,"Outils et Industrie","Grosses Machines diverses","Cerclage","Tools and Industry","diverse large machines","Strapping",true,true,true,"Tools and Industry-diverse large machines-Strapping",0,16]
[null,null,null,null,null,null,null,null,"Tools and Industry","Grosses Machines diverses","Autre Grosses Machines diverses","Autre Grosses Machines diverses","0","39031","<option value=\"39031\" data-poids=\"0\" data-item=\"5d49a5f0a31ac534d227d2d028c608fc\" >Autre Grosses Machines diverses</option>","Outils et Industrie","Grosses Machines diverses","Grosses Machines diverses-Autre Grosses Machines diverses",0,null,"0","Other Large Miscellaneous Machines",null,null,null,null,"diverse large machines","Other Large Miscellaneous Machines",null,"Outils et Industrie","Grosses Machines diverses","Autre Grosses Machines diverses","Tools and Industry","diverse large machines","Other Large Miscellaneous Machines",true,true,true,"Tools and Industry-diverse large machines-Other Large Miscellaneous Machines",0,16]
[null,null,null,null,null,null,null,null,"Tools and Industry","Impression et marquage","Traceurs","Traceurs","0","38928","<option value=\"38928\" data-poids=\"0\" data-item=\"6c56d7eca503c2b342799a39583da6c2\" >Traceurs</option>","Outils et Industrie","Impression et marquage","Impression et marquage-Traceurs",100,null,"0","Tracers",null,null,null,null,"Printing and marking","Tracers",null,"Outils et Industrie","Impression et marquage","Traceurs","Tools and Industry","Printing and marking","Tracers",true,true,true,"Tools and Industry-Printing and marking-Tracers",100,16]
[null,null,null,null,null,null,null,null,"Tools and Industry","Impression et marquage","Marquage et sérigraphie","Marquage et sérigraphie","0","38929","<option value=\"38929\" data-poids=\"0\" data-item=\"6c56d7eca503c2b342799a39583da6c2\" >Marquage et sérigraphie</option>","Outils et Industrie","Impression et marquage","Impression et marquage-Marquage et sérigraphie",0,null,"0","Marking and screen printing",null,null,null,null,"Printing and marking","Marking and screen printing",null,"Outils et Industrie","Impression et marquage","Marquage et sérigraphie","Tools and Industry","Printing and marking","Marking and screen printing",true,true,true,"Tools and Industry-Printing and marking-Marking and screen printing",0,16]
[null,null,null,null,null,null,null,null,"Tools and Industry","Impression et marquage","Impression industrielle","Impression industrielle","0","38930","<option value=\"38930\" data-poids=\"0\" data-item=\"6c56d7eca503c2b342799a39583da6c2\" >Impression industrielle</option>","Outils et Industrie","Impression et marquage","Impression et marquage-Impression industrielle",70,null,"0","Industrial printing",null,null,null,null,"Printing and marking","Industrial printing",null,"Outils et Industrie","Impression et marquage","Impression industrielle","Tools and Industry","Printing and marking","Industrial printing",true,true,true,"Tools and Industry-Printing and marking-Industrial printing",70,16]
[null,null,null,null,null,null,null,null,"Tools and Industry","Impression et marquage","Autre Impression et marquage","Autre Impression et marquage","0","39030","<option value=\"39030\" data-poids=\"0\" data-item=\"6c56d7eca503c2b342799a39583da6c2\" >Autre Impression et marquage</option>","Outils et Industrie","Impression et marquage","Impression et marquage-Autre Impression et marquage",0,null,"0","Other printing and marking",null,null,null,null,"Printing and marking","Other printing and marking",null,"Outils et Industrie","Impression et marquage","Autre Impression et marquage","Tools and Industry","Printing and marking","Other printing and marking",true,true,true,"Tools and Industry-Printing and marking-Other printing and marking",0,16]
[null,null,null,null,null,null,null,null,"Tools and Industry","Espaces verts","Souffleuse","Souffleuse","0","38926","<option value=\"38926\" data-poids=\"0\" data-item=\"2c87801bf25cfecd227966d3ec0f1544\" >Souffleuse</option>","Outils et Industrie","Espaces verts","Espaces verts-Souffleuse",0,null,"0","Snowblower",null,null,null,null,"Green spaces","Snowblower",null,"Outils et Industrie","Espaces verts","Souffleuse","Tools and Industry","Green spaces","Snowblower",true,true,true,"Tools and Industry-Green spaces-Snowblower",0,16]
[null,null,null,null,null,null,null,null,"Tools and Industry","Espaces verts","Tondeuse","Tondeuse","0","38927","<option value=\"38927\" data-poids=\"0\" data-item=\"2c87801bf25cfecd227966d3ec0f1544\" >Tondeuse</option>","Outils et Industrie","Espaces verts","Espaces verts-Tondeuse",0,null,"0","Mower",null,null,null,null,"Green spaces","Mower",null,"Outils et Industrie","Espaces verts","Tondeuse","Tools and Industry","Green spaces","Mower",true,true,true,"Tools and Industry-Green spaces-Mower",0,16]
[null,null,null,null,null,null,null,null,"Tools and Industry","Espaces verts","Autre Espaces verts","Autre Espaces verts","0","39029","<option value=\"39029\" data-poids=\"0\" data-item=\"2c87801bf25cfecd227966d3ec0f1544\" >Autre Espaces verts</option>","Outils et Industrie","Espaces verts","Espaces verts-Autre Espaces verts",0,null,"0","Other Green spaces",null,null,null,null,"Green spaces","Other Green spaces",null,"Outils et Industrie","Espaces verts","Autre Espaces verts","Tools and Industry","Green spaces","Other Green spaces",true,true,true,"Tools and Industry-Green spaces-Other Green spaces",0,16]
[null,null,null,null,null,null,null,null,"Tools and Industry","Travaux et construction","Scie murale","Scie murale","0","38815","<option value=\"38815\" data-poids=\"0\" data-item=\"d6ad59730f465b81a6be8ff5f49459ab\" >Scie murale</option>","Outils et Industrie","Travaux et construction","Travaux et construction-Scie murale",0,null,"0","Wall saw",null,null,null,null,"Works and construction","Wall saw",null,"Outils et Industrie","Travaux et construction","Scie murale","Tools and Industry","Works and construction","Wall saw",true,true,true,"Tools and Industry-Works and construction-Wall saw",0,16]
[null,null,null,null,null,null,null,null,"Tools and Industry","Travaux et construction","Décolleuse","Décolleuse","0","38816","<option value=\"38816\" data-poids=\"0\" data-item=\"d6ad59730f465b81a6be8ff5f49459ab\" >Décolleuse</option>","Outils et Industrie","Travaux et construction","Travaux et construction-Décolleuse",0,null,"0","Hot air gun",null,null,null,null,"Works and construction","Hot air gun",null,"Outils et Industrie","Travaux et construction","Décolleuse","Tools and Industry","Works and construction","Hot air gun",true,true,true,"Tools and Industry-Works and construction-Hot air gun",0,16]
[null,null,null,null,null,null,null,null,"Tools and Industry","Travaux et construction","Betonneuse","Betonneuse","0","38817","<option value=\"38817\" data-poids=\"0\" data-item=\"d6ad59730f465b81a6be8ff5f49459ab\" >Betonneuse</option>","Outils et Industrie","Travaux et construction","Travaux et construction-Betonneuse",0,null,"0","Concrete mixer",null,null,null,null,"Works and construction","Concrete mixer",null,"Outils et Industrie","Travaux et construction","Betonneuse","Tools and Industry","Works and construction","Concrete mixer",true,true,true,"Tools and Industry-Works and construction-Concrete mixer",0,16]
[null,null,null,null,null,null,null,null,"Tools and Industry","Travaux et construction","Autre travaux et construction","Autre travaux et construction","0","39028","<option value=\"39028\" data-poids=\"0\" data-item=\"d6ad59730f465b81a6be8ff5f49459ab\" >Autre travaux et construction</option>","Outils et Industrie","Travaux et construction","Travaux et construction-Autre travaux et construction",0,null,"0","Other works and construction",null,null,null,null,"Works and construction","Other works and construction",null,"Outils et Industrie","Travaux et construction","Autre travaux et construction","Tools and Industry","Works and construction","Other works and construction",true,true,true,"Tools and Industry-Works and construction-Other works and construction",0,16]
[null,null,null,null,null,null,null,null,"Water, Air and Air Conditioning","Autre équip clim/aéraulique","Accessoires","Accessoires","5","21336","<option value=\"21336\" data-poids=\"5\" data-item=\"4bfbcf02e11bcb7443f8308985d7df8e\" >Accessoires</option>","Eau, Air et Climatisation","Autre équip clim/aéraulique","Autre équip clim/aéraulique-Accessoires",5,null,"5","Accessories",null,null,null,null,"Other air conditioning / aeraulic equipment","Accessories",null,"Eau, Air et Climatisation","Autre équip clim/aéraulique","Accessoires","Water, Air and Air Conditioning","Other air conditioning / aeraulic equipment","Accessories",true,true,true,"Water, Air and Air Conditioning-Other air conditioning / aeraulic equipment-Accessories",5,17]
[null,null,null,null,null,null,null,null,"Water, Air and Air Conditioning","Autre équip clim/aéraulique","Autre équipement clim/aéraulique","Autre équipement clim/aéraulique","0","21341","<option value=\"21341\" data-poids=\"0\" data-item=\"4bfbcf02e11bcb7443f8308985d7df8e\" >Autre équipement clim/aéraulique</option>","Eau, Air et Climatisation","Autre équip clim/aéraulique","Autre équip clim/aéraulique-Autre équipement clim/aéraulique",0,null,"0","Other air conditioning / aeraulic equipment",null,null,null,null,"Other air conditioning / aeraulic equipment","Other air conditioning / aeraulic equipment",null,"Eau, Air et Climatisation","Autre équip clim/aéraulique","Autre équipement clim/aéraulique","Water, Air and Air Conditioning","Other air conditioning / aeraulic equipment","Other air conditioning / aeraulic equipment",true,true,true,"Water, Air and Air Conditioning-Other air conditioning / aeraulic equipment-Other air conditioning / aeraulic equipment",0,17]
[null,null,null,null,null,null,null,null,"Water, Air and Air Conditioning","Traitement eau","Pompes","Pompes","0","21337","<option value=\"21337\" data-poids=\"0\" data-item=\"42b2f191008c8a424526d7d3dbd0a52a\" >Pompes</option>","Eau, Air et Climatisation","Traitement eau","Traitement eau-Pompes",0,null,"0","Pumps",null,null,null,null,"Water treatment","Pumps",null,"Eau, Air et Climatisation","Traitement eau","Pompes","Water, Air and Air Conditioning","Water treatment","Pumps",true,true,true,"Water, Air and Air Conditioning-Water treatment-Pumps",0,17]
[null,null,null,null,null,null,null,null,"Water, Air and Air Conditioning","Traitement eau","Chauffes eau","Chauffes eau","0","21339","<option value=\"21339\" data-poids=\"0\" data-item=\"42b2f191008c8a424526d7d3dbd0a52a\" >Chauffes eau</option>","Eau, Air et Climatisation","Traitement eau","Traitement eau-Chauffes eau",0,null,"0","Water heaters",null,null,null,null,"Water treatment","Water heaters",null,"Eau, Air et Climatisation","Traitement eau","Chauffes eau","Water, Air and Air Conditioning","Water treatment","Water heaters",true,true,true,"Water, Air and Air Conditioning-Water treatment-Water heaters",0,17]
[null,null,null,null,null,null,null,null,"Water, Air and Air Conditioning","Traitement eau","Divers traitement eau","Divers traitement eau","0","21340","<option value=\"21340\" data-poids=\"0\" data-item=\"42b2f191008c8a424526d7d3dbd0a52a\" >Divers traitement eau</option>","Eau, Air et Climatisation","Traitement eau","Traitement eau-Divers traitement eau",0,null,"0","Various water treatment",null,null,null,null,"Water treatment","Various water treatment",null,"Eau, Air et Climatisation","Traitement eau","Divers traitement eau","Water, Air and Air Conditioning","Water treatment","Various water treatment",true,true,true,"Water, Air and Air Conditioning-Water treatment-Various water treatment",0,17]
[null,null,null,null,null,null,null,null,"Water, Air and Air Conditioning","Rooftop & Chiller","VRV (sans fluide)","VRV (sans fluide)","150","21351","<option value=\"21351\" data-poids=\"150\" data-item=\"f0d9725e702e7801adbf066cb803fd49\" >VRV (sans fluide)</option>","Eau, Air et Climatisation","Rooftop & Chiller","Rooftop & Chiller-VRV (sans fluide)",150,null,"150","VRV (without fluid)",null,null,null,null,"Rooftop & Chiller","VRV (without fluid)",null,"Eau, Air et Climatisation","Rooftop & Chiller","VRV (sans fluide)","Water, Air and Air Conditioning","Rooftop & Chiller","VRV (without fluid)",true,true,true,"Water, Air and Air Conditioning-Rooftop & Chiller-VRV (without fluid)",150,17]
[null,null,null,null,null,null,null,null,"Water, Air and Air Conditioning","Rooftop & Chiller","Rooftops","Rooftops","0","21352","<option value=\"21352\" data-poids=\"0\" data-item=\"f0d9725e702e7801adbf066cb803fd49\" >Rooftops</option>","Eau, Air et Climatisation","Rooftop & Chiller","Rooftop & Chiller-Rooftops",0,null,"0","Rooftops",null,null,null,null,"Rooftop & Chiller","Rooftops",null,"Eau, Air et Climatisation","Rooftop & Chiller","Rooftops","Water, Air and Air Conditioning","Rooftop & Chiller","Rooftops",true,true,true,"Water, Air and Air Conditioning-Rooftop & Chiller-Rooftops",0,17]
[null,null,null,null,null,null,null,null,"Water, Air and Air Conditioning","Rooftop & Chiller","Chillers","Chillers","1000","21354","<option value=\"21354\" data-poids=\"1000\" data-item=\"f0d9725e702e7801adbf066cb803fd49\" >Chillers</option>","Eau, Air et Climatisation","Rooftop & Chiller","Rooftop & Chiller-Chillers",1000,null,"1000","Chillers",null,null,null,null,"Rooftop & Chiller","Chillers",null,"Eau, Air et Climatisation","Rooftop & Chiller","Chillers","Water, Air and Air Conditioning","Rooftop & Chiller","Chillers",true,true,true,"Water, Air and Air Conditioning-Rooftop & Chiller-Chillers",1000,17]
[null,null,null,null,null,null,null,null,"Water, Air and Air Conditioning","Ventilation et Traitement de l'air divers","Batteries","Batteries","0","21338","<option value=\"21338\" data-poids=\"0\" data-item=\"348946d02910cc64e12c79107f2cecf4\" >Batteries</option>","Eau, Air et Climatisation","Ventilation et Traitement de l'air divers","Ventilation et Traitement de l'air divers-Batteries",0,null,"0","Batteries",null,null,null,null,"Various ventilation and air treatment","Batteries",null,"Eau, Air et Climatisation","Ventilation et Traitement de l'air divers","Batteries","Water, Air and Air Conditioning","Various ventilation and air treatment","Batteries",true,true,true,"Water, Air and Air Conditioning-Various ventilation and air treatment-Batteries",0,17]
[null,null,null,null,null,null,null,null,"Water, Air and Air Conditioning","Ventilation et Traitement de l'air divers","Hottes","Hottes","40","21344","<option value=\"21344\" data-poids=\"40\" data-item=\"348946d02910cc64e12c79107f2cecf4\" >Hottes</option>","Eau, Air et Climatisation","Ventilation et Traitement de l'air divers","Ventilation et Traitement de l'air divers-Hottes",50,null,"40","Hoods",null,null,null,null,"Various ventilation and air treatment","Hoods",null,"Eau, Air et Climatisation","Ventilation et Traitement de l'air divers","Hottes","Water, Air and Air Conditioning","Various ventilation and air treatment","Hoods",true,true,true,"Water, Air and Air Conditioning-Various ventilation and air treatment-Hoods",50,17]
[null,null,null,null,null,null,null,null,"Water, Air and Air Conditioning","Ventilation et Traitement de l'air divers","Autres vent / trt air","Autres vent / trt air","0","21346","<option value=\"21346\" data-poids=\"0\" data-item=\"348946d02910cc64e12c79107f2cecf4\" >Autres vent / trt air</option>","Eau, Air et Climatisation","Ventilation et Traitement de l'air divers","Ventilation et Traitement de l'air divers-Autres vent / trt air",0,null,"0","Other wind / air trt",null,null,null,null,"Various ventilation and air treatment","Other wind / air trt",null,"Eau, Air et Climatisation","Ventilation et Traitement de l'air divers","Autres vent / trt air","Water, Air and Air Conditioning","Various ventilation and air treatment","Other wind / air trt",true,true,true,"Water, Air and Air Conditioning-Various ventilation and air treatment-Other wind / air trt",0,17]
[null,null,null,null,null,null,null,null,"Water, Air and Air Conditioning","Ventilation et Traitement de l'air divers","Groupes de ventilation","Groupes de ventilation","0","21347","<option value=\"21347\" data-poids=\"0\" data-item=\"348946d02910cc64e12c79107f2cecf4\" >Groupes de ventilation</option>","Eau, Air et Climatisation","Ventilation et Traitement de l'air divers","Ventilation et Traitement de l'air divers-Groupes de ventilation",0,null,"0","Ventilation groups",null,null,null,null,"Various ventilation and air treatment","Ventilation groups",null,"Eau, Air et Climatisation","Ventilation et Traitement de l'air divers","Groupes de ventilation","Water, Air and Air Conditioning","Various ventilation and air treatment","Ventilation groups",true,true,true,"Water, Air and Air Conditioning-Various ventilation and air treatment-Ventilation groups",0,17]
[null,null,null,null,null,null,null,null,"Water, Air and Air Conditioning","Ventilation et Traitement de l'air divers","Centrales de ventilation","Centrales de ventilation","50","21348","<option value=\"21348\" data-poids=\"50\" data-item=\"348946d02910cc64e12c79107f2cecf4\" >Centrales de ventilation</option>","Eau, Air et Climatisation","Ventilation et Traitement de l'air divers","Ventilation et Traitement de l'air divers-Centrales de ventilation",50,null,"50","Ventilation units",null,null,null,null,"Various ventilation and air treatment","Ventilation units",null,"Eau, Air et Climatisation","Ventilation et Traitement de l'air divers","Centrales de ventilation","Water, Air and Air Conditioning","Various ventilation and air treatment","Ventilation units",true,true,true,"Water, Air and Air Conditioning-Various ventilation and air treatment-Ventilation units",50,17]
[null,null,null,null,null,null,null,null,"Water, Air and Air Conditioning","Ventilation et Traitement de l'air divers","Caissons (extraction/ventilation/désenfumage)","Caissons (extraction/ventilation/désenfumage)","0","21349","<option value=\"21349\" data-poids=\"0\" data-item=\"348946d02910cc64e12c79107f2cecf4\" >Caissons (extraction/ventilation/désenfumage)</option>","Eau, Air et Climatisation","Ventilation et Traitement de l'air divers","Ventilation et Traitement de l'air divers-Caissons (extraction/ventilation/désenfumage)",0,null,"0","Boxes (extraxtion / ventilation / smoke extraction)",null,null,null,null,"Various ventilation and air treatment","Boxes (extraxtion / ventilation / smoke extraction)",null,"Eau, Air et Climatisation","Ventilation et Traitement de l'air divers","Caissons (extraction/ventilation/désenfumage)","Water, Air and Air Conditioning","Various ventilation and air treatment","Boxes (extraxtion / ventilation / smoke extraction)",true,true,true,"Water, Air and Air Conditioning-Various ventilation and air treatment-Boxes (extraxtion / ventilation / smoke extraction)",0,17]
[null,null,null,null,null,null,null,null,"Water, Air and Air Conditioning","Ventilation et Traitement de l'air divers","Tourelles (ventilation/désenfumage)","Tourelles (ventilation/désenfumage)","0","21350","<option value=\"21350\" data-poids=\"0\" data-item=\"348946d02910cc64e12c79107f2cecf4\" >Tourelles (ventilation/désenfumage)</option>","Eau, Air et Climatisation","Ventilation et Traitement de l'air divers","Ventilation et Traitement de l'air divers-Tourelles (ventilation/désenfumage)",0,null,"0","Turrets (ventilation / smoke extraction)",null,null,null,null,"Various ventilation and air treatment","Turrets (ventilation / smoke extraction)",null,"Eau, Air et Climatisation","Ventilation et Traitement de l'air divers","Tourelles (ventilation/désenfumage)","Water, Air and Air Conditioning","Various ventilation and air treatment","Turrets (ventilation / smoke extraction)",true,true,true,"Water, Air and Air Conditioning-Various ventilation and air treatment-Turrets (ventilation / smoke extraction)",0,17]
[null,null,null,null,null,null,null,null,"Water, Air and Air Conditioning","Ventilation et Traitement de l'air","Groupes de ventilation","Groupes de ventilation","100","21342","<option value=\"21342\" data-poids=\"100\" data-item=\"5c92cb86ae9d2d019eb8eaec161656a3\" >Groupes de ventilation</option>","Eau, Air et Climatisation","Ventilation et Traitement de l'air","Ventilation et Traitement de l'air-Groupes de ventilation",0,null,"100","Ventilation groups",null,null,null,null,"Ventilation and Air Treatment","Ventilation groups",null,"Eau, Air et Climatisation","Ventilation et Traitement de l'air","Groupes de ventilation","Water, Air and Air Conditioning","Ventilation and Air Treatment","Ventilation groups",true,true,true,"Water, Air and Air Conditioning-Ventilation and Air Treatment-Ventilation groups",0,17]
[null,null,null,null,null,null,null,null,"Water, Air and Air Conditioning","Ventilation et Traitement de l'air","Echangeurs","Echangeurs","30","21343","<option value=\"21343\" data-poids=\"30\" data-item=\"5c92cb86ae9d2d019eb8eaec161656a3\" >Echangeurs</option>","Eau, Air et Climatisation","Ventilation et Traitement de l'air","Ventilation et Traitement de l'air-Echangeurs",30,null,"30","Heat exchangers",null,null,null,null,"Ventilation and Air Treatment","Heat exchangers",null,"Eau, Air et Climatisation","Ventilation et Traitement de l'air","Echangeurs","Water, Air and Air Conditioning","Ventilation and Air Treatment","Heat exchangers",true,true,true,"Water, Air and Air Conditioning-Ventilation and Air Treatment-Heat exchangers",30,17]
[null,null,null,null,null,null,null,null,"Water, Air and Air Conditioning","Ventilation et Traitement de l'air","Centrales de ventilation","Centrales de ventilation","50","21345","<option value=\"21345\" data-poids=\"50\" data-item=\"5c92cb86ae9d2d019eb8eaec161656a3\" >Centrales de ventilation</option>","Eau, Air et Climatisation","Ventilation et Traitement de l'air","Ventilation et Traitement de l'air-Centrales de ventilation",50,null,"50","Ventilation units",null,null,null,null,"Ventilation and Air Treatment","Ventilation units",null,"Eau, Air et Climatisation","Ventilation et Traitement de l'air","Centrales de ventilation","Water, Air and Air Conditioning","Ventilation and Air Treatment","Ventilation units",true,true,true,"Water, Air and Air Conditioning-Ventilation and Air Treatment-Ventilation units",50,17]
[null,null,null,null,null,null,null,null,"Water, Air and Air Conditioning","Ventilation et Traitement de l'air","Caissons (extraction/ventilation/désenfumage)","Caissons (extraction/ventilation/désenfumage)","50","26508","<option value=\"26508\" data-poids=\"50\" data-item=\"5c92cb86ae9d2d019eb8eaec161656a3\" >Caissons (extraction/ventilation/désenfumage)</option>","Eau, Air et Climatisation","Ventilation et Traitement de l'air","Ventilation et Traitement de l'air-Caissons (extraction/ventilation/désenfumage)",0,null,"50","Boxes (extraction / ventilation / smoke extraction)",null,null,null,null,"Ventilation and Air Treatment","Boxes (extraction / ventilation / smoke extraction)",null,"Eau, Air et Climatisation","Ventilation et Traitement de l'air","Caissons (extraction/ventilation/désenfumage)","Water, Air and Air Conditioning","Ventilation and Air Treatment","Boxes (extraction / ventilation / smoke extraction)",true,true,true,"Water, Air and Air Conditioning-Ventilation and Air Treatment-Boxes (extraction / ventilation / smoke extraction)",0,17]
[null,null,null,null,null,null,null,null,"Water, Air and Air Conditioning","Ventilation et Traitement de l'air","Tourelles (ventilation/désenfumage)","Tourelles (ventilation/désenfumage)","100","26517","<option value=\"26517\" data-poids=\"100\" data-item=\"5c92cb86ae9d2d019eb8eaec161656a3\" >Tourelles (ventilation/désenfumage)</option>","Eau, Air et Climatisation","Ventilation et Traitement de l'air","Ventilation et Traitement de l'air-Tourelles (ventilation/désenfumage)",0,null,"100","Turrets (ventilation / smoke extraction)",null,null,null,null,"Ventilation and Air Treatment","Turrets (ventilation / smoke extraction)",null,"Eau, Air et Climatisation","Ventilation et Traitement de l'air","Tourelles (ventilation/désenfumage)","Water, Air and Air Conditioning","Ventilation and Air Treatment","Turrets (ventilation / smoke extraction)",true,true,true,"Water, Air and Air Conditioning-Ventilation and Air Treatment-Turrets (ventilation / smoke extraction)",0,17]
[null,null,null,null,null,null,null,null,"Water, Air and Air Conditioning","Ventilation et Traitement de l'air","Batteries","Batteries","50","26526","<option value=\"26526\" data-poids=\"50\" data-item=\"5c92cb86ae9d2d019eb8eaec161656a3\" >Batteries</option>","Eau, Air et Climatisation","Ventilation et Traitement de l'air","Ventilation et Traitement de l'air-Batteries",0,null,"50","Batteries",null,null,null,null,"Ventilation and Air Treatment","Batteries",null,"Eau, Air et Climatisation","Ventilation et Traitement de l'air","Batteries","Water, Air and Air Conditioning","Ventilation and Air Treatment","Batteries",true,true,true,"Water, Air and Air Conditioning-Ventilation and Air Treatment-Batteries",0,17]
[null,null,null,null,null,null,null,null,"Water, Air and Air Conditioning","Génie climatique - Equipement","Climatiseurs","Climatiseurs","100","21355","<option value=\"21355\" data-poids=\"100\" data-item=\"e10b412bfdd8e67ea6afd48719d427eb\" >Climatiseurs</option>","Eau, Air et Climatisation","Génie climatique - Equipement","Génie climatique - Equipement-Climatiseurs",100,null,"100","Conditioners",null,null,null,null,"Air conditioning - Equipment","Conditioners",null,"Eau, Air et Climatisation","Génie climatique - Equipement","Climatiseurs","Water, Air and Air Conditioning","Air conditioning - Equipment","Conditioners",true,true,true,"Water, Air and Air Conditioning-Air conditioning - Equipment-Conditioners",100,17]
[null,null,null,null,null,null,null,null,"Water, Air and Air Conditioning","Génie climatique - Equipement","Plafonniers","Plafonniers","50","26445","<option value=\"26445\" data-poids=\"50\" data-item=\"e10b412bfdd8e67ea6afd48719d427eb\" >Plafonniers</option>","Eau, Air et Climatisation","Génie climatique - Equipement","Génie climatique - Equipement-Plafonniers",50,null,"50","Ceiling lights",null,null,null,null,"Air conditioning - Equipment","Ceiling lights",null,"Eau, Air et Climatisation","Génie climatique - Equipement","Plafonniers","Water, Air and Air Conditioning","Air conditioning - Equipment","Ceiling lights",true,true,true,"Water, Air and Air Conditioning-Air conditioning - Equipment-Ceiling lights",50,17]
[null,null,null,null,null,null,null,null,"Water, Air and Air Conditioning","Génie climatique - Equipement","Cassettes","Cassettes","50","26454","<option value=\"26454\" data-poids=\"50\" data-item=\"e10b412bfdd8e67ea6afd48719d427eb\" >Cassettes</option>","Eau, Air et Climatisation","Génie climatique - Equipement","Génie climatique - Equipement-Cassettes",50,null,"50","Cassettes",null,null,null,null,"Air conditioning - Equipment","Cassettes",null,"Eau, Air et Climatisation","Génie climatique - Equipement","Cassettes","Water, Air and Air Conditioning","Air conditioning - Equipment","Cassettes",true,true,true,"Water, Air and Air Conditioning-Air conditioning - Equipment-Cassettes",50,17]
[null,null,null,null,null,null,null,null,"Water, Air and Air Conditioning","Génie climatique - Equipement","Équipements muraux","Équipements muraux","15","26481","<option value=\"26481\" data-poids=\"15\" data-item=\"e10b412bfdd8e67ea6afd48719d427eb\" >Équipements muraux</option>","Eau, Air et Climatisation","Génie climatique - Equipement","Génie climatique - Equipement-Équipements muraux",15,null,"15","Wall fitting",null,null,null,null,"Air conditioning - Equipment","Wall fitting",null,"Eau, Air et Climatisation","Génie climatique - Equipement","Équipements muraux","Water, Air and Air Conditioning","Air conditioning - Equipment","Wall fitting",true,true,true,"Water, Air and Air Conditioning-Air conditioning - Equipment-Wall fitting",15,17]
[null,null,null,null,null,null,null,null,"Water, Air and Air Conditioning","Génie climatique - Equipement","Consoles","Consoles","15","26490","<option value=\"26490\" data-poids=\"15\" data-item=\"e10b412bfdd8e67ea6afd48719d427eb\" >Consoles</option>","Eau, Air et Climatisation","Génie climatique - Equipement","Génie climatique - Equipement-Consoles",15,null,"15","Consoles",null,null,null,null,"Air conditioning - Equipment","Consoles",null,"Eau, Air et Climatisation","Génie climatique - Equipement","Consoles","Water, Air and Air Conditioning","Air conditioning - Equipment","Consoles",true,true,true,"Water, Air and Air Conditioning-Air conditioning - Equipment-Consoles",15,17]
[null,null,null,null,null,null,null,null,"Water, Air and Air Conditioning","Génie climatique - Sous-ensemble","Groupes de condensation","Groupes de condensation","300","21353","<option value=\"21353\" data-poids=\"300\" data-item=\"a3f46d091dabcd754f187591f30c509f\" >Groupes de condensation</option>","Eau, Air et Climatisation","Génie climatique - Sous-ensemble","Génie climatique - Sous-ensemble-Groupes de condensation",300,null,"300","Condensing units",null,null,null,null,"Air conditioning - Subset","Condensing units",null,"Eau, Air et Climatisation","Génie climatique - Sous-ensemble","Groupes de condensation","Water, Air and Air Conditioning","Air conditioning - Subset","Condensing units",true,true,true,"Water, Air and Air Conditioning-Air conditioning - Subset-Condensing units",300,17]
[null,null,null,null,null,null,null,null,"Water, Air and Air Conditioning","Génie climatique - Sous-ensemble","Condenseurs à air","Condenseurs à air","100","21356","<option value=\"21356\" data-poids=\"100\" data-item=\"a3f46d091dabcd754f187591f30c509f\" >Condenseurs à air</option>","Eau, Air et Climatisation","Génie climatique - Sous-ensemble","Génie climatique - Sous-ensemble-Condenseurs à air",100,null,"100","Air condensers",null,null,null,null,"Air conditioning - Subset","Air condensers",null,"Eau, Air et Climatisation","Génie climatique - Sous-ensemble","Condenseurs à air","Water, Air and Air Conditioning","Air conditioning - Subset","Air condensers",true,true,true,"Water, Air and Air Conditioning-Air conditioning - Subset-Air condensers",100,17]
[null,null,null,null,null,null,null,null,"Water, Air and Air Conditioning","Génie climatique - Sous-ensemble","Evaporateurs","Evaporateurs","200","21357","<option value=\"21357\" data-poids=\"200\" data-item=\"a3f46d091dabcd754f187591f30c509f\" >Evaporateurs</option>","Eau, Air et Climatisation","Génie climatique - Sous-ensemble","Génie climatique - Sous-ensemble-Evaporateurs",200,null,"200","Evaporators",null,null,null,null,"Air conditioning - Subset","Evaporators",null,"Eau, Air et Climatisation","Génie climatique - Sous-ensemble","Evaporateurs","Water, Air and Air Conditioning","Air conditioning - Subset","Evaporators",true,true,true,"Water, Air and Air Conditioning-Air conditioning - Subset-Evaporators",200,17]
[null,null,null,null,null,null,null,null,"Water, Air and Air Conditioning","Génie climatique - Sous-ensemble","Autres équipements","Autres équipements","0","21358","<option value=\"21358\" data-poids=\"0\" data-item=\"a3f46d091dabcd754f187591f30c509f\" >Autres équipements</option>","Eau, Air et Climatisation","Génie climatique - Sous-ensemble","Génie climatique - Sous-ensemble-Autres équipements",0,null,"0","Other equipment",null,null,null,null,"Air conditioning - Subset","Other equipment",null,"Eau, Air et Climatisation","Génie climatique - Sous-ensemble","Autres équipements","Water, Air and Air Conditioning","Air conditioning - Subset","Other equipment",true,true,true,"Water, Air and Air Conditioning-Air conditioning - Subset-Other equipment",0,17]
[null,null,null,null,null,null,null,null,"Water, Air and Air Conditioning","Génie climatique - Sous-ensemble","Pompes à chaleur","Pompes à chaleur","70","26427","<option value=\"26427\" data-poids=\"70\" data-item=\"a3f46d091dabcd754f187591f30c509f\" >Pompes à chaleur</option>","Eau, Air et Climatisation","Génie climatique - Sous-ensemble","Génie climatique - Sous-ensemble-Pompes à chaleur",70,null,"70","Heat pumps",null,null,null,null,"Air conditioning - Subset","Heat pumps",null,"Eau, Air et Climatisation","Génie climatique - Sous-ensemble","Pompes à chaleur","Water, Air and Air Conditioning","Air conditioning - Subset","Heat pumps",true,true,true,"Water, Air and Air Conditioning-Air conditioning - Subset-Heat pumps",70,17]
[null,null,null,null,null,null,null,null,"Water, Air and Air Conditioning","Génie climatique - Sous-ensemble","Echangeurs","Echangeurs","30","26436","<option value=\"26436\" data-poids=\"30\" data-item=\"a3f46d091dabcd754f187591f30c509f\" >Echangeurs</option>","Eau, Air et Climatisation","Génie climatique - Sous-ensemble","Génie climatique - Sous-ensemble-Echangeurs",30,null,"30","Heat echangers",null,null,null,null,"Air conditioning - Subset","Heat echangers",null,"Eau, Air et Climatisation","Génie climatique - Sous-ensemble","Echangeurs","Water, Air and Air Conditioning","Air conditioning - Subset","Heat echangers",true,true,true,"Water, Air and Air Conditioning-Air conditioning - Subset-Heat echangers",30,17]
[null,null,null,null,null,null,null,null,"Water, Air and Air Conditioning","Génie climatique - Sous-ensemble","Gainables","Gainables","40","26463","<option value=\"26463\" data-poids=\"40\" data-item=\"a3f46d091dabcd754f187591f30c509f\" >Gainables</option>","Eau, Air et Climatisation","Génie climatique - Sous-ensemble","Génie climatique - Sous-ensemble-Gainables",40,null,"40","Ductable",null,null,null,null,"Air conditioning - Subset","Ductable",null,"Eau, Air et Climatisation","Génie climatique - Sous-ensemble","Gainables","Water, Air and Air Conditioning","Air conditioning - Subset","Ductable",true,true,true,"Water, Air and Air Conditioning-Air conditioning - Subset-Ductable",40,17]
[null,null,null,null,null,null,null,null,"Water, Air and Air Conditioning","Génie climatique - Sous-ensemble","Centrale de traitement de l'air (CTA)","Centrale de traitement de l'air (CTA)","500","26472","<option value=\"26472\" data-poids=\"500\" data-item=\"a3f46d091dabcd754f187591f30c509f\" >Centrale de traitement de l'air (CTA)</option>","Eau, Air et Climatisation","Génie climatique - Sous-ensemble","Génie climatique - Sous-ensemble-Centrale de traitement de l'air (CTA)",500,null,"500","Air handling unit",null,null,null,null,"Air conditioning - Subset","Air handling unit",null,"Eau, Air et Climatisation","Génie climatique - Sous-ensemble","Centrale de traitement de l'air (CTA)","Water, Air and Air Conditioning","Air conditioning - Subset","Air handling unit",true,true,true,"Water, Air and Air Conditioning-Air conditioning - Subset-Air handling unit",500,17]
[null,null,null,null,null,null,null,null,null,null,null,null,null,null,null,null,null,{"$f":"CONCATENATE(J294,\"-\",K294)","v":"-"}]